Workbook

Sheet Template G (hidden)
B2: APPENDIX 1: SUMMARY OF PROFIT & LOSS ACCOUNTS UNDER GENERAL INSURANCE BUSINESS FOR THE YEAR ENDED 31.12.2014
B3: Company | C3: Profit Transferred from Revenue | D3: Investment Income | E3: Other Income | F3: Total Income | G3: Loss Transferred From Revenue | H3: Management Expenses | I3: Total Outgo | J3: Profit / (Loss) Before Taxation | K3: Provision for Taxation | L3: Profit/(Loss) After Taxation | M3: Unappropriated Profit/(Loss) BF | N3: Transfer To Reserves | O3: Other Appropriations | P3: Dividend | Q3: Unappropriated Profit /(Loss) CF
B4: INSURERS
B5: AAR INSURANCE KENYA | C5: 130234 | D5: 0 | E5: 0 | F5: 130234 | G5: 0 | H5: 0 | I5: 0 | J5: 130234 | K5: 46204 | L5: 84030 | M5: 44501 | N5: 634323 | O5: 0 | P5: 0 | Q5: -505792
B6: AFRICAN MERCHANT ASSURANCE | C6: 142654 | D6: 0 | E6: 0 | F6: 142654 | G6: 0 | H6: 0 | I6: 0 | J6: 142654 | K6: 39308 | L6: 103346 | M6: 318291 | N6: 0 | O6: 0 | P6: 0 | Q6: 421637
B7: AIG INSURANCE COMPANY | C7: 170766 | D7: 670630 | E7: 0 | F7: 841396 | G7: 0 | H7: 0 | I7: 0 | J7: 841396 | K7: 146702 | L7: 694694 | M7: 954171 | N7: 0 | O7: 0 | P7: 400000 | Q7: 1248865
B8: ALLIANZ INSURANCE COMPANY
B9: APA INSURANCE COMPANY | C9: 38749 | D9: 1034052 | E9: 0 | F9: 1072800 | G9: 0 | H9: -2138 | I9: 234936 | J9: 837864 | K9: 61671 | L9: 776193 | M9: 2283021 | N9: 0 | O9: 0 | P9: 80000 | Q9: 2979214
B10: BRITISH AMERICAN INSURANCE | C10: 339613 | D10: 251553 | E10: 0 | F10: 591166 | G10: 0 | H10: 0 | I10: 0 | J10: 591166 | K10: 78039 | L10: 513127 | M10: 825170 | N10: 0 | O10: 0 | P10: 0 | Q10: 1338298
B11: CANNON ASSURANCE COMPANY | C11: 74763 | D11: 0 | E11: 46931 | F11: 191885 | G11: 0 | H11: 0 | I11: 70189 | J11: 121695 | K11: 1928 | L11: 119767 | M11: 1084652 | N11: 0 | O11: 0 | P11: 781269 | Q11: 423150
B12: CIC GENERAL INSURANCE COMPANY | C12: 125132 | D12: 719643 | E12: 0 | F12: 844775 | G12: 0 | H12: 0 | I12: 0 | J12: 844775 | K12: 241425 | L12: 603350 | M12: 1877149 | N12: 0 | O12: 0 | P12: 405000 | Q12: 2075499
B13: CORPORATE INSURANCE COMPANY | C13: 205038 | D13: 0 | E13: 0 | F13: 205038 | G13: 0 | H13: 0 | I13: 0 | J13: 205038 | K13: 46383 | L13: 158655 | M13: 385905 | N13: 0 | O13: 0 | P13: 39000 | Q13: 505560
B14: DIRECTLINE ASSURANCE COMPANY | C14: 0 | D14: 638364 | E14: 0 | F14: 638365 | G14: 79947 | H14: 24146 | I14: 187546 | J14: 450818 | K14: 70096 | L14: 380723 | M14: 0 | N14: 0 | O14: 0 | P14: 0 | Q14: 380723
B15: FIDELITY SHIELD INSURANCE | C15: 101808 | D15: 179215 | E15: 7034 | F15: 288058 | G15: 0 | H15: 29416 | I15: 86512 | J15: 201545 | K15: 51745 | L15: 149800 | M15: 537207 | N15: 149548 | O15: 0 | P15: 45000 | Q15: 492459
B16: FIRST ASSURANCE COMPANY | C16: 67728 | D16: 447203 | E16: 0 | F16: 514930 | G16: 0 | H16: 0 | I16: 0 | J16: 514930 | K16: 98026 | L16: 416904 | M16: 827541 | N16: 0 | O16: 8093 | P16: 80251 | Q16: 1156101
B17: GA INSURANCE COMPANY | C17: 603861 | D17: 0 | E17: 0 | F17: 603861 | G17: 0 | H17: 0 | I17: 0 | J17: 603861 | K17: 158971 | L17: 444890 | M17: 677157 | N17: 6241 | O17: 0 | P17: 225000 | Q17: 890806
B18: GATEWAY INSURANCE COMPANY | C18: 25450 | D18: 0 | E18: 0 | F18: 25450 | G18: 0 | H18: 0 | I18: 0 | J18: 25450 | K18: 5318 | L18: 20132 | M18: 279570 | N18: 0 | O18: 0 | P18: 0 | Q18: 299702
B19: GEMINIA INSURANCE COMPANY | C19: 345161 | D19: 0 | E19: 291 | F19: 345452 | G19: 0 | H19: 633 | I19: 6435 | J19: 339017 | K19: 103330 | L19: 235686 | M19: 409368 | N19: 0 | O19: 2886 | P19: 90000 | Q19: 552169
B20: HERITAGE INSURANCE COMPANY | C20: 714803 | D20: 0 | E20: 1654 | F20: 716456 | G20: 0 | H20: 4023 | I20: 14466 | J20: 701990 | K20: 187852 | L20: 514138 | M20: 1285450 | N20: 0 | O20: 0 | P20: 230000 | Q20: 1569588
B21: ICEA LION GENERAL INSURANCE | C21: 300512 | D21: 742458 | E21: 0 | F21: 1042969 | G21: 0 | H21: 174555 | I21: 216797 | J21: 826173 | K21: 242956 | L21: 583217 | M21: 1850557 | N21: 0 | O21: 0 | P21: 200000 | Q21: 2233774
B22: INTRA-AFRICA ASSURANCE | C22: 0 | D22: 25075 | E22: 35589 | F22: 60664 | G22: 11756 | H22: 6540 | I22: 44468 | J22: 16196 | K22: 1648 | L22: 14548 | M22: 137625 | N22: 28100 | O22: -21036 | P22: 7500 | Q22: 137608
B23: INVESCO ASSURANCE COMPANY | C23: 0 | D23: 31010 | E23: 1443 | F23: 32453 | G23: 28200 | H23: 0 | I23: 101914 | J23: -69461 | K23: 26760 | L23: -96221 | M23: -1210798 | N23: 0 | O23: 0 | P23: 0 | Q23: -1307019
B24: JUBILEE INSURANCE COMPANY | C24: 1732918 | D24: 0 | E24: 139646 | F24: 1872564 | G24: 0 | H24: 0 | I24: 0 | J24: 1872564 | K24: 412337 | L24: 1460227 | M24: 3374754 | N24: -48 | O24: 1200000 | P24: 1000000 | Q24: 2635029
B25: KENINDIA ASSURANCE COMPANY | C25: 0 | D25: 0 | E25: 7636 | F25: 7636 | G25: 273201 | H25: 14741 | I25: 368270 | J25: -360634 | K25: -107940 | L25: -252694 | M25: 1172502 | N25: 0 | O25: -3585 | P25: 28069 | Q25: 895324
B26: KENYA ORIENT INSURANCE | C26: 237761 | D26: 0 | E26: 2666 | F26: 240427 | G26: 0 | H26: 98497 | I26: 98497 | J26: 141930 | K26: 52814 | L26: 89116 | M26: -17547 | N26: 0 | O26: 0 | P26: 0 | Q26: 71569
B27: MADISON INSURANCE COMPANY | C27: 12753 | D27: 0 | E27: 21396 | F27: 34149 | G27: 0 | H27: 0 | I27: 0 | J27: 34149 | K27: 0 | L27: 34149 | M27: 381408 | N27: 0 | O27: 0 | P27: 0 | Q27: 415557
B28: MAYFAIR INSURANCE COMPANY | C28: 188190 | D28: 192898 | E28: 1359 | F28: 382447 | G28: 0 | H28: 1286 | I28: 22336 | J28: 360110 | K28: 102410 | L28: 257701 | M28: 275513 | N28: 0 | O28: 0 | P28: 20000 | Q28: 513214
B29: OCCIDENTAL INSURANCE COMPANY | C29: 311911 | D29: 0 | E29: 34062 | F29: 345973 | G29: 0 | H29: 32976 | I29: 34373 | J29: 311600 | K29: 67905 | L29: 243695 | M29: 323724 | N29: 0 | O29: 0 | P29: 79695 | Q29: 487724
B30: PACIS INSURANCE COMPANY | C30: 119902 | D30: 0 | E30: 70627 | F30: 190529 | G30: 0 | H30: 19908 | I30: 19908 | J30: 170621 | K30: 50513 | L30: 120108 | M30: 352876 | N30: 0 | O30: 0 | P30: 0 | Q30: 472984
B31: PHOENIX OF EAST AFRICA | C31: 0 | D31: 113772 | E31: 943479 | F31: 1057251 | G31: 179641 | H31: 77166 | I31: 256807 | J31: 800444 | K31: 21357 | L31: 779087 | M31: 647918 | N31: 0 | O31: 0 | P31: 305000 | Q31: 1122005
B32: REAL INSURANCE COMPANY | C32: -58634 | D32: 102770 | E32: 58505 | F32: 102640 | G32: 0 | H32: 5420 | I32: 77089 | J32: 25552 | K32: 10450 | L32: 15101 | M32: 37508 | N32: 0 | O32: -8204 | P32: 25898 | Q32: 34916
B33: RESOLUTION HEALTH INSURANCE | C33: 0 | D33: 0 | E33: 0 | F33: 0 | G33: 138004 | H33: 0 | I33: 138004 | J33: -138004 | K33: -37685 | L33: -100319 | M33: 45411 | N33: 0 | O33: 0 | P33: 0 | Q33: -54908
B34: SAHAM ASSURANCE | C34: 21354 | D34: 0 | E34: 0 | F34: 21354 | G34: 0 | H34: 0 | I34: 0 | J34: 21354 | K34: 2544 | L34: 18810 | M34: 139368 | N34: 8988 | O34: 0 | P34: 9000 | Q34: 140190
B35: TAKAFUL INSURANCE OF AFRICA | C35: 0 | D35: 0 | E35: 0 | F35: 0 | G35: 20487 | H35: -22351 | I35: -1864 | J35: 1864 | K35: 4966 | L35: -3102 | M35: -139324 | N35: 0 | O35: 0 | P35: 0 | Q35: -142426
B36: TAUSI ASSURANCE COMPANY | C36: 35509 | D36: 170757 | E36: 0 | F36: 206265 | G36: 0 | H36: 5631 | I36: 19943 | J36: 186323 | K36: 53012 | L36: 133310 | M36: 176183 | N36: 0 | O36: -2999 | P36: 50224 | Q36: 262268
B37: THE KENYAN ALLIANCE INSURANCE | C37: 175734 | D37: 0 | E37: 0 | F37: 175734 | G37: 0 | H37: 0 | I37: 0 | J37: 175734 | K37: 73633 | L37: 102102 | M37: 955596 | N37: 0 | O37: 0 | P37: 10526 | Q37: 1047171
B38: THE MONARCH INSURANCE | C38: 99555 | D38: 9578 | E38: 46957 | F38: 156091 | G38: 0 | H38: 3702 | I38: 27420 | J38: 128672 | K38: 36001 | L38: 92671 | M38: 10403 | N38: 0 | O38: 0 | P38: 50000 | Q38: 53074
B39: TRIDENT INSURANCE COMPANY | C39: 47022 | D39: 155654 | E39: 21399 | F39: 224074 | G39: 0 | H39: 30356 | I39: 38052 | J39: 186022 | K39: 43613 | L39: 142409 | M39: 1246161 | N39: -4181 | O39: 0 | P39: 0 | Q39: 1392751
B40: UAP INSURANCE COMPANY | C40: 303159 | D40: 1138224 | E40: 6032 | F40: 1447415 | G40: 0 | H40: 310003 | I40: 343343 | J40: 1104072 | K40: 249503 | L40: 854569 | M40: 3178379 | N40: -1916845 | O40: -50810 | P40: 1000000 | Q40: 5000603
B41: XPLICO INSURANCE COMPANY | C41: -54329 | D41: 34591 | E41: 0 | F41: -19739 | G41: 0 | H41: 0 | I41: 0 | J41: -19739 | K41: -3519 | L41: -16220 | M41: 71835 | N41: 0 | O41: 0 | P41: 0 | Q41: 55615
B42: TOTAL | C42: =SUM(C5:C41) -> 6559077 | D42: =SUM(D5:D41) -> 6657447 | E42: =SUM(E5:E41) -> 1446706 | F42: 14733416 | G42: 731236 | H42: 814510 | I42: 2405441 | J42: 12327975 | K42: 2640276 | L42: 9687699 | M42: 24799205 | N42: -1093874 | O42: 1124345 | P42: 5161432 | Q42: 29295002
B43: REINSURERS
B44: CONTINENTAL REINSURANCE | C44: 147757 | D44: 52992 | E44: 1081 | F44: 201830 | G44: 0 | H44: 51501 | I44: 71033 | J44: 130797 | K44: 39763 | L44: 91034 | M44: 53655 | N44: 0 | O44: 0 | P44: 53215 | Q44: 91474
B45: EAST AFRICA REINSURANCE | C45: 151629 | D45: 322940 | E45: 35273 | F45: 509842 | G45: 0 | H45: 24718 | I45: 63308 | J45: 446534 | K45: 125724 | L45: 320810 | M45: 880517 | N45: 0 | O45: 0 | P45: 60000 | Q45: 1141326
B46: KENYA REINSURANCE CORPORATION | C46: 2245528 | D46: 144921 | E46: 906884 | F46: 3297333 | G46: 0 | H46: 0 | I46: 0 | J46: 3297333 | K46: 569810 | L46: 2727523 | M46: 11098665 | N46: -35689 | O46: 0 | P46: 419959 | Q46: 13441918
B47: TOTAL | C47: =SUM(C44:C46) -> 2544914 | D47: =SUM(D44:D46) -> 520853 | E47: =SUM(E44:E46) -> 943238 | F47: 4009005 | G47: 0 | H47: 76219 | I47: 134341 | J47: 3874664 | K47: 735297 | L47: 3139367 | M47: 12032837 | N47: -35689 | O47: 0 | P47: 533174 | Q47: 14674718
B48: GRAND TOTAL | C48: =C42+C47 -> 9103991 | D48: =D42+D47 -> 7178300 | E48: 2389944 | F48: 18742421 | G48: 731236 | H48: 890729 | I48: 2539782 | J48: 16202639 | K48: 3375573 | L48: 12827066 | M48: 36832042 | N48: -1129563 | O48: 1124345 | P48: 5694606 | Q48: 43969720
B49: Amounts in Thousand Shillings

Sheet Details
E7: INSURANCE REGULATORY AUTHORITY | L7: Quarterly | M7: 2010
L8: Annual | M8: 2011
M9: 2012
M10: 2013
M11: 2015
E12: TYPE OF INDUSTRY STATISTICS | F12: ANNUAL AUDITED | M12: 2016
M13: 2017
M14: 2018
M15: 2019
E16: FOR THE YEAR | F16: 2021 | M16: 2020
M17: 2021
E19: PERIOD ENDED | F19: 31st DECEMBER 2021 | M19: 2022
M20: 2023
E22: PREPARED BY | F22: INSURANCE REGULATORY AUTHORITY
F23: JULY, 2022
M24: 2024
M25: 2025
M26: 2026
M27: 2027
M28: 2028
M29: 2029
M30: 2030
M31: 2031
M32: 2032
M33: 2033
M34: 2034
M35: 2035
M36: 2036
M37: 2037
M38: 2038
M39: 2039
M40: 2040
M41: 2041
M42: 2042
M43: 2043
M44: 2044
M45: 2045
M46: 2046
M47: 2047
M48: 2048
M49: 2049
M50: 2050
M51: 2051
M52: 2052

Sheet Reliance & Limitations
B3: RELIANCE AND LIMITATIONS
B4: The insurance information contained in this workbook has been extracted from the annual audited returns submitted to the Authority in line with Section 54 of the Insurance Act. No adjustments have been made to the returns’ data except where necessary in consultation with the affected insurer(s) or reinsurer(s). The publication of any summary of the returns in this report does not necessarily mean that the returns so summarized have satisfied all the requirements of the Insurance Act, or that the Commissioner of Insurance approves the accuracy or the contents of the returns Where necessary, figures have been adjusted to eliminate errors in totals due to rounding off, and are given in thousands Kenya shillings (‘000’ KES) except where otherwise stated. In addition, the report incorporated data from 95% of the regulated general insurance companies and 96% of the regulated long term insurance companies who had submitted their returns by the date of this report

Sheet Contents
B2: INSURANCE REGULATORY AUTHORITY
B4: 2021 DATA
B5: TABLE of CONTENTS
B6: Link | C6: Description
B8: Trends 1 | C8: Economy and Insurance Industry Trends
B9: Trends 2 | C9: Trends in Long-Term Insurance Business
B10: Trends 3 | C10: Trends in General Insurance Business
B11: Trends 4 | C11: Trends in Re-Insurance Business
B12: APPENDIX 1 | C12: Summary of Profit & Loss Accounts under General Insurance Business for the Year Ended 31.12.2021
B13: APPENDIX 2 | C13: Summary of Profit & Loss Accounts Long-Term Insurance Business for the Year Ended 31.12.2021
B14: APPENDIX 3 | C14: Summary of Net Commissions And Management Expenses for the Year Ended 31.12.2021
B15: APPENDIX 4 I | C15: Summary of Long Term Insurance Business Balance Sheets as at 31.12.2021
B16: APPENDIX 4 II | C16: Summary of Long Term Insurance Business Balance Sheets as at 31.12.2021
B17: APPENDIX 4 III | C17: Summary of Long Term Insurance Business Balance Sheets as at 31.12.2021
B18: APPENDIX 5 I | C18: Summary of General Insurance Business Balance Sheets as at 31.12.2021
B19: APPENDIX 5 II | C19: Summary of General Insurance Business Balance Sheets as at 31.12.2021
B20: APPENDIX 5 III | C20: Summary of General Insurance Business Balance Sheets as at 31.12.2021
B21: APPENDIX 5 IV | C21: Summary of General Insurance Business Balance Sheets as at 31.12.2021
B22: APPENDIX 6 | C22: Summary of Long Term Business Gross Direct Premiums for the Year Ended 31.12.2021
B23: APPENDIX 7 | C23: Summary of Long Term Business Inward Reinsurance Premiums for the Year Ended 31.12.2021
B24: APPENDIX 8 | C24: Summary of Long Term Business Outward Reinsurance Premiums for the Year Ended 31.12.2021
B25: APPENDIX 9 | C25: Summary of Life assurances Business Revenue Accounts for the Year Ended 31.12.2021
B26: APPENDIX 10 | C26: Summary of Annuities Business Revenue Accounts for the Year Ended 31.12.2021
B27: APPENDIX 11 | C27: Summary of Group Life Business Revenue Accounts for the Year Ended 31.12.2021
B28: APPENDIX 12 | C28: Summary of Personal Pensions Business Revenue Accounts for the Year Ended 31.12.2021
B29: APPENDIX 13 | C29: Summary of Deposit Administration Business Revenue Accounts for the Year Ended 31.12.2021
B30: APPENDIX 14 | C30: Summary of Group Credit Business Revenue Accounts for the Year Ended 31.12.2021
B31: APPENDIX 15 | C31: Summary of Permanent Health Business Revenue Accounts for the Year Ended 31.12.2021
B32: APPENDIX 16 | C32: Summary of Investments Business Revenue Accounts for the Year Ended 31.12.2021
B33: APPENDIX 17 | C33: Summary of Long Term Business Combined Revenue Accounts for the Year Ended 31.12.2021
B34: APPENDIX 18 | C34: Summary of Long Term Insurance Business Actuarial Valuations as at 31.12.2021
B35: APPENDIX 19 | C35: Summary of Gross Direct Premiums under General Insurance Business for the Year Ended 31.12.2021
B36: APPENDIX 20 | C36: Summary of Inward Reinsurance Premiums under General Insurance Business for the Year Ended 31.12.2021
B37: APPENDIX 21 | C37: Summary of Gross Premium Incomes under General Insurance Business for the Year Ended 31.12.2021
B38: APPENDIX 22 | C38: Summary of Outward Reinsurance Premiums under General Insurance Business for the Year Ended 31.12.2021
B39: APPENDIX 23 | C39: Summary of Aviation Business Revenue Accounts for the Year Ended 31.12.2021
B40: APPENDIX 24 | C40: Summary of Engineering Business Revenue Accounts for the Year Ended 31.12.2021
B41: APPENDIX 25 | C41: Summary of Fire Domestic Business Revenue Accounts for the Year Ended 31.12.2021
B42: APPENDIX 26 | C42: Summary of Fire Industrial Business Revenue Accounts for the Year Ended 31.12.2021
B43: APPENDIX 27 | C43: Summary of Liability Business Revenue Accounts for the Year Ended 31.12.2021
B44: APPENDIX 28 | C44: Summary of Marine Business Revenue Accounts for the Year Ended 31.12.2021
B45: APPENDIX 29 | C45: Summary of Motor Private Business Revenue Accounts for the Year Ended 31.12.2021
B46: APPENDIX 30 | C46: Summary of Motor Commercial Business Revenue Accounts for the Year Ended 31.12.2021
B47: APPENDIX 31 | C47: Summary of Motor Psv Business Revenue Accounts for the Year Ended 31.12.2021
B48: APPENDIX 32 | C48: Summary of Personal Accident Business Revenue Accounts for the Year Ended 31.12.2021
B49: APPENDIX 33 | C49: Summary of Theft Business Revenue Accounts for the Year Ended 31.12.2021
B50: APPENDIX 34 | C50: Summary of Workmen'S Compensation Business Revenue Accounts for the Year Ended 31.12.2021
B51: APPENDIX 35 | C51: Summary of Medical Insurance Business Revenue Accounts for the Year Ended 31.12.2021
B52: APPENDIX 36 | C52: Summary of Miscellaneous Business Revenue Accounts for the Year Ended 31.12.2021
B53: APPENDIX 37 | C53: Summary of General Business Combined Revenue Accounts for the Year Ended 31.12.2021
B54: APPENDIX 38 | C54: Summary of Net Earned Premiums under General Insurance Business for the Year Ended 31.12.2021
B55: APPENDIX 39 | C55: Summary of Net Paid Claims under General Insurance Business for the Year Ended 31.12.2021
B56: APPENDIX 40 | C56: Summary of Net Incurred Claims under General Insurance Business for the Year Ended 31.12.2021
B57: APPENDIX 41 | C57: Summary of Incurred Claims Ratios under General Insurance Business for the Year Ended 31.12.2021
B58: APPENDIX 42 | C58: Summary of Underwriting Profits under General Insurance Business for the Year Ended 31.12.2021
B59: APPENDIX 43 | C59: Summary of Business in Force For General Insurers as at 31.12.2021
B60: APPENDIX 44 | C60: Summary of Business in Force for Long term Insurers as at 31.12.2021
B61: APPENDIX 45I | C61: Summary of Brokers Balance Sheet as at 31.12.2021
B62: APPENDIX 45II | C62: Summary of Brokers Balance Sheet as at 31.12.2021
B63: APPENDIX 45III | C63: Summary of Brokers Balance Sheet as at 31.12.2021
B64: APPENDIX 45IV | C64: Summary of Brokers Balance Sheet as at 31.12.2021
B65: APPENDIX 45V | C65: Summary of Brokers Balance Sheet as at 31.12.2021
B66: APPENDIX 46I | C66: Summary of Brokers Income Statement for the Year Ended 31.12.2021
B67: APPENDIX 46II | C67: Summary of Brokers Income Statement for the Year Ended 31.12.2021
B68: APPENDIX 46III | C68: Summary of Brokers Income Statement for the Year Ended 31.12.2021
B69: APPENDIX 46IV | C69: Summary of Brokers Income Statement for the Year Ended 31.12.2021
B70: APPENDIX 46V | C70: Summary of Brokers Income Statement for the Year Ended 31.12.2021
B71: APPENDIX 47I | C71: Directory of Regulated Insurance and Reinsurance Companies in Kenya
B72: APPENDIX 47II | C72: Directory of Regulated Insurance and Reinsurance Companies in Kenya
B73: APPENDIX 47III | C73: Directory of Regulated Insurance and Reinsurance Companies in Kenya
B74: APPENDIX 47IV | C74: Directory of Regulated Insurance and Reinsurance Companies in Kenya
B75: APPENDIX 47V | C75: Directory of Regulated Insurance and Reinsurance Companies in Kenya
B76: APPENDIX 47VI | C76: Directory of Regulated Insurance and Reinsurance Companies in Kenya
B77: APPENDIX 48I | C77: Directory of Insurance Groups in Kenya
B78: APPENDIX 48II | C78: Directory of Insurance Groups in Kenya
B79: APPENDIX 49 | C79: Directory of Other Insurance Industry Players in Kenya

Sheet T1
C3: Table 1: Economy and Insurance Industry Trends
C6: a) Economy and Insurance Indicators
D7: Years
D8: 2013 | E8: 2014 | F8: 2015 | G8: 2016 | H8: 2017 | I8: 2018 | J8: 2019 | K8: 2020 | L8: 2021
C9: Gross Direct Premium (KES Billion) | D9: 129.19 | E9: 155.8 | F9: 172.540122 | G9: 195.229647 | H9: 207.6 | I9: 214.9 | J9: 227.9 | K9: 233.1 | L9: =('APPENDIX 6'!K29+'APPENDIX 19'!Q43)/1000000 -> 270.468284
C10: Gross Direct Premium Growth Rate (%) | F10: 10.74462259 | G10: 13.15028918 | H10: =(H9/G9-1)*100 -> 6.336308645 | I10: 3.516377649 | J10: 6.049325268 | K10: 2.281702501 | L10: =(L9/K9-1)*100 -> 16.03100987
C11: GDP (Market Prices) KES Billion | D11: 4745.1434 | E11: 5402.41 | F11: 6284.2 | G11: 7022.96 | H11: 8483.4 | I11: 9340.3 | J11: 10237.73 | K11: 10716.03 | L11: 12098.2
C12: GDP (%) growth rate (at market prices) | D12: 11.35253217 | E12: 13.85135379 | F12: 16.32215992 | G12: 11.8 | H12: =(H11/G11-1)*100 -> 20.79522025 | I12: 10.10090294 | J12: 9.608149631 | K12: 4.67193411 | L12: =(L11/K11-1)*100 -> 12.89815351
C13: Insurance Penetration ratio (%) (at current prices) | D13: 2.722573147 | E13: 2.883898112 | F13: 2.745617931 | G13: 2.78 | H13: 2.55 | I13: 2.43 | J13: 2.34 | K13: 2.17 | L13: =(L9/L11)*100 -> 2.235607644
C14: Population (Million) | D14: 41.8 | E14: 43 | F14: 44.2 | G14: 45.4 | H14: 45.3 | I14: 46.4 | J14: 47.6 | K14: 48.5 | L14: 49.4
C15: Insurance Density (KES) | D15: 3090.669856 | E15: 3623.255814 | F15: 3903.62267 | G15: 4300.212489 | H15: 4455 | I15: 4525 | J15: 4788 | K15: 4787 | L15: =(L9/L14)*1000 -> 5475.066478
C16: Lives Covered (Million) | D16: 2.058619 | E16: 2.470662 | F16: 4.390843 | G16: 3.82463 | H16: 4.26 | I16: 4.3 | J16: 11.65 | K16: 13.44 | L16: ='APPENDIX 44'!G29/1000000 -> 13.478245
C17: Policies (Million) | D17: 2.77243 | E17: 3.815534 | F17: 2.702272 | G17: 3.390335 | H17: 3.14 | I17: 3.43 | J17: 3.96 | L17: =('APPENDIX 43'!F43+'APPENDIX 44'!F29)/1000000 -> 4.07759
C18: Insurance cover (Lives/population) % | D18: 4.924925837 | E18: 5.745725581 | F18: 9.934033937 | G18: 8.424295154 | H18: 9.1 | I18: 9 | J18: 24.5 | K18: =(K16/K14)*100 -> 27.71134021 | L18: =(L16/L14)*100 -> 27.28389676
C19: Insurance Cover (policies/population) % | D19: 6.632607656 | E19: 8.873334884 | F19: 6.113737557 | G19: 7.467698238 | H19: 6.7 | I19: 7.1 | J19: 8.3 | L19: =(L17/L14)*100 -> 8.254230769
C20: Rate of Inflation (%) | D20: 5.7 | E20: 6.9 | F20: 6.6 | G20: 6.3 | H20: 8 | I20: 4.7 | J20: 5.2 | K20: 5.4 | L20: 6.1
C21: Real Gross Direct Premium growth (%) | D21: 9.215685297 | E21: 12.81344198 | F21: 3.88801369 | G21: 6.444298385 | H21: =(((100+H10)/(100+H20))-1)*100 -> -1.540454959 | I21: =(((100+I10)/(100+I20))-1)*100 -> -1.130489351 | J21: =(((100+J10)/(100+J20))-1)*100 -> 0.8073434102 | K21: -2.958536526 | L21: =(((100+L10)/(100+L20))-1)*100 -> 9.360047
C22: Sources: KNBS and IRA Statistics Population in 2022 is based on 2019 projections done by KNBS
D23: =D20/100 -> 0.057 | E23: =E20/100 -> 0.069 | G23: =G20/100 -> 0.063 | L23: =L20/100 -> 0.061 | M23: =H11*M20 -> 0
B24: GDP 2011 | C24: 90.2 | D24: 0.2407 | E24: =(E9-D9)/D9 -> 0.2059756947 | F24: =(F9-E9)/E9 -> 0.1074462259 | G24: =(G9-F9)/F9 -> 0.1315028918 | H24: =(H9-G9)/G9 -> 0.06336308645 | L24: =(L9-H9)/H9 -> 0.302833738
C25: =((1+D24)/(1+D23)-1)*100 -> 17.37937559 | E25: =((1+E24)/(1+E23)-1)*100 -> 12.81344198 | F25: =((1+F24)/(1+F23)-1)*100 -> 10.74462259 | G25: =((1+G24)/(1+G23)-1)*100 -> 6.444298385 | L25: =((1+L24)/(1+L23)-1)*100 -> 22.79300075
C28: b) Trend in some key insurance indicators
C29: Item | D29: Years | M29: Annual Change 2021/2020 %
D30: 2013 | E30: 2014 | F30: 2015 | G30: 2016 | H30: 2017 | I30: 2018 | J30: 2019 | K30: 2020 | L30: 2021
C31: Gross Premium Income | D31: 135384923 | E31: 157732058 | F31: 174039164 | G31: 196635836 | H31: 209001296 | I31: 216261729 | J31: 229499718 | K31: 234775753 | L31: ='APPENDIX 6'!$K$29+'APPENDIX 37'!$D$43+'APPENDIX 37'!$E$43 -> 273710831 | M31: =(L31/K31-1)*100 -> 16.5839434
C32: Net Premium Written | D32: 105013409 | E32: 126333481 | F32: 139377049 | G32: 158362431 | H32: 165852034 | I32: 172322202 | J32: 182658282 | K32: 187853004 | L32: ='APPENDIX 17'!$E$29+'APPENDIX 37'!$G$43 -> 221133803 | M32: =(L32/K32-1)*100 -> 17.716405
C33: Claims Incurred (general business) | D33: 34170145 | E33: 42677696 | F33: 48811202 | G33: 54857495 | H33: 56151966 | I33: 56927996 | J33: 58961582 | K33: 58311459 | L33: =SUM('APPENDIX 40'!C43:P43) -> 69835740 | M33: 19.76332131
C34: Net commissions | D34: 7204448 | E34: 14332657 | F34: 10833473 | G34: 12578735 | H34: 12495182 | I34: 11487628 | J34: 10957562 | K34: 11157093 | L34: ='APPENDIX 17'!$L$29+'APPENDIX 37'!$N$43 -> 13521938 | M34: 21.19588857
C35: Expenses of Management | D35: 24808273 | E35: 49249464 | F35: 35991670 | G35: 39982771 | H35: 41197258 | I35: 44072857 | J35: 45702207 | K35: 44173611 | L35: ='APPENDIX 17'!$M$29+'APPENDIX 37'!$O$43 -> 46513554 | M35: 5.297151279
C36: Underwriting Results (general business) | D36: 3402770 | E36: 1604507 | F36: -274188 | G36: -2125731 | H36: -1027851 | I36: -2588861 | J36: -3165405 | K36: -1847726 | L36: ='APPENDIX 37'!$P$43 -> -6333631 | M36: =-(L36/K36-1)*100 -> -242.7797736
C37: Investment Income(P&L) | D37: 9429214 | E37: 11095059 | F37: 6294523 | G37: 5338509 | H37: 6596592 | I37: 6967045 | J37: 9132215 | K37: 4879906 | L37: ='APPENDIX 1'!$D$50+'APPENDIX 2'!$D$35 -> 7283075 | M37: 49.24621499
C38: Operating profit/loss after taxation | D38: 20235881 | E38: 17232015 | F38: 13564434 | G38: 12835309 | H38: 13642972 | I38: 7269268 | J38: 15119928 | K38: 6388955 | L38: ='APPENDIX 1'!$L$50+'APPENDIX 2'!$L$35 -> 8645622 | M38: 35.32137885
C39: Investments | D39: 296336802 | E39: 355009404 | F39: 390225346 | G39: 425304138 | H39: 483799656 | I39: 524237249 | J39: 596011648 | K39: 656460833 | L39: =SUM('APPENDIX 4 III'!$I$19,'APPENDIX 4 III'!$I$21:$I$33,'APPENDIX5 IV'!$M$19,'APPENDIX5 IV'!$M$21:$M$33) -> 733461323 | M39: 11.72963963
C40: Assets | D40: 366252339 | E40: 430536097 | F40: 478752455 | G40: 528748193 | H40: 590953330 | I40: 635035110 | J40: 711247445 | K40: 765932477 | L40: ='APPENDIX 4 III'!$I$39+'APPENDIX5 IV'!$M$39 -> 850506382 | M40: 11.04195311
C41: Shareholder’s Funds | D41: 100958028 | E41: 114141212 | F41: 125830028 | G41: 134455222 | H41: 147255002 | I41: 149134602 | J41: 161835044 | K41: 166069303 | L41: ='APPENDIX 4 III'!$I$12+'APPENDIX5 IV'!$M$12 -> 167914107 | M41: 1.110863939
C42: Amounts in Thousands

Sheet T2
C4: Table 2: Trends in Long-Term Insurance Business
C6: a) Summary of long term insurance business performance
C7: Indicators | D7: Years | M7: Annual Change 2021/2020 %
D8: 2013 | E8: 2014 | F8: 2015 | G8: 2016 | H8: 2017 | I8: 2018 | J8: 2019 | K8: 2020 | L8: 2021
C9: Gross Direct Premium | D9: 44424411 | E9: 56581380 | F9: 62064805 | G9: 73519181 | H9: 82807826 | I9: 87408352 | J9: 97395510 | K9: 102078013 | L9: ='APPENDIX 17'!$D$29 -> 123687148 | M9: =(L9/K9-1)*100 -> 21.16923553
C10: Outward Reinsurance | D10: 2731261 | E10: 3856486 | F10: 4983380 | G10: 5666993 | H10: 5860038 | I10: 7048742 | J10: 7529611 | K10: 6751093 | L10: =L9-L11 -> 9081590 | M10: =(L10/K10-1)*100 -> 34.52029175
C11: Net Premiums | D11: 41693150 | E11: 52718917 | F11: 57081418 | G11: 67852188 | H11: 76947788 | I11: 80359610 | J11: 89865899 | K11: 95326920 | L11: ='APPENDIX 17'!$E$29 -> 114605558 | M11: 20.22370806
C12: Management expenses | D12: 7637766 | E12: 28460004 | F12: 11279207 | G12: 12364010 | H12: 12072033 | I12: 13928440 | J12: 15362328 | K12: 14381760 | L12: ='APPENDIX 17'!$M$29 -> 15689550 | M12: 9.093393298
C13: Net Commissions | D13: 3432164 | E13: 9618165 | F13: 5152743 | G13: 5474094 | H13: 5448401 | I13: 4887507 | J13: 5277712 | K13: 5793085 | L13: ='APPENDIX 17'!$L$29 -> 6493140 | M13: 12.08432122
C14: Life Fund C/F | D14: 137229500 | E14: 193293550.3 | F14: 231885634 | G14: 255648171 | H14: 301571353 | I14: 333263364 | J14: 387780599 | K14: 426165838 | L14: ='APPENDIX 17'!$Q$29 -> 494301595 | M14: 15.98808514
C17: b) Summary of long term insurance business performance per class
C18: Indicators | E18: Years | H18: Years | M18: Annual Change 2021/2020 %
D19: 2013 | E19: 2014 | F19: 2015 | G19: 2016 | H19: 2017 | I19: 2018 | J19: 2019 | K19: 2020 | L19: 2021
C20: Gross Direct Premium
C21: Life Assurances | D21: 13310197 | E21: 14363846 | F21: 16783137 | G21: 18880725 | H21: 21374928 | I21: 24331504 | J21: 28187025 | K21: 29549666 | L21: ='APPENDIX 9'!$D$29 -> 34107231 | M21: =(L21/K21-1)*100 -> 15.42340614
C22: Annuities | D22: 1331213 | E22: 6358440 | F22: 4137425 | G22: 4698479 | H22: 9834902 | I22: 6880785 | J22: 7451904 | K22: 8208247 | L22: ='APPENDIX 10'!$D$29 -> 9290658 | M22: 13.18687169
C23: Personal Pensions | D23: 16089228 | E23: 14099531 | F23: 22002402 | G23: 28118598 | H23: 4497901 | I23: 4138741 | J23: 5486479 | K23: 5825247 | L23: ='APPENDIX 12'!D29 -> 6804397 | M23: 16.80872931
C24: Deposit Administration | H24: 24588257 | I24: 29775545 | J24: 32237072 | K24: 34857836 | L24: ='APPENDIX 13'!D29 -> 42355599 | M24: 21.5095481
C25: Group Life | D25: 3038834 | E25: 9331736 | F25: 9858591 | G25: 10600535 | H25: 12765171 | I25: 11031270 | J25: 10957689 | K25: 9665028 | L25: ='APPENDIX 11'!$D$29 -> 14334101 | M25: 48.30894437
C26: Group Credit | D26: 1943 | E26: 4265352 | F26: 4816710 | G26: 6306075 | H26: 5208397 | I26: 7740166 | J26: 9516603 | K26: 10010766 | L26: ='APPENDIX 14'!$D$29 -> 12978038 | M26: 29.64080871
C27: Permanent Health | D27: 6426533 | E27: 0 | F27: 0 | G27: 0 | H27: - | I27: - | J27: - | K27: - | L27: ='APPENDIX 15'!$D$29 -> 0 | M27: 0
C28: Investments | D28: 4226463 | E28: 8163684 | F28: 4422409 | G28: 4914770 | H28: 4538271 | I28: 3510341 | J28: 3558738 | K28: 3961223 | L28: ='APPENDIX 16'!$D$29 -> 3817124 | M28: -3.637740163
C29: Total | D29: 44424411 | E29: 56582589 | F29: 62020674 | G29: 73519182 | H29: 82807826 | I29: 87408352 | J29: 97395510 | K29: 102078013 | L29: =SUM(L21:L28) -> 123687148 | M29: 21.16923553
C30: Net Premiums
C31: Life Assurances | D31: 13114458 | E31: 14163998 | F31: 16562968 | G31: 18669399 | H31: 21122113 | I31: 24106317 | J31: 27970560 | K31: 29313231 | L31: ='APPENDIX 9'!$E$29 -> 33862799 | M31: =(L31/K31-1)*100 -> 15.52052723
C32: Annuities | D32: 1331213 | E32: 6358440 | F32: 4137425 | G32: 4698479 | H32: 9834897 | I32: 6880785 | J32: 7451904 | K32: 8208247 | L32: ='APPENDIX 10'!$E$29 -> 9272486 | M32: 12.96548459
C33: Personal Pensions | D33: 16089228 | E33: 14099531 | F33: 22002402 | G33: 28118598 | H33: 4497901 | I33: 4138741 | J33: 5486479 | K33: 5825247 | L33: ='APPENDIX 12'!E29 -> 6804397 | M33: 16.80872931
C34: Deposit Administration | H34: 24588257 | I34: 29775545 | J34: 32237072 | K34: 34857836 | L34: ='APPENDIX 13'!E29 -> 42355599 | M34: 21.5095481
C35: Group Life | D35: 3020236 | E35: 6020998 | F35: 5805185 | G35: 6412173 | H35: 8666923 | I35: 5633076 | J35: 5561462 | K35: 5450274 | L35: ='APPENDIX 11'!$E$29 -> 8154809 | M35: 49.62200066
C36: Group Credit | D36: 1943 | E36: 3913711 | F36: 4106976 | G36: 5038769 | H36: 3699427 | I36: 6314805 | J36: 7599816 | K36: 7711080 | L36: ='APPENDIX 14'!$E$29 -> 10339239 | M36: 34.08289111
C37: Permanent Health | D37: 4127806 | E37: 0 | F37: 0 | G37: 0 | H37: - | I37: - | J37: - | K37: - | L37: ='APPENDIX 15'!$E$29 -> 0 | M37: 0
C38: Investments | D38: 4008265 | E38: 8163451 | F38: 4422331 | G38: 4914770 | H38: 4538271 | I38: 3510341 | J38: 3558606 | K38: 3961005 | L38: ='APPENDIX 16'!$E$29 -> 3816229 | M38: -3.655031993
C39: Total | D39: 41693149 | E39: 52720129 | F39: 57037287 | G39: 67852188 | H39: 76947788 | I39: 80359610 | J39: 89865899 | K39: 95326920 | L39: =SUM(L31:L38) -> 114605558 | M39: 20.22370806
C40: Net Commissions
C41: Life Assurances | D41: 2930874 | E41: 3184836 | F41: 3760565 | G41: 4314129 | H41: 4089626 | I41: 3841617 | J41: 4178191 | K41: 4406912 | L41: ='APPENDIX 9'!$L$29 -> 4344451 | M41: =(L41/K41-1)*100 -> -1.417341667
C42: Annuities | D42: 18430 | E42: 137180 | F42: 103094 | G42: 71677 | H42: 174395 | I42: 111012 | J42: 156043 | K42: 164128 | L42: ='APPENDIX 10'!$L$29 -> 174330 | M42: 6.215880289
C43: Personal Pensions | D43: 134547 | E43: 161911 | F43: 191723 | G43: 350075 | H43: 55033 | I43: 39355 | J43: 61199 | K43: 68987 | L43: ='APPENDIX 12'!L29 -> 86775 | M43: 25.78456811
C44: Deposit Administration | H44: 265098 | I44: 283451 | J44: 332644 | K44: 333964 | L44: ='APPENDIX 13'!L29 -> 445466 | M44: 33.38743098
C45: Group Life | D45: 128988 | E45: 92494 | F45: 222082 | G45: 89220 | H45: 351110 | I45: -56828 | J45: -338650 | K45: -64499 | L45: ='APPENDIX 11'!$L$29 -> 598376 | M45: =(L45/K45-1)*-100 -> 1027.729112
C46: Group Credit | D46: 13 | E46: 189041 | F46: 441028 | G46: 427617 | H46: 319000 | I46: 479268 | J46: 511910 | K46: 757675 | L46: ='APPENDIX 14'!$L$29 -> 735799 | M46: -2.88725377
C47: Permanent Health | D47: -26090 | E47: 0 | F47: 0 | G47: 0 | H47: - | I47: - | J47: - | K47: - | L47: ='APPENDIX 15'!$L$29 -> 0 | M47: 0
C48: Investments | D48: 245399 | E48: 448182 | F48: 434248 | G48: 221377 | H48: 194139 | I48: 189631 | J48: 376375 | K48: 125918 | L48: ='APPENDIX 16'!$L$29 -> 107943 | M48: -14.2751632
C49: Total | D49: 3432161 | E49: 4213644 | F49: 5152740 | G49: 5474095 | H49: 5448401 | I49: 4887507 | J49: 5277712 | K49: 5793085 | L49: =SUM(L41:L48) -> 6493140 | M49: 12.08432122
C50: Management Expenses
C51: Life Assurances | D51: 4061029 | E51: 5216983 | F51: 5978723 | G51: 6864778 | H51: 6046834 | I51: 6968920 | J51: 7995319 | K51: 7633138 | L51: ='APPENDIX 9'!$M$29 -> 7364010 | M51: =(L51/K51-1)*100 -> -3.525784546
C52: Annuities | D52: 73522 | E52: 190496 | F52: 269555 | G52: 216835 | H52: 230153 | I52: 221561 | J52: 249092 | K52: 224184 | L52: ='APPENDIX 10'!$M$29 -> 235090 | M52: 4.864753952
C53: Personal Pensions | D53: 955924 | E53: 1059753 | F53: 1283823 | G53: 1239403 | H53: 159799 | I53: 220130 | J53: 255376 | K53: 234889 | L53: ='APPENDIX 12'!M29 -> 284364 | M53: 21.06314046
C54: Deposit Administration | H54: 1302405 | I54: 1728708 | J54: 1693233 | K54: 1813835 | L54: ='APPENDIX 13'!M29 -> 1964306 | M54: 8.295738036
C55: Group Life | D55: 678354 | E55: 1486792 | F55: 1578524 | G55: 1573914 | H55: 1830361 | I55: 2114840 | J55: 1827250 | K55: 1749964 | L55: ='APPENDIX 11'!$M$29 -> 2591938 | M55: 48.11378977
C56: Group Credit | D56: 0 | E56: 937610 | F56: 1290586 | G56: 1586621 | H56: 1609944 | I56: 1709742 | J56: 2519063 | K56: 1877442 | L56: ='APPENDIX 14'!$M$29 -> 2635282 | M56: 40.36556123
C57: Permanent Health | D57: 1037683 | E57: 0 | F57: 0 | G57: 0 | H57: - | I57: - | J57: - | K57: - | L57: ='APPENDIX 15'!$M$29 -> 0 | M57: 0
C58: Investments | D58: 831259 | E58: 740921 | F58: 877989 | G58: 882462 | H58: 892539 | I58: 964539 | J58: 822995 | K58: 848308 | L58: ='APPENDIX 16'!$M$29 -> 614560 | M58: -27.5546146
C59: Total | D59: 7637771 | E59: 9632555 | F59: 11279200 | G59: 12364013 | H59: 12072033 | I59: 13928440 | J59: 15362328 | K59: 14381760 | L59: =SUM(L51:L58) -> 15689550 | M59: 9.093393298
C60: Amounts in '000' KES

Sheet T3
C4: Table 3: Trends in General Insurance Business
C7: a) Classwise GDP under general insurance business
C8: Class of business | D8: Years | M8: Annual Change 2021/2020 %
D9: 2013 | E9: 2014 | F9: 2015 | G9: 2016 | H9: 2017 | I9: 2018 | J9: 2019 | K9: 2020 | L9: 2021
C10: Aviation | D10: 1127429 | E10: 1200632 | F10: 1484892 | G10: 1476801 | H10: 1726496 | I10: 2134254 | J10: 2109320 | K10: 2963413 | L10: ='APPENDIX 19'!C$43 -> 3094410 | M10: =(L10/K10-1)*100 -> 4.420477335
C11: Engineering | D11: 2776577 | E11: 3547973 | F11: 3794202 | G11: 3473125 | H11: 4190323 | I11: 3691508 | J11: 3502268 | K11: 3249381 | L11: ='APPENDIX 19'!D$43 -> 4283167 | M11: =(L11/K11-1)*100 -> 31.81485951
C12: Fire Domestic | D12: 1272835 | E12: 1347967 | F12: 1388204 | G12: 1482865 | H12: 1570425 | I12: 1595804 | J12: 1672639 | K12: 1795320 | L12: ='APPENDIX 19'!E$43 -> 1770893 | M12: -1.360593098
C13: Fire industrial | D13: 7637802 | E13: 8757929 | F13: 9547284 | G13: 10062935 | H13: 11130626 | I13: 10824386 | J13: 10870577 | K13: 10776438 | L13: ='APPENDIX 19'!F$43 -> 12949770 | M13: 20.16744308
C14: Liability | D14: 1560128 | E14: 1891331 | F14: 2191880 | G14: 2520106 | H14: 2817584 | I14: 2728902 | J14: 3124267 | K14: 3124468 | L14: ='APPENDIX 19'!G$43 -> 3358022 | M14: 7.475000544
C15: Marine | D15: 2775148 | E15: 2726463 | F15: 2852402 | G15: 2604270 | H15: 3555639 | I15: 3370608 | J15: 3188714 | K15: 3063641 | L15: ='APPENDIX 19'!H$43 -> 3637910 | M15: 18.74465709
C16: Motor Private | D16: 13909445 | E16: 16382944 | F16: 18430997 | G16: 20460256 | H16: 21484964 | I16: 22495605 | J16: 23431002 | K16: 23449022 | L16: ='APPENDIX 19'!I$43 -> 24626670 | M16: 5.022162545
C17: Motor Commercial | D17: 19536285 | E17: 22553021 | F17: 24091465 | G17: 24025770 | H17: 23226291 | I17: 23593081 | J17: 23049684 | K17: 21279353 | L17: ='APPENDIX 19'!J$43+'APPENDIX 19'!K$43 -> 24279823 | M17: 14.10038172
C18: Personal Accident | D18: 3250304 | E18: 3604559 | F18: 3882018 | G18: 3997282 | H18: 3516204 | I18: 3157233 | J18: 3283857 | K18: 2362292 | L18: ='APPENDIX 19'!L$43 -> 2400674 | M18: 1.62477797
C19: Theft | D19: 3289650 | E19: 3553715 | F19: 3786845 | G19: 3774820 | H19: 3784701 | I19: 3863654 | J19: 3835945 | K19: 3851366 | L19: ='APPENDIX 19'!M$43 -> 3992205 | M19: 3.656858372
C20: Workmen's Compensation | D20: 4666576 | E20: 5174648 | F20: 5346077 | G20: 5601571 | H20: 5675906 | I20: 6225354 | J20: 6358473 | K20: 6233992 | L20: ='APPENDIX 19'!N$43 -> 10659325 | M20: 70.98714596
C21: Medical | D21: 20507131 | E21: 25315035 | F21: 29516467 | G21: 38520439 | H21: 38337371 | I21: 40195984 | J21: 42348102 | K21: 45061539 | L21: ='APPENDIX 19'!O$43 -> 47586164 | M21: 5.602616014
C22: Miscellaneous | D22: 2456310 | E22: 3120075 | F22: 3487951 | G22: 3710221 | H22: 3763080 | I22: 3635343 | J22: 3741207 | K22: 3847235 | L22: ='APPENDIX 19'!P$43 -> 4142108 | M22: 7.664543497
C23: Total | D23: 84765620 | E23: 99176292 | F23: 109800684 | G23: 121710461 | H23: 124779610 | I23: 127511716 | J23: 130516055 | K23: 131057460 | L23: =SUM(L10:L22) -> 146781141 | M23: 11.99754749
C24: Amounts in '000' KES
C27: b) Incurred claims under general insurance business
C28: Class of business | D28: Years | M28: Annual Change 2021/2020 %
D29: 2013 | E29: 2014 | F29: 2015 | G29: 2016 | H29: 2017 | I29: 2018 | J29: 2019 | K29: 2020 | L29: 2021
C30: Aviation | D30: 15144 | E30: 5915 | F30: 12888 | G30: 69815 | H30: -48571 | I30: 28336 | J30: 9285 | K30: 43775 | L30: ='APPENDIX 40'!C$43 -> -3515 | M30: =(L30/K30-1)*100 -> -108.0296973
C31: Engineering | D31: 301706 | E31: 366679 | F31: 468625 | G31: 448796 | H31: 431756 | I31: 411244 | J31: 597785 | K31: 697881 | L31: ='APPENDIX 40'!D$43 -> 592670 | M31: -15.0757794
C32: Fire Domestic | D32: 337000 | E32: 289864 | F32: 483004 | G32: 523792 | H32: 309981 | I32: 477500 | J32: 414559 | K32: 394133 | L32: ='APPENDIX 40'!E$43 -> 421323 | M32: 6.898686484
C33: Fire industrial | D33: 803448 | E33: 801192 | F33: 1177669 | G33: 988870 | H33: 1100373 | I33: 1141362 | J33: 825219 | K33: 1149283 | L33: ='APPENDIX 40'!F$43 -> 979632 | M33: -14.76146432
C34: Liability | D34: 253807 | E34: 316224 | F34: 430841 | G34: 661618 | H34: 340822 | I34: 597548 | J34: 399152 | K34: 462135 | L34: ='APPENDIX 40'!G$43 -> 636608 | M34: 37.75368669
C35: Marine | D35: 560436 | E35: 566269 | F35: 631426 | G35: 503037 | H35: 725376 | I35: 669398 | J35: 669464 | K35: 598869 | L35: ='APPENDIX 40'!H$43 -> 1043536 | M35: 74.25113005
C36: Motor Private | D36: 8784204 | E36: 10957919 | F36: 12723572 | G36: 14968463 | H36: 14181895 | I36: 14301162 | J36: 16635527 | K36: 15418425 | L36: ='APPENDIX 40'!I$43 -> 18015197 | M36: 16.84200559
C37: Motor Commercial | D37: 9271908 | E37: 10746378 | F37: 12858229 | G37: 12750248 | H37: 12646816 | I37: 13618583 | J37: 15304543 | K37: 14705102 | L37: ='APPENDIX 40'!J$43+'APPENDIX 40'!K$43 -> 17884591 | M37: 21.62167253
C38: Personal Accident | D38: 884041 | E38: 1296968 | F38: 672415 | G38: 1237073 | H38: 1081310 | I38: 747352 | J38: 464566 | K38: 481601 | L38: ='APPENDIX 40'!L$43 -> 1063712 | M38: 120.8699733
C39: Theft | D39: 1143607 | E39: 1238056 | F39: 770640 | G39: 1192206 | H39: 969900 | I39: 1304641 | J39: 887812 | K39: 722603 | L39: ='APPENDIX 40'!M$43 -> 860395 | M39: 19.06883863
C40: Workmen's Compensation | D40: 2024589 | E40: 2649305 | F40: 2666925 | G40: 2987368 | H40: 3126587 | I40: 2374487 | J40: 1548271 | K40: 1910300 | L40: ='APPENDIX 40'!N$43 -> 1752873 | M40: -8.240956918
C41: Medical | D41: 9260252 | E41: 12774064 | F41: 15063107 | G41: 18095577 | H41: 20632162 | I41: 20515402 | J41: 20424313 | K41: 20975226 | L41: ='APPENDIX 40'!O$43 -> 25941119 | M41: 23.67503931
C42: Miscellaneous | D42: 529996 | E42: 668871 | F42: 851856 | G42: 430629 | H42: 653554 | I42: 740981 | J42: 781086 | K42: 752126 | L42: ='APPENDIX 40'!P$43 -> 647599 | M42: -13.89753844
C43: Total | D43: 34170138 | E43: 42677704 | F43: 48811197 | G43: 54857492 | H43: 56151961 | I43: 56927996 | J43: 58961582 | K43: 58311459 | L43: =SUM(L30:L42) -> 69835740 | M43: 19.76332131
C44: Amounts in '000' KES
C47: c) Classwise underwriting results- General
C48: Class of business | D48: Years | M48: Annual Change 2021/2020 %
D49: 2013 | E49: 2014 | F49: 2015 | G49: 2016 | H49: 2017 | I49: 2018 | J49: 2019 | K49: 2020 | L49: 2021
C50: Aviation | D50: 4944 | E50: -20306 | F50: -59485 | G50: -90552 | H50: -253123 | I50: -159479 | J50: -79233 | K50: -253828 | L50: ='APPENDIX 42'!C$43 -> -23730 | M50: =(L50/K50-1)*-100 -> 90.6511496
C51: Engineering | D51: 80353 | E51: -121414 | F51: 75372 | G51: -58087 | H51: 70708 | I51: 25627 | J51: -130356 | K51: -196231 | L51: ='APPENDIX 42'!D$43 -> -102927 | M51: =(L51/K51-1)*-100 -> 47.54804287
C52: Fire Domestic | D52: 145523 | E52: 258437 | F52: -19648 | G52: 44379 | H52: 238670 | I52: -275853 | J52: 171455 | K52: 208960 | L52: ='APPENDIX 42'!E$43 -> 153611 | M52: =(L52/K52-1)*100 -> -26.48784456
C53: Fire industrial | D53: 337267 | E53: -24125 | F53: 16134 | G53: 37031 | H53: -116886 | I53: 367656 | J53: 380424 | K53: -124730 | L53: ='APPENDIX 42'!F$43 -> 325500 | M53: =(L53/K53-1)*-100 -> 360.9636816
C54: Liability | D54: 161704 | E54: 520157 | F54: 92095 | G54: 139993 | H54: 469143 | I54: 131790 | J54: -62178 | K54: 290997 | L54: ='APPENDIX 42'!G$43 -> 75221 | M54: -74.15059262
C55: Marine | D55: 412861 | E55: 870568 | F55: 148713 | G55: 312675 | H55: 322049 | I55: 450260 | J55: 501522 | K55: 276702 | L55: ='APPENDIX 42'!H$43 -> 96685 | M55: -65.05807692
C56: Motor Private | D56: -693880 | E56: -1732887 | F56: -3101547 | G56: -3291827 | H56: -2930081 | I56: -2578206 | J56: -4182589 | K56: -2924093 | L56: ='APPENDIX 42'!I$43 -> -5525904 | M56: =(L56/K56-1)*-100 -> -88.97839433
C57: Motor Commercial | D57: 1403051 | E57: 1408890 | F57: 725825 | G57: 820734 | H57: 933287 | I57: -873562 | J57: -2656785 | K57: -2623740 | L57: ='APPENDIX 42'!J$43+'APPENDIX 42'!K$43 -> -3998359 | M57: =(L57/K57-1)*-100 -> -52.39158606
C58: Personal Accident | D58: 192881 | E58: 91968 | F58: 832092 | G58: -341214 | H58: -178485 | I58: 235783 | J58: 518298 | K58: 195586 | L58: ='APPENDIX 42'!L$43 -> -1339169 | M58: -784.6957349
C59: Theft | D59: 185391 | E59: 396536 | F59: 617293 | G59: 180312 | H59: 473312 | I59: 216899 | J59: 398438 | K59: 459958 | L59: ='APPENDIX 42'!M$43 -> 262379 | M59: -42.95587858
C60: Workmen's Compensation | D60: 424801 | E60: 84434 | F60: 56231 | G60: -100665 | H60: -223460 | I60: 619342 | J60: 1679536 | K60: 1450202 | L60: ='APPENDIX 42'!N$43 -> 2968958 | M60: 104.7272035
C61: Medical | D61: 282523 | E61: -396895 | F61: -118033 | G61: -621635 | H61: 82523 | I61: -1008230 | J61: 139634 | K61: 1329826 | L61: ='APPENDIX 42'!O$43 -> 243530 | M61: -81.68707786
C62: Miscellaneous | D62: 465349 | E62: 269146 | F62: 508677 | G62: 843122 | H62: 84499 | I62: 259106 | J62: 156433 | K62: 62663 | L62: ='APPENDIX 42'!P$43 -> 530569 | M62: 746.7022007
C63: Total | D63: 3402768 | E63: 1604509 | F63: -226281 | G63: -2125734 | H63: -1027844 | I63: -2588867 | J63: -3165401 | K63: -1847728 | L63: =SUM(L50:L62) -> -6333636 | M63: 242.7796732
C64: Amounts in '000' KES

Sheet T4
C5: Table 4: Trends in Re-Insurance Business
C7: a) Performance for long term reinsurers
C8: Item | D8: Years | M8: Annual Change 2021/2020 %
D9: 2013 | E9: 2014 | F9: 2015 | G9: 2016 | H9: 2017 | I9: 2018 | J9: 2019 | K9: 2020 | L9: 2021
C10: Life Assurances
C11: Inward reinsurance premium | D11: 174580 | E11: 134022 | F11: 114245 | G11: 152658 | H11: 179830 | I11: 239839 | J11: 246317 | K11: 239008 | L11: ='APPENDIX 9'!D34 -> 96544 | M11: =(L11/K11-1)*100 -> -59.60637301
C12: outward reinsurance premium | D12: 18743 | E12: 1971 | F12: 4689 | G12: 17602 | H12: 22747 | I12: 10701 | J12: 10826 | K12: 60950 | L12: =L11-L13 -> 12676 | M12: -79.2026251
C13: Net premium income | D13: 155837 | E13: 119828 | F13: 119828 | G13: 135056 | H13: 157083 | I13: 229138 | J13: 235491 | K13: 178058 | L13: ='APPENDIX 9'!$E$34 -> 83868 | M13: -52.89849375
C14: Management expenses | D14: 29506 | E14: 71834 | F14: 54739 | G14: 18330 | H14: 26601 | I14: 25995 | J14: 27293 | K14: 38231 | L14: ='APPENDIX 9'!$M$34 -> 42152 | M14: 10.25607491
C15: Net commissions | D15: 50521 | E15: 21550 | F15: 21550 | G15: 59375 | H15: 47993 | I15: 29873 | J15: 62932 | K15: 57205 | L15: ='APPENDIX 9'!$L$34 -> 18673 | M15: -67.35774845
C16: Life fund c/f | D16: 1033636 | E16: 1171464 | F16: 1177990 | G16: 1203305 | H16: 1241040 | I16: 1386391 | J16: 1496517 | K16: 1534174 | L16: ='APPENDIX 9'!Q34 -> 1617766 | M16: 5.448664884
C17: Group Life
C18: Inward reinsurance premium | D18: 1318142 | E18: 1485325 | F18: 1971822 | G18: 2247254 | H18: 2591325 | I18: 3014166 | J18: 3545208 | K18: 2906584 | L18: ='APPENDIX 11'!$D$34 -> 3033758 | M18: 4.375376731
C19: outward reinsurance premium | D19: 146482 | E19: 32671 | F19: 48362 | G19: 305800 | H19: 303096 | I19: 324320 | J19: 387934 | K19: 267328 | L19: =L18-L20 -> 334085 | M19: 24.97194458
C20: Net premium income | D20: 1171660 | E20: 1301827 | F20: 1718421 | G20: 1941454 | H20: 2288229 | I20: 2689846 | J20: 3157274 | K20: 2639256 | L20: ='APPENDIX 11'!$E$34 -> 2699673 | M20: 2.289167856
C21: Management expenses | D21: 218806 | E21: 558274 | F21: 699719 | G21: 249450 | H21: 325124 | I21: 302888 | J21: 353897 | K21: 220382 | L21: ='APPENDIX 11'!$M$34 -> 372816 | M21: 69.16808088
C22: Net commissions | D22: 283922 | E22: 224720 | F22: 287252 | G22: 546986 | H22: 624144 | I22: 751119 | J22: 896634 | K22: 766785 | L22: ='APPENDIX 11'!$L$34 -> 680777 | M22: -11.21670351
C23: Life fund | D23: 4491195 | E23: 5121829 | F23: 5748174 | G23: 5445849 | H23: 5975024 | I23: 6315119 | J23: 7372750 | K23: 8132130 | L23: ='APPENDIX 11'!Q34 -> 8872267 | M23: 9.10139164
C24: Amounts in '000' KES
C27: b) Underwriting results under general reinsurance business
C28: Class of business | D28: Years | M28: Annual Change 2021/2020 %
D29: 2013 | E29: 2014 | F29: 2015 | G29: 2016 | H29: 2017 | I29: 2018 | J29: 2019 | K29: 2020 | L29: 2021
C30: Aviation | D30: 3331 | E30: -22366 | F30: 74718 | G30: -19756 | H30: -12834 | I30: 4542 | J30: -18729 | K30: -1077 | L30: ='APPENDIX 42'!C$50 -> 12288 | M30: =(L30/K30-1)*-100 -> 1240.947075
C31: Engineering | D31: 280151 | E31: 110074 | F31: 228806 | G31: 205944 | H31: 172210 | I31: 223258 | J31: 275016 | K31: -480240 | L31: ='APPENDIX 42'!D$50 -> -228919 | M31: =(L31/K31-1)*-100 -> 52.33237548
C32: Fire Domestic | D32: -9183 | E32: 1862 | F32: 329788 | G32: -19084 | H32: 8328 | I32: 6529 | J32: 528720 | K32: 688589 | L32: ='APPENDIX 42'!E$50 -> 7543 | M32: =(L32/K32-1)*100 -> -98.90457152
C33: Fire industrial | D33: 560765 | E33: 629912 | F33: -691401 | G33: -671791 | H33: -612432 | I33: -38213 | J33: -245061 | K33: -358002 | L33: ='APPENDIX 42'!F$50 -> 737729 | M33: =(L33/K33-1)*-100 -> 306.0684019
C34: Liability | D34: 39519 | E34: 85149 | F34: 46463 | G34: 63275 | H34: 51506 | I34: 109221 | J34: 82632 | K34: 86751 | L34: ='APPENDIX 42'!G$50 -> 128529 | M34: 48.15852267
C35: Marine | D35: 140630 | E35: 286894 | F35: 80212 | G35: 47746 | H35: 152505 | I35: -88587 | J35: -2835 | K35: 272698 | L35: ='APPENDIX 42'!H$50 -> 37675 | M35: -86.18435045
C36: Motor Private | D36: 3145 | E36: 8360 | F36: 7999 | G36: 18107 | H36: 48544 | I36: 27724 | J36: 29459 | K36: -581735 | L36: ='APPENDIX 42'!I$50 -> 72407 | M36: =(L36/K36-1)*-100 -> 112.4467326
C37: Motor Commercial | D37: 91193 | E37: 102325 | F37: 644 | G37: 120356 | H37: 269786 | I37: -122896 | J37: -828633 | K37: -1043466 | L37: ='APPENDIX 42'!J$50+'APPENDIX 42'!K50 -> -31434 | M37: =(L37/K37-1)*-100 -> 96.9875396
C38: Personal Accident | D38: -109200 | E38: -379110 | F38: -93734 | G38: 583453 | H38: 38268 | I38: -189387 | J38: -2583962 | K38: 2132340 | L38: ='APPENDIX 42'!L$50 -> 68492 | M38: -96.78794189
C39: Theft | D39: -205259 | E39: -150893 | F39: 106261 | G39: 142121 | H39: 264811 | I39: 101026 | J39: 255472 | K39: 8109 | L39: ='APPENDIX 42'!M$50 -> 108588 | M39: 1239.104698
C40: Workmen's Compensation | D40: -4749 | E40: 9437 | F40: 234983 | G40: 3264 | H40: 9140 | I40: 3768 | J40: -7463 | K40: -18506 | L40: ='APPENDIX 42'!N$50 -> 169666 | M40: =(L40/K40-1)*-100 -> 1016.816168
C41: Medical | D41: -672213 | E41: -369149 | F41: -525036 | G41: -650108 | H41: -236752 | I41: -1191497 | J41: 1144582 | K41: -1388992 | L41: ='APPENDIX 42'!O$50 -> -897875 | M41: =(L41/K41-1)*-100 -> 35.35779904
C42: Miscellaneous | D42: 115441 | E42: 96243 | F42: 373455 | G42: 464570 | H42: 230594 | I42: 658724 | J42: -1090774 | K42: 959588 | L42: ='APPENDIX 42'!P$50 -> 254690 | M42: -73.4584009
C43: Total | D43: 233571 | E43: 408738 | F43: 173158 | G43: 288097 | H43: 383674 | I43: -495788 | J43: -2461576 | K43: 276057 | L43: =SUM(L30:L42) -> 439379 | M43: 59.16241936
C44: Amounts in '000' KES

Sheet APPENDIX 1
B2: APPENDIX 1: SUMMARY OF PROFIT & LOSS ACCOUNTS UNDER GENERAL INSURANCE BUSINESS FOR THE YEAR ENDED 31.12.2021
B3: Company | C3: Profit Transferred from Revenue | D3: Investment Income | E3: Other Income | F3: Total Income | G3: Loss Transferred From Revenue | H3: Management Expenses | I3: Total Outgo | J3: Profit / (Loss) Before Taxation | K3: Provision for Taxation | L3: Profit/(Loss) After Taxation | M3: Unappropriated Profit/(Loss) BF | N3: Transfer To Reserves | O3: Other Appropriations | P3: Dividend | Q3: Unappropriated Profit /(Loss) CF
B4: INSURERS
B5: AAR INSURANCE KENYA | C5: 238118 | D5: 0 | E5: 0 | F5: 238118 | G5: 0 | H5: 0 | I5: 0 | J5: 238118 | K5: 83355 | L5: 154763 | M5: 145734 | N5: 0 | O5: 0 | P5: 0 | Q5: 300497
B6: AFRICAN MERCHANT ASSURANCE | C6: -227182 | D6: 81528 | E6: 0 | F6: -145653 | G6: 0 | H6: 0 | I6: 0 | J6: -145653 | K6: 0 | L6: -145653 | M6: 0 | N6: 0 | O6: 0 | P6: 0 | Q6: -145653
B7: AIG INSURANCE COMPANY | C7: 108914 | D7: 302499 | E7: 11815 | F7: 423228 | G7: 0 | H7: 0 | I7: 0 | J7: 423228 | K7: 140044 | L7: 283184 | M7: 1414830 | N7: 0 | O7: 0 | P7: 270000 | Q7: 1428014
B8: ALLIANZ INSURANCE COMPANY | C8: 0 | D8: 0 | E8: 0 | F8: 0 | G8: 89637 | H8: 0 | I8: 89637 | J8: -89637 | K8: -26891 | L8: -62746 | M8: -638830 | N8: 0 | O8: 0 | P8: 0 | Q8: -701575
B9: APA INSURANCE COMPANY | C9: 73409 | D9: 918274 | E9: 0 | F9: 991682 | G9: 0 | H9: 47010 | I9: 150310 | J9: 841373 | K9: 288705 | L9: 552668 | M9: 3397465 | N9: 0 | O9: 0 | P9: 850000 | Q9: 3100133
B10: BRITAM GENERAL INSURANCE | C10: 89836 | D10: 0 | E10: 0 | F10: 89836 | G10: 0 | H10: 0 | I10: 0 | J10: 89836 | K10: 65513 | L10: 24323 | M10: 411187 | N10: 0 | O10: 0 | P10: 0 | Q10: 435510
B11: CIC GENERAL INSURANCE COMPANY | C11: 380008 | D11: 880325 | E11: 0 | F11: 1260333 | G11: 0 | H11: 125873 | I11: 616775 | J11: 643558 | K11: 179770 | L11: 463788 | M11: 2635128 | N11: 0 | O11: 0 | P11: 947131 | Q11: 2151785
B12: CORPORATE INSURANCE COMPANY | C12: 16155 | D12: 0 | E12: 0 | F12: 16155 | G12: 0 | H12: 0 | I12: 0 | J12: 16155 | K12: 310 | L12: 15845 | M12: 233293 | N12: 0 | O12: 0 | P12: 0 | Q12: 249138
B13: DIRECTLINE ASSURANCE COMPANY | C13: 17127 | D13: 193359 | E13: 114383 | F13: 324869 | G13: 0 | H13: 106493 | I13: 113616 | J13: 211253 | K13: 91397 | L13: 119856 | M13: 29609 | N13: 0 | O13: 0 | P13: 0 | Q13: 149465
B14: FIDELITY SHIELD INSURANCE | C14: 11471 | D14: 144571 | E14: 0 | F14: 156042 | G14: 0 | H14: 43298 | I14: 87119 | J14: 68923 | K14: 42900 | L14: 26023 | M14: 419717 | N14: 0 | O14: 0 | P14: 50000 | Q14: 395739
B15: FIRST ASSURANCE COMPANY | C15: 0 | D15: 116552 | E15: 0 | F15: 116552 | G15: 66743 | H15: 0 | I15: 66743 | J15: 49809 | K15: 39567 | L15: 10242 | M15: 107398 | N15: 0 | O15: -13799 | P15: 0 | Q15: 131439
B16: GA INSURANCE COMPANY | C16: 1712482 | D16: 0 | E16: 22247 | F16: 1734729 | G16: 0 | H16: 0 | I16: 0 | J16: 1734729 | K16: 371690 | L16: 1363038 | M16: 3227407 | N16: 22247 | O16: 0 | P16: 437500 | Q16: 4130699
B17: GEMINIA INSURANCE COMPANY | C17: 75257 | D17: 0 | E17: 0 | F17: 75257 | G17: 0 | H17: 0 | I17: 0 | J17: 75257 | K17: 27252 | L17: 48005 | M17: 1478822 | N17: 0 | O17: 519945 | P17: 50313 | Q17: 956569
B18: HERITAGE INSURANCE COMPANY | C18: 688447 | D18: 0 | E18: 0 | F18: 688447 | G18: 0 | H18: -3082 | I18: -3082 | J18: 691529 | K18: 267781 | L18: 423748 | M18: 2941472 | N18: 0 | O18: 0 | P18: 200000 | Q18: 3165219
B19: ICEA LION GENERAL INSURANCE | C19: 314038 | D19: 1087853 | E19: 0 | F19: 1401891 | G19: 0 | H19: 197184 | I19: 132757 | J19: 1269134 | K19: 334072 | L19: 935062 | M19: 4292426 | N19: 0 | O19: 0 | P19: 250000 | Q19: 4977487
B20: INTRA-AFRICA ASSURANCE | C20: 78731 | D20: 74642 | E20: 23349 | F20: 176722 | G20: 0 | H20: 13926 | I20: 86594 | J20: 90128 | K20: -4203 | L20: 94330 | M20: 39966 | N20: 0 | O20: 0 | P20: 15000 | Q20: 119296
B21: INVESCO ASSURANCE COMPANY | C21: 0 | D21: 15938 | E21: 717 | F21: 16655 | G21: 554297 | H21: 0 | I21: 554297 | J21: -537642 | K21: 0 | L21: -537642 | M21: -5828885 | N21: 0 | O21: 0 | P21: 0 | Q21: -6366527
B22: JUBILEE GENERAL INSURANCE | C22: 0 | D22: 0 | E22: 284171 | F22: 284171 | G22: 973123 | H22: 0 | I22: 973123 | J22: -688952 | K22: 0 | L22: -688952 | M22: -99797 | N22: 0 | O22: 0 | P22: 0 | Q22: -788750
B23: JUBILEE HEALTH INSURANCE | C23: 1165653 | D23: 0 | E23: 0 | F23: 1165653 | G23: 0 | H23: 0 | I23: 0 | J23: 1165653 | K23: 278217 | L23: 887436 | M23: 568067 | N23: 0 | O23: 0 | P23: 224488 | Q23: 1231015
B24: KENINDIA ASSURANCE COMPANY | C24: 229146 | D24: 0 | E24: 4370 | F24: 233516 | G24: 0 | H24: 10724 | I24: 111268 | J24: 122249 | K24: -451689 | L24: 573938 | M24: 1611113 | N24: 0 | O24: 0 | P24: 0 | Q24: 2185050
B25: KENYA ORIENT INSURANCE | C25: 0 | D25: 19940 | E25: 415 | F25: 20354 | G25: 321062 | H25: 86682 | I25: 407744 | J25: -387389 | K25: -264427 | L25: -122962 | M25: -1253974 | N25: 0 | O25: 0 | P25: 0 | Q25: -1376937
B26: MADISON GENERAL INSURANCE COMPANY | C26: 0 | D26: 0 | E26: 0 | F26: 0 | G26: 15076 | H26: 0 | I26: 15076 | J26: -15076 | K26: -32036 | L26: 16960 | M26: 598051 | N26: 0 | O26: 0 | P26: 0 | Q26: 615010
B27: MAYFAIR INSURANCE COMPANY | C27: 178011 | D27: 465520 | E27: 10082 | F27: 653613 | G27: 0 | H27: 6324 | I27: 45545 | J27: 608068 | K27: 158194 | L27: 449874 | M27: 1193418 | N27: -390271 | O27: 0 | P27: 200000 | Q27: 1833562
B28: METROPOLITAN CANNON GENERAL | C28: 0 | D28: 130068 | E28: 0 | F28: 130068 | G28: 33957 | H28: 73546 | I28: 107503 | J28: 22565 | K28: 11123 | L28: 11442 | M28: -74101 | N28: 0 | O28: 7401 | P28: 0 | Q28: -70060
B29: MUA INSURANCE COMPANY | C29: 0 | D29: 0 | E29: 0 | F29: 0 | G29: 277120 | H29: 0 | I29: 277120 | J29: -277120 | K29: 0 | L29: -277120 | M29: 408365 | N29: 0 | O29: 0 | P29: 0 | Q29: 131245
B30: OCCIDENTAL INSURANCE COMPANY | C30: 67076 | D30: 0 | E30: 424 | F30: 67500 | G30: 0 | H30: 118903 | I30: 122609 | J30: -55109 | K30: -55779 | L30: 669 | M30: 649477 | N30: 0 | O30: 6819 | P30: 0 | Q30: 643327
B31: PACIS INSURANCE COMPANY | C31: 0 | D31: 0 | E31: 0 | F31: 0 | G31: 44217 | H31: 0 | I31: 44217 | J31: -44217 | K31: -6145 | L31: -38072 | M31: 137548 | N31: 0 | O31: 0 | P31: 0 | Q31: 99476
B32: PIONEER GENERAL INSURANCE COMPANY | C32: 0 | D32: 66826 | E32: 0 | F32: 66826 | G32: 96681 | H32: 0 | I32: 96681 | J32: -29855 | K32: -2330 | L32: -27525 | M32: 7472 | N32: 0 | O32: 0 | P32: 0 | Q32: -20053
B33: RESOLUTION INSURANCE COMPANY | C33: 0 | D33: 0 | E33: 0 | F33: 0 | G33: 0 | H33: 0 | I33: 0 | J33: 0 | K33: 0 | L33: 0 | M33: 0 | N33: 0 | O33: 0 | P33: 0 | Q33: 0
B34: SANLAM INSURANE COMPANY | C34: 0 | D34: 0 | E34: 0 | F34: 0 | G34: 668951 | H34: 0 | I34: 668951 | J34: -668951 | K34: -168039 | L34: -500912 | M34: 0 | N34: 0 | O34: 0 | P34: 0 | Q34: -500912
B35: TAKAFUL INSURANCE OF AFRICA | C35: 0 | D35: 38676 | E35: 122294 | F35: 160970 | G35: 130983 | H35: 10512 | I35: 141495 | J35: 19475 | K35: 21551 | L35: -2076 | M35: -265108 | N35: 0 | O35: 0 | P35: 0 | Q35: -267184
B36: TAUSI ASSURANCE COMPANY | C36: 105474 | D36: 260335 | E36: 7040 | F36: 372849 | G36: 0 | H36: 6033 | I36: 11800 | J36: 361049 | K36: 49606 | L36: 311443 | M36: 1170412 | N36: -3298 | O36: 0 | P36: 302000 | Q36: 1183153
B37: THE KENYAN ALLIANCE INSURANCE | C37: 0 | D37: 0 | E37: 0 | F37: 0 | G37: 75492 | H37: 0 | I37: 75492 | J37: -75492 | K37: -9358 | L37: -66133 | M37: 282942 | N37: 0 | O37: 0 | P37: 0 | Q37: 216808
B38: THE MONARCH INSURANCE | C38: 0 | D38: 27281 | E38: 0 | F38: 27281 | G38: 1314496 | H38: 38213 | I38: 2005759 | J38: -1978478 | K38: 2902 | L38: -1981380 | M38: 265588 | N38: 0 | O38: 0 | P38: 0 | Q38: -1715792
B39: TRIDENT INSURANCE COMPANY | C39: 174759 | D39: 0 | E39: 0 | F39: 174759 | G39: 0 | H39: 26054 | I39: 26054 | J39: 148706 | K39: 0 | L39: 148706 | M39: 1039578 | N39: 0 | O39: 0 | P39: 0 | Q39: 1188284
B40: UAP INSURANCE COMPANY | C40: 0 | D40: 625769 | E40: 91599 | F40: 717368 | G40: 173913 | H40: 0 | I40: 173913 | J40: 543455 | K40: 253470 | L40: 289985 | M40: 4678192 | N40: 0 | O40: -6502 | P40: 750000 | Q40: 4224680
B41: XPLICO INSURANCE COMPANY | C41: 0 | D41: 18676 | E41: 89833 | F41: 108508 | G41: 117307 | H41: 0 | I41: 117307 | J41: -8798 | K41: 0 | L41: -8798 | M41: 21515 | N41: 0 | O41: 0 | P41: 0 | Q41: 12717
B42: TOTAL | C42: =SUM(C5:C41) -> 5496930 | D42: 5468632 | E42: 782739 | F42: 11748299 | G42: 4953055 | H42: 907693 | I42: 7316423 | J42: 4431881 | K42: 1686522 | L42: 2745357 | M42: 25245497 | N42: -371322 | O42: 513864 | P42: 4546432 | Q42: 23301874
B43: REINSURERS
B44: CONTINENTAL REINSURANCE | C44: 854321 | D44: 0 | E44: 0 | F44: 854321 | G44: 0 | H44: 0 | I44: 0 | J44: 854321 | K44: 269082 | L44: 585239 | M44: 523648 | N44: 0 | O44: 0 | P44: 0 | Q44: 1108886
B45: EAST AFRICAN REINSURANCE | C45: 25846 | D45: 538572 | E45: 17618 | F45: 582037 | G45: 0 | H45: 0 | I45: 66577 | J45: 515460 | K45: 90100 | L45: 425360 | M45: 2998910 | N45: -19905 | O45: 0 | P45: 100000 | Q45: 3344175
B46: GHANA REINSURANCE COMPANY | C46: 184504 | D46: 0 | E46: 5404 | F46: 189908 | G46: 0 | H46: 0 | I46: 0 | J46: 189908 | K46: 54724 | L46: 135184 | M46: 266354 | N46: 0 | O46: 0 | P46: 0 | Q46: 401538
B47: KENYA REINSURANCE CORPORATION | C47: 2062907 | D47: 310071 | E47: 57858 | F47: 2430836 | G47: 0 | H47: 170633 | I47: 170633 | J47: 2260203 | K47: 680999 | L47: 1579204 | M47: 20742369 | N47: 0 | O47: -26510 | P47: 559959 | Q47: 21788123
B48: WAICA REINSURANCE KENYA LIMITED | C48: 181389 | D48: 62622 | E48: 30623 | F48: 274634 | G48: 0 | H48: 0 | I48: 0 | J48: 274634 | K48: 81408 | L48: 193227 | M48: 42162 | N48: 0 | O48: 0 | P48: 0 | Q48: 235389
B49: TOTAL | C49: =SUM(C44:C48) -> 3308967 | D49: =SUM(D44:D48) -> 911265 | E49: =SUM(E44:E48) -> 111503 | F49: 4331736 | G49: 0 | H49: 170633 | I49: 237210 | J49: 4094526 | K49: 1176313 | L49: 2918214 | M49: 24573443 | N49: -19905 | O49: -26510 | P49: 659959 | Q49: 26878111
B50: GRAND TOTAL | C50: =C42+C49 -> 8805897 | D50: =D42+D49 -> 6379897 | E50: 894242 | F50: 16080035 | G50: 4953055 | H50: 1078326 | I50: 7553633 | J50: 8526407 | K50: 2862835 | L50: 5663571 | M50: 49818940 | N50: -391227 | O50: 487354 | P50: 5206391 | Q50: 50179985
B51: Amounts in Thousand Shillings

Sheet APPENDIX 2
B3: APPENDIX 2: SUMMARY OF PROFIT & LOSS ACCOUNTS UNDER LONG TERM INSURANCE BUSINESS FOR THE YEAR ENDED 31.12.2021
B4: Company | C4: Profit Transferred from Revenue | D4: Investment Income | E4: Other Income | F4: Total Income | G4: Loss Transferred From Revenue | H4: Management Expenses | I4: Total Outgo | J4: Profit / (Loss) Before Taxation | K4: Provision for Taxation | L4: Profit/(Loss) After Taxation | M4: Unappropriated Profit/(Loss) BF | N4: Transfer To Reserves | O4: Other Appropriations | P4: Dividend | Q4: Unappropriated Profit /(Loss) CF
B5: INSURERS
B6: ABSA LIFE ASSURANCE KENYA | C6: 72807 | D6: 0 | E6: 0 | F6: 72807 | G6: 0 | H6: 0 | I6: 0 | J6: 72807 | K6: 0 | L6: 72807 | M6: 0 | N6: 0 | O6: 0 | P6: 0 | Q6: 72807
B7: APA LIFE ASSURANCE COMPANY | C7: 0 | D7: 72231 | E7: 0 | F7: 72231 | G7: 249471 | H7: 6132 | I7: 255603 | J7: -183373 | K7: 0 | L7: -183373 | M7: -101365 | N7: 95 | O7: 0 | P7: 0 | Q7: -284832
B8: BRITAM LIFE INSURANCE COMPANY | C8: 2370778 | D8: 0 | E8: 508037 | F8: 2878816 | G8: 0 | H8: 0 | I8: 0 | J8: 2878816 | K8: 711233 | L8: 2167582 | M8: 5754465 | N8: 0 | O8: 0 | P8: 0 | Q8: 7922047
B9: CAPEX LIFE ASSURANCE COMPANY | C9: 0 | D9: 0 | E9: -16282 | F9: -16282 | G9: 0 | H9: 0 | I9: 0 | J9: -16282 | K9: 0 | L9: -16282 | M9: -31672 | N9: 0 | O9: 0 | P9: 0 | Q9: -47954
B10: CIC LIFE ASSURANCE COMPANY | C10: 0 | D10: 0 | E10: 0 | F10: 0 | G10: 0 | H10: 0 | I10: 0 | J10: 0 | K10: 0 | L10: 0 | M10: 71861 | N10: 0 | O10: 0 | P10: 0 | Q10: 71861
B11: CORPORATE INSURANCE COMPANY | C11: 0 | D11: 0 | E11: 0 | F11: 0 | G11: 28668 | H11: 0 | I11: 28668 | J11: -28668 | K11: 0 | L11: -28668 | M11: -176535 | N11: 0 | O11: 0 | P11: 0 | Q11: -205203
B12: GA LIFE ASSURANCE COMPANY | C12: 141994 | D12: 0 | E12: 21890 | F12: 163884 | G12: 0 | H12: 0 | I12: 0 | J12: 163884 | K12: 43245 | L12: 120639 | M12: 98119 | N12: 0 | O12: 0 | P12: 95000 | Q12: 123758
B13: GEMINIA INSURANCE COMPANY | C13: 0 | D13: 0 | E13: 0 | F13: 0 | G13: 62620 | H13: 0 | I13: 62620 | J13: -62620 | K13: -7954 | L13: -54666 | M13: 0 | N13: 0 | O13: 0 | P13: 0 | Q13: -54666
B14: ICEA LION LIFE ASSURANCE | C14: 1000000 | D14: 28716 | E14: 0 | F14: 1028716 | G14: 0 | H14: 60 | I14: 60 | J14: 1028656 | K14: 298836 | L14: 729820 | M14: 2518261 | N14: 0 | O14: 0 | P14: 2526250 | Q14: 721830
B15: JUBILEE INSURANCE COMPANY LIMITED-LIFE | C15: 982198 | D15: 371050 | E15: 0 | F15: 1353248 | G15: 0 | H15: 0 | I15: 0 | J15: 1353248 | K15: 294659 | L15: 1058589 | M15: 5230690 | N15: 0 | O15: 0 | P15: 0 | Q15: 6289279
B16: KENINDIA ASSURANCE COMPANY | C16: 52500 | D16: 0 | E16: 0 | F16: 52500 | G16: 0 | H16: 0 | I16: 0 | J16: 52500 | K16: 0 | L16: 52500 | M16: 40268 | N16: 0 | O16: 0 | P16: 50000 | Q16: 42768
B17: KENYA ORIENT LIFE ASSURANCE | C17: 0 | D17: 25766 | E17: 0 | F17: 25766 | G17: 0 | H17: 4417 | I17: 8398 | J17: 17367 | K17: 10796 | L17: 6571 | M17: 50532 | N17: 0 | O17: 0 | P17: 50000 | Q17: 7103
B18: KUSCCO MUTUAL ASSURANCE LIMITED | C18: 0 | D18: 0 | E18: 0 | F18: 0 | G18: 0 | H18: 0 | I18: 0 | J18: 0 | K18: 0 | L18: 0 | M18: 146524 | N18: 0 | O18: 0 | P18: 0 | Q18: 146524
B19: LIBERTY LIFE ASSURANCE COMPANY | C19: 0 | D19: 0 | E19: -199099 | F19: -199099 | G19: 0 | H19: 0 | I19: 0 | J19: -199099 | K19: -41780 | L19: -157319 | M19: -304170 | N19: -157319 | O19: 0 | P19: 0 | Q19: -304170
B20: MADISON INSURANCE COMPANY | C20: 0 | D20: 0 | E20: 0 | F20: 0 | G20: 1458445 | H20: 0 | I20: 1458445 | J20: -1458445 | K20: -414320 | L20: -1044125 | M20: 62000 | N20: -1044125 | O20: 0 | P20: 0 | Q20: 62000
B21: METROPOLITAN CANNON INSURANCE | C21: 0 | D21: 0 | E21: 0 | F21: 0 | G21: 119980 | H21: 0 | I21: 119980 | J21: -119980 | K21: 15210 | L21: -135191 | M21: -1243669 | N21: 0 | O21: 0 | P21: 0 | Q21: -1378860
B22: OLD MUTUAL LIFE ASSURANCE | C22: 0 | D22: 185788 | E22: 0 | F22: 185788 | G22: 312734 | H22: 6638 | I22: 319372 | J22: -133584 | K22: 19563 | L22: -153148 | M22: -2661167 | N22: 0 | O22: 0 | P22: 0 | Q22: -2814315
B23: PIONEER ASSURANCE COMPANY | C23: 0 | D23: 0 | E23: 0 | F23: 0 | G23: 29527 | H23: 0 | I23: 29527 | J23: -29527 | K23: 0 | L23: -29527 | M23: 120204 | N23: 0 | O23: -191001 | P23: 0 | Q23: 281679
B24: PRUDENTIAL LIFE ASSURANCE | C24: 0 | D24: 82947 | E24: 0 | F24: 82947 | G24: 0 | H24: 298355 | I24: 298355 | J24: -215407 | K24: 45480 | L24: -260888 | M24: -2217704 | N24: 0 | O24: 0 | P24: 0 | Q24: -2478592
B25: SANLAM LIFE INSURANCE | C25: 567249 | D25: 0 | E25: 0 | F25: 567249 | G25: 0 | H25: 0 | I25: 0 | J25: 567249 | K25: 170175 | L25: 397074 | M25: 867469 | N25: 0 | O25: 0 | P25: 1000000 | Q25: 264543
B26: THE KENYAN ALLIANCE INSURANCE | C26: 0 | D26: 0 | E26: 0 | F26: 0 | G26: 468666 | H26: 0 | I26: 468666 | J26: -468666 | K26: 0 | L26: -468666 | M26: -712796 | N26: 0 | O26: 0 | P26: 0 | Q26: -1181462
B27: THE MONARCH INSURANCE | C27: 0 | D27: 0 | E27: 0 | F27: 0 | G27: 6881 | H27: 0 | I27: 6881 | J27: -6881 | K27: 3006 | L27: -9887 | M27: -54599 | N27: 0 | O27: 0 | P27: 0 | Q27: -64486
B28: UAP LIFE ASSURANCE COMPANY | C28: 0 | D28: 0 | E28: -24541 | F28: -24541 | G28: 0 | H28: 0 | I28: 0 | J28: -24541 | K28: 35385 | L28: -59926 | M28: -62880 | N28: 0 | O28: 0 | P28: 0 | Q28: -122807
B29: TOTAL | C29: =SUM(C6:C28) -> 5187526 | D29: 766498 | E29: 290005 | F29: 6244030 | G29: 2736992 | H29: 315602 | I29: 3056575 | J29: 3187454 | K29: 1183534 | L29: 2003916 | M29: 7393836 | N29: -1201349 | O29: -191001 | P29: 3721250 | Q29: 7068852
B30: REINSURERS
B31: CONTINENTAL REINSURANCE | C31: -37103 | D31: 0 | E31: 0 | F31: -37103 | G31: 0 | H31: 0 | I31: 0 | J31: -37103 | K31: -46806 | L31: 9703 | M31: 233161 | N31: 0 | O31: 0 | P31: 0 | Q31: 242864
B32: EAST AFRICA REINSURANCE | C32: 0 | D32: 158678 | E32: 18430 | F32: 177107 | G32: 588755 | H32: 1354 | I32: 590109 | J32: -413002 | K32: -125032 | L32: -287970 | M32: 627274 | N32: 0 | O32: 0 | P32: 0 | Q32: 339304
B33: KENYA REINSURANCE CORPORATION | C33: 1598454 | D33: -21998 | E33: 0 | F33: 1576456 | G33: 0 | H33: 32664 | I33: 32664 | J33: 1543793 | K33: 287390 | L33: 1256402 | M33: 6344673 | N33: 0 | O33: 0 | P33: 0 | Q33: 7601075
B34: TOTAL | C34: =SUM(C31:C33) -> 1561351 | D34: =SUM(D31:D33) -> 136680 | E34: 18430 | F34: 1716460 | G34: 588755 | H34: 34018 | I34: 622773 | J34: 1093688 | K34: 115552 | L34: 978135 | M34: 7205108 | N34: 0 | O34: 0 | P34: 0 | Q34: 8183243
B35: GRAND TOTAL | C35: =C34+C29 -> 6748877 | D35: =D34+D29 -> 903178 | E35: 308435 | F35: 7960490 | G35: 3325747 | H35: 349620 | I35: 3679348 | J35: =J34+J29 -> 4281142 | K35: 1299086 | L35: 2982051 | M35: 14598944 | N35: -1201349 | O35: -191001 | P35: 3721250 | Q35: 15252095
B36: Amounts in Thousand Shillings

Sheet appendix 3x (hidden)
B2: APPENDIX 3: SUMMARY OF NET COMMISSIONS AND MANAGEMENT EXPENSES FOR THE YEAR ENDED 31.12.2014
C3: General Business | E3: Long Term Business
B4: INSURERS
B5: Company | C5: Commissions | D5: Management Expenses | E5: Commissions | F5: Management Expenses
B6: AAR INSURANCE KENYA | C6: 165288 | D6: 502774
B7: AFRICAN MERCHANT ASSURANCE | C7: 108669 | D7: 799815
B8: AIG INSURANCE COMPANY | C8: 91993 | D8: 808878
B9: APA INSURANCE COMPANY | C9: 497787 | D9: 1150711
B10: APA LIFE ASSURANCE COMPANY | E10: 5952 | F10: 136763
B11: BRITISH AMERICAN INSURANCE | C11: 409907 | D11: 1133785 | E11: 1393991 | F11: 1727158
B12: CANNON ASSURANCE COMPANY | C12: 87720 | D12: 319707 | E12: -13438 | F12: 67113
B13: CAPEX LIFE ASSURANCE COMPANY | E13: 926 | F13: 50788
B14: CIC GENERAL INSURANCE COMPANY | C14: 645669 | D14: 1804800
B15: CIC LIFE ASSURANCE COMPANY | E15: 186645 | F15: 1189024
B16: CORPORATE INSURANCE COMPANY | C16: 23941 | D16: 116290 | E16: 78637 | F16: 42149
B17: DIRECTLINE ASSURANCE COMPANY | C17: 219220 | D17: 739337
B18: FIDELITY SHIELD INSURANCE | C18: 81081 | D18: 304635
B19: FIRST ASSURANCE COMPANY | C19: 87720 | D19: 423394 | E19: -7079 | F19: 7511
B20: GA INSURANCE COMPANY | C20: -43764 | D20: 486215
B21: GA LIFE ASSURANCE LIMITED | E21: -3058 | F21: 13242
B22: GATEWAY INSURANCE COMPANY | C22: 27188 | D22: 339468
B23: GEMINIA INSURANCE COMPANY | C23: 49888 | D23: 283342 | E23: 1873 | F23: 7938
B24: HERITAGE INSURANCE COMPANY | C24: -25022 | D24: 1079262
B25: ICEA LION GENERAL INSURANCE | C25: 314064 | D25: 872074
B26: ICEA LION LIFE ASSURANCE COMPANY | E26: 311189 | F26: 713045
B27: INTRA-AFRICA ASSURANCE | C27: 41276 | D27: 224514
B28: INVESCO ASSURANCE COMPANY | C28: 201215 | D28: 1018143
B29: JUBILEE INSURANCE COMPANY | C29: 527610 | D29: 1145079 | E29: 612465 | F29: 719572
B30: KENINDIA ASSURANCE COMPANY | C30: 121728 | D30: 584711 | E30: 116653 | F30: 234064
B31: KENYA ORIENT INSURANCE | C31: 54696 | D31: 558149
B32: KENYA ORIENT LIFE ASSURANCE | E32: 8985 | F32: 81562
B33: LIBERTY LIFE ASSURANCE KENYA | E33: 189845 | F33: 1133473
B34: MADISON INSURANCE COMPANY | C34: 83379 | D34: 398628 | E34: 147899 | F34: 552308
B35: MAYFAIR INSURANCE COMPANY | C35: 12840 | D35: 259559
B36: METROPOLITAN LIFE ASSURANCE | E36: 38239 | F36: 153993
B37: OCCIDENTAL INSURANCE COMPANY | C37: 111840 | D37: 210299
B38: OLD MUTUAL ASSURANCE COMPANY | E38: 185386 | F38: 969433
B39: PACIS INSURANCE COMPANY | C39: 83985 | D39: 328250
B40: PAN AFRICA INSURANCE COMPANY | E40: 723713 | F40: 810331
B41: PHOENIX OF EAST AFRICA | C41: -43 | D41: 213356
B42: PIONEER ASSURANCE COMPANY | E42: 159246 | F42: 310185
B43: PRUDENTIAL LIFE ASSURANCE KENYA | E43: 20238 | F43: 72232
B44: REAL INSURANCE COMPANY | C44: 127529 | D44: 704790
B45: RESOLUTION HEALTH INSURANCE | C45: -70791 | D45: 603806
B46: SAHAM ASSURANCE | C46: -9053 | D46: 250746 | E46: 11774 | F46: 47021
B47: TAKAFUL INSURANCE OF AFRICA | C47: 61055 | D47: 265722
B48: TAUSI ASSURANCE COMPANY | C48: 57264 | D48: 172861
B49: THE KENYAN ALLIANCE INSURANCE | C49: 110974 | D49: 478426 | E49: -19313 | F49: 39504
B50: THE MONARCH INSURANCE | C50: 28626 | D50: 241389 | E50: -2682 | F50: 19233
B51: TRIDENT INSURANCE COMPANY | C51: -25524 | D51: 170220
B52: UAP INSURANCE COMPANY | C52: 427125 | D52: 1232280
B53: UAP LIFE ASSURANCE COMPANY | E53: 65555 | F53: 520521
B54: XPLICO INSURANCE COMPANY | C54: 116796 | D54: 792522
B55: TOTAL | C55: =SUM(C6:C54) -> 4803876 | D55: =SUM(D6:D54) -> 21017937 | E55: =SUM(E6:E54) -> 4213641 | F55: =SUM(F6:F54) -> 9618163
B56: REINSURERS
B57: CONTINENTAL REINSURANCE | C57: 645669 | D57: 1804800 | E57: 12636 | F57: 7066
B58: EAST AFRICA REINSURANCE | C58: 795095 | D58: 197474 | E58: 78387 | F58: 58654
B59: KENYA REINSURANCE CORPORATION | C59: 2683195 | D59: 961374 | E59: 308564 | F59: 180547
B60: TOTAL | C60: =SUM(C57:C59) -> 4123959 | D60: =SUM(D57:D59) -> 2963648 | E60: =SUM(E57:E59) -> 399587 | F60: =SUM(F57:F59) -> 246267
B61: GRAND TOTAL | C61: =C60+C55 -> 8927835 | D61: =D60+D55 -> 23981585 | E61: =E60+E55 -> 4613228 | F61: =F60+F55 -> 9864430
B62: Amounts in '000' shillings

Sheet APPENDIX 3
B3: APPENDIX 3: SUMMARY OF NET COMMISSIONS AND MANAGEMENT EXPENSES FOR THE YEAR ENDED 31.12.2021
B5: General Insurance Business | F5: Long Term Insurance Business
B6: Company | C6: Commissions | D6: Management Expenses | F6: Company | G6: Commissions | H6: Management Expenses
B7: AAR INSURANCE KENYA | C7: 277500 | D7: 1138521 | F7: ABSA LIFE ASSURANCE KENYA | G7: 645580 | H7: 560360
B8: AFRICAN MERCHANT ASSURANCE | C8: 54483 | D8: 550333 | F8: APA LIFE ASSURANCE COMPANY | G8: 234436 | H8: 308538
B9: AIG INSURANCE COMPANY | C9: -480830 | D9: 943626 | F9: BRITAM LIFE INSURANCE COMPANY | G9: 1310533 | H9: 3460199
B10: ALLIANZ INSURANCE COMPANY | C10: 61393 | D10: 342562 | F10: CAPEX LIFE ASSURANCE COMPANY | G10: 11483 | H10: 159354
B11: APA INSURANCE COMPANY | C11: 344629 | D11: 1416634 | F11: CIC LIFE ASSURANCE COMPANY | G11: 136928 | H11: 1423827
B12: BRITAM GENERAL INSURANCE | C12: 722793 | D12: 2553567 | F12: CORPORATE INSURANCE COMPANY | G12: 16518 | H12: 28716
B13: CIC GENERAL INSURANCE COMPANY | C13: 710310 | D13: 2521601 | F13: GA LIFE ASSURANCE COMPANY | G13: 33378 | H13: 97970
B14: CORPORATE INSURANCE COMPANY | C14: 113205 | D14: 212006 | F14: GEMINIA INSURANCE COMPANY | G14: -7319 | H14: 255698
B15: DIRECTLINE ASSURANCE COMPANY | C15: 334968 | D15: 879011 | F15: ICEA LION LIFE ASSURANCE | G15: 847041 | H15: 1280158
B16: FIDELITY SHIELD INSURANCE | C16: 143527 | D16: 324498 | F16: JUBILEE INSURANCE COMPANY LIMITED-LIFE | G16: 812271 | H16: 977761
B17: FIRST ASSURANCE COMPANY | C17: 230966 | D17: 668335 | F17: KENINDIA ASSURANCE COMPANY | G17: 277886 | H17: 574716
B18: GA INSURANCE COMPANY | C18: -134461 | D18: 1088030 | F18: KENYA ORIENT LIFE ASSURANCE | G18: 50055 | H18: 315838
B19: GEMINIA INSURANCE COMPANY | C19: 254132 | D19: 981320 | F19: KUSCCO MUTUAL ASSURANCE LIMITED | G19: -33349 | H19: 280027
B20: HERITAGE INSURANCE COMPANY | C20: 173757 | D20: 1405894 | F20: LIBERTY LIFE ASSURANCE COMPANY | G20: 274741 | H20: 1232829
B21: ICEA LION GENERAL INSURANCE | C21: 176490 | D21: 1186245 | F21: MADISON INSURANCE COMPANY | G21: 283369 | H21: 861177
B22: INTRA-AFRICA ASSURANCE | C22: 144824 | D22: 328032 | F22: METROPOLITAN CANNON INSURANCE | G22: -8948 | H22: 198523
B23: INVESCO ASSURANCE COMPANY | C23: 115350 | D23: 676024 | F23: OLD MUTUAL LIFE ASSURANCE | G23: 282975 | H23: 619836
B24: JUBILEE GENERAL INSURANCE | C24: 43792 | D24: 1063374 | F24: PIONEER ASSURANCE COMPANY | G24: 420182 | H24: 536099
B25: JUBILEE HEALTH INSURANCE | C25: 668598 | D25: 1046648 | F25: PRUDENTIAL LIFE ASSURANCE | G25: 150323 | H25: 495234
B26: KENINDIA ASSURANCE COMPANY | C26: 158504 | D26: 607748 | F26: SANLAM LIFE INSURANCE | G26: 570415 | H26: 1148178
B27: KENYA ORIENT INSURANCE | C27: 100720 | D27: 491396 | F27: THE KENYAN ALLIANCE INSURANCE | G27: 4241 | H27: 141766
B28: MADISON GENERAL INSURANCE COMPANY | C28: 451587 | D28: 1190679 | F28: THE MONARCH INSURANCE | G28: -107 | H28: 72064
B29: MAYFAIR INSURANCE COMPANY | C29: 119426 | D29: 519503 | F29: UAP LIFE ASSURANCE COMPANY | G29: 180512 | H29: 660685
B30: METROPOLITAN CANNON GENERAL | C30: 119113 | D30: 390748 | F30: TOTAL | G30: =SUM(G7:G29) -> 6493144 | H30: =SUM(H7:H29) -> 15689553
B31: MUA INSURANCE COMPANY | C31: 112645 | D31: 842931 | F31: REINSURERS
B32: OCCIDENTAL INSURANCE COMPANY | C32: 215597 | D32: 581770 | F32: CONTINENTAL REINSURANCE | G32: 20037 | H32: 4344
B33: PACIS INSURANCE COMPANY | C33: 140992 | D33: 483430 | F33: EAST AFRICA REINSURANCE | G33: 246733 | H33: 58095
B34: PIONEER GENERAL INSURANCE COMPANY | C34: 91706 | D34: 305617 | F34: KENYA REINSURANCE CORPORATION | G34: 432680 | H34: 352530
B35: RESOLUTION INSURANCE COMPANY | C35: 0 | D35: 0 | F35: TOTAL | G35: =SUM(G32:G34) -> 699450 | H35: =SUM(H32:H34) -> 414969
B36: SANLAM INSURANE COMPANY | C36: 224085 | D36: 1029238 | F36: GRAND TOTAL | G36: =G35+G30 -> 7192594 | H36: =H35+H30 -> 16104522
B37: TAKAFUL INSURANCE OF AFRICA | C37: 61812 | D37: 370307 | F37: Amounts in Thousand shillings
B38: TAUSI ASSURANCE COMPANY | C38: 79539 | D38: 364449
B39: THE KENYAN ALLIANCE INSURANCE | C39: 42864 | D39: 769234
B40: THE MONARCH INSURANCE | C40: 108184 | D40: 464093
B41: TRIDENT INSURANCE COMPANY | C41: 91348 | D41: 363678
B42: UAP INSURANCE COMPANY | C42: 884153 | D42: 2381270
B43: XPLICO INSURANCE COMPANY | C43: 71097 | D43: 341652
B44: TOTAL | C44: =SUM(C7:C43) -> 7028798 | D44: =SUM(D7:D43) -> 30824004
B45: REINSURERS
B46: CONTINENTAL REINSURANCE | C46: 1529103 | D46: 466732
B47: EAST AFRICAN REINSURANCE | C47: 835414 | D47: 244496
B48: GHANA REINSURANCE COMPANY | C48: 363474 | D48: 189857
B49: KENYA REINSURANCE CORPORATION | C49: 3732734 | D49: 1877262
B50: WAICA REINSURANCE KENYA LIMITED | C50: 294608 | D50: 282396
B51: TOTAL | C51: =SUM(C46:C50) -> 6755333 | D51: =SUM(D46:D50) -> 3060743
B52: GRAND TOTAL | C52: =C51+C44 -> 13784131 | D52: =D51+D44 -> 33884747
B53: Amounts in Thousand shillings

Sheet APPENDIX 4 I
B3: APPENDIX 4: SUMMARY OF LONG TERM INSURANCE BUSINESS BALANCE SHEETS AS AT 31.12.2021
B4: Company | C4: ABSA LIFE ASSURANCE KENYA | D4: APA LIFE ASSURANCE COMPANY | E4: BRITAM LIFE ASSURANCE | F4: CAPEX LIFE ASSURANCE COMPANY | G4: CIC LIFE ASSURANCE COMPANY | H4: CONTINENTAL REINSURANCE | I4: CORPORATE INSURANCE COMPANY | J4: EAST AFRICA REINSURANCE | K4: GA LIFE INSURANCE COMPANY | L4: GEMINIA INSURANCE COMPANY
B5: Share Capital | C5: 699000 | D5: 900000 | E5: 400000 | F5: 400000 | G5: 800000 | H5: 500000 | I5: 200000 | J5: 500000 | K5: 400000 | L5: 400100
B6: Share Premium | C6: 0 | D6: 0 | E6: 0 | F6: 0 | G6: 0 | H6: 0 | I6: 0 | J6: 0 | K6: 0 | L6: 0
B7: Revaluation Reserves | C7: 0 | D7: 0 | E7: 0 | F7: 1768 | G7: -107345 | H7: 43 | I7: 0 | J7: 0 | K7: 0 | L7: 0
B8: Statutory Reserves | C8: 486208 | D8: 17481 | E8: 0 | F8: -47954 | G8: 1128818 | H8: 21057 | I8: -205203 | J8: 0 | K8: 231923 | L8: 174763
B9: Retained Earnings | C9: 0 | D9: -284832 | E9: 300000 | F9: 0 | G9: 71861 | H9: 0 | I9: 0 | J9: 0 | K9: 123758 | L9: 62788
B10: Other Reserves | C10: 0 | D10: 0 | E10: 7622047 | F10: 1120 | G10: 49613 | H10: 242864 | I10: 0 | J10: 339304 | K10: 0 | L10: 57994
B11: Total Equity | C11: 1185208 | D11: 632649 | E11: 8322047 | F11: 354935 | G11: 1942948 | H11: 763964 | I11: -5203 | J11: 839304 | K11: 755681 | L11: 695645
B12: Underwriting Provisions | C12: 0 | D12: 416728 | E12: 930232 | F12: 5207 | G12: 971168 | H12: 216189 | I12: 192978 | J12: 352395 | K12: 2370 | L12: 335546
B13: Actuarial Contract Liabilities | C13: 4844516 | D13: 7132814 | E13: 93545840 | F13: 688270 | G13: 14336840 | H13: 0 | I13: 537941 | J13: 708196 | K13: 19950718 | L13: 1172088
B14: LongTerm Liabilities | C14: 200000 | D14: 7492 | E14: 3266591 | F14: 0 | G14: 485042 | H14: 18239 | I14: 0 | J14: 145416 | K14: 99396 | L14: 45236
B15: Current Liabilities | C15: 673030 | D15: 186115 | E15: 2051536 | F15: 32825 | G15: 834865 | H15: 61848 | I15: 35580 | J15: 276059 | K15: 92891 | L15: 190327
B16: Total Equity And Liabilities | C16: 6902754 | D16: 8375798 | E16: 108116247 | F16: 1081237 | G16: 18570863 | H16: 1060239 | I16: 761296 | J16: 2321371 | K16: 20901055 | L16: 2438842
B17: Land And Buildings | C17: 0 | D17: 0 | E17: 113508 | F17: 0 | G17: 0 | H17: 0 | I17: 0 | J17: 0 | K17: 0 | L17: 0
B18: Investment Property | C18: 0 | D18: 155000 | E18: 6812534 | F18: 810000 | G18: 2181875 | H18: 0 | I18: 525400 | J18: 0 | K18: 1466972 | L18: 130000
B19: Other Fixed Assets | C19: 31119 | D19: 7475 | E19: 56269 | F19: 11048 | G19: 44956 | H19: 0 | I19: 1064 | J19: 0 | K19: 521 | L19: 652
B20: Government Securities | C20: 5525115 | D20: 6457452 | E20: 70672191 | F20: 37749 | G20: 8790850 | H20: 979728 | I20: 98178 | J20: 1091340 | K20: 19134175 | L20: 1087071
B21: Other Securities | C21: 0 | D21: 48895 | E21: 0 | F21: 0 | G21: 723047 | H21: 0 | I21: 0 | J21: 0 | K21: 0 | L21: 0
B22: Investment in Related Companies | C22: 0 | D22: 0 | E22: 816117 | F22: 0 | G22: 0 | H22: 0 | I22: 0 | J22: 0 | K22: 0 | L22: 0
B23: Corporate Bonds | C23: 0 | D23: 212556 | E23: 0 | F23: 0 | G23: 136816 | H23: 0 | I23: 0 | J23: 29532 | K23: 0 | L23: 0
B24: Commercial Papers | C24: 0 | D24: 0 | E24: 0 | F24: 0 | G24: 11985 | H24: 0 | I24: 0 | J24: 0 | K24: 0 | L24: 0
B25: Debentures | C25: 0 | D25: 0 | E25: 0 | F25: 0 | G25: 0 | H25: 0 | I25: 0 | J25: 0 | K25: 0 | L25: 0
B26: Ordinary Shares Quoted | C26: 0 | D26: 359441 | E26: 8868715 | F26: 2 | G26: 835898 | H26: 0 | I26: 0 | J26: 13736 | K26: 56275 | L26: 0
B27: Ordinary Shares Unquoted | C27: 0 | D27: 19054 | E27: 29975 | F27: 0 | G27: 626 | H27: 0 | I27: 872 | J27: 0 | K27: 0 | L27: 0
B28: Preference Shares Quoted | C28: 0 | D28: 0 | E28: 0 | F28: 0 | G28: 0 | H28: 0 | I28: 0 | J28: 0 | K28: 0 | L28: 0
B29: Preference Shares Unquoted | C29: 0 | D29: 0 | E29: 0 | F29: 0 | G29: 0 | H29: 0 | I29: 0 | J29: 0 | K29: 0 | L29: 0
B30: Loans Secured & Unsecured | C30: 0 | D30: 31434 | E30: 2601638 | F30: 0 | G30: 601388 | H30: 0 | I30: 25007 | J30: 0 | K30: 1534 | L30: 8331
B31: Mortgages | C31: 0 | D31: 0 | E31: 1135848 | F31: 0 | G31: 32607 | H31: 0 | I31: 0 | J31: 0 | K31: 0 | L31: 0
B32: Term Deposits | C32: 326090 | D32: 315360 | E32: 679216 | F32: 0 | G32: 2429312 | H32: 20350 | I32: 64486 | J32: 389743 | K32: 179374 | L32: 76324
B33: Cash and Cash Balances | C33: 113952 | D33: 96269 | E33: 610743 | F33: 155977 | G33: 93610 | H33: 826 | I33: 6896 | J33: 141974 | K33: 9012 | L33: 26970
B34: Outstanding Premiums | C34: 774062 | D34: 563638 | E34: 1261789 | F34: 28961 | G34: 817891 | H34: 43828 | I34: 17627 | J34: 17189 | K34: 5666 | L34: 339206
B35: Other Receivables | C35: 2876 | D35: 27746 | E35: 686803 | F35: 0 | G35: 679285 | H35: 0 | I35: 18896 | J35: 442642 | K35: 0 | L35: 768415
B36: Other Assets | C36: 14993 | D36: 53965 | E36: 12978577 | F36: 33659 | G36: 1189560 | H36: 15508 | I36: 0 | J36: 88908 | K36: 46149 | L36: 1873
B37: Intangible Assets | C37: 114548 | D37: 27512 | E37: 792323 | F37: 3841 | G37: 1158 | H37: 0 | I37: 2869 | J37: 106306 | K37: 1378 | L37: 0
B38: Total Assets | C38: 6902754 | D38: 8375798 | E38: 108116247 | F38: 1081237 | G38: 18570863 | H38: 1060239 | I38: 761296 | J38: 2321371 | K38: 20901055 | L38: 2438842
B39: Amounts in thousand Shillings | J39: Continued next page

Sheet APPENDIX 4 II
B2: Continued from previous page
B3: APPENDIX 4: SUMMARY OF LONG TERM INSURANCE BUSINESS BALANCE SHEETS AS AT 31.12.2021
B4: Company | C4: ICEA LION LIFE ASSURANCE COMPANY | D4: JUBILEE INSURANCE COMPANY LIMITED-LIFE | E4: KENINDIA ASSURANCE COMPANY | F4: KENYA ORIENT LIFE ASSURANCE | G4: KENYA REINSURANCE CORPORATION | H4: KUSCCO MUTUAL ASSURANCE LIMITED | I4: LIBERTY LIFE ASSURANCE | J4: MADISON INSURANCE COMPANY | K4: METROPOLITAN CANNON INSURANCE | L4: OLD MUTUAL ASSURANCE COMPANY
B5: Share Capital | C5: 1125000 | D5: 500000 | E5: 400000 | F5: 313000 | G5: 500000 | H5: 400100 | I5: 612340 | J5: 450000 | K5: 416726 | L5: 2174871
B6: Share Premium | C6: 1125000 | D6: 0 | E6: 0 | F6: 0 | G6: 0 | H6: 0 | I6: 0 | J6: 0 | K6: 491067 | L6: 1884957
B7: Revaluation Reserves | C7: 0 | D7: 0 | E7: -453 | F7: 0 | G7: 0 | H7: 0 | I7: 384946 | J7: 0 | K7: 2500 | L7: 0
B8: Statutory Reserves | C8: 11735162 | D8: 2042638 | E8: 1338766 | F8: 215468 | G8: 7601075 | H8: 146524 | I8: 2065695 | J8: -1155698 | K8: 0 | L8: 0
B9: Retained Earnings | C9: 721830 | D9: 6289279 | E9: 42768 | F9: 7103 | G9: 0 | H9: 0 | I9: -304170 | J9: 62000 | K9: -1378860 | L9: -2814315
B10: Other Reserves | C10: 700000 | D10: 0 | E10: 1042199 | F10: 0 | G10: -54229 | H10: 2800 | I10: 0 | J10: 0 | K10: 529787 | L10: 0
B11: Total Equity | C11: 15406992 | D11: 8831917 | E11: 2823280 | F11: 535571 | G11: 8046846 | H11: 549424 | I11: 2758812 | J11: -643698 | K11: 61220 | L11: 1245512
B12: Underwriting Provisions | C12: 192558 | D12: 1298857 | E12: 150904 | F12: 27943 | G12: 441573 | H12: 99752 | I12: 681098 | J12: 163757 | K12: 273832 | L12: 377889
B13: Actuarial Contract Liabilities | C13: 100380445 | D13: 88054876 | E13: 53822172 | F13: 2350424 | G13: 1254757 | H13: 366723 | I13: 20375024 | J13: 16688338 | K13: 1237314 | L13: 10871579
B14: LongTerm Liabilities | C14: 2565470 | D14: 938924 | E14: 0 | F14: 92343 | G14: 0 | H14: 0 | I14: 1050272 | J14: 0 | K14: 208159 | L14: 0
B15: Current Liabilities | C15: 1737151 | D15: 2165873 | E15: 443899 | F15: 22406 | G15: 3132246 | H15: 437747 | I15: 433742 | J15: 361964 | K15: 190459 | L15: 1145219
B16: Total Equity And Liabilities | C16: 120282617 | D16: 101290447 | E16: 57240255 | F16: 3028688 | G16: 12875421 | H16: 1453645 | I16: 25298947 | J16: 16570362 | K16: 1970984 | L16: 13640200
B17: Land And Buildings | C17: 0 | D17: 0 | E17: 967773 | F17: 0 | G17: 0 | H17: 0 | I17: 770787 | J17: 0 | K17: 92500 | L17: 0
B18: Investment Property | C18: 9963000 | D18: 4446000 | E18: 2025707 | F18: 260000 | G18: 1732775 | H18: 0 | I18: 1070476 | J18: 6427900 | K18: 790000 | L18: 2146000
B19: Other Fixed Assets | C19: 75491 | D19: 20972 | E19: 21518 | F19: 8161 | G19: 0 | H19: 33014 | I19: 69747 | J19: 48733 | K19: 9760 | L19: 32409
B20: Government Securities | C20: 92546532 | D20: 78615547 | E20: 52740264 | F20: 2072914 | G20: 4533371 | H20: 327187 | I20: 13299445 | J20: 4753633 | K20: 722535 | L20: 7233636
B21: Other Securities | C21: 0 | D21: 0 | E21: 0 | F21: 38832 | G21: 0 | H21: 0 | I21: 0 | J21: 45 | K21: 0 | L21: 7608
B22: Investment in Related Companies | C22: 1244188 | D22: 2166376 | E22: 0 | F22: 0 | G22: 0 | H22: 0 | I22: 0 | J22: 0 | K22: 0 | L22: 0
B23: Corporate Bonds | C23: 229908 | D23: 0 | E23: 0 | F23: 123309 | G23: 0 | H23: 0 | I23: 0 | J23: 12752 | K23: 0 | L23: 0
B24: Commercial Papers | C24: 0 | D24: 0 | E24: 0 | F24: 77862 | G24: 0 | H24: 0 | I24: 0 | J24: 0 | K24: 0 | L24: 0
B25: Debentures | C25: 0 | D25: 0 | E25: 0 | F25: 0 | G25: 0 | H25: 0 | I25: 0 | J25: 0 | K25: 0 | L25: 0
B26: Ordinary Shares Quoted | C26: 9327182 | D26: 4309890 | E26: 595813 | F26: 0 | G26: 208302 | H26: 0 | I26: 3147527 | J26: 300114 | K26: 13173 | L26: 616311
B27: Ordinary Shares Unquoted | C27: 17472 | D27: 5598928 | E27: 12 | F27: 57929 | G27: 0 | H27: 0 | I27: 149892 | J27: 1931311 | K27: 94 | L27: 312299
B28: Preference Shares Quoted | C28: 1223 | D28: 0 | E28: 0 | F28: 0 | G28: 0 | H28: 0 | I28: 0 | J28: 0 | K28: 0 | L28: 0
B29: Preference Shares Unquoted | C29: 0 | D29: 1074841 | E29: 0 | F29: 0 | G29: 0 | H29: 0 | I29: 0 | J29: 0 | K29: 0 | L29: 0
B30: Loans Secured & Unsecured | C30: 844029 | D30: 1117985 | E30: 78479 | F30: 26703 | G30: 0 | H30: 0 | I30: 1004687 | J30: 79423 | K30: 1955 | L30: 106693
B31: Mortgages | C31: 651482 | D31: 0 | E31: 4239 | F31: 0 | G31: 0 | H31: 0 | I31: 407656 | J31: 107826 | K31: 12675 | L31: 11754
B32: Term Deposits | C32: 3611102 | D32: 838601 | E32: 412767 | F32: 215880 | G32: 6087433 | H32: 76761 | I32: 4326153 | J32: 1179854 | K32: 59878 | L32: 2097054
B33: Cash and Cash Balances | C33: 441257 | D33: 533428 | E33: 31152 | F33: 13287 | G33: 91 | H33: 20883 | I33: 290567 | J33: 152591 | K33: 32062 | L33: 550068
B34: Outstanding Premiums | C34: 9469 | D34: 437957 | E34: 3899 | F34: 73020 | G34: 96997 | H34: 254277 | I34: 243737 | J34: 65135 | K34: 31861 | L34: 55617
B35: Other Receivables | C35: 709868 | D35: 1759985 | E35: 339380 | F35: 0 | G35: 0 | H35: 628484 | I35: 277998 | J35: 859954 | K35: 0 | L35: 142271
B36: Other Assets | C36: 607347 | D36: 358354 | E36: 0 | F36: 59946 | G36: 0 | H36: 78908 | I36: 66104 | J36: 623061 | K36: 202691 | L36: 328480
B37: Intangible Assets | C37: 3069 | D37: 11582 | E37: 19251 | F37: 844 | G37: 216453 | H37: 34132 | I37: 174171 | J37: 28031 | K37: 1801 | L37: 0
B38: Total Assets | C38: 120282617 | D38: 101290447 | E38: 57240255 | F38: 3028688 | G38: 12875421 | H38: 1453645 | I38: 25298947 | J38: 16570362 | K38: 1970984 | L38: 13640200
B39: Amounts in thousand Shillings | K39: Continued next page

Sheet APPENDIX 4 III
B3: Continued from previous page
B4: APPENDIX 4: SUMMARY OF LONG TERM INSURANCE BUSINESS BALANCE SHEETS AS AT 31.12.2021
B5: Company | C5: PIONEER ASSURANCE COMPANY | D5: PRUDENTIAL LIFE ASSURANCE | E5: SANLAM LIFE INSURANCE | F5: THE KENYAN ALLIANCE INSURANCE | G5: THE MONARCH INSURANCE COMPANY | H5: UAP LIFE ASSURANCE COMPANY | I5: TOTAL | K5: Insurers | L5: Reinsurers
B6: Share Capital | C6: 400000 | D6: 418185 | E6: 843138 | F6: 500000 | G6: 154976 | H6: 1585456 | I6: 15992892 | J6: =SUM('APPENDIX 4 I'!C5:L5)+SUM('APPENDIX 4 II'!C5:L5)+SUM('APPENDIX 4 III'!C6:H6) -> 15992892 | K6: =I6-L6 -> 14692792 | L6: ='APPENDIX 4 I'!H5+'APPENDIX 4 I'!K5+'APPENDIX 4 II'!H5 -> 1300100
B7: Share Premium | C7: 0 | D7: 3022751 | E7: 30260 | F7: 0 | G7: 0 | H7: 0 | I7: 6554035 | J7: =SUM('APPENDIX 4 I'!C6:L6)+SUM('APPENDIX 4 II'!C6:L6)+SUM('APPENDIX 4 III'!C7:H7) -> 6554035 | K7: =I7-L7 -> 6554035 | L7: ='APPENDIX 4 I'!H6+'APPENDIX 4 I'!K6+'APPENDIX 4 II'!H6 -> 0
B8: Revaluation Reserves | C8: 0 | D8: 0 | E8: 0 | F8: 0 | G8: 0 | H8: 27534 | I8: 308993 | J8: =SUM('APPENDIX 4 I'!C7:L7)+SUM('APPENDIX 4 II'!C7:L7)+SUM('APPENDIX 4 III'!C8:H8) -> 308993 | K8: 308950 | L8: ='APPENDIX 4 I'!H7+'APPENDIX 4 I'!K7+'APPENDIX 4 II'!H7 -> 43
B9: Statutory Reserves | C9: 177033 | D9: 0 | E9: 1599675 | F9: 6000 | G9: 49785 | H9: 199960 | I9: 27829176 | J9: =SUM('APPENDIX 4 I'!C8:L8)+SUM('APPENDIX 4 II'!C8:L8)+SUM('APPENDIX 4 III'!C9:H9) -> 27829176 | K9: 27429672 | L9: ='APPENDIX 4 I'!H8+'APPENDIX 4 I'!K8+'APPENDIX 4 II'!H8 -> 399504
B10: Retained Earnings | C10: 281679 | D10: -2478590 | E10: 264543 | F10: 0 | G10: -65600 | H10: 2198920 | I10: 3100162 | J10: =SUM('APPENDIX 4 I'!C9:L9)+SUM('APPENDIX 4 II'!C9:L9)+SUM('APPENDIX 4 III'!C10:H10) -> 3100162 | K10: 2976404 | L10: ='APPENDIX 4 I'!H9+'APPENDIX 4 I'!K9+'APPENDIX 4 II'!H9 -> 123758
B11: Other Reserves | C11: 0 | D11: 0 | E11: 0 | F11: -1181462 | G11: 1114 | H11: 0 | I11: 9353151 | J11: =SUM('APPENDIX 4 I'!C10:L10)+SUM('APPENDIX 4 II'!C10:L10)+SUM('APPENDIX 4 III'!C11:H11) -> 9353151 | K11: 9107487 | L11: ='APPENDIX 4 I'!H10+'APPENDIX 4 I'!K10+'APPENDIX 4 II'!H10 -> 245664
B12: Total Equity | C12: 858712 | D12: 962346 | E12: 2737617 | F12: -675462 | G12: 140275 | H12: 4011870 | I12: 63138412 | J12: =SUM('APPENDIX 4 I'!C11:L11)+SUM('APPENDIX 4 II'!C11:L11)+SUM('APPENDIX 4 III'!C12:H12) -> 63138412 | K12: 61069343 | L12: ='APPENDIX 4 I'!H11+'APPENDIX 4 I'!K11+'APPENDIX 4 II'!H11 -> 2069069
B13: Underwriting Provisions | C13: 1105852 | D13: 14200 | E13: 0 | F13: 243783 | G13: 183180 | H13: 523513 | I13: 9201504 | J13: =SUM('APPENDIX 4 I'!C12:L12)+SUM('APPENDIX 4 II'!C12:L12)+SUM('APPENDIX 4 III'!C13:H13) -> 9201504 | K13: 8883193 | L13: ='APPENDIX 4 I'!H12+'APPENDIX 4 I'!K12+'APPENDIX 4 II'!H12 -> 318311
B14: Actuarial Contract Liabilities | C14: 4593018 | D14: 1191717 | E14: 23728503 | F14: 4012740 | G14: 391248 | H14: 10326191 | I14: 482562292 | J14: =SUM('APPENDIX 4 I'!C13:L13)+SUM('APPENDIX 4 II'!C13:L13)+SUM('APPENDIX 4 III'!C14:H14) -> 482562292 | K14: 462244851 | L14: ='APPENDIX 4 I'!H13+'APPENDIX 4 I'!K13+'APPENDIX 4 II'!H13 -> 20317441
B15: LongTerm Liabilities | C15: 107075 | D15: 0 | E15: 685576 | F15: 0 | G15: 0 | H15: 88668 | I15: 10003899 | J15: =SUM('APPENDIX 4 I'!C14:L14)+SUM('APPENDIX 4 II'!C14:L14)+SUM('APPENDIX 4 III'!C15:H15) -> 10003899 | K15: 9886264 | L15: ='APPENDIX 4 I'!H14+'APPENDIX 4 I'!K14+'APPENDIX 4 II'!H14 -> 117635
B16: Current Liabilities | C16: 253243 | D16: 237959 | E16: 1662145 | F16: 552 | G16: 90966 | H16: 753432 | I16: 17504079 | J16: =SUM('APPENDIX 4 I'!C15:L15)+SUM('APPENDIX 4 II'!C15:L15)+SUM('APPENDIX 4 III'!C16:H16) -> 17504079 | K16: 16911593 | L16: ='APPENDIX 4 I'!H15+'APPENDIX 4 I'!K15+'APPENDIX 4 II'!H15 -> 592486
B17: Total Equity And Liabilities | C17: 6917899 | D17: 2406222 | E17: 28813841 | F17: 3581613 | G17: 805670 | H17: 15703675 | I17: 582410188 | J17: =SUM('APPENDIX 4 I'!C16:L16)+SUM('APPENDIX 4 II'!C16:L16)+SUM('APPENDIX 4 III'!C17:H17) -> 582410188 | K17: 558995249 | L17: ='APPENDIX 4 I'!H16+'APPENDIX 4 I'!K16+'APPENDIX 4 II'!H16 -> 23414939
B18: Land And Buildings | C18: 0 | D18: 0 | E18: 0 | F18: 0 | G18: 0 | H18: 0 | I18: 1944568 | J18: =SUM('APPENDIX 4 I'!C17:L17)+SUM('APPENDIX 4 II'!C17:L17)+SUM('APPENDIX 4 III'!C18:H18) -> 1944568 | K18: 1944568 | L18: ='APPENDIX 4 I'!H17+'APPENDIX 4 I'!K17+'APPENDIX 4 II'!H17 -> 0
B19: Investment Property | C19: 1604700 | D19: 0 | E19: 2856000 | F19: 1817800 | G19: 317698 | H19: 790000 | I19: 48329837 | J19: =SUM('APPENDIX 4 I'!C18:L18)+SUM('APPENDIX 4 II'!C18:L18)+SUM('APPENDIX 4 III'!C19:H19) -> 48329837 | K19: 46862865 | L19: ='APPENDIX 4 I'!H18+'APPENDIX 4 I'!K18+'APPENDIX 4 II'!H18 -> 1466972
B20: Other Fixed Assets | C20: 23869 | D20: 39734 | E20: 136366 | F20: 15719 | G20: 14937 | H20: 23247 | I20: 726781 | J20: =SUM('APPENDIX 4 I'!C19:L19)+SUM('APPENDIX 4 II'!C19:L19)+SUM('APPENDIX 4 III'!C20:H20) -> 726781 | K20: 693246 | L20: ='APPENDIX 4 I'!H19+'APPENDIX 4 I'!K19+'APPENDIX 4 II'!H19 -> 33535
B21: Government Securities | C21: 848246 | D21: 1879116 | E21: 23441986 | F21: 391754 | G21: 80814 | H21: 9565420 | I21: 406926249 | J21: =SUM('APPENDIX 4 I'!C20:L20)+SUM('APPENDIX 4 II'!C20:L20)+SUM('APPENDIX 4 III'!C21:H21) -> 406926249 | K21: 386485159 | L21: ='APPENDIX 4 I'!H20+'APPENDIX 4 I'!K20+'APPENDIX 4 II'!H20 -> 20441090
B22: Other Securities | C22: 0 | D22: 0 | E22: 36352 | F22: 0 | G22: 0 | H22: 0 | I22: 854779 | J22: =SUM('APPENDIX 4 I'!C21:L21)+SUM('APPENDIX 4 II'!C21:L21)+SUM('APPENDIX 4 III'!C22:H22) -> 854779 | K22: 854779 | L22: ='APPENDIX 4 I'!H21+'APPENDIX 4 I'!K21+'APPENDIX 4 II'!H21 -> 0
B23: Investment in Related Companies | C23: 0 | D23: 0 | E23: 0 | F23: 0 | G23: 0 | H23: 2592447 | I23: 6819128 | J23: =SUM('APPENDIX 4 I'!C22:L22)+SUM('APPENDIX 4 II'!C22:L22)+SUM('APPENDIX 4 III'!C23:H23) -> 6819128 | K23: 6819128 | L23: ='APPENDIX 4 I'!H22+'APPENDIX 4 I'!K22+'APPENDIX 4 II'!H22 -> 0
B24: Corporate Bonds | C24: 3200 | D24: 0 | E24: 0 | F24: 0 | G24: 0 | H24: 50792 | I24: 798865 | J24: =SUM('APPENDIX 4 I'!C23:L23)+SUM('APPENDIX 4 II'!C23:L23)+SUM('APPENDIX 4 III'!C24:H24) -> 798865 | K24: 798865 | L24: ='APPENDIX 4 I'!H23+'APPENDIX 4 I'!K23+'APPENDIX 4 II'!H23 -> 0
B25: Commercial Papers | C25: 0 | D25: 0 | E25: 0 | F25: 0 | G25: 0 | H25: 0 | I25: 89847 | J25: =SUM('APPENDIX 4 I'!C24:L24)+SUM('APPENDIX 4 II'!C24:L24)+SUM('APPENDIX 4 III'!C25:H25) -> 89847 | K25: 89847 | L25: ='APPENDIX 4 I'!H24+'APPENDIX 4 I'!K24+'APPENDIX 4 II'!H24 -> 0
B26: Debentures | C26: 0 | D26: 0 | E26: 0 | F26: 0 | G26: 0 | H26: 0 | I26: 0 | J26: =SUM('APPENDIX 4 I'!C25:L25)+SUM('APPENDIX 4 II'!C25:L25)+SUM('APPENDIX 4 III'!C26:H26) -> 0 | K26: 0 | L26: ='APPENDIX 4 I'!H25+'APPENDIX 4 I'!K25+'APPENDIX 4 II'!H25 -> 0
B27: Ordinary Shares Quoted | C27: 57987 | D27: 0 | E27: 226639 | F27: 0 | G27: 0 | H27: 245633 | I27: 29182638 | J27: =SUM('APPENDIX 4 I'!C26:L26)+SUM('APPENDIX 4 II'!C26:L26)+SUM('APPENDIX 4 III'!C27:H27) -> 29182638 | K27: 29126363 | L27: ='APPENDIX 4 I'!H26+'APPENDIX 4 I'!K26+'APPENDIX 4 II'!H26 -> 56275
B28: Ordinary Shares Unquoted | C28: 0 | D28: 0 | E28: 0 | F28: 0 | G28: 0 | H28: 16388 | I28: 8134852 | J28: =SUM('APPENDIX 4 I'!C27:L27)+SUM('APPENDIX 4 II'!C27:L27)+SUM('APPENDIX 4 III'!C28:H28) -> 8134852 | K28: 8134852 | L28: ='APPENDIX 4 I'!H27+'APPENDIX 4 I'!K27+'APPENDIX 4 II'!H27 -> 0
B29: Preference Shares Quoted | C29: 0 | D29: 0 | E29: 0 | F29: 0 | G29: 0 | H29: 0 | I29: 1223 | J29: =SUM('APPENDIX 4 I'!C28:L28)+SUM('APPENDIX 4 II'!C28:L28)+SUM('APPENDIX 4 III'!C29:H29) -> 1223 | K29: 1223 | L29: ='APPENDIX 4 I'!H28+'APPENDIX 4 I'!K28+'APPENDIX 4 II'!H28 -> 0
B30: Preference Shares Unquoted | C30: 100000 | D30: 0 | E30: 0 | F30: 0 | G30: 0 | H30: 0 | I30: 1174841 | J30: =SUM('APPENDIX 4 I'!C29:L29)+SUM('APPENDIX 4 II'!C29:L29)+SUM('APPENDIX 4 III'!C30:H30) -> 1174841 | K30: 1174841 | L30: ='APPENDIX 4 I'!H29+'APPENDIX 4 I'!K29+'APPENDIX 4 II'!H29 -> 0
B31: Loans Secured & Unsecured | C31: 207929 | D31: 39381 | E31: 154976 | F31: 387 | G31: 2952 | H31: 33820 | I31: 6968731 | J31: =SUM('APPENDIX 4 I'!C30:L30)+SUM('APPENDIX 4 II'!C30:L30)+SUM('APPENDIX 4 III'!C31:H31) -> 6968731 | K31: 6967197 | L31: ='APPENDIX 4 I'!H30+'APPENDIX 4 I'!K30+'APPENDIX 4 II'!H30 -> 1534
B32: Mortgages | C32: 0 | D32: 0 | E32: 77989 | F32: 0 | G32: 0 | H32: 19963 | I32: 2462039 | J32: =SUM('APPENDIX 4 I'!C31:L31)+SUM('APPENDIX 4 II'!C31:L31)+SUM('APPENDIX 4 III'!C32:H32) -> 2462039 | K32: 2462039 | L32: ='APPENDIX 4 I'!H31+'APPENDIX 4 I'!K31+'APPENDIX 4 II'!H31 -> 0
B33: Term Deposits | C33: 528710 | D33: 243504 | E33: 644745 | F33: 222109 | G33: 149617 | H33: 1601630 | I33: 26776053 | J33: =SUM('APPENDIX 4 I'!C32:L32)+SUM('APPENDIX 4 II'!C32:L32)+SUM('APPENDIX 4 III'!C33:H33) -> 26776053 | K33: 26499568 | L33: ='APPENDIX 4 I'!H32+'APPENDIX 4 I'!K32+'APPENDIX 4 II'!H32 -> 276485
B34: Cash and Cash Balances | C34: 255519 | D34: 44838 | E34: 488457 | F34: 18836 | G34: 4741 | H34: 284045 | I34: 4418051 | J34: =SUM('APPENDIX 4 I'!C33:L33)+SUM('APPENDIX 4 II'!C33:L33)+SUM('APPENDIX 4 III'!C34:H34) -> 4418051 | K34: 4387330 | L34: ='APPENDIX 4 I'!H33+'APPENDIX 4 I'!K33+'APPENDIX 4 II'!H33 -> 30721
B35: Outstanding Premiums | C35: 2985724 | D35: 29794 | E35: 407260 | F35: 61299 | G35: 195238 | H35: 405440 | I35: 9226581 | J35: =SUM('APPENDIX 4 I'!C34:L34)+SUM('APPENDIX 4 II'!C34:L34)+SUM('APPENDIX 4 III'!C35:H35) -> 9226581 | K35: 8922810 | L35: ='APPENDIX 4 I'!H34+'APPENDIX 4 I'!K34+'APPENDIX 4 II'!H34 -> 303771
B36: Other Receivables | C36: 28903 | D36: 1107 | E36: 4403 | F36: 418397 | G36: 0 | H36: 15634 | I36: 7813047 | J36: =SUM('APPENDIX 4 I'!C35:L35)+SUM('APPENDIX 4 II'!C35:L35)+SUM('APPENDIX 4 III'!C36:H36) -> 7813047 | K36: 7184563 | L36: ='APPENDIX 4 I'!H35+'APPENDIX 4 I'!K35+'APPENDIX 4 II'!H35 -> 628484
B37: Other Assets | C37: 132672 | D37: 98078 | E37: 226663 | F37: 635312 | G37: 39129 | H37: 59216 | I37: 17939153 | J37: =SUM('APPENDIX 4 I'!C36:L36)+SUM('APPENDIX 4 II'!C36:L36)+SUM('APPENDIX 4 III'!C37:H37) -> 17939153 | K37: 17798588 | L37: ='APPENDIX 4 I'!H36+'APPENDIX 4 I'!K36+'APPENDIX 4 II'!H36 -> 140565
B38: Intangible Assets | C38: 140440 | D38: 30670 | E38: 112004 | F38: 0 | G38: 543 | H38: 0 | I38: 1822926 | J38: =SUM('APPENDIX 4 I'!C37:L37)+SUM('APPENDIX 4 II'!C37:L37)+SUM('APPENDIX 4 III'!C38:H38) -> 1822926 | K38: 1787416 | L38: ='APPENDIX 4 I'!H37+'APPENDIX 4 I'!K37+'APPENDIX 4 II'!H37 -> 35510
B39: Total Assets | C39: 6917899 | D39: 2406222 | E39: 28813841 | F39: 3581613 | G39: 805670 | H39: 15703675 | I39: 582410188 | J39: =SUM('APPENDIX 4 I'!C38:L38)+SUM('APPENDIX 4 II'!C38:L38)+SUM('APPENDIX 4 III'!C39:H39) -> 582410188 | K39: 558995249 | L39: ='APPENDIX 4 I'!H38+'APPENDIX 4 I'!K38+'APPENDIX 4 II'!H38 -> 23414939
B40: Amounts in Thousand Shillings

Sheet APPENDIX 5 I
B2: APPENDIX 5: SUMMARY OF GENERAL INSURANCE BUSINESS BALANCE SHEETS AS AT 31.12.2021
B3: Company | C3: AAR INSURANCE KENYA | D3: AFRICAN MERCHANT ASSURANCE | E3: AIG INSURANCE COMPANY | F3: ALLIANZ INSURANCE COMPANY | G3: APA INSURANCE COMPANY | H3: BRITAM GENERAL INSURANCE COMPANY | I3: CIC GENERAL INSURANCE COMPANY | J3: CONTINENTAL REINSURANCE | K3: CORPORATE INSURANCE COMPANY | L3: DIRECTLINE ASSURANCE COMPANY
B4: Share Capital | C4: 700000 | D4: 987386 | E4: 600000 | F4: 1340290 | G4: 1250000 | H4: 2668000 | I4: 1700000 | J4: 1000000 | K4: 400000 | L4: 300000
B5: Share Premium | C5: 460523 | D5: 0 | E5: 0 | F5: 0 | G5: 0 | H5: 0 | I5: 0 | J5: 0 | K5: 0 | L5: 0
B6: Revaluation Reserves | C6: 0 | D6: 31304 | E6: -9563 | F6: 0 | G6: 0 | H6: 0 | I6: 0 | J6: 817 | K6: 0 | L6: -141132
B7: Statutory Reserves | C7: 0 | D7: 0 | E7: 0 | F7: 0 | G7: 0 | H7: 0 | I7: 0 | J7: 0 | K7: 0 | L7: 0
B8: Retained Earnings | C8: 300497 | D8: -85055 | E8: 1428014 | F8: -701575 | G8: 3100133 | H8: 435510 | I8: 2151785 | J8: 1108886 | K8: 249138 | L8: 149465
B9: Other Reserves | C9: 0 | D9: 0 | E9: 270000 | F9: 0 | G9: 222215 | H9: 0 | I9: -171829 | J9: 0 | K9: 0 | L9: 0
B10: Total Equity | C10: 1461020 | D10: 933635 | E10: 2288451 | F10: 638715 | G10: 4572348 | H10: 3103510 | I10: 3679956 | J10: 2109703 | K10: 649138 | L10: 308333
B11: Underwriting Provisions | C11: 2334089 | D11: 1986369 | E11: 659144 | F11: 455215 | G11: 7487879 | H11: 7732659 | I11: 7634544 | J11: 2681991 | K11: 914429 | L11: 5307417
B12: Actuarial Contract Liabilities | C12: 0 | D12: 0 | E12: 0 | F12: 0 | G12: 0 | H12: 0 | I12: 0 | J12: 0 | K12: 0 | L12: 0
B13: LongTerm Liabilities | C13: 0 | D13: 0 | E13: 0 | F13: 0 | G13: 0 | H13: 0 | I13: 0 | J13: 0 | K13: 0 | L13: 303500
B14: Current Liabilities | C14: 827917 | D14: 469163 | E14: 1065264 | F14: 661977 | G14: 684669 | H14: 2002946 | I14: 909777 | J14: 456814 | K14: 83101 | L14: 320611
B15: Total Equity And Liabilities | C15: 4623026 | D15: 3389167 | E15: 4012859 | F15: 1755907 | G15: 12744896 | H15: 12839114 | I15: 12224277 | J15: 5248508 | K15: 1646668 | L15: 6239861
B16: Land And Buildings | C16: 0 | D16: 715304 | E16: 0 | F16: 0 | G16: 0 | H16: 0 | I16: 234000 | J16: 0 | K16: 0 | L16: 0
B17: Investment Property | C17: 0 | D17: 551000 | E17: 0 | F17: 0 | G17: 1040000 | H17: 0 | I17: 1602000 | J17: 0 | K17: 698736 | L17: 2007500
B18: Other Fixed Assets | C18: 44264 | D18: 82828 | E18: 125845 | F18: 37679 | G18: 54634 | H18: 62488 | I18: 72965 | J18: 6419 | K18: 4861 | L18: 28555
B19: Government Securities | C19: 2093672 | D19: 468842 | E19: 2838844 | F19: 967082 | G19: 6977035 | H19: 9457178 | I19: 3972032 | J19: 2024990 | K19: 106596 | L19: 1073488
B20: Other Securities | C20: 0 | D20: 0 | E20: 0 | F20: 0 | G20: 36908 | H20: 0 | I20: 697601 | J20: 0 | K20: 0 | L20: 0
B21: Investment in Related Companies | C21: 0 | D21: 0 | E21: 0 | F21: 0 | G21: 242442 | H21: 0 | I21: 0 | J21: 0 | K21: 0 | L21: 502500
B22: Corporate Bonds | C22: 0 | D22: 0 | E22: 0 | F22: 0 | G22: 26062 | H22: 0 | I22: 0 | J22: 0 | K22: 0 | L22: 0
B23: Commercial Papers | C23: 0 | D23: 0 | E23: 0 | F23: 0 | G23: 0 | H23: 0 | I23: 0 | J23: 0 | K23: 0 | L23: 0
B24: Debentures | C24: 0 | D24: 0 | E24: 0 | F24: 0 | G24: 0 | H24: 0 | I24: 0 | J24: 0 | K24: 0 | L24: 0
B25: Ordinary Shares Quoted | C25: 0 | D25: 1646 | E25: 0 | F25: 0 | G25: 1184112 | H25: 0 | I25: 373274 | J25: 0 | K25: 0 | L25: 88437
B26: Ordinary Shares Unquoted | C26: 0 | D26: 0 | E26: 0 | F26: 0 | G26: 14316 | H26: 0 | I26: 15763 | J26: 0 | K26: 887 | L26: 0
B27: Preference Shares Quoted | C27: 0 | D27: 0 | E27: 0 | F27: 0 | G27: 0 | H27: 0 | I27: 0 | J27: 0 | K27: 0 | L27: 0
B28: Preference Shares Unquoted | C28: 0 | D28: 0 | E28: 0 | F28: 0 | G28: 0 | H28: 0 | I28: 0 | J28: 0 | K28: 0 | L28: 0
B29: Loans Secured & Unsecured | C29: 0 | D29: 5342 | E29: 10755 | F29: 0 | G29: 27754 | H29: 0 | I29: 0 | J29: 323 | K29: 0 | L29: 739529
B30: Mortgages | C30: 0 | D30: 0 | E30: 0 | F30: 0 | G30: 68923 | H30: 0 | I30: 29814 | J30: 1566 | K30: 0 | L30: 0
B31: Term Deposits | C31: 1676849 | D31: 79000 | E31: 50568 | F31: 332344 | G31: 1566182 | H31: 1145389 | I31: 2046259 | J31: 484752 | K31: 183898 | L31: 875231
B32: Cash and Cash Balances | C32: 92508 | D32: 30523 | E32: 190026 | F32: 116817 | G32: 103857 | H32: 316480 | I32: 96701 | J32: 2528 | K32: 12257 | L32: 50011
B33: Outstanding Premiums | C33: 365571 | D33: 949866 | E33: 507096 | F33: 57610 | G33: 518171 | H33: 676211 | I33: 1845213 | J33: 1105913 | K33: 526123 | L33: 184414
B34: Other Receivables | C34: 158741 | D34: 12007 | E34: 0 | F34: 97016 | G34: 62387 | H34: 11847 | I34: 122549 | J34: 0 | K34: 15849 | L34: 0
B35: Other Assets | C35: 44770 | D35: 451809 | E35: 263546 | F35: 24564 | G35: 507248 | H35: 811552 | I35: 507617 | J35: 1622017 | K35: 60610 | L35: 624206
B36: Intangible Assets | C36: 146650 | D36: 41000 | E36: 26179 | F36: 122797 | G36: 314864 | H36: 357969 | I36: 608489 | J36: 0 | K36: 36852 | L36: 65990
B37: Total Assets | C37: 4623026 | D37: 3389167 | E37: 4012859 | F37: 1755907 | G37: 12744896 | H37: 12839114 | I37: 12224277 | J37: 5248508 | K37: 1646668 | L37: 6239861
B38: Amounts in thousand Shillings | J38: Continued next page

Sheet APPENDIX 5 II
B3: Continued from previous page
B4: APPENDIX 5: SUMMARY OF GENERAL INSURANCE BUSINESS BALANCE SHEETS AS AT 31.12.2021
B5: Company | C5: EAST AFRICA REINSURANCE COMPANY | D5: FIDELITY SHIELD INSURANCE COMPANY | E5: FIRST ASSURANCE COMPANY | F5: GA GENERAL INSURANCE COMPANY | G5: GEMINIA INSURANCE COMPANY LIMITED | H5: GHANA REINSURANCE COMPANY LIMITED | I5: HERITAGE INSURANCE COMPANY | J5: ICEA LION GENERAL INSURANCE COMPANY | K5: INTRA-AFRICA ASSURANCE COMPANY | L5: INVESCO ASSURANCE COMPANY | M5: JUBILEE GENERAL INSURANCE
B6: Share Capital | C6: 1000000 | D6: 600000 | E6: 810000 | F6: 1000000 | G6: 1006250 | H6: 1000000 | I6: 1000000 | J6: 1000000 | K6: 600000 | L6: 1925000 | M6: 2307000
B7: Share Premium | C7: 0 | D7: 0 | E7: 512139 | F7: 0 | G7: 0 | H7: 10871 | I7: 0 | J7: 0 | K7: 0 | L7: 0 | M7: 0
B8: Revaluation Reserves | C8: 225106 | D8: 104164 | E8: 260218 | F8: 892766 | G8: 0 | H8: 0 | I8: 0 | J8: -32463 | K8: 360230 | L8: -379 | M8: 0
B9: Statutory Reserves | C9: 0 | D9: 0 | E9: 0 | F9: 0 | G9: 0 | H9: 0 | I9: 0 | J9: 0 | K9: 0 | L9: 0 | M9: 0
B10: Retained Earnings | C10: 3344175 | D10: 395739 | E10: 131439 | F10: 4130699 | G10: 956569 | H10: 401538 | I10: 3165219 | J10: 4977487 | K10: 119296 | L10: -6366527 | M10: -788750
B11: Other Reserves | C11: 0 | D11: 50000 | E11: 0 | F11: 413141 | G11: 86540 | H11: 0 | I11: 0 | J11: 200000 | K11: 15000 | L11: 50000 | M11: 0
B12: Total Equity | C12: 4569281 | D12: 1149903 | E12: 1713795 | F12: 6436606 | G12: 2049360 | H12: 1412409 | I12: 4165219 | J12: 6145024 | K12: 1094526 | L12: -4391905 | M12: 1518250
B13: Underwriting Provisions | C13: 2627065 | D13: 1948649 | E13: 2245016 | F13: 5909688 | G13: 3632326 | H13: 877916 | I13: 3797142 | J13: 4198392 | K13: 1169298 | L13: 6724580 | M13: 3767097
B14: Actuarial Contract Liabilities | C14: 0 | D14: 0 | E14: 0 | F14: 0 | G14: 0 | H14: 0 | I14: 0 | J14: 0 | K14: 0 | L14: 0 | M14: 0
B15: LongTerm Liabilities | C15: 74091 | D15: 0 | E15: 0 | F15: 0 | G15: 4529 | H15: 0 | I15: 0 | J15: 292608 | K15: 0 | L15: 0 | M15: 0
B16: Current Liabilities | C16: 1024311 | D16: 157368 | E16: 1126690 | F16: 3238964 | G16: 1192839 | H16: 129619 | I16: 920321 | J16: 1349019 | K16: 115903 | L16: 476297 | M16: 505646
B17: Total Equity And Liabilities | C17: 8294748 | D17: 3255920 | E17: 5085501 | F17: 15585258 | G17: 6879054 | H17: 2419945 | I17: 8882683 | J17: 11985043 | K17: 2379727 | L17: 2808972 | M17: 5790994
B18: Land And Buildings | C18: 410332 | D18: 214970 | E18: 439550 | F18: 1169999 | G18: 385095 | H18: 30024 | I18: 0 | J18: 0 | K18: 0 | L18: 120218 | M18: 0
B19: Investment Property | C19: 730000 | D19: 964030 | E19: 1080000 | F19: 1585000 | G19: 1035000 | H19: 0 | I19: 0 | J19: 2710000 | K19: 476500 | L19: 1307965 | M19: 0
B20: Other Fixed Assets | C20: 4326 | D20: 5167 | E20: 22777 | F20: 38698 | G20: 205075 | H20: 10509 | I20: 102032 | J20: 64749 | K20: 74709 | L20: 13253 | M20: 21489
B21: Government Securities | C21: 3634856 | D21: 1166953 | E21: 775096 | F21: 5981319 | G21: 1056274 | H21: 1181213 | I21: 5562632 | J21: 5971512 | K21: 418156 | L21: 172000 | M21: 2060326
B22: Other Securities | C22: 0 | D22: 0 | E22: 0 | F22: 0 | G22: 0 | H22: 0 | I22: 0 | J22: 111163 | K22: 0 | L22: 0 | M22: 0
B23: Investment in Related Companies | C23: 0 | D23: 0 | E23: 0 | F23: 918597 | G23: 86571 | H23: 0 | I23: 146557 | J23: 50147 | K23: 0 | L23: 0 | M23: 0
B24: Corporate Bonds | C24: 29532 | D24: 4493 | E24: 0 | F24: 0 | G24: 0 | H24: 0 | I24: 0 | J24: 58973 | K24: 0 | L24: 0 | M24: 0
B25: Commercial Papers | C25: 0 | D25: 0 | E25: 0 | F25: 0 | G25: 0 | H25: 0 | I25: 0 | J25: 0 | K25: 0 | L25: 0 | M25: 0
B26: Debentures | C26: 0 | D26: 0 | E26: 0 | F26: 0 | G26: 0 | H26: 0 | I26: 0 | J26: 0 | K26: 0 | L26: 0 | M26: 0
B27: Ordinary Shares Quoted | C27: 25484 | D27: 47340 | E27: 0 | F27: 397657 | G27: 152422 | H27: 0 | I27: 1002 | J27: 1006364 | K27: 54532 | L27: 1069 | M27: 0
B28: Ordinary Shares Unquoted | C28: 102470 | D28: 0 | E28: 0 | F28: 401966 | G28: 7681 | H28: 0 | I28: 0 | J28: 6160 | K28: 0 | L28: 625 | M28: 0
B29: Preference Shares Quoted | C29: 0 | D29: 0 | E29: 0 | F29: 0 | G29: 0 | H29: 0 | I29: 0 | J29: 0 | K29: 0 | L29: 0 | M29: 0
B30: Preference Shares Unquoted | C30: 0 | D30: 0 | E30: 0 | F30: 0 | G30: 0 | H30: 0 | I30: 0 | J30: 0 | K30: 0 | L30: 0 | M30: 0
B31: Loans Secured & Unsecured | C31: 10566 | D31: 0 | E31: 3615 | F31: 240443 | G31: 101178 | H31: 0 | I31: 54939 | J31: 24346 | K31: 65777 | L31: 0 | M31: 0
B32: Mortgages | C32: 36822 | D32: 7585 | E32: 0 | F32: 0 | G32: 0 | H32: 0 | I32: 180743 | J32: 0 | K32: 0 | L32: 0 | M32: 0
B33: Term Deposits | C33: 1323678 | D33: 211725 | E33: 1578031 | F33: 678493 | G33: 1306502 | H33: 251146 | I33: 1527486 | J33: 619854 | K33: 362780 | L33: 33885 | M33: 601301
B34: Cash and Cash Balances | C34: 359129 | D34: 244426 | E34: -17538 | F34: 72994 | G34: 239813 | H34: 46488 | I34: 157756 | J34: 22938 | K34: 89031 | L34: 52262 | M34: 468830
B35: Outstanding Premiums | C35: 421042 | D35: 107982 | E35: 872177 | F35: 3231569 | G35: 1659952 | H35: 677341 | I35: 521548 | J35: 656061 | K35: 658622 | L35: 193784 | M35: 1125947
B36: Other Receivables | C36: 740826 | D36: 0 | E36: 0 | F36: 12868 | G36: 0 | H36: 19906 | I36: 3616 | J36: 68294 | K36: 28631 | L36: 896819 | M36: 27603
B37: Other Assets | C37: 25025 | D37: 213241 | E37: 202251 | F37: 172744 | G37: 304514 | H37: 61324 | I37: 516610 | J37: 346027 | K37: 94299 | L37: 0 | M37: 1252963
B38: Intangible Assets | C38: 440658 | D38: 68007 | E38: 129542 | F38: 682910 | G38: 338977 | H38: 141993 | I38: 107763 | J38: 268454 | K38: 56690 | L38: 17092 | M38: 232535
B39: Total Assets | C39: 8294748 | D39: 3255920 | E39: 5085501 | F39: 15585258 | G39: 6879054 | H39: 2419945 | I39: 8882683 | J39: 11985043 | K39: 2379727 | L39: 2808972 | M39: 5790994
B40: Amounts in thousand Shillings | K40: Continued next page

Sheet APPENDIX 5 III
B3: Continued from previous page
B4: APPENDIX 5: SUMMARY OF GENERAL INSURANCE BUSINESS BALANCE SHEETS AS AT 31.12.2021
B5: Company | C5: JUBILEE HEALTH INSURANCE | D5: KENINDIA ASSURANCE COMPANY | E5: KENYA ORIENT INSURANCE COMPANY | F5: KENYA REINSURANCE CORPORATION | G5: MADISON GENERAL INSURANCE COMPANY | H5: MAYFAIR INSURANCE COMPANY | I5: METROPOLITAN CANNON INSURANCE | J5: MUA INSURANCE COMPANY | K5: OCCIDENTAL INSURANCE COMPANY | L5: PACIS INSURANCE COMPANY | M5: PIONEER GENERAL INSURANCE
B6: Share Capital | C6: 2763720 | D6: 600000 | E6: 810721 | F6: 6499491 | G6: 605000 | H6: 1500000 | I6: 453960 | J6: 300000 | K6: 693000 | L6: 710051 | M6: 700000
B7: Share Premium | C7: 0 | D7: 1198 | E7: 0 | F7: 0 | G7: 0 | H7: 0 | I7: 583040 | J7: 0 | K7: 0 | L7: 5712 | M7: 0
B8: Revaluation Reserves | C8: 0 | D8: 539843 | E8: -1292 | F8: 28992 | G8: 0 | H8: 145444 | I8: 0 | J8: 19796 | K8: 14301 | L8: 0 | M8: 0
B9: Statutory Reserves | C9: 0 | D9: 0 | E9: 0 | F9: 0 | G9: 0 | H9: 0 | I9: 0 | J9: 0 | K9: 0 | L9: 0 | M9: 0
B10: Retained Earnings | C10: 1360840 | D10: 2185050 | E10: -1376937 | F10: 21788123 | G10: 615010 | H10: 1833562 | I10: -70060 | J10: 131245 | K10: 643327 | L10: 99476 | M10: -20053
B11: Other Reserves | C11: -129825 | D11: 475635 | E11: 1534217 | F11: 306150 | G11: 0 | H11: 0 | I11: 0 | J11: 0 | K11: 0 | L11: -524 | M11: 0
B12: Total Equity | C12: 3994735 | D12: 3801727 | E12: 966710 | F12: 28622756 | G12: 1220010 | H12: 3479006 | I12: 966940 | J12: 451041 | K12: 1350628 | L12: 814714 | M12: 679947
B13: Underwriting Provisions | C13: 4062237 | D13: 4086023 | E13: 1871518 | F13: 12056795 | G13: 3553594 | H13: 3165185 | I13: 1048641 | J13: 1878757 | K13: 2187153 | L13: 1398151 | M13: 1049656
B14: Actuarial Contract Liabilities | C14: 0 | D14: 0 | E14: 0 | F14: 0 | G14: 0 | H14: 0 | I14: 0 | J14: 0 | K14: 0 | L14: 0 | M14: 0
B15: LongTerm Liabilities | C15: 0 | D15: 4357 | E15: 0 | F15: 0 | G15: 0 | H15: 0 | I15: 0 | J15: 1142262 | K15: 0 | L15: 0 | M15: 0
B16: Current Liabilities | C16: 427055 | D16: 1428359 | E16: 767480 | F16: -173990 | G16: 319426 | H16: 993930 | I16: 618379 | J16: 682631 | K16: 572623 | L16: 421006 | M16: 148993
B17: Total Equity And Liabilities | C17: 8484027 | D17: 9320465 | E17: 3605708 | F17: 40505561 | G17: 5093030 | H17: 7638121 | I17: 2633959 | J17: 4154691 | K17: 4110404 | L17: 2633872 | M17: 1878597
B18: Land And Buildings | C18: 0 | D18: 792493 | E18: 108000 | F18: 0 | G18: 0 | H18: 265885 | I18: 92500 | J18: 0 | K18: 0 | L18: 54106 | M18: 0
B19: Investment Property | C19: 0 | D19: 1277746 | E19: 1024500 | F19: 10517225 | G19: 663100 | H19: 426088 | I19: 120000 | J19: 0 | K19: 410000 | L19: 774348 | M19: 385806
B20: Other Fixed Assets | C20: 20503 | D20: 65230 | E20: 12840 | F20: 41489 | G20: 25213 | H20: 87142 | I20: 19041 | J20: 43297 | K20: 56445 | L20: 28523 | M20: 8937
B21: Government Securities | C21: 2875840 | D21: 3703169 | E21: 152196 | F21: 13710278 | G21: 1449462 | H21: 2969675 | I21: 1333207 | J21: 1210837 | K21: 1979355 | L21: 207184 | M21: 445262
B22: Other Securities | C22: 0 | D22: 0 | E22: 0 | F22: 0 | G22: 2 | H22: 0 | I22: 0 | J22: 0 | K22: 0 | L22: 0 | M22: 0
B23: Investment in Related Companies | C23: 1543993 | D23: 105612 | E23: 184000 | F23: 9401282 | G23: 0 | H23: 1293004 | I23: 6906 | J23: 143807 | K23: 0 | L23: 0 | M23: 0
B24: Corporate Bonds | C24: 0 | D24: 0 | E24: 0 | F24: 45329 | G24: 0 | H24: 29556 | I24: 0 | J24: 0 | K24: 25117 | L24: 0 | M24: 0
B25: Commercial Papers | C25: 0 | D25: 0 | E25: 0 | F25: 0 | G25: 0 | H25: 0 | I25: 0 | J25: 0 | K25: 0 | L25: 0 | M25: 0
B26: Debentures | C26: 0 | D26: 0 | E26: 0 | F26: 0 | G26: 0 | H26: 0 | I26: 0 | J26: 0 | K26: 0 | L26: 0 | M26: 0
B27: Ordinary Shares Quoted | C27: 221613 | D27: 33952 | E27: 11751 | F27: 994088 | G27: 16428 | H27: 139292 | I27: 0 | J27: 92606 | K27: 325730 | L27: 27753 | M27: 0
B28: Ordinary Shares Unquoted | C28: 728409 | D28: 787140 | E28: 498656 | F28: 194248 | G28: 521552 | H28: 234553 | I28: 2341 | J28: 0 | K28: 0 | L28: 0 | M28: 0
B29: Preference Shares Quoted | C29: 402 | D29: 0 | E29: 0 | F29: 73 | G29: 0 | H29: 0 | I29: 0 | J29: 0 | K29: 0 | L29: 0 | M29: 0
B30: Preference Shares Unquoted | C30: 0 | D30: 0 | E30: 0 | F30: 0 | G30: 0 | H30: 0 | I30: 0 | J30: 0 | K30: 0 | L30: 0 | M30: 0
B31: Loans Secured & Unsecured | C31: 0 | D31: 19251 | E31: 0 | F31: 0 | G31: 0 | H31: 17164 | I31: 0 | J31: 153253 | K31: 0 | L31: 0 | M31: 5855
B32: Mortgages | C32: 32317 | D32: 0 | E32: 0 | F32: 780537 | G32: 0 | H32: 0 | I32: 17089 | J32: 0 | K32: 0 | L32: 0 | M32: 0
B33: Term Deposits | C33: 600237 | D33: 355577 | E33: 46861 | F33: 1590204 | G33: 351728 | H33: 910962 | I33: 421565 | J33: 271163 | K33: 81102 | L33: 87519 | M33: 252494
B34: Cash and Cash Balances | C34: 377416 | D34: 75695 | E34: 16972 | F34: 144311 | G34: 478084 | H34: 264097 | I34: 35126 | J34: 490824 | K34: 50877 | L34: 36573 | M34: 149417
B35: Outstanding Premiums | C35: 968822 | D35: 477280 | E35: 786864 | F35: 1253420 | G35: 546416 | H35: 850865 | I35: 370300 | J35: 797510 | K35: 630392 | L35: 813718 | M35: 369706
B36: Other Receivables | C36: 225074 | D36: 0 | E36: 67444 | F36: 525962 | G36: 603342 | H36: 0 | I36: 15407 | J36: 26717 | K36: 44775 | L36: 279541 | M36: 93459
B37: Other Assets | C37: 406168 | D37: 1522348 | E37: 584100 | F37: 546607 | G37: 204702 | H37: 134700 | I37: 112932 | J37: 297164 | K37: 355195 | L37: 265945 | M37: 86661
B38: Intangible Assets | C38: 483233 | D38: 104972 | E38: 111526 | F38: 760508 | G38: 233002 | H38: 15138 | I38: 87544 | J38: 627513 | K38: 151416 | L38: 58661 | M38: 80999
B39: Total Assets | C39: 8484027 | D39: 9320465 | E39: 3605708 | F39: 40505561 | G39: 5093030 | H39: 7638121 | I39: 2633959 | J39: 4154691 | K39: 4110404 | L39: 2633872 | M39: 1878597
B40: Amounts in thousand Shillings | K40: Continued next page

Sheet APPENDIX5 IV
B3: Continued from previous page
B4: APPENDIX 5: SUMMARY OF GENERAL INSURANCE BUSINESS BALANCE SHEETS AS AT 31.12.2021
B5: Company | C5: RESOLUTION INSURANCE COMPANY | D5: SANLAM INSURANCE COMPANY | E5: TAKAFUL INSURANCE OF AFRICA | F5: TAUSI ASSURANCE COMPANY | G5: THE KENYAN ALLIANCE INSURANCE COMPANY | H5: THE MONARCH INSURANCE COMPANY | I5: TRIDENT INSURANCE COMPANY | J5: UAP INSURANCE COMPANY | K5: WAICA REINSURANCE KENYA LIMITED | L5: XPLICO INSURANCE COMPANY | M5: TOTAL | O5: Insurers | P5: Reinsurers
B6: Share Capital | C6: 0 | D6: 1028998 | E6: 566304 | F6: 600000 | G6: 600000 | H6: 497024 | I6: 500000 | J6: 1000000 | K6: 1102550 | L6: 887500 | M6: 45612245 | N6: =SUM('APPENDIX 5 I'!C4:L4)+SUM('APPENDIX 5 II'!C6:M6)+SUM('APPENDIX 5 III'!C6:M6)+SUM('APPENDIX5 IV'!C6:L6) -> 45612245 | O6: =M6-P6 -> 35010204 | P6: ='APPENDIX 5 I'!J4+'APPENDIX 5 II'!C6+'APPENDIX 5 II'!H6+'APPENDIX 5 III'!F6+'APPENDIX5 IV'!K6 -> 10602041
B7: Share Premium | C7: 0 | D7: 100361 | E7: 146101 | F7: 0 | G7: 0 | H7: 0 | I7: 0 | J7: 0 | K7: 0 | L7: 0 | M7: 1819945 | N7: =SUM('APPENDIX 5 I'!C5:L5)+SUM('APPENDIX 5 II'!C7:M7)+SUM('APPENDIX 5 III'!C7:M7)+SUM('APPENDIX5 IV'!C7:L7) -> 1819945 | O7: =M7-P7 -> 1809074 | P7: ='APPENDIX 5 I'!J5+'APPENDIX 5 II'!C7+'APPENDIX 5 II'!H7+'APPENDIX 5 III'!F7+'APPENDIX5 IV'!K7 -> 10871
B8: Revaluation Reserves | C8: 0 | D8: 0 | E8: 25539 | F8: 178794 | G8: 0 | H8: 0 | I8: 180041 | J8: 0 | K8: 0 | L8: 0 | M8: 2822526 | N8: =SUM('APPENDIX 5 I'!C6:L6)+SUM('APPENDIX 5 II'!C8:M8)+SUM('APPENDIX 5 III'!C8:M8)+SUM('APPENDIX5 IV'!C8:L8) -> 2822526 | O8: 2567611 | P8: ='APPENDIX 5 I'!J6+'APPENDIX 5 II'!C8+'APPENDIX 5 II'!H8+'APPENDIX 5 III'!F8+'APPENDIX5 IV'!K8 -> 254915
B9: Statutory Reserves | C9: 0 | D9: 0 | E9: 0 | F9: 0 | G9: 32282 | H9: 0 | I9: 0 | J9: 0 | K9: 0 | L9: 0 | M9: 32282 | N9: =SUM('APPENDIX 5 I'!C7:L7)+SUM('APPENDIX 5 II'!C9:M9)+SUM('APPENDIX 5 III'!C9:M9)+SUM('APPENDIX5 IV'!C9:L9) -> 32282 | O9: 32282 | P9: ='APPENDIX 5 I'!J7+'APPENDIX 5 II'!C9+'APPENDIX 5 II'!H9+'APPENDIX 5 III'!F9+'APPENDIX5 IV'!K9 -> 0
B10: Retained Earnings | C10: 0 | D10: -998095 | E10: -267184 | F10: 1183153 | G10: 216808 | H10: -1606753 | I10: 1188284 | J10: 4224680 | K10: 235389 | L10: 12717 | M10: 49982264 | N10: =SUM('APPENDIX 5 I'!C8:L8)+SUM('APPENDIX 5 II'!C10:M10)+SUM('APPENDIX 5 III'!C10:M10)+SUM('APPENDIX5 IV'!C10:L10) -> 49982264 | O10: 23104153 | P10: ='APPENDIX 5 I'!J8+'APPENDIX 5 II'!C10+'APPENDIX 5 II'!H10+'APPENDIX 5 III'!F10+'APPENDIX5 IV'!K10 -> 26878111
B11: Other Reserves | C11: 0 | D11: 0 | E11: 0 | F11: 202273 | G11: -11564 | H11: 0 | I11: 25000 | J11: 750000 | K11: 0 | L11: 220000 | M11: 4506429 | N11: =SUM('APPENDIX 5 I'!C9:L9)+SUM('APPENDIX 5 II'!C11:M11)+SUM('APPENDIX 5 III'!C11:M11)+SUM('APPENDIX5 IV'!C11:L11) -> 4506429 | O11: 4200279 | P11: ='APPENDIX 5 I'!J9+'APPENDIX 5 II'!C11+'APPENDIX 5 II'!H11+'APPENDIX 5 III'!F11+'APPENDIX5 IV'!K11 -> 306150
B12: Total Equity | C12: 0 | D12: 131264 | E12: 470761 | F12: 2164220 | G12: 837527 | H12: -1109729 | I12: 1893325 | J12: 5974680 | K12: 1337939 | L12: 1120217 | M12: 104775695 | N12: =SUM('APPENDIX 5 I'!C10:L10)+SUM('APPENDIX 5 II'!C12:M12)+SUM('APPENDIX 5 III'!C12:M12)+SUM('APPENDIX5 IV'!C12:L12) -> 104775695 | O12: 66723607 | P12: ='APPENDIX 5 I'!J10+'APPENDIX 5 II'!C12+'APPENDIX 5 II'!H12+'APPENDIX 5 III'!F12+'APPENDIX5 IV'!K12 -> 38052088
B13: Underwriting Provisions | C13: 0 | D13: 2969651 | E13: 999510 | F13: 774255 | G13: 1692623 | H13: 2613355 | I13: 1926672 | J13: 8017240 | K13: 639931 | L13: 2176955 | M13: 132258807 | N13: =SUM('APPENDIX 5 I'!C11:L11)+SUM('APPENDIX 5 II'!C13:M13)+SUM('APPENDIX 5 III'!C13:M13)+SUM('APPENDIX5 IV'!C13:L13) -> 132258807 | O13: 113375109 | P13: ='APPENDIX 5 I'!J11+'APPENDIX 5 II'!C13+'APPENDIX 5 II'!H13+'APPENDIX 5 III'!F13+'APPENDIX5 IV'!K13 -> 18883698
B14: Actuarial Contract Liabilities | C14: 0 | D14: 0 | E14: 0 | F14: 0 | G14: 0 | H14: 0 | I14: 0 | J14: 0 | K14: 0 | L14: 0 | M14: 0 | N14: =SUM('APPENDIX 5 I'!C12:L12)+SUM('APPENDIX 5 II'!C14:M14)+SUM('APPENDIX 5 III'!C14:M14)+SUM('APPENDIX5 IV'!C14:L14) -> 0 | O14: 0 | P14: ='APPENDIX 5 I'!J12+'APPENDIX 5 II'!C14+'APPENDIX 5 II'!H14+'APPENDIX 5 III'!F14+'APPENDIX5 IV'!K14 -> 0
B15: LongTerm Liabilities | C15: 0 | D15: 0 | E15: 23128 | F15: 66060 | G15: 331695 | H15: 0 | I15: 0 | J15: 0 | K15: 0 | L15: 0 | M15: 2242230 | N15: =SUM('APPENDIX 5 I'!C13:L13)+SUM('APPENDIX 5 II'!C15:M15)+SUM('APPENDIX 5 III'!C15:M15)+SUM('APPENDIX5 IV'!C15:L15) -> 2242230 | O15: 2168139 | P15: ='APPENDIX 5 I'!J13+'APPENDIX 5 II'!C15+'APPENDIX 5 II'!H15+'APPENDIX 5 III'!F15+'APPENDIX5 IV'!K15 -> 74091
B16: Current Liabilities | C16: 0 | D16: 423347 | E16: 228445 | F16: 105965 | G16: 920313 | H16: 174712 | I16: 409577 | J16: 2032868 | K16: 336485 | L16: 262638 | M16: 28819458 | N16: =SUM('APPENDIX 5 I'!C14:L14)+SUM('APPENDIX 5 II'!C16:M16)+SUM('APPENDIX 5 III'!C16:M16)+SUM('APPENDIX5 IV'!C16:L16) -> 28819458 | O16: 27046219 | P16: ='APPENDIX 5 I'!J14+'APPENDIX 5 II'!C16+'APPENDIX 5 II'!H16+'APPENDIX 5 III'!F16+'APPENDIX5 IV'!K16 -> 1773239
B17: Total Equity And Liabilities | C17: 0 | D17: 3524262 | E17: 1721844 | F17: 3110501 | G17: 3782158 | H17: 1678339 | I17: 4229574 | J17: 16024788 | K17: 2314355 | L17: 3559810 | M17: 268096194 | N17: =SUM('APPENDIX 5 I'!C15:L15)+SUM('APPENDIX 5 II'!C17:M17)+SUM('APPENDIX 5 III'!C17:M17)+SUM('APPENDIX5 IV'!C17:L17) -> 268096194 | O17: 209313077 | P17: ='APPENDIX 5 I'!J15+'APPENDIX 5 II'!C17+'APPENDIX 5 II'!H17+'APPENDIX 5 III'!F17+'APPENDIX5 IV'!K17 -> 58783117
B18: Land And Buildings | C18: 0 | D18: 0 | E18: 0 | F18: 305966 | G18: 214800 | H18: 0 | I18: 240660 | J18: 0 | K18: 0 | L18: 0 | M18: 5793902 | N18: =SUM('APPENDIX 5 I'!C16:L16)+SUM('APPENDIX 5 II'!C18:M18)+SUM('APPENDIX 5 III'!C18:M18)+SUM('APPENDIX5 IV'!C18:L18) -> 5793902 | O18: 5353546 | P18: ='APPENDIX 5 I'!J16+'APPENDIX 5 II'!C18+'APPENDIX 5 II'!H18+'APPENDIX 5 III'!F18+'APPENDIX5 IV'!K18 -> 440356
B19: Investment Property | C19: 0 | D19: 50000 | E19: 30000 | F19: 0 | G19: 1192600 | H19: 753226 | I19: 1717855 | J19: 2887089 | K19: 0 | L19: 980318 | M19: 38997632 | N19: =SUM('APPENDIX 5 I'!C17:L17)+SUM('APPENDIX 5 II'!C19:M19)+SUM('APPENDIX 5 III'!C19:M19)+SUM('APPENDIX5 IV'!C19:L19) -> 38997632 | O19: 27750407 | P19: ='APPENDIX 5 I'!J17+'APPENDIX 5 II'!C19+'APPENDIX 5 II'!H19+'APPENDIX 5 III'!F19+'APPENDIX5 IV'!K19 -> 11247225
B20: Other Fixed Assets | C20: 0 | D20: 64121 | E20: 42801 | F20: 23547 | G20: 45287 | H20: 47392 | I20: 11643 | J20: 110360 | K20: 2849 | L20: 60661 | M20: 1900643 | N20: =SUM('APPENDIX 5 I'!C18:L18)+SUM('APPENDIX 5 II'!C20:M20)+SUM('APPENDIX 5 III'!C20:M20)+SUM('APPENDIX5 IV'!C20:L20) -> 1900643 | O20: 1835051 | P20: ='APPENDIX 5 I'!J18+'APPENDIX 5 II'!C20+'APPENDIX 5 II'!H20+'APPENDIX 5 III'!F20+'APPENDIX5 IV'!K20 -> 65592
B21: Government Securities | C21: 0 | D21: 1817506 | E21: 12183 | F21: 1853247 | G21: 334231 | H21: 102640 | I21: 255050 | J21: 6466716 | K21: 383213 | L21: 150000 | M21: 99371347 | N21: =SUM('APPENDIX 5 I'!C19:L19)+SUM('APPENDIX 5 II'!C21:M21)+SUM('APPENDIX 5 III'!C21:M21)+SUM('APPENDIX5 IV'!C21:L21) -> 99371347 | O21: 78436797 | P21: ='APPENDIX 5 I'!J19+'APPENDIX 5 II'!C21+'APPENDIX 5 II'!H21+'APPENDIX 5 III'!F21+'APPENDIX5 IV'!K21 -> 20934550
B22: Other Securities | C22: 0 | D22: 0 | E22: 39323 | F22: 0 | G22: 0 | H22: 0 | I22: 0 | J22: 0 | K22: 0 | L22: 32590 | M22: 917587 | N22: =SUM('APPENDIX 5 I'!C20:L20)+SUM('APPENDIX 5 II'!C22:M22)+SUM('APPENDIX 5 III'!C22:M22)+SUM('APPENDIX5 IV'!C22:L22) -> 917587 | O22: 917587 | P22: ='APPENDIX 5 I'!J20+'APPENDIX 5 II'!C22+'APPENDIX 5 II'!H22+'APPENDIX 5 III'!F22+'APPENDIX5 IV'!K22 -> 0
B23: Investment in Related Companies | C23: 0 | D23: 0 | E23: 0 | F23: 0 | G23: 0 | H23: 0 | I23: 615600 | J23: 0 | K23: 0 | L23: 245251 | M23: 15486269 | N23: =SUM('APPENDIX 5 I'!C21:L21)+SUM('APPENDIX 5 II'!C23:M23)+SUM('APPENDIX 5 III'!C23:M23)+SUM('APPENDIX5 IV'!C23:L23) -> 15486269 | O23: 6084987 | P23: ='APPENDIX 5 I'!J21+'APPENDIX 5 II'!C23+'APPENDIX 5 II'!H23+'APPENDIX 5 III'!F23+'APPENDIX5 IV'!K23 -> 9401282
B24: Corporate Bonds | C24: 0 | D24: 0 | E24: 0 | F24: 0 | G24: 0 | H24: 0 | I24: 0 | J24: 50088 | K24: 0 | L24: 0 | M24: 269150 | N24: =SUM('APPENDIX 5 I'!C22:L22)+SUM('APPENDIX 5 II'!C24:M24)+SUM('APPENDIX 5 III'!C24:M24)+SUM('APPENDIX5 IV'!C24:L24) -> 269150 | O24: 194289 | P24: ='APPENDIX 5 I'!J22+'APPENDIX 5 II'!C24+'APPENDIX 5 II'!H24+'APPENDIX 5 III'!F24+'APPENDIX5 IV'!K24 -> 74861
B25: Commercial Papers | C25: 0 | D25: 0 | E25: 0 | F25: 0 | G25: 0 | H25: 0 | I25: 0 | J25: 0 | K25: 0 | L25: 0 | M25: 0 | N25: =SUM('APPENDIX 5 I'!C23:L23)+SUM('APPENDIX 5 II'!C25:M25)+SUM('APPENDIX 5 III'!C25:M25)+SUM('APPENDIX5 IV'!C25:L25) -> 0 | O25: 0 | P25: ='APPENDIX 5 I'!J23+'APPENDIX 5 II'!C25+'APPENDIX 5 II'!H25+'APPENDIX 5 III'!F25+'APPENDIX5 IV'!K25 -> 0
B26: Debentures | C26: 0 | D26: 0 | E26: 0 | F26: 0 | G26: 0 | H26: 0 | I26: 0 | J26: 0 | K26: 0 | L26: 0 | M26: 0 | N26: =SUM('APPENDIX 5 I'!C24:L24)+SUM('APPENDIX 5 II'!C26:M26)+SUM('APPENDIX 5 III'!C26:M26)+SUM('APPENDIX5 IV'!C26:L26) -> 0 | O26: 0 | P26: ='APPENDIX 5 I'!J24+'APPENDIX 5 II'!C26+'APPENDIX 5 II'!H26+'APPENDIX 5 III'!F26+'APPENDIX5 IV'!K26 -> 0
B27: Ordinary Shares Quoted | C27: 0 | D27: 516 | E27: 0 | F27: 196581 | G27: 10739 | H27: 0 | I27: 4828 | J27: 1197072 | K27: 0 | L27: 0 | M27: 6606288 | N27: =SUM('APPENDIX 5 I'!C25:L25)+SUM('APPENDIX 5 II'!C27:M27)+SUM('APPENDIX 5 III'!C27:M27)+SUM('APPENDIX5 IV'!C27:L27) -> 6606288 | O27: 5586716 | P27: ='APPENDIX 5 I'!J25+'APPENDIX 5 II'!C27+'APPENDIX 5 II'!H27+'APPENDIX 5 III'!F27+'APPENDIX5 IV'!K27 -> 1019572
B28: Ordinary Shares UnQuoted | C28: 0 | D28: 0 | E28: 0 | F28: 7103 | G28: 13352 | H28: 59 | I28: 28342 | J28: 100702 | K28: 0 | L28: 0 | M28: 3666325 | N28: =SUM('APPENDIX 5 I'!C26:L26)+SUM('APPENDIX 5 II'!C28:M28)+SUM('APPENDIX 5 III'!C28:M28)+SUM('APPENDIX5 IV'!C28:L28) -> 3666325 | O28: 3369607 | P28: ='APPENDIX 5 I'!J26+'APPENDIX 5 II'!C28+'APPENDIX 5 II'!H28+'APPENDIX 5 III'!F28+'APPENDIX5 IV'!K28 -> 296718
B29: Preference Shares Quoted | C29: 0 | D29: 0 | E29: 0 | F29: 0 | G29: 0 | H29: 0 | I29: 0 | J29: 0 | K29: 0 | L29: 0 | M29: 475 | N29: =SUM('APPENDIX 5 I'!C27:L27)+SUM('APPENDIX 5 II'!C29:M29)+SUM('APPENDIX 5 III'!C29:M29)+SUM('APPENDIX5 IV'!C29:L29) -> 475 | O29: 402 | P29: ='APPENDIX 5 I'!J27+'APPENDIX 5 II'!C29+'APPENDIX 5 II'!H29+'APPENDIX 5 III'!F29+'APPENDIX5 IV'!K29 -> 73
B30: Preference Shares Unquoted | C30: 0 | D30: 0 | E30: 0 | F30: 0 | G30: 0 | H30: 0 | I30: 0 | J30: 0 | K30: 0 | L30: 0 | M30: 0 | N30: =SUM('APPENDIX 5 I'!C28:L28)+SUM('APPENDIX 5 II'!C30:M30)+SUM('APPENDIX 5 III'!C30:M30)+SUM('APPENDIX5 IV'!C30:L30) -> 0 | O30: 0 | P30: ='APPENDIX 5 I'!J28+'APPENDIX 5 II'!C30+'APPENDIX 5 II'!H30+'APPENDIX 5 III'!F30+'APPENDIX5 IV'!K30 -> 0
B31: Loans Secured & Unsecured | C31: 0 | D31: 194 | E31: 0 | F31: 138 | G31: 39013 | H31: 0 | I31: 620262 | J31: 0 | K31: 2478 | L31: 21380 | M31: 2163555 | N31: =SUM('APPENDIX 5 I'!C29:L29)+SUM('APPENDIX 5 II'!C31:M31)+SUM('APPENDIX 5 III'!C31:M31)+SUM('APPENDIX5 IV'!C31:L31) -> 2163555 | O31: 2150188 | P31: ='APPENDIX 5 I'!J29+'APPENDIX 5 II'!C31+'APPENDIX 5 II'!H31+'APPENDIX 5 III'!F31+'APPENDIX5 IV'!K31 -> 13367
B32: Mortgages | C32: 0 | D32: 0 | E32: 0 | F32: 56789 | G32: 0 | H32: 0 | I32: 0 | J32: 222705 | K32: 0 | L32: 0 | M32: 1434890 | N32: =SUM('APPENDIX 5 I'!C30:L30)+SUM('APPENDIX 5 II'!C32:M32)+SUM('APPENDIX 5 III'!C32:M32)+SUM('APPENDIX5 IV'!C32:L32) -> 1434890 | O32: 615965 | P32: ='APPENDIX 5 I'!J30+'APPENDIX 5 II'!C32+'APPENDIX 5 II'!H32+'APPENDIX 5 III'!F32+'APPENDIX5 IV'!K32 -> 818925
B33: Term Deposits | C33: 0 | D33: 171100 | E33: 367221 | F33: 318251 | G33: 3728 | H33: 7756 | I33: 16838 | J33: 1787695 | K33: 1273415 | L33: 177954 | M33: 26028723 | N33: =SUM('APPENDIX 5 I'!C31:L31)+SUM('APPENDIX 5 II'!C33:M33)+SUM('APPENDIX 5 III'!C33:M33)+SUM('APPENDIX5 IV'!C33:L33) -> 26028723 | O33: 21105528 | P33: ='APPENDIX 5 I'!J31+'APPENDIX 5 II'!C33+'APPENDIX 5 II'!H33+'APPENDIX 5 III'!F33+'APPENDIX5 IV'!K33 -> 4923195
B34: Cash and Cash Balances | C34: 0 | D34: 159129 | E34: 206530 | F34: 75498 | G34: 167444 | H34: 13060 | I34: 38041 | J34: 572844 | K34: 43744 | L34: 63916 | M34: 6207435 | N34: =SUM('APPENDIX 5 I'!C32:L32)+SUM('APPENDIX 5 II'!C34:M34)+SUM('APPENDIX 5 III'!C34:M34)+SUM('APPENDIX5 IV'!C34:L34) -> 6207435 | O34: 5611235 | P34: ='APPENDIX 5 I'!J32+'APPENDIX 5 II'!C34+'APPENDIX 5 II'!H34+'APPENDIX 5 III'!F34+'APPENDIX5 IV'!K34 -> 596200
B35: Outstanding Premiums | C35: 0 | D35: 428814 | E35: 185550 | F35: 141611 | G35: 612315 | H35: 453801 | I35: 592352 | J35: 1045186 | K35: 374286 | L35: 1570636 | M35: 30132057 | N35: =SUM('APPENDIX 5 I'!C33:L33)+SUM('APPENDIX 5 II'!C35:M35)+SUM('APPENDIX 5 III'!C35:M35)+SUM('APPENDIX5 IV'!C35:L35) -> 30132057 | O35: 26300055 | P35: ='APPENDIX 5 I'!J33+'APPENDIX 5 II'!C35+'APPENDIX 5 II'!H35+'APPENDIX 5 III'!F35+'APPENDIX5 IV'!K35 -> 3832002
B36: Other Receivables | C36: 0 | D36: 0 | E36: 0 | F36: 0 | G36: 461627 | H36: 0 | I36: 29258 | J36: 274970 | K36: 4178 | L36: 107712 | M36: 5038425 | N36: =SUM('APPENDIX 5 I'!C34:L34)+SUM('APPENDIX 5 II'!C36:M36)+SUM('APPENDIX 5 III'!C36:M36)+SUM('APPENDIX5 IV'!C36:L36) -> 5038425 | O36: 3747553 | P36: ='APPENDIX 5 I'!J34+'APPENDIX 5 II'!C36+'APPENDIX 5 II'!H36+'APPENDIX 5 III'!F36+'APPENDIX5 IV'!K36 -> 1290872
B37: Other Assets | C37: 0 | D37: 587906 | E37: 753859 | F37: 80279 | G37: 595302 | H37: 211200 | I37: 52774 | J37: 890614 | K37: 80518 | L37: 94608 | M37: 15970519 | N37: =SUM('APPENDIX 5 I'!C35:L35)+SUM('APPENDIX 5 II'!C37:M37)+SUM('APPENDIX 5 III'!C37:M37)+SUM('APPENDIX5 IV'!C37:L37) -> 15970519 | O37: 13635028 | P37: ='APPENDIX 5 I'!J35+'APPENDIX 5 II'!C37+'APPENDIX 5 II'!H37+'APPENDIX 5 III'!F37+'APPENDIX5 IV'!K37 -> 2335491
B38: Intangible Assets | C38: 0 | D38: 244976 | E38: 84376 | F38: 51491 | G38: 91720 | H38: 89204 | I38: 6071 | J38: 418747 | K38: 149675 | L38: 54784 | M38: 8110967 | N38: =SUM('APPENDIX 5 I'!C36:L36)+SUM('APPENDIX 5 II'!C38:M38)+SUM('APPENDIX 5 III'!C38:M38)+SUM('APPENDIX5 IV'!C38:L38) -> 8110967 | O38: 6618133 | P38: ='APPENDIX 5 I'!J36+'APPENDIX 5 II'!C38+'APPENDIX 5 II'!H38+'APPENDIX 5 III'!F38+'APPENDIX5 IV'!K38 -> 1492834
B39: Total Assets | C39: 0 | D39: 3524262 | E39: 1721844 | F39: 3110501 | G39: 3782158 | H39: 1678339 | I39: 4229574 | J39: 16024788 | K39: 2314355 | L39: 3559810 | M39: 268096194 | N39: =SUM('APPENDIX 5 I'!C37:L37)+SUM('APPENDIX 5 II'!C39:M39)+SUM('APPENDIX 5 III'!C39:M39)+SUM('APPENDIX5 IV'!C39:L39) -> 268096194 | O39: 209313077 | P39: ='APPENDIX 5 I'!J37+'APPENDIX 5 II'!C39+'APPENDIX 5 II'!H39+'APPENDIX 5 III'!F39+'APPENDIX5 IV'!K39 -> 58783117
B40: Amounts in thousand Shillings

Sheet template L (hidden)
B2: APPENDIX 2: SUMMARY OF PROFIT & LOSS ACCOUNTS UNDER LIFE INSURANCE BUSINESS FOR THE YEAR ENDED 31.12.2013
B3: Company | C3: Profit Transferred from Revenue | D3: Investment Income | E3: Other Income | F3: Total Income | G3: Loss Transferred From Revenue | H3: Management Expenses | I3: Total Outgo | J3: Profit / (Loss) Before Taxation | K3: Provision for Taxation | L3: Profit/(Loss) After Taxation | M3: Unappropriated Profit/(Loss) BF | N3: Transfer To Reserves | O3: Other Appropriations | P3: Dividend | Q3: Unappropriated Profit /(Loss) CF
B4: APA LIFE ASSURANCE COMPANY | C4: 28949 | D4: 14187 | E4: 0 | F4: 43137 | G4: 0 | H4: 1000 | I4: 3573 | J4: 39564 | K4: 10169 | L4: 29394 | M4: 41950 | N4: 0 | O4: 0 | P4: 30000 | Q4: 41345
B5: BRITISH AMERICAN INSURANCE | C5: 1797417 | D5: 154508 | E5: 0 | F5: 1951925 | G5: 0 | H5: 0 | I5: 0 | J5: 1951925 | K5: 300000 | L5: 1651925 | M5: 0 | N5: 1651925 | O5: 0 | P5: 0 | Q5: 0
B6: CANNON ASSURANCE COMPANY | C6: 180000 | D6: 0 | E6: 0 | F6: 180000 | G6: 0 | H6: 0 | I6: 0 | J6: 180000 | K6: 56883 | L6: 123117 | M6: 357165 | N6: 0 | O6: 0 | P6: 0 | Q6: 480281
B7: CAPEX LIFE ASSURANCE COMPANY | C7: 4927 | D7: 0 | E7: 0 | F7: 4927 | G7: 0 | H7: 0 | I7: 0 | J7: 4927 | K7: 2217 | L7: 2710 | M7: 39084 | N7: 0 | O7: 0 | P7: 0 | Q7: 41794
B8: CFC LIFE ASSURANCE COMPANY | C8: 436635 | D8: 0 | E8: 0 | F8: 436635 | G8: 0 | H8: 0 | I8: 0 | J8: 436635 | K8: 20176 | L8: 416459 | M8: -356061 | N8: 401761 | O8: 0 | P8: 0 | Q8: -341363
B9: CIC LIFE ASSURANCE COMPANY | C9: 437815 | D9: 0 | E9: 0 | F9: 437815 | G9: 0 | H9: 0 | I9: 0 | J9: 437815 | K9: 0 | L9: 437815 | M9: 0 | N9: 0 | O9: 0 | P9: 0 | Q9: 437815
B10: CONTINENTAL REINSURANCE | C10: 17799 | D10: 17039 | E10: 51 | F10: 34889 | G10: 0 | H10: 0 | I10: 0 | J10: 34889 | K10: 0 | L10: 34889 | M10: 0 | N10: 0 | O10: 0 | P10: 0 | Q10: 34889
B11: CORPORATE INSURANCE COMPANY | C11: 27119 | D11: 0 | E11: 0 | F11: 27119 | G11: 0 | H11: 0 | I11: 0 | J11: 27119 | K11: 873 | L11: 26245 | M11: 51378 | N11: 0 | O11: 0 | P11: 0 | Q11: 77623
B12: EAST AFRICAN REINSURANCE | C12: 40405 | D12: 74104 | E12: 21 | F12: 114530 | G12: 0 | H12: 0 | I12: 0 | J12: 114530 | K12: 24297 | L12: 90234 | M12: 268920 | N12: 65265 | O12: 0 | P12: 0 | Q12: 293888
B13: FIRST ASSURANCE COMPANY | C13: 33467 | D13: 0 | E13: 4675 | F13: 38142 | G13: 0 | H13: 0 | I13: 0 | J13: 38142 | K13: 0 | L13: 38142 | M13: 0 | N13: 38142 | O13: 0 | P13: 0 | Q13: 0
B14: GA LIFE ASSURANCE COMPANY | C14: 10056 | D14: 0 | E14: 0 | F14: 10056 | G14: 0 | H14: 0 | I14: 0 | J14: 10056 | K14: 2325 | L14: 7731 | M14: 0 | N14: 0 | O14: 0 | P14: 0 | Q14: 7731
B15: GEMINIA INSURANCE COMPANY | C15: 0 | D15: 0 | E15: 0 | F15: 0 | G15: 0 | H15: 0 | I15: 0 | J15: 0 | K15: 0 | L15: 0 | M15: 0 | N15: 0 | O15: 0 | P15: 0 | Q15: 0
B16: ICEA LION LIFE ASSURANCE | C16: 210000 | D16: 128425 | E16: 88545 | F16: 426970 | G16: 0 | H16: 21078 | I16: 37906 | J16: 389064 | K16: 7458 | L16: 381606 | M16: 1949933 | N16: 0 | O16: 0 | P16: 680000 | Q16: 1651539
B17: JUBILEE INSURANCE COMPANY | C17: 310093 | D17: 0 | E17: 0 | F17: 310093 | G17: 0 | H17: 0 | I17: 0 | J17: 310093 | K17: 0 | L17: 310093 | M17: 0 | N17: 0 | O17: 0 | P17: 0 | Q17: 310093
B18: KENINDIA ASSURANCE COMPANY | C18: 123084 | D18: 2050638 | E18: 7530 | F18: 2181252 | G18: 0 | H18: 0 | I18: 0 | J18: 2181252 | K18: 0 | L18: 2181252 | M18: 0 | N18: 30000 | O18: 0 | P18: 0 | Q18: 2151252
B19: KENYA REINSURANCE CORPORATION | C19: 720393 | D19: 0 | E19: 0 | F19: 720393 | G19: 0 | H19: 0 | I19: 0 | J19: 720393 | K19: 27175 | L19: 693218 | M19: 2402630 | N19: 0 | O19: 0 | P19: 0 | Q19: 3095848
B20: MADISON INSURANCE COMPANY | C20: -138857 | D20: 963368 | E20: 0 | F20: 824511 | G20: 0 | H20: 0 | I20: 0 | J20: 824511 | K20: 0 | L20: 824511 | M20: 3948660 | N20: 0 | O20: 0 | P20: 0 | Q20: 4773172
B21: MERCANTILE INSURANCE COMPANY | C21: 0 | D21: 31153 | E21: 0 | F21: 31153 | G21: 18758 | H21: 0 | I21: 18758 | J21: 12394 | K21: 4652 | L21: 7743 | M21: 0 | N21: 0 | O21: 243 | P21: 7500 | Q21: 0
B22: METROPOLITAN INSURANCE | C22: 0 | D22: 27832 | E22: 106 | F22: 27938 | G22: 91342 | H22: 2037 | I22: 93379 | J22: -65441 | K22: 10858 | L22: -76299 | M22: -581879 | N22: 0 | O22: 0 | P22: 0 | Q22: -658178
B23: OLD MUTUAL LIFE ASSURANCE | C23: 0 | D23: 115392 | E23: 0 | F23: 115392 | G23: 250554 | H23: 2349 | I23: 252903 | J23: -137511 | K23: 0 | L23: -137511 | M23: -1004640 | N23: 0 | O23: 0 | P23: 0 | Q23: -1142151
B24: PAN AFRICA INSURANCE COMPANY | C24: 7120396 | D24: 0 | E24: 0 | F24: 7120396 | G24: 6698303 | H24: 0 | I24: 6698303 | J24: 422093 | K24: 126628 | L24: 295466 | M24: -276167 | N24: 422093 | O24: 0 | P24: 0 | Q24: -402795
B25: PIONEER ASSURANCE COMPANY | C25: 24753 | D25: 3808 | E25: 0 | F25: 28561 | G25: 0 | H25: 0 | I25: 0 | J25: 28561 | K25: 10500 | L25: 18061 | M25: 111875 | N25: 0 | O25: 0 | P25: 0 | Q25: 129936
B26: SHIELD ASSURANCE COMPANY | C26: 0 | D26: 0 | E26: 2896 | F26: 2896 | G26: 0 | H26: 0 | I26: 0 | J26: 2896 | K26: 6376 | L26: -3480 | M26: 0 | N26: 0 | O26: 0 | P26: 0 | Q26: -3480
B27: THE KENYAN ALLIANCE INSURANCE | C27: 10278 | D27: 0 | E27: 0 | F27: 10278 | G27: 0 | H27: 0 | I27: 0 | J27: 10278 | K27: 0 | L27: 10278 | M27: 35058 | N27: 0 | O27: 0 | P27: 0 | Q27: 45335
B28: THE MONARCH INSURANCE | C28: 26987 | D28: 0 | E28: 0 | F28: 26987 | G28: 0 | H28: 0 | I28: 0 | J28: 26987 | K28: 0 | L28: 26987 | M28: 93127 | N28: 0 | O28: 0 | P28: 0 | Q28: 120114
B29: UAP LIFE ASSURANCE COMPANY | C29: 279122 | D29: 0 | E29: 0 | F29: 279122 | G29: 0 | H29: 0 | I29: 0 | J29: 279122 | K29: 473 | L29: 278648 | M29: -151962 | N29: 126686 | O29: 0 | P29: 0 | Q29: 0
B30: TOTAL | C30: =SUM(C4:C29) -> 11700838 | D30: =SUM(D4:D29) -> 3580454 | E30: 103824 | F30: 15385117 | G30: 7058957 | H30: 26464 | I30: 7104822 | J30: 8280294 | K30: 611060 | L30: 7669234 | M30: 6929071 | N30: 2735872 | O30: 243 | P30: 717500 | Q30: 11144688
B31: Amounts in Thousand Shillings

Sheet APPENDIX 6
B3: APPENDIX 6: SUMMARY OF LONG TERM BUSINESS GROSS DIRECT PREMIUM FOR THE YEAR ENDED 31.12.2021
B4: Company | C4: Life Assurances | D4: Annuities | E4: Deposit Administration | F4: Personal Pensions | G4: Group Life | H4: Group Credit | I4: Permanent Health | J4: Investments | K4: Total | L4: Market Share (%)
B5: INSURERS
B6: ABSA LIFE ASSURANCE KENYA | C6: ='APPENDIX 9'!D6 -> 1753007 | D6: ='APPENDIX 10'!D6 -> 0 | E6: ='APPENDIX 13'!D6 -> 0 | F6: ='APPENDIX 12'!D6 -> 0 | G6: ='APPENDIX 11'!D6 -> 1982848 | H6: ='APPENDIX 14'!D6 -> 1198006 | I6: ='APPENDIX 15'!D6 -> 0 | J6: ='APPENDIX 16'!D6 -> 0 | K6: =SUM(C6:J6) -> 4933861 | L6: =IFERROR(K6/$K$29*100,0) -> 3.988984369
B7: APA LIFE ASSURANCE COMPANY | C7: ='APPENDIX 9'!D7 -> 354920 | D7: ='APPENDIX 10'!D7 -> 278440 | E7: ='APPENDIX 13'!D7 -> 993679 | F7: ='APPENDIX 12'!D7 -> 80107 | G7: ='APPENDIX 11'!D7 -> 859595 | H7: ='APPENDIX 14'!D7 -> 607578 | I7: ='APPENDIX 15'!D7 -> 0 | J7: ='APPENDIX 16'!D7 -> 55 | K7: =SUM(C7:J7) -> 3174374 | L7: 2.566454196
B8: BRITAM LIFE INSURANCE COMPANY | C8: ='APPENDIX 9'!D8 -> 9669967 | D8: ='APPENDIX 10'!D8 -> 755570 | E8: ='APPENDIX 13'!D8 -> 10344921 | F8: ='APPENDIX 12'!D8 -> 0 | G8: ='APPENDIX 11'!D8 -> 1481210 | H8: ='APPENDIX 14'!D8 -> 2288431 | I8: ='APPENDIX 15'!D8 -> 0 | J8: ='APPENDIX 16'!D8 -> 1354031 | K8: 25894130 | L8: 20.93518237
B9: CAPEX LIFE ASSURANCE COMPANY | C9: ='APPENDIX 9'!D9 -> 5637 | D9: ='APPENDIX 10'!D9 -> 180796 | E9: ='APPENDIX 13'!D9 -> 0 | F9: ='APPENDIX 12'!D9 -> 0 | G9: ='APPENDIX 11'!D9 -> 252985 | H9: ='APPENDIX 14'!D9 -> 19229 | I9: ='APPENDIX 15'!D9 -> 0 | J9: ='APPENDIX 16'!D9 -> 0 | K9: 458647 | L9: 0.370812172
B10: CIC LIFE ASSURANCE COMPANY | C10: ='APPENDIX 9'!D10 -> 1094034 | D10: ='APPENDIX 10'!D10 -> 57894 | E10: ='APPENDIX 13'!D10 -> 879807 | F10: ='APPENDIX 12'!D10 -> 0 | G10: ='APPENDIX 11'!D10 -> 832330 | H10: ='APPENDIX 14'!D10 -> 4132854 | I10: ='APPENDIX 15'!D10 -> 0 | J10: ='APPENDIX 16'!D10 -> 0 | K10: 6996919 | L10: 5.656949095
B11: CORPORATE INSURANCE COMPANY | C11: ='APPENDIX 9'!D11 -> 166660 | D11: ='APPENDIX 10'!D11 -> 0 | E11: ='APPENDIX 13'!D11 -> 0 | F11: ='APPENDIX 12'!D11 -> 0 | G11: ='APPENDIX 11'!D11 -> 21310 | H11: ='APPENDIX 14'!D11 -> 0 | I11: ='APPENDIX 15'!D11 -> 0 | J11: ='APPENDIX 16'!D11 -> 0 | K11: 187970 | L11: 0.1519721354
B12: GA LIFE ASSURANCE COMPANY | C12: ='APPENDIX 9'!D12 -> 1197309 | D12: ='APPENDIX 10'!D12 -> 0 | E12: ='APPENDIX 13'!D12 -> 3876177 | F12: ='APPENDIX 12'!D12 -> 0 | G12: ='APPENDIX 11'!D12 -> 50177 | H12: ='APPENDIX 14'!D12 -> 3911 | I12: ='APPENDIX 15'!D12 -> 0 | J12: ='APPENDIX 16'!D12 -> 0 | K12: 5127574 | L12: 4.145599671
B13: GEMINIA INSURANCE COMPANY | C13: ='APPENDIX 9'!D13 -> 66215 | D13: ='APPENDIX 10'!D13 -> 0 | E13: ='APPENDIX 13'!D13 -> 0 | F13: ='APPENDIX 12'!D13 -> 0 | G13: ='APPENDIX 11'!D13 -> 655459 | H13: ='APPENDIX 14'!D13 -> 93507 | I13: ='APPENDIX 15'!D13 -> 0 | J13: ='APPENDIX 16'!D13 -> 0 | K13: 815181 | L13: 0.6590668579
B14: ICEA LION LIFE ASSURANCE | C14: ='APPENDIX 9'!D14 -> 3663225 | D14: ='APPENDIX 10'!D14 -> 2736174 | E14: ='APPENDIX 13'!D14 -> 7815041 | F14: ='APPENDIX 12'!D14 -> 5115221 | G14: ='APPENDIX 11'!D14 -> 454385 | H14: ='APPENDIX 14'!D14 -> 201935 | I14: ='APPENDIX 15'!D14 -> 0 | J14: ='APPENDIX 16'!D14 -> 14505 | K14: 20000486 | L14: 16.17022166
B15: JUBILEE INSURANCE COMPANY LIMITED-LIFE | C15: ='APPENDIX 9'!D15 -> 4030023 | D15: ='APPENDIX 10'!D15 -> 1083112 | E15: ='APPENDIX 13'!D15 -> 6677336 | F15: ='APPENDIX 12'!D15 -> 1123621 | G15: ='APPENDIX 11'!D15 -> 890559 | H15: ='APPENDIX 14'!D15 -> 132430 | I15: ='APPENDIX 15'!D15 -> 0 | J15: ='APPENDIX 16'!D15 -> 0 | K15: 13937081 | L15: 11.26801064
B16: KENINDIA ASSURANCE COMPANY | C16: ='APPENDIX 9'!D16 -> 3241908 | D16: ='APPENDIX 10'!D16 -> 656328 | E16: ='APPENDIX 13'!D16 -> 7174252 | F16: ='APPENDIX 12'!D16 -> 0 | G16: ='APPENDIX 11'!D16 -> 48061 | H16: ='APPENDIX 14'!D16 -> 0 | I16: ='APPENDIX 15'!D16 -> 0 | J16: ='APPENDIX 16'!D16 -> 0 | K16: 11120549 | L16: 8.990868639
B17: KENYA ORIENT LIFE ASSURANCE | C17: ='APPENDIX 9'!D17 -> 41993 | D17: ='APPENDIX 10'!D17 -> 175460 | E17: ='APPENDIX 13'!D17 -> 431225 | F17: ='APPENDIX 12'!D17 -> 0 | G17: ='APPENDIX 11'!D17 -> 201527 | H17: ='APPENDIX 14'!D17 -> 491274 | I17: ='APPENDIX 15'!D17 -> 0 | J17: ='APPENDIX 16'!D17 -> 0 | K17: 1341479 | L17: 1.084574284
B18: KUSCCO MUTUAL ASSURANCE LIMITED | C18: ='APPENDIX 9'!D18 -> 53 | D18: ='APPENDIX 10'!D18 -> 0 | E18: ='APPENDIX 13'!D18 -> 0 | F18: ='APPENDIX 12'!D18 -> 0 | G18: ='APPENDIX 11'!D18 -> 42380 | H18: ='APPENDIX 14'!D18 -> 1375942 | I18: ='APPENDIX 15'!D18 -> 0 | J18: ='APPENDIX 16'!D18 -> 0 | K18: 1418375 | L18: 1.146744042
B19: LIBERTY LIFE ASSURANCE COMPANY | C19: ='APPENDIX 9'!D19 -> 1253210 | D19: ='APPENDIX 10'!D19 -> 294582 | E19: ='APPENDIX 13'!D19 -> 1489407 | F19: ='APPENDIX 12'!D19 -> 0 | G19: ='APPENDIX 11'!D19 -> 463117 | H19: ='APPENDIX 14'!D19 -> 532758 | I19: ='APPENDIX 15'!D19 -> 0 | J19: ='APPENDIX 16'!D19 -> 1031556 | K19: 5064630 | L19: 4.094709986
B20: MADISON INSURANCE COMPANY | C20: ='APPENDIX 9'!D20 -> 1765429 | D20: ='APPENDIX 10'!D20 -> 682929 | E20: ='APPENDIX 13'!D20 -> 243857 | F20: ='APPENDIX 12'!D20 -> 97889 | G20: ='APPENDIX 11'!D20 -> 345063 | H20: ='APPENDIX 14'!D20 -> 283721 | I20: ='APPENDIX 15'!D20 -> 0 | J20: ='APPENDIX 16'!D20 -> 2063 | K20: 3420951 | L20: 2.765809589
B21: METROPOLITAN CANNON INSURANCE | C21: ='APPENDIX 9'!D21 -> 51385 | D21: ='APPENDIX 10'!D21 -> 0 | E21: ='APPENDIX 13'!D21 -> 0 | F21: ='APPENDIX 12'!D21 -> 0 | G21: ='APPENDIX 11'!D21 -> 269769 | H21: ='APPENDIX 14'!D21 -> 60701 | I21: ='APPENDIX 15'!D21 -> 0 | J21: ='APPENDIX 16'!D21 -> 10453 | K21: 392308 | L21: 0.3171776586
B22: OLD MUTUAL LIFE ASSURANCE | C22: ='APPENDIX 9'!D22 -> 1165535 | D22: ='APPENDIX 10'!D22 -> 0 | E22: ='APPENDIX 13'!D22 -> 0 | F22: ='APPENDIX 12'!D22 -> 0 | G22: ='APPENDIX 11'!D22 -> 417180 | H22: ='APPENDIX 14'!D22 -> 0 | I22: ='APPENDIX 15'!D22 -> 0 | J22: ='APPENDIX 16'!D22 -> 676778 | K22: 2259493 | L22: 1.826780742
B23: PIONEER ASSURANCE COMPANY | C23: ='APPENDIX 9'!D23 -> 1096328 | D23: ='APPENDIX 10'!D23 -> 99026 | E23: ='APPENDIX 13'!D23 -> 295272 | F23: ='APPENDIX 12'!D23 -> 0 | G23: ='APPENDIX 11'!D23 -> 2028879 | H23: ='APPENDIX 14'!D23 -> 369349 | I23: ='APPENDIX 15'!D23 -> 0 | J23: ='APPENDIX 16'!D23 -> 55750 | K23: 3944604 | L23: 3.189178556
B24: PRUDENTIAL LIFE ASSURANCE | C24: ='APPENDIX 9'!D24 -> 373743 | D24: ='APPENDIX 10'!D24 -> 0 | E24: ='APPENDIX 13'!D24 -> 110354 | F24: ='APPENDIX 12'!D24 -> 0 | G24: ='APPENDIX 11'!D24 -> 477203 | H24: ='APPENDIX 14'!D24 -> 236533 | I24: ='APPENDIX 15'!D24 -> 0 | J24: ='APPENDIX 16'!D24 -> 0 | K24: 1197833 | L24: 0.9684377232
B25: SANLAM LIFE INSURANCE | C25: ='APPENDIX 9'!D25 -> 2585049 | D25: ='APPENDIX 10'!D25 -> 2284100 | E25: ='APPENDIX 13'!D25 -> 1154679 | F25: ='APPENDIX 12'!D25 -> 0 | G25: ='APPENDIX 11'!D25 -> 1440004 | H25: ='APPENDIX 14'!D25 -> 580729 | I25: ='APPENDIX 15'!D25 -> 0 | J25: ='APPENDIX 16'!D25 -> 479380 | K25: 8523941 | L25: 6.891533306
B26: THE KENYAN ALLIANCE INSURANCE | C26: ='APPENDIX 9'!D26 -> 17896 | D26: ='APPENDIX 10'!D26 -> 6247 | E26: ='APPENDIX 13'!D26 -> 201014 | F26: ='APPENDIX 12'!D26 -> 387559 | G26: ='APPENDIX 11'!D26 -> 207554 | H26: ='APPENDIX 14'!D26 -> 23357 | I26: ='APPENDIX 15'!D26 -> 0 | J26: ='APPENDIX 16'!D26 -> 169109 | K26: 1012736 | L26: 0.8187883837
B27: THE MONARCH INSURANCE | C27: ='APPENDIX 9'!D27 -> 27939 | D27: ='APPENDIX 10'!D27 -> 0 | E27: ='APPENDIX 13'!D27 -> 0 | F27: ='APPENDIX 12'!D27 -> 0 | G27: ='APPENDIX 11'!D27 -> 80504 | H27: ='APPENDIX 14'!D27 -> 0 | I27: ='APPENDIX 15'!D27 -> 0 | J27: ='APPENDIX 16'!D27 -> 0 | K27: 108443 | L27: 0.08767523688
B28: UAP LIFE ASSURANCE COMPANY | C28: ='APPENDIX 9'!D28 -> 485766 | D28: ='APPENDIX 10'!D28 -> 0 | E28: ='APPENDIX 13'!D28 -> 668578 | F28: ='APPENDIX 12'!D28 -> 0 | G28: ='APPENDIX 11'!D28 -> 832002 | H28: ='APPENDIX 14'!D28 -> 345793 | I28: ='APPENDIX 15'!D28 -> 0 | J28: ='APPENDIX 16'!D28 -> 23444 | K28: 2355583 | L28: 1.904468684
B29: TOTAL | C29: =SUM(C6:C28) -> 34107231 | D29: 9290658 | E29: 42355599 | F29: 6804397 | G29: 14334101 | H29: 12978038 | I29: 0 | J29: 3817124 | K29: 123687148 | L29: 100
B30: REINSURERS
B31: CONTINENTAL REINSURANCE
B32: EAST AFRICA REINSURANCE
B33: KENYA REINSURANCE CORPORATION
B34: TOTAL | C34: =SUM(C31:C33) -> 0 | D34: =SUM(D31:D33) -> 0 | E34: 0 | F34: 0 | G34: 0 | H34: 0 | I34: 0 | J34: 0 | K34: 0 | L34: =SUM(L31:L33) -> 0
B35: Amounts in Thousand Shillings

Sheet APPENDIX 7
B3: APPENDIX 7: SUMMARY OF LONG TERM BUSINESS INWARD REINSURANCE PREMIUM FOR THE YEAR ENDED 31.12.2021
B4: Company | C4: Life Assurances | D4: Annuities | E4: Deposit Administration | F4: Personal Pensions | G4: Group Life | H4: Group Credit | I4: Permanent Health | J4: Investments | K4: Total | L4: Market Share (%)
B5: INSURERS
B6: ABSA LIFE ASSURANCE KENYA | C6: 0 | D6: 0 | E6: 0 | F6: 0 | G6: 0 | H6: 0 | I6: 0 | J6: 0 | K6: 0
B7: APA LIFE ASSURANCE COMPANY | C7: 0 | D7: 0 | E7: 0 | F7: 0 | G7: 0 | H7: 0 | I7: 0 | J7: 0 | K7: 0
B8: BRITAM LIFE INSURANCE COMPANY | C8: 0 | D8: 0 | E8: 0 | F8: 0 | G8: 0 | H8: 0 | I8: 0 | J8: 0 | K8: 0
B9: CAPEX LIFE ASSURANCE COMPANY | C9: 0 | D9: 0 | E9: 0 | F9: 0 | G9: 0 | H9: 0 | I9: 0 | J9: 0 | K9: 0
B10: CIC LIFE ASSURANCE COMPANY | C10: 0 | D10: 0 | E10: 0 | F10: 0 | G10: 0 | H10: 0 | I10: 0 | J10: 0 | K10: 0
B11: CORPORATE INSURANCE COMPANY | C11: 0 | D11: 0 | E11: 0 | F11: 0 | G11: 0 | H11: 0 | I11: 0 | J11: 0 | K11: 0
B12: GA LIFE ASSURANCE COMPANY | C12: 0 | D12: 0 | E12: 0 | F12: 0 | G12: 0 | H12: 0 | I12: 0 | J12: 0 | K12: 0
B13: GEMINIA INSURANCE COMPANY | C13: 0 | D13: 0 | E13: 0 | F13: 0 | G13: 0 | H13: 0 | I13: 0 | J13: 0 | K13: 0
B14: ICEA LION LIFE ASSURANCE | C14: 0 | D14: 0 | E14: 0 | F14: 0 | G14: 0 | H14: 0 | I14: 0 | J14: 0 | K14: 0
B15: JUBILEE INSURANCE COMPANY LIMITED-LIFE | C15: 0 | D15: 0 | E15: 0 | F15: 0 | G15: 0 | H15: 0 | I15: 0 | J15: 0 | K15: 0
B16: KENINDIA ASSURANCE COMPANY | C16: 0 | D16: 0 | E16: 0 | F16: 0 | G16: 0 | H16: 0 | I16: 0 | J16: 0 | K16: 0
B17: KENYA ORIENT LIFE ASSURANCE | C17: 0 | D17: 0 | E17: 0 | F17: 0 | G17: 0 | H17: 0 | I17: 0 | J17: 0 | K17: 0
B18: KUSCCO MUTUAL ASSURANCE LIMITED | C18: 0 | D18: 0 | E18: 0 | F18: 0 | G18: 0 | H18: 0 | I18: 0 | J18: 0 | K18: 0
B19: LIBERTY LIFE ASSURANCE COMPANY | C19: 0 | D19: 0 | E19: 0 | F19: 0 | G19: 0 | H19: 0 | I19: 0 | J19: 0 | K19: 0
B20: MADISON INSURANCE COMPANY | C20: 0 | D20: 0 | E20: 0 | F20: 0 | G20: 0 | H20: 0 | I20: 0 | J20: 0 | K20: 0
B21: METROPOLITAN CANNON INSURANCE | C21: 0 | D21: 0 | E21: 0 | F21: 0 | G21: 0 | H21: 0 | I21: 0 | J21: 0 | K21: 0
B22: OLD MUTUAL LIFE ASSURANCE | C22: 0 | D22: 0 | E22: 0 | F22: 0 | G22: 0 | H22: 0 | I22: 0 | J22: 0 | K22: 0
B23: PIONEER ASSURANCE COMPANY | C23: 0 | D23: 0 | E23: 0 | F23: 0 | G23: 0 | H23: 0 | I23: 0 | J23: 0 | K23: 0
B24: PRUDENTIAL LIFE ASSURANCE | C24: 0 | D24: 0 | E24: 0 | F24: 0 | G24: 0 | H24: 0 | I24: 0 | J24: 0 | K24: 0
B25: SANLAM LIFE INSURANCE | C25: 0 | D25: 0 | E25: 0 | F25: 0 | G25: 0 | H25: 0 | I25: 0 | J25: 0 | K25: 0
B26: THE KENYAN ALLIANCE INSURANCE | C26: 0 | D26: 0 | E26: 0 | F26: 0 | G26: 0 | H26: 0 | I26: 0 | J26: 0 | K26: 0
B27: THE MONARCH INSURANCE | C27: 0 | D27: 0 | E27: 0 | F27: 0 | G27: 0 | H27: 0 | I27: 0 | J27: 0 | K27: 0
B28: UAP LIFE ASSURANCE COMPANY | C28: 0 | D28: 0 | E28: 0 | F28: 0 | G28: 0 | H28: 0 | I28: 0 | J28: 0 | K28: 0
B29: TOTAL | C29: =SUM(C6:C28) -> 0 | D29: =SUM(D6:D28) -> 0 | F29: =SUM(F6:F28) -> 0 | G29: 0 | H29: 0 | I29: 0 | J29: 0 | K29: 0
B30: REINSURERS
B31: CONTINENTAL REINSURANCE | C31: ='APPENDIX 9'!D31 -> 2469 | D31: 0 | E31: 0 | F31: 0 | G31: ='APPENDIX 11'!D31 -> 133985 | H31: 0 | I31: 0 | J31: 0 | K31: =SUM(C31:J31) -> 136454 | L31: =K31/$K$34*100 -> 4.359132122
B32: EAST AFRICA REINSURANCE | C32: ='APPENDIX 9'!D32 -> 34387 | D32: 0 | E32: 0 | F32: 0 | G32: ='APPENDIX 11'!D32 -> 1134266 | H32: 0 | I32: 0 | J32: 0 | K32: =SUM(C32:J32) -> 1168653 | L32: =K32/$K$34*100 -> 37.3335544
B33: KENYA REINSURANCE CORPORATION | C33: ='APPENDIX 9'!D33 -> 59688 | D33: 0 | E33: 0 | F33: 0 | G33: ='APPENDIX 11'!D33 -> 1765507 | H33: 0 | I33: 0 | J33: 0 | K33: =SUM(C33:J33) -> 1825195 | L33: =K33/$K$34*100 -> 58.30731348
B34: TOTAL | C34: =SUM(C31:C33) -> 96544 | D34: =SUM(D31:D33) -> 0 | E34: 0 | F34: 0 | G34: 3033758 | H34: 0 | I34: 0 | J34: 0 | K34: =SUM(K31:K33) -> 3130302 | L34: =SUM(L31:L33) -> 100
B35: Amounts in Thousand Shillings

Sheet APPENDIX 8
B3: APPENDIX 8: SUMMARY OF LONG TERM BUSINESS OUTWARD REINSURANCE PREMIUM FOR THE YEAR ENDED 31.12.2021
B4: Company | C4: Life Assurances | D4: Annuities | E4: Deposit Administration | F4: Personal Pensions | G4: Group Life | H4: Group Credit | I4: Permanent Health | J4: Investments | K4: Total
B5: INSURERS
B6: ABSA LIFE ASSURANCE KENYA | C6: ='APPENDIX 9'!D6-'APPENDIX 9'!E6 -> 0 | D6: ='APPENDIX 10'!D6-'APPENDIX 10'!E6 -> 0 | E6: ='APPENDIX 13'!D6-'APPENDIX 13'!E6 -> 0 | F6: ='APPENDIX 12'!D6-'APPENDIX 12'!E6 -> 0 | G6: ='APPENDIX 11'!D6-'APPENDIX 11'!E6 -> 1097910 | H6: ='APPENDIX 14'!D6-'APPENDIX 14'!E6 -> 73970 | I6: ='APPENDIX 15'!D6-'APPENDIX 15'!E6 -> 0 | J6: ='APPENDIX 16'!D6-'APPENDIX 16'!E6 -> 0 | K6: =SUM(C6:J6) -> 1171880
B7: APA LIFE ASSURANCE COMPANY | C7: ='APPENDIX 9'!D7-'APPENDIX 9'!E7 -> 369 | D7: ='APPENDIX 10'!D7-'APPENDIX 10'!E7 -> 0 | E7: ='APPENDIX 13'!D7-'APPENDIX 13'!E7 -> 0 | F7: ='APPENDIX 12'!D7-'APPENDIX 12'!E7 -> 0 | G7: ='APPENDIX 11'!D7-'APPENDIX 11'!E7 -> 467357 | H7: ='APPENDIX 14'!D7-'APPENDIX 14'!E7 -> 59550 | I7: ='APPENDIX 15'!D7-'APPENDIX 15'!E7 -> 0 | J7: ='APPENDIX 16'!D7-'APPENDIX 16'!E7 -> 0 | K7: =SUM(C7:J7) -> 527276
B8: BRITAM LIFE INSURANCE COMPANY | C8: ='APPENDIX 9'!D8-'APPENDIX 9'!E8 -> 13968 | D8: ='APPENDIX 10'!D8-'APPENDIX 10'!E8 -> 0 | E8: ='APPENDIX 13'!D8-'APPENDIX 13'!E8 -> 0 | F8: ='APPENDIX 12'!D8-'APPENDIX 12'!E8 -> 0 | G8: ='APPENDIX 11'!D8-'APPENDIX 11'!E8 -> 846281 | H8: ='APPENDIX 14'!D8-'APPENDIX 14'!E8 -> 98963 | I8: ='APPENDIX 15'!D8-'APPENDIX 15'!E8 -> 0 | J8: ='APPENDIX 16'!D8-'APPENDIX 16'!E8 -> 0 | K8: 959212
B9: CAPEX LIFE ASSURANCE COMPANY | C9: ='APPENDIX 9'!D9-'APPENDIX 9'!E9 -> 0 | D9: ='APPENDIX 10'!D9-'APPENDIX 10'!E9 -> 0 | E9: ='APPENDIX 13'!D9-'APPENDIX 13'!E9 -> 0 | F9: ='APPENDIX 12'!D9-'APPENDIX 12'!E9 -> 0 | G9: ='APPENDIX 11'!D9-'APPENDIX 11'!E9 -> 56160 | H9: ='APPENDIX 14'!D9-'APPENDIX 14'!E9 -> 0 | I9: ='APPENDIX 15'!D9-'APPENDIX 15'!E9 -> 0 | J9: ='APPENDIX 16'!D9-'APPENDIX 16'!E9 -> 0 | K9: 56160
B10: CIC LIFE ASSURANCE COMPANY | C10: ='APPENDIX 9'!D10-'APPENDIX 9'!E10 -> 12202 | D10: ='APPENDIX 10'!D10-'APPENDIX 10'!E10 -> 0 | E10: ='APPENDIX 13'!D10-'APPENDIX 13'!E10 -> 0 | F10: ='APPENDIX 12'!D10-'APPENDIX 12'!E10 -> 0 | G10: ='APPENDIX 11'!D10-'APPENDIX 11'!E10 -> 278857 | H10: ='APPENDIX 14'!D10-'APPENDIX 14'!E10 -> 1384636 | I10: ='APPENDIX 15'!D10-'APPENDIX 15'!E10 -> 0 | J10: ='APPENDIX 16'!D10-'APPENDIX 16'!E10 -> 0 | K10: 1675695
B11: CORPORATE INSURANCE COMPANY | C11: ='APPENDIX 9'!D11-'APPENDIX 9'!E11 -> 204 | D11: ='APPENDIX 10'!D11-'APPENDIX 10'!E11 -> 0 | E11: ='APPENDIX 13'!D11-'APPENDIX 13'!E11 -> 0 | F11: ='APPENDIX 12'!D11-'APPENDIX 12'!E11 -> 0 | G11: ='APPENDIX 11'!D11-'APPENDIX 11'!E11 -> 11869 | H11: ='APPENDIX 14'!D11-'APPENDIX 14'!E11 -> 0 | I11: ='APPENDIX 15'!D11-'APPENDIX 15'!E11 -> 0 | J11: ='APPENDIX 16'!D11-'APPENDIX 16'!E11 -> 0 | K11: 12073
B12: GA LIFE ASSURANCE COMPANY | C12: ='APPENDIX 9'!D12-'APPENDIX 9'!E12 -> 0 | D12: ='APPENDIX 10'!D12-'APPENDIX 10'!E12 -> 0 | E12: ='APPENDIX 13'!D12-'APPENDIX 13'!E12 -> 0 | F12: ='APPENDIX 12'!D12-'APPENDIX 12'!E12 -> 0 | G12: ='APPENDIX 11'!D12-'APPENDIX 11'!E12 -> 43886 | H12: ='APPENDIX 14'!D12-'APPENDIX 14'!E12 -> 3421 | I12: ='APPENDIX 15'!D12-'APPENDIX 15'!E12 -> 0 | J12: ='APPENDIX 16'!D12-'APPENDIX 16'!E12 -> 0 | K12: 47307
B13: GEMINIA INSURANCE COMPANY | C13: ='APPENDIX 9'!D13-'APPENDIX 9'!E13 -> 0 | D13: ='APPENDIX 10'!D13-'APPENDIX 10'!E13 -> 0 | E13: ='APPENDIX 13'!D13-'APPENDIX 13'!E13 -> 0 | F13: ='APPENDIX 12'!D13-'APPENDIX 12'!E13 -> 0 | G13: ='APPENDIX 11'!D13-'APPENDIX 11'!E13 -> 246058 | H13: ='APPENDIX 14'!D13-'APPENDIX 14'!E13 -> 0 | I13: ='APPENDIX 15'!D13-'APPENDIX 15'!E13 -> 0 | J13: ='APPENDIX 16'!D13-'APPENDIX 16'!E13 -> 0 | K13: 246058
B14: ICEA LION LIFE ASSURANCE | C14: ='APPENDIX 9'!D14-'APPENDIX 9'!E14 -> 35076 | D14: ='APPENDIX 10'!D14-'APPENDIX 10'!E14 -> 0 | E14: ='APPENDIX 13'!D14-'APPENDIX 13'!E14 -> 0 | F14: ='APPENDIX 12'!D14-'APPENDIX 12'!E14 -> 0 | G14: ='APPENDIX 11'!D14-'APPENDIX 11'!E14 -> 181574 | H14: ='APPENDIX 14'!D14-'APPENDIX 14'!E14 -> 89798 | I14: ='APPENDIX 15'!D14-'APPENDIX 15'!E14 -> 0 | J14: ='APPENDIX 16'!D14-'APPENDIX 16'!E14 -> 0 | K14: 306448
B15: JUBILEE INSURANCE COMPANY LIMITED-LIFE | C15: ='APPENDIX 9'!D15-'APPENDIX 9'!E15 -> 10765 | D15: ='APPENDIX 10'!D15-'APPENDIX 10'!E15 -> 0 | E15: ='APPENDIX 13'!D15-'APPENDIX 13'!E15 -> 0 | F15: ='APPENDIX 12'!D15-'APPENDIX 12'!E15 -> 0 | G15: ='APPENDIX 11'!D15-'APPENDIX 11'!E15 -> 441445 | H15: ='APPENDIX 14'!D15-'APPENDIX 14'!E15 -> 0 | I15: ='APPENDIX 15'!D15-'APPENDIX 15'!E15 -> 0 | J15: ='APPENDIX 16'!D15-'APPENDIX 16'!E15 -> 0 | K15: 452210
B16: KENINDIA ASSURANCE COMPANY | C16: ='APPENDIX 9'!D16-'APPENDIX 9'!E16 -> 4521 | D16: ='APPENDIX 10'!D16-'APPENDIX 10'!E16 -> 0 | E16: ='APPENDIX 13'!D16-'APPENDIX 13'!E16 -> 0 | F16: ='APPENDIX 12'!D16-'APPENDIX 12'!E16 -> 0 | G16: ='APPENDIX 11'!D16-'APPENDIX 11'!E16 -> 31939 | H16: ='APPENDIX 14'!D16-'APPENDIX 14'!E16 -> 0 | I16: ='APPENDIX 15'!D16-'APPENDIX 15'!E16 -> 0 | J16: ='APPENDIX 16'!D16-'APPENDIX 16'!E16 -> 0 | K16: 36460
B17: KENYA ORIENT LIFE ASSURANCE | C17: ='APPENDIX 9'!D17-'APPENDIX 9'!E17 -> 0 | D17: ='APPENDIX 10'!D17-'APPENDIX 10'!E17 -> 0 | E17: ='APPENDIX 13'!D17-'APPENDIX 13'!E17 -> 0 | F17: ='APPENDIX 12'!D17-'APPENDIX 12'!E17 -> 0 | G17: ='APPENDIX 11'!D17-'APPENDIX 11'!E17 -> 22134 | H17: ='APPENDIX 14'!D17-'APPENDIX 14'!E17 -> 40565 | I17: ='APPENDIX 15'!D17-'APPENDIX 15'!E17 -> 0 | J17: ='APPENDIX 16'!D17-'APPENDIX 16'!E17 -> 0 | K17: 62699
B18: KUSCCO MUTUAL ASSURANCE LIMITED | C18: ='APPENDIX 9'!D18-'APPENDIX 9'!E18 -> 0 | D18: ='APPENDIX 10'!D18-'APPENDIX 10'!E18 -> 0 | E18: ='APPENDIX 13'!D18-'APPENDIX 13'!E18 -> 0 | F18: ='APPENDIX 12'!D18-'APPENDIX 12'!E18 -> 0 | G18: ='APPENDIX 11'!D18-'APPENDIX 11'!E18 -> 6242 | H18: ='APPENDIX 14'!D18-'APPENDIX 14'!E18 -> 420083 | I18: ='APPENDIX 15'!D18-'APPENDIX 15'!E18 -> 0 | J18: ='APPENDIX 16'!D18-'APPENDIX 16'!E18 -> 0 | K18: 426325
B19: LIBERTY LIFE ASSURANCE COMPANY | C19: ='APPENDIX 9'!D19-'APPENDIX 9'!E19 -> 7073 | D19: ='APPENDIX 10'!D19-'APPENDIX 10'!E19 -> 0 | E19: ='APPENDIX 13'!D19-'APPENDIX 13'!E19 -> 0 | F19: ='APPENDIX 12'!D19-'APPENDIX 12'!E19 -> 0 | G19: ='APPENDIX 11'!D19-'APPENDIX 11'!E19 -> 174570 | H19: ='APPENDIX 14'!D19-'APPENDIX 14'!E19 -> 103711 | I19: ='APPENDIX 15'!D19-'APPENDIX 15'!E19 -> 0 | J19: ='APPENDIX 16'!D19-'APPENDIX 16'!E19 -> 0 | K19: 285354
B20: MADISON INSURANCE COMPANY | C20: ='APPENDIX 9'!D20-'APPENDIX 9'!E20 -> 0 | D20: ='APPENDIX 10'!D20-'APPENDIX 10'!E20 -> 0 | E20: ='APPENDIX 13'!D20-'APPENDIX 13'!E20 -> 0 | F20: ='APPENDIX 12'!D20-'APPENDIX 12'!E20 -> 0 | G20: ='APPENDIX 11'!D20-'APPENDIX 11'!E20 -> 128286 | H20: ='APPENDIX 14'!D20-'APPENDIX 14'!E20 -> 0 | I20: ='APPENDIX 15'!D20-'APPENDIX 15'!E20 -> 0 | J20: ='APPENDIX 16'!D20-'APPENDIX 16'!E20 -> 0 | K20: 128286
B21: METROPOLITAN CANNON INSURANCE | C21: ='APPENDIX 9'!D21-'APPENDIX 9'!E21 -> 263 | D21: ='APPENDIX 10'!D21-'APPENDIX 10'!E21 -> 0 | E21: ='APPENDIX 13'!D21-'APPENDIX 13'!E21 -> 0 | F21: ='APPENDIX 12'!D21-'APPENDIX 12'!E21 -> 0 | G21: ='APPENDIX 11'!D21-'APPENDIX 11'!E21 -> 167493 | H21: ='APPENDIX 14'!D21-'APPENDIX 14'!E21 -> 11691 | I21: ='APPENDIX 15'!D21-'APPENDIX 15'!E21 -> 0 | J21: ='APPENDIX 16'!D21-'APPENDIX 16'!E21 -> 0 | K21: 179447
B22: OLD MUTUAL LIFE ASSURANCE | C22: ='APPENDIX 9'!D22-'APPENDIX 9'!E22 -> 93921 | D22: ='APPENDIX 10'!D22-'APPENDIX 10'!E22 -> 0 | E22: ='APPENDIX 13'!D22-'APPENDIX 13'!E22 -> 0 | F22: ='APPENDIX 12'!D22-'APPENDIX 12'!E22 -> 0 | G22: ='APPENDIX 11'!D22-'APPENDIX 11'!E22 -> 101395 | H22: ='APPENDIX 14'!D22-'APPENDIX 14'!E22 -> 0 | I22: ='APPENDIX 15'!D22-'APPENDIX 15'!E22 -> 0 | J22: ='APPENDIX 16'!D22-'APPENDIX 16'!E22 -> 0 | K22: 195316
B23: PIONEER ASSURANCE COMPANY | C23: ='APPENDIX 9'!D23-'APPENDIX 9'!E23 -> 2155 | D23: ='APPENDIX 10'!D23-'APPENDIX 10'!E23 -> 0 | E23: ='APPENDIX 13'!D23-'APPENDIX 13'!E23 -> 0 | F23: ='APPENDIX 12'!D23-'APPENDIX 12'!E23 -> 0 | G23: ='APPENDIX 11'!D23-'APPENDIX 11'!E23 -> 343591 | H23: ='APPENDIX 14'!D23-'APPENDIX 14'!E23 -> 147254 | I23: ='APPENDIX 15'!D23-'APPENDIX 15'!E23 -> 0 | J23: ='APPENDIX 16'!D23-'APPENDIX 16'!E23 -> 0 | K23: 493000
B24: PRUDENTIAL LIFE ASSURANCE | C24: ='APPENDIX 9'!D24-'APPENDIX 9'!E24 -> 4621 | D24: ='APPENDIX 10'!D24-'APPENDIX 10'!E24 -> 0 | E24: ='APPENDIX 13'!D24-'APPENDIX 13'!E24 -> 0 | F24: ='APPENDIX 12'!D24-'APPENDIX 12'!E24 -> 0 | G24: ='APPENDIX 11'!D24-'APPENDIX 11'!E24 -> 121380 | H24: ='APPENDIX 14'!D24-'APPENDIX 14'!E24 -> 16933 | I24: ='APPENDIX 15'!D24-'APPENDIX 15'!E24 -> 0 | J24: ='APPENDIX 16'!D24-'APPENDIX 16'!E24 -> 0 | K24: 142934
B25: SANLAM LIFE INSURANCE | C25: ='APPENDIX 9'!D25-'APPENDIX 9'!E25 -> 59172 | D25: ='APPENDIX 10'!D25-'APPENDIX 10'!E25 -> 18172 | E25: ='APPENDIX 13'!D25-'APPENDIX 13'!E25 -> 0 | F25: ='APPENDIX 12'!D25-'APPENDIX 12'!E25 -> 0 | G25: ='APPENDIX 11'!D25-'APPENDIX 11'!E25 -> 818783 | H25: ='APPENDIX 14'!D25-'APPENDIX 14'!E25 -> 188224 | I25: ='APPENDIX 15'!D25-'APPENDIX 15'!E25 -> 0 | J25: ='APPENDIX 16'!D25-'APPENDIX 16'!E25 -> 895 | K25: 1085246
B26: THE KENYAN ALLIANCE INSURANCE | C26: ='APPENDIX 9'!D26-'APPENDIX 9'!E26 -> 0 | D26: ='APPENDIX 10'!D26-'APPENDIX 10'!E26 -> 0 | E26: ='APPENDIX 13'!D26-'APPENDIX 13'!E26 -> 0 | F26: ='APPENDIX 12'!D26-'APPENDIX 12'!E26 -> 0 | G26: ='APPENDIX 11'!D26-'APPENDIX 11'!E26 -> 103662 | H26: ='APPENDIX 14'!D26-'APPENDIX 14'!E26 -> 0 | I26: ='APPENDIX 15'!D26-'APPENDIX 15'!E26 -> 0 | J26: ='APPENDIX 16'!D26-'APPENDIX 16'!E26 -> 0 | K26: 103662
B27: THE MONARCH INSURANCE | C27: ='APPENDIX 9'!D27-'APPENDIX 9'!E27 -> 122 | D27: ='APPENDIX 10'!D27-'APPENDIX 10'!E27 -> 0 | E27: ='APPENDIX 13'!D27-'APPENDIX 13'!E27 -> 0 | F27: ='APPENDIX 12'!D27-'APPENDIX 12'!E27 -> 0 | G27: ='APPENDIX 11'!D27-'APPENDIX 11'!E27 -> 35271 | H27: ='APPENDIX 14'!D27-'APPENDIX 14'!E27 -> 0 | I27: ='APPENDIX 15'!D27-'APPENDIX 15'!E27 -> 0 | J27: ='APPENDIX 16'!D27-'APPENDIX 16'!E27 -> 0 | K27: 35393
B28: UAP LIFE ASSURANCE COMPANY | C28: ='APPENDIX 9'!D28-'APPENDIX 9'!E28 -> 0 | D28: ='APPENDIX 10'!D28-'APPENDIX 10'!E28 -> 0 | E28: ='APPENDIX 13'!D28-'APPENDIX 13'!E28 -> 0 | F28: ='APPENDIX 12'!D28-'APPENDIX 12'!E28 -> 0 | G28: ='APPENDIX 11'!D28-'APPENDIX 11'!E28 -> 453149 | H28: ='APPENDIX 14'!D28-'APPENDIX 14'!E28 -> 0 | I28: ='APPENDIX 15'!D28-'APPENDIX 15'!E28 -> 0 | J28: ='APPENDIX 16'!D28-'APPENDIX 16'!E28 -> 0 | K28: 453149
B29: TOTAL | C29: =SUM(C6:C28) -> 244432 | D29: 18172 | E29: 0 | F29: 0 | G29: 6179292 | H29: 2638799 | I29: 0 | J29: 895 | K29: 9081590
B30: REINSURERS
B31: CONTINENTAL REINSURANCE | C31: ='APPENDIX 9'!D31-'APPENDIX 9'!E31 -> 1533 | D31: ='APPENDIX 10'!D31-'APPENDIX 10'!E31 -> 0 | E31: ='APPENDIX 13'!D31-'APPENDIX 13'!E31 -> 0 | F31: ='APPENDIX 12'!D31-'APPENDIX 12'!E31 -> 0 | G31: ='APPENDIX 11'!D31-'APPENDIX 11'!E31 -> 13798 | H31: ='APPENDIX 14'!D31-'APPENDIX 14'!E31 -> 0 | I31: ='APPENDIX 15'!D30-'APPENDIX 15'!E30 -> 0 | J31: ='APPENDIX 16'!D31-'APPENDIX 16'!E31 -> 0 | K31: =SUM(C31:J31) -> 15331
B32: EAST AFRICA REINSURANCE | C32: ='APPENDIX 9'!D32-'APPENDIX 9'!E32 -> 0 | D32: ='APPENDIX 10'!D32-'APPENDIX 10'!E32 -> 0 | E32: ='APPENDIX 13'!D32-'APPENDIX 13'!E32 -> 0 | F32: ='APPENDIX 12'!D32-'APPENDIX 12'!E32 -> 0 | G32: ='APPENDIX 11'!D32-'APPENDIX 11'!E32 -> 252458 | H32: ='APPENDIX 14'!D32-'APPENDIX 14'!E32 -> 0 | I32: ='APPENDIX 15'!D31-'APPENDIX 15'!E31 -> 0 | J32: ='APPENDIX 16'!D32-'APPENDIX 16'!E32 -> 0 | K32: =SUM(C32:J32) -> 252458
B33: KENYA REINSURANCE CORPORATION | C33: ='APPENDIX 9'!D33-'APPENDIX 9'!E33 -> 11143 | D33: ='APPENDIX 10'!D33-'APPENDIX 10'!E33 -> 0 | E33: ='APPENDIX 13'!D33-'APPENDIX 13'!E33 -> 0 | F33: ='APPENDIX 12'!D33-'APPENDIX 12'!E33 -> 0 | G33: ='APPENDIX 11'!D33-'APPENDIX 11'!E33 -> 67829 | H33: ='APPENDIX 14'!D33-'APPENDIX 14'!E33 -> 0 | I33: ='APPENDIX 15'!D32-'APPENDIX 15'!E32 -> 0 | J33: ='APPENDIX 16'!D33-'APPENDIX 16'!E33 -> 0 | K33: =SUM(C33:J33) -> 78972
B34: TOTAL | C34: =SUM(C31:C33) -> 12676 | D34: =SUM(D31:D33) -> 0 | E34: 0 | F34: 0 | G34: 334085 | H34: 0 | I34: 0 | J34: 0 | K34: 346761
B35: Amounts in Thousand Shillings

Sheet APPENDIX 9
B3: APPENDIX 9: SUMMARY OF LIFE ASSURANCES BUSINESS REVENUE ACCOUNTS FOR THE YEAR ENDED 31.12.2021
B4: Company | C4: Life Fund BF | D4: Gross Premium | E4: Net Premium | F4: Other (Fee) Income | G4: Total Benefits | H4: Claims | I4: Surrenders | J4: Bonuses Paid | K4: Annuities Paid | L4: Net Commisions | M4: Expense of Management | N4: Investment Income | O4: Investment Expenses | P4: Transfer To (From) P & L | Q4: Life Fund CF
B5: INSURERS
B6: ABSA LIFE ASSURANCE KENYA | C6: 125886 | D6: 1753007 | E6: 1753007 | F6: 0 | G6: 266519 | H6: 1615296 | I6: 0 | J6: 0 | K6: 0 | L6: 187945 | M6: 199096 | N6: 362317 | O6: 0 | P6: 0 | Q6: 238873
B7: APA LIFE ASSURANCE COMPANY | C7: 385839 | D7: 354920 | E7: 354551 | F7: 0 | G7: 50909 | H7: 50909 | I7: 0 | J7: 0 | K7: 0 | L7: 92301 | M7: 114519 | N7: 60343 | O7: 5157 | P7: -25000 | Q7: 562846
B8: BRITAM LIFE INSURANCE COMPANY | C8: 30341047 | D8: 9669967 | E8: 9655999 | F8: 40993 | G8: 4370664 | H8: 715592 | I8: 2196223 | J8: 1507234 | K8: 0 | L8: 1083829 | M8: 1936087 | N8: 2520617 | O8: 114543 | P8: 2509310 | Q8: 32495838
B9: CAPEX LIFE ASSURANCE COMPANY | C9: 15592 | D9: 5637 | E9: 5637 | F9: 0 | G9: 6448 | H9: 10261 | I9: 11 | J9: 0 | K9: 0 | L9: 462 | M9: 1958 | N9: 0 | O9: 0 | P9: 0 | Q9: 8535
B10: CIC LIFE ASSURANCE COMPANY | C10: 987156 | D10: 1094034 | E10: 1081832 | F10: 0 | G10: 609217 | H10: 829158 | I10: 0 | J10: 0 | K10: 0 | L10: 88724 | M10: 200612 | N10: 226924 | O10: 0 | P10: 0 | Q10: 1177417
B11: CORPORATE INSURANCE COMPANY | C11: 375094 | D11: 166660 | E11: 166456 | F11: 0 | G11: 262435 | H11: 262435 | I11: 0 | J11: 0 | K11: 0 | L11: 18839 | M11: 25461 | N11: 28680 | O11: 0 | P11: 0 | Q11: 263495
B12: GA LIFE ASSURANCE COMPANY | C12: 799381 | D12: 1197309 | E12: 1197309 | F12: 0 | G12: 67891 | H12: 67891 | I12: 0 | J12: 0 | K12: 0 | L12: 22880 | M12: 525 | N12: 247696 | O12: 0 | P12: 19102 | Q12: 2133987
B13: GEMINIA INSURANCE COMPANY | C13: 585892 | D13: 66215 | E13: 66215 | F13: 0 | G13: 21416 | H13: -95050 | I13: 0 | J13: 0 | K13: 0 | L13: 8346 | M13: 34206 | N13: 73964 | O13: 6071 | P13: 0 | Q13: 772498
B14: ICEA LION LIFE ASSURANCE | C14: 13670686 | D14: 3663225 | E14: 3628149 | F14: 0 | G14: 1906696 | H14: 1565402 | I14: 296502 | J14: 0 | K14: 0 | L14: 657073 | M14: 717176 | N14: 1580318 | O14: 0 | P14: 190217 | Q14: 15452784
B15: JUBILEE INSURANCE COMPANY LIMITED-LIFE | C15: 10900615 | D15: 4030023 | E15: 4019258 | F15: 0 | G15: 2767226 | H15: 2258898 | I15: 635434 | J15: 0 | K15: 0 | L15: 666523 | M15: 452327 | N15: 1185437 | O15: 9540 | P15: 216156 | Q15: 11866432
B16: KENINDIA ASSURANCE COMPANY | C16: 12024419 | D16: 3241908 | E16: 3237387 | F16: 0 | G16: 836350 | H16: 840996 | I16: 0 | J16: 0 | K16: 0 | L16: 153592 | M16: 383865 | N16: 1780080 | O16: 0 | P16: 375000 | Q16: 15288432
B17: KENYA ORIENT LIFE ASSURANCE | C17: -18487 | D17: 41993 | E17: 41993 | F17: 0 | G17: 2609 | H17: 1012 | I17: 1597 | J17: 0 | K17: 0 | L17: 4727 | M17: 15211 | N17: 5424 | O17: 0 | P17: 0 | Q17: 6383
B18: KUSCCO MUTUAL ASSURANCE LIMITED | C18: 0 | D18: 53 | E18: 53 | F18: 0 | G18: 0 | H18: 0 | I18: 0 | J18: 0 | K18: 0 | L18: 0 | M18: 10 | N18: 1 | O18: 0 | P18: 0 | Q18: 43
B19: LIBERTY LIFE ASSURANCE COMPANY | C19: 9750410 | D19: 1253210 | E19: 1246137 | F19: 0 | G19: 1380420 | H19: 832081 | I19: 515864 | J19: 0 | K19: 0 | L19: 113252 | M19: 413850 | N19: 700709 | O19: 34490 | P19: 0 | Q19: 9787719
B20: MADISON INSURANCE COMPANY | C20: 3983664 | D20: 1765429 | E20: 1765429 | F20: 0 | G20: 774169 | H20: 679556 | I20: 94612 | J20: 0 | K20: 0 | L20: 255080 | M20: 649126 | N20: 277668 | O20: 0 | P20: 0 | Q20: 4348387
B21: METROPOLITAN CANNON INSURANCE | C21: 815001 | D21: 51385 | E21: 51122 | F21: 0 | G21: 35897 | H21: 35897 | I21: 58682 | J21: 0 | K21: 0 | L21: -2874 | M21: 52470 | N21: 67290 | O21: 0 | P21: 0 | Q21: 789239
B22: OLD MUTUAL LIFE ASSURANCE | C22: 4908303 | D22: 1165535 | E22: 1071614 | F22: 389336 | G22: 873002 | H22: 566301 | I22: 473883 | J22: 0 | K22: 0 | L22: 241687 | M22: 534277 | N22: 523124 | O22: 20350 | P22: -103909 | Q22: 5159788
B23: PIONEER ASSURANCE COMPANY | C23: 536549 | D23: 1096328 | E23: 1094173 | F23: 0 | G23: 482085 | H23: 482085 | I23: 0 | J23: 0 | K23: 0 | L23: 272539 | M23: 286637 | N23: 107109 | O23: 0 | P23: 0 | Q23: 696570
B24: PRUDENTIAL LIFE ASSURANCE | C24: 401867 | D24: 373743 | E24: 369122 | F24: 6997 | G24: 116748 | H24: 116957 | I24: 0 | J24: 0 | K24: 0 | L24: 75070 | M24: 194796 | N24: 58915 | O24: 2160 | P24: 0 | Q24: 447919
B25: SANLAM LIFE INSURANCE | C25: 5078140 | D25: 2585049 | E25: 2525877 | F25: 0 | G25: 627581 | H25: 643207 | I25: 0 | J25: 0 | K25: 0 | L25: 372432 | M25: 700140 | N25: 550835 | O25: 0 | P25: 567249 | Q25: 5871824
B26: THE KENYAN ALLIANCE INSURANCE | C26: 21566 | D26: 17896 | E26: 17896 | F26: 0 | G26: 9348 | H26: 9348 | I26: 0 | J26: 0 | K26: 0 | L26: 2513 | M26: 4730 | N26: 2817 | O26: 0 | P26: 0 | Q26: 25688
B27: THE MONARCH INSURANCE | C27: 78408 | D27: 27939 | E27: 27817 | F27: 0 | G27: 0 | H27: 9621 | I27: 0 | J27: 0 | K27: 0 | L27: 2487 | M27: 10879 | N27: 4510 | O27: 0 | P27: 7318 | Q27: 80430
B28: UAP LIFE ASSURANCE COMPANY | C28: 1580055 | D28: 485766 | E28: 485766 | F28: 0 | G28: 300100 | H28: 97781 | I28: 214971 | J28: 0 | K28: 0 | L28: 27024 | M28: 436052 | N28: 471554 | O28: 0 | P28: 0 | Q28: 1761547
B29: TOTAL | C29: =SUM(C6:C28) -> 97347083 | D29: 34107231 | E29: 33862799 | F29: 437326 | G29: 15767730 | H29: 11595634 | I29: 4487779 | J29: 1507234 | K29: 0 | L29: 4344451 | M29: 7364010 | N29: 10836332 | O29: 192311 | P29: 3755443 | Q29: 109236674
B30: REINSURERS
B31: CONTINENTAL REINSURANCE | C31: 0 | D31: 2469 | E31: 936 | F31: 0 | G31: 561 | H31: 561 | I31: 0 | J31: 0 | K31: 0 | L31: 680 | M31: 79 | N31: 2795 | O31: 0 | P31: 0 | Q31: 2412
B32: EAST AFRICA REINSURANCE | C32: 0 | D32: 34387 | E32: 34387 | F32: -617 | G32: 4838 | H32: 0 | I32: 0 | J32: 0 | K32: 0 | L32: 3730 | M32: 6820 | N32: 0 | O32: 0 | P32: 0 | Q32: 23220
B33: KENYA REINSURANCE CORPORATION | C33: 1498801 | D33: 59688 | E33: 48545 | F33: 27783 | G33: -7297 | H33: 33914 | I33: 0 | J33: 0 | K33: 0 | L33: 14263 | M33: 35253 | N33: 100436 | O33: 0 | P33: 0 | Q33: 1592134
B34: TOTAL | C34: =SUM(C31:C33) -> 1498801 | D34: =SUM(D31:D33) -> 96544 | E34: =SUM(E31:E33) -> 83868 | F34: 27166 | G34: -1898 | H34: 34475 | I34: 0 | J34: 0 | K34: 0 | L34: 18673 | M34: 42152 | N34: 103231 | O34: 0 | P34: =SUM(P31:P33) -> 0 | Q34: =SUM(Q31:Q33) -> 1617766
B35: Amounts in Thousand Shillings

Sheet APPENDIX 10
B3: APPENDIX 10: SUMMARY OF ANNUITIES BUSINESS REVENUE ACCOUNTS FOR THE YEAR ENDED 31.12.2021
B4: Company | C4: Life Fund BF | D4: Gross Premium | E4: Net Premium | F4: Other (Fee) Income | G4: Total Benefits | H4: Claims | I4: Surrenders | J4: Bonuses Paid | K4: Annuities Paid | L4: Net Commisions | M4: Expense of Management | N4: Investment Income | O4: Investment Expenses | P4: Transfer To (From) P & L | Q4: Life Fund CF
B5: INSURERS
B6: ABSA LIFE ASSURANCE KENYA | C6: 0 | D6: 0 | E6: 0 | F6: 0 | G6: 0 | H6: 0 | I6: 0 | J6: 0 | K6: 0 | L6: 0 | M6: 0 | N6: 0 | O6: 0 | P6: 0 | Q6: 0
B7: APA LIFE ASSURANCE COMPANY | C7: 551363 | D7: 278440 | E7: 278440 | F7: 0 | G7: 84426 | H7: 0 | I7: 0 | J7: 0 | K7: 84426 | L7: 0 | M7: 5472 | N7: 37906 | O7: 3636 | P7: 0 | Q7: 774174
B8: BRITAM LIFE INSURANCE COMPANY | C8: 8111701 | D8: 755570 | E8: 755570 | F8: 0 | G8: 1224878 | H8: 0 | I8: 0 | J8: 0 | K8: 1191560 | L8: 15316 | M8: 22261 | N8: 1258914 | O8: 24177 | P8: 430134 | Q8: 8442736
B9: CAPEX LIFE ASSURANCE COMPANY | C9: 494952 | D9: 180796 | E9: 180796 | F9: 0 | G9: 126051 | H9: 6389 | I9: 0 | J9: 0 | K9: 119811 | L9: 2967 | M9: 6687 | N9: 89770 | O9: 0 | P9: 0 | Q9: 629664
B10: CIC LIFE ASSURANCE COMPANY | C10: -371430 | D10: 57894 | E10: 57894 | F10: 0 | G10: 237058 | H10: 227495 | I10: 0 | J10: 0 | K10: 0 | L10: 909 | M10: 19742 | N10: 182938 | O10: 0 | P10: 0 | Q10: -378744
B11: CORPORATE INSURANCE COMPANY | C11: 0 | D11: 0 | E11: 0 | F11: 0 | G11: 0 | H11: 0 | I11: 0 | J11: 0 | K11: 0 | L11: 0 | M11: 0 | N11: 0 | O11: 0 | P11: 0 | Q11: 0
B12: GA LIFE ASSURANCE COMPANY | C12: 0 | D12: 0 | E12: 0 | F12: 0 | G12: 0 | H12: 0 | I12: 0 | J12: 0 | K12: 0 | L12: 0 | M12: 0 | N12: 0 | O12: 0 | P12: 0 | Q12: 0
B13: GEMINIA INSURANCE COMPANY | C13: 0 | D13: 0 | E13: 0 | F13: 0 | G13: 0 | H13: 0 | I13: 0 | J13: 0 | K13: 0 | L13: 0 | M13: 0 | N13: 0 | O13: 0 | P13: 0 | Q13: 0
B14: ICEA LION LIFE ASSURANCE | C14: 12912135 | D14: 2736174 | E14: 2736174 | F14: 0 | G14: 1551120 | H14: 15131 | I14: 0 | J14: 0 | K14: 1535989 | L14: 51696 | M14: 23092 | N14: 1590896 | O14: 0 | P14: 360000 | Q14: 15253296
B15: JUBILEE INSURANCE COMPANY LIMITED-LIFE | C15: 10422847 | D15: 1083112 | E15: 1083112 | F15: 0 | G15: 1245244 | H15: 1245244 | I15: 0 | J15: 0 | K15: 0 | L15: 22576 | M15: 41163 | N15: 1270118 | O15: 6519 | P15: 281108 | Q15: 11179467
B16: KENINDIA ASSURANCE COMPANY | C16: 2490361 | D16: 656328 | E16: 656328 | F16: 0 | G16: 300056 | H16: 300056 | I16: 0 | J16: 0 | K16: 0 | L16: 13466 | M16: 0 | N16: 366948 | O16: 0 | P16: 0 | Q16: 3200114
B17: KENYA ORIENT LIFE ASSURANCE | C17: 551333 | D17: 175460 | E17: 175460 | F17: 0 | G17: 100904 | H17: 3175 | I17: 0 | J17: 0 | K17: 97729 | L17: 6129 | M17: 1411 | N17: 105741 | O17: 0 | P17: 0 | Q17: 724090
B18: KUSCCO MUTUAL ASSURANCE LIMITED | C18: 0 | D18: 0 | E18: 0 | F18: 0 | G18: 0 | H18: 0 | I18: 0 | J18: 0 | K18: 0 | L18: 0 | M18: 0 | N18: 0 | O18: 0 | P18: 0 | Q18: 0
B19: LIBERTY LIFE ASSURANCE COMPANY | C19: 358089 | D19: 294582 | E19: 294582 | F19: 0 | G19: 80661 | H19: 0 | I19: 80661 | J19: 0 | K19: 0 | L19: 3871 | M19: 1000 | N19: 64277 | O19: 3946 | P19: 0 | Q19: 627470
B20: MADISON INSURANCE COMPANY | C20: 7495824 | D20: 682929 | E20: 682929 | F20: 0 | G20: 1090000 | H20: 0 | I20: 0 | J20: 0 | K20: 1090000 | L20: 13158 | M20: 75270 | N20: 487200 | O20: 0 | P20: 0 | Q20: 7487524
B21: METROPOLITAN CANNON INSURANCE | C21: 40128 | D21: 0 | E21: 0 | F21: 0 | G21: 26076 | H21: 26076 | I21: 0 | J21: 0 | K21: 0 | L21: 0 | M21: 0 | N21: 0 | O21: 0 | P21: 0 | Q21: 14052
B22: OLD MUTUAL LIFE ASSURANCE | C22: -2899 | D22: 0 | E22: 0 | F22: 0 | G22: 852 | H22: 0 | I22: 0 | J22: 0 | K22: 852 | L22: 0 | M22: 0 | N22: 74 | O22: 4 | P22: 0 | Q22: -3681
B23: PIONEER ASSURANCE COMPANY | C23: 231383 | D23: 99026 | E23: 99026 | F23: 0 | G23: 38746 | H23: 38686 | I23: 0 | J23: 0 | K23: 0 | L23: 0 | M23: 25053 | N23: 35906 | O23: 0 | P23: 0 | Q23: 302575
B24: PRUDENTIAL LIFE ASSURANCE | C24: 0 | D24: 0 | E24: 0 | F24: 0 | G24: 0 | H24: 0 | I24: 0 | J24: 0 | K24: 0 | L24: 0 | M24: 0 | N24: 0 | O24: 0 | P24: 0 | Q24: 0
B25: SANLAM LIFE INSURANCE | C25: 11677844 | D25: 2284100 | E25: 2265928 | F25: 0 | G25: 1386257 | H25: 0 | I25: 0 | J25: 0 | K25: 1386257 | L25: 44016 | M25: 13191 | N25: 1393989 | O25: 0 | P25: 0 | Q25: 13894296
B26: THE KENYAN ALLIANCE INSURANCE | C26: 946166 | D26: 6247 | E26: 6247 | F26: 0 | G26: 5870 | H26: 0 | I26: 0 | J26: 0 | K26: 5870 | L26: 226 | M26: 748 | N26: 983 | O26: 0 | P26: 0 | Q26: 946553
B27: THE MONARCH INSURANCE | C27: 0 | D27: 0 | E27: 0 | F27: 0 | G27: 0 | H27: 0 | I27: 0 | J27: 0 | K27: 0 | L27: 0 | M27: 0 | N27: 0 | O27: 0 | P27: 0 | Q27: 0
B28: UAP LIFE ASSURANCE COMPANY | C28: 1032275 | D28: 0 | E28: 0 | F28: 0 | G28: 138593 | H28: 0 | I28: 0 | J28: 0 | K28: 142021 | L28: 0 | M28: 0 | N28: 0 | O28: 0 | P28: 0 | Q28: 890254
B29: TOTAL | C29: =SUM(C6:C28) -> 56942072 | D29: 9290658 | E29: 9272486 | F29: 0 | G29: 7636792 | H29: 1862252 | I29: 80661 | J29: 0 | K29: 5654515 | L29: 174330 | M29: 235090 | N29: 6885660 | O29: 38282 | P29: 1071242 | Q29: 63983840
B30: REINSURERS
B31: CONTINENTAL REINSURANCE | C31: 0 | D31: 0 | E31: 0 | F31: 0 | G31: 0 | H31: 0 | I31: 0 | J31: 0 | K31: 0 | L31: 0 | M31: 0 | N31: 0 | O31: 0 | P31: 0 | Q31: 0
B32: EAST AFRICA REINSURANCE | C32: 0 | D32: 0 | E32: 0 | F32: 0 | G32: 0 | H32: 0 | I32: 0 | J32: 0 | K32: 0 | L32: 0 | M32: 0 | N32: 0 | O32: 0 | P32: 0 | Q32: 0
B33: KENYA REINSURANCE CORPORATION | C33: 0 | D33: 0 | E33: 0 | F33: 0 | G33: 0 | H33: 0 | I33: 0 | J33: 0 | K33: 0 | L33: 0 | M33: 0 | N33: 0 | O33: 0 | P33: 0 | Q33: 0
B34: TOTAL | C34: =SUM(C31:C33) -> 0 | D34: =SUM(D31:D33) -> 0 | E34: 0 | F34: 0 | G34: 0 | H34: 0 | I34: 0 | J34: 0 | K34: 0 | L34: 0 | M34: 0 | N34: 0 | O34: 0 | P34: 0 | Q34: 0
B35: Amounts in Thousand Shillings

Sheet APPENDIX 11
B3: APPENDIX 11: SUMMARY OF GROUP LIFE BUSINESS REVENUE ACCOUNTS FOR THE YEAR ENDED 31.12.2021
B4: Company | C4: Life Fund BF | D4: Gross Premium | E4: Net Premium | F4: Other (Fee) Income | G4: Total Benefits | H4: Claims | I4: Surrenders | J4: Bonuses Paid | K4: Annuities Paid | L4: Net Commisions | M4: Expense of Management | N4: Investment Income | O4: Investment Expenses | P4: Transfer To (From) P & L | Q4: Life Fund CF
B5: INSURERS
B6: ABSA LIFE ASSURANCE KENYA | C6: 314093 | D6: 1982848 | E6: 884938 | F6: 0 | G6: 2185323 | H6: 1094221 | I6: 0 | J6: 0 | K6: 0 | L6: 88786 | M6: 225209 | N6: 154430 | O6: 61917 | P6: 0 | Q6: -116672
B7: APA LIFE ASSURANCE COMPANY | C7: -173384 | D7: 859595 | E7: 392238 | F7: 0 | G7: 425160 | H7: 425160 | I7: 0 | J7: 0 | K7: 0 | L7: 82759 | M7: 141792 | N7: 26470 | O7: 2539 | P7: -235000 | Q7: -171926
B8: BRITAM LIFE INSURANCE COMPANY | C8: 1915747 | D8: 1481210 | E8: 634929 | F8: 0 | G8: 127982 | H8: 266573 | I8: 0 | J8: 0 | K8: 0 | L8: 2572 | M8: 274797 | N8: -110453 | O8: -2247 | P8: -424616 | Q8: 2323142
B9: CAPEX LIFE ASSURANCE COMPANY | C9: 26197 | D9: 252985 | E9: 196825 | F9: 0 | G9: 107953 | H9: 99324 | I9: 0 | J9: 0 | K9: 0 | L9: 6476 | M9: 144028 | N9: 16832 | O9: 0 | P9: 0 | Q9: -9975
B10: CIC LIFE ASSURANCE COMPANY | C10: -285199 | D10: 832330 | E10: 553473 | F10: 0 | G10: 363692 | H10: 530999 | I10: 0 | J10: 0 | K10: 0 | L10: 24529 | M10: 197062 | N10: 65630 | O10: 0 | P10: 0 | Q10: -418684
B11: CORPORATE INSURANCE COMPANY | C11: 40428 | D11: 21310 | E11: 9441 | F11: 0 | G11: 27395 | H11: 27395 | I11: 0 | J11: 0 | K11: 0 | L11: -2321 | M11: 3256 | N11: 3652 | O11: 0 | P11: 0 | Q11: 25191
B12: GA LIFE ASSURANCE COMPANY | C12: 8935 | D12: 50177 | E12: 6291 | F12: 0 | G12: 1995 | H12: 2195 | I12: 0 | J12: 0 | K12: 0 | L12: -9612 | M12: 11823 | N12: 1024 | O12: 0 | P12: 3213 | Q12: 8631
B13: GEMINIA INSURANCE COMPANY | C13: 723117 | D13: 655459 | E13: 409401 | F13: 0 | G13: 303813 | H13: 552827 | I13: 0 | J13: 0 | K13: 0 | L13: -23203 | M13: 198572 | N13: 27584 | O13: 0 | P13: 0 | Q13: 431905
B14: ICEA LION LIFE ASSURANCE | C14: 137203 | D14: 454385 | E14: 272811 | F14: 0 | G14: 110402 | H14: 122366 | I14: 0 | J14: 0 | K14: 0 | L14: -25378 | M14: 80776 | N14: 15535 | O14: 0 | P14: 30000 | Q14: 217786
B15: JUBILEE INSURANCE COMPANY LIMITED-LIFE | C15: 211885 | D15: 890559 | E15: 449114 | F15: 0 | G15: 410445 | H15: 550230 | I15: 0 | J15: 0 | K15: 0 | L15: 29021 | M15: 131649 | N15: 121952 | O15: 897 | P15: -155160 | Q15: 226315
B16: KENINDIA ASSURANCE COMPANY | C16: 64892 | D16: 48061 | E16: 16122 | F16: 0 | G16: 19243 | H16: 19586 | I16: 0 | J16: 0 | K16: 0 | L16: 2332 | M16: 2630 | N16: 12156 | O16: 0 | P16: 0 | Q16: 68621
B17: KENYA ORIENT LIFE ASSURANCE | C17: 181 | D17: 201527 | E17: 179393 | F17: 0 | G17: 30661 | H17: 30661 | I17: 0 | J17: 0 | K17: 0 | L17: 9423 | M17: 23534 | N17: 6075 | O17: 0 | P17: 0 | Q17: 122032
B18: KUSCCO MUTUAL ASSURANCE LIMITED | C18: 10470 | D18: 42380 | E18: 36138 | F18: 0 | G18: 100000 | H18: 0 | I18: 0 | J18: 0 | K18: 0 | L18: 1157 | M18: 8306 | N18: 955 | O18: 0 | P18: 0 | Q18: 38100
B19: LIBERTY LIFE ASSURANCE COMPANY | C19: 296783 | D19: 463117 | E19: 288547 | F19: 0 | G19: 341740 | H19: 404312 | I19: 0 | J19: 0 | K19: 0 | L19: 31107 | M19: 143075 | N19: 66064 | O19: 5074 | P19: 0 | Q19: 67827
B20: MADISON INSURANCE COMPANY | C20: -25157 | D20: 345063 | E20: 216777 | F20: 0 | G20: -44139 | H20: 226794 | I20: 0 | J20: 0 | K20: 0 | L20: -16837 | M20: 29311 | N20: 0 | O20: 0 | P20: 0 | Q20: -47648
B21: METROPOLITAN CANNON INSURANCE | C21: 110376 | D21: 269769 | E21: 102276 | F21: 0 | G21: 110282 | H21: 110282 | I21: 0 | J21: 0 | K21: 0 | L21: -6075 | M21: 98428 | N21: 16823 | O21: 0 | P21: -119980 | Q21: 146821
B22: OLD MUTUAL LIFE ASSURANCE | C22: 216998 | D22: 417180 | E22: 315785 | F22: 0 | G22: 290330 | H22: 301897 | I22: 0 | J22: 0 | K22: 0 | L22: 41289 | M22: 85560 | N22: 45997 | O22: 821 | P22: -208825 | Q22: 358038
B23: PIONEER ASSURANCE COMPANY | C23: 1653818 | D23: 2028879 | E23: 1685288 | F23: 0 | G23: 1157891 | H23: 1181290 | I23: 0 | J23: 0 | K23: 0 | L23: 125497 | M23: 145572 | N23: 0 | O23: 0 | P23: -29527 | Q23: 1916275
B24: PRUDENTIAL LIFE ASSURANCE | C24: 67767 | D24: 477203 | E24: 355823 | F24: 30289 | G24: 126685 | H24: 126685 | I24: 0 | J24: 0 | K24: 0 | L24: 51812 | M24: 233720 | N24: 24925 | O24: 914 | P24: 0 | Q24: 65673
B25: SANLAM LIFE INSURANCE | C25: 50987 | D25: 1440004 | E25: 621221 | F25: 0 | G25: 405053 | H25: 338303 | I25: 0 | J25: 0 | K25: 0 | L25: 52564 | M25: 132022 | N25: 32729 | O25: 0 | P25: 0 | Q25: 182047
B26: THE KENYAN ALLIANCE INSURANCE | C26: 94765 | D26: 207554 | E26: 103892 | F26: 0 | G26: 128390 | H26: 244217 | I26: 0 | J26: 0 | K26: 0 | L26: -15795 | M26: 24835 | N26: 32675 | O26: 0 | P26: 0 | Q26: -21927
B27: THE MONARCH INSURANCE | C27: -29767 | D27: 80504 | E27: 45233 | F27: 0 | G27: 82376 | H27: 28227 | I27: 0 | J27: 0 | K27: 0 | L27: -2594 | M27: 31348 | N27: 12995 | O27: 0 | P27: -5225 | Q27: -23294
B28: UAP LIFE ASSURANCE COMPANY | C28: 1709680 | D28: 832002 | E28: 378853 | F28: 0 | G28: 576679 | H28: 370167 | I28: 0 | J28: 0 | K28: 0 | L28: 150867 | M28: 224633 | N28: 44194 | O28: 0 | P28: 0 | Q28: 1387060
B29: TOTAL | C29: =SUM(C6:C28) -> 7140815 | D29: 14334101 | E29: 8154809 | F29: 30289 | G29: 7389351 | H29: 7053711 | I29: 0 | J29: 0 | K29: 0 | L29: 598376 | M29: 2591938 | N29: 618244 | O29: 69915 | P29: -1145120 | Q29: 6775338
B30: REINSURERS
B31: CONTINENTAL REINSURANCE | C31: 0 | D31: 133985 | E31: 120187 | F31: 0 | G31: 179773 | H31: 272634 | I31: 0 | J31: 0 | K31: 0 | L31: 19357 | M31: 4265 | N31: 136554 | O31: 0 | P31: 0 | Q31: -39515
B32: EAST AFRICA REINSURANCE | C32: 0 | D32: 1134266 | E32: 881808 | F32: -11728 | G32: 625674 | H32: 1187778 | I32: 0 | J32: 0 | K32: 0 | L32: 243003 | M32: 51274 | N32: 0 | O32: 0 | P32: 0 | Q32: -611975
B33: KENYA REINSURANCE CORPORATION | C33: 8018636 | D33: 1765507 | E33: 1697678 | F33: 250051 | G33: 2146801 | H33: 610834 | I33: 0 | J33: 0 | K33: 0 | L33: 418417 | M33: 317277 | N33: 903920 | O33: 0 | P33: 0 | Q33: 9523757
B34: TOTAL | C34: =SUM(C31:C33) -> 8018636 | D34: =SUM(D31:D33) -> 3033758 | E34: 2699673 | F34: 238323 | G34: 2952248 | H34: 2071246 | I34: 0 | J34: 0 | K34: 0 | L34: 680777 | M34: 372816 | N34: 1040474 | O34: 0 | P34: 0 | Q34: 8872267
B35: Amounts in Thousand Shillings

Sheet APPENDIX 12
B3: APPENDIX 12: SUMMARY OF PERSONAL PENSIONS BUSINESS REVENUE ACCOUNTS FOR THE YEAR ENDED 31.12.2021
B4: Company | C4: Life Fund BF | D4: Gross Premium | E4: Net Premium | F4: Other (Fee) Income | G4: Total Benefits | H4: Claims | I4: Surrenders | J4: Bonuses Paid | K4: Annuities Paid | L4: Net Commisions | M4: Expense of Management | N4: Investment Income | O4: Investment Expenses | P4: Transfer To (From) P & L | Q4: Life Fund CF
B5: INSURERS
B6: ABSA LIFE ASSURANCE KENYA | C6: 0 | D6: 0 | E6: 0 | F6: 0 | G6: 0 | H6: 0 | I6: 0 | J6: 0 | K6: 0 | L6: 0 | M6: 0 | N6: 0 | O6: 0 | P6: 0 | Q6: 0
B7: APA LIFE ASSURANCE COMPANY | C7: 176895 | D7: 80107 | E7: 80107 | F7: 0 | G7: 23730 | H7: 23730 | I7: 0 | J7: 0 | K7: 0 | L7: 0 | M7: 0 | N7: 0 | O7: 0 | P7: 0 | Q7: 233272
B8: BRITAM LIFE INSURANCE COMPANY | C8: 0 | D8: 0 | E8: 0 | F8: 0 | G8: 0 | H8: 0 | I8: 0 | J8: 0 | K8: 0 | L8: 0 | M8: 0 | N8: 0 | O8: 0 | P8: 0 | Q8: 0
B9: CAPEX LIFE ASSURANCE COMPANY | C9: 0 | D9: 0 | E9: 0 | F9: 0 | G9: 0 | H9: 0 | I9: 0 | J9: 0 | K9: 0 | L9: 0 | M9: 0 | N9: 0 | O9: 0 | P9: 0 | Q9: 0
B10: CIC LIFE ASSURANCE COMPANY | C10: 0 | D10: 0 | E10: 0 | F10: 0 | G10: 0 | H10: 0 | I10: 0 | J10: 0 | K10: 0 | L10: 0 | M10: 0 | N10: 0 | O10: 0 | P10: 0 | Q10: 0
B11: CORPORATE INSURANCE COMPANY | C11: 0 | D11: 0 | E11: 0 | F11: 0 | G11: 0 | H11: 0 | I11: 0 | J11: 0 | K11: 0 | L11: 0 | M11: 0 | N11: 0 | O11: 0 | P11: 0 | Q11: 0
B12: GA LIFE ASSURANCE COMPANY | C12: 0 | D12: 0 | E12: 0 | F12: 0 | G12: 0 | H12: 0 | I12: 0 | J12: 0 | K12: 0 | L12: 0 | M12: 0 | N12: 0 | O12: 0 | P12: 0 | Q12: 0
B13: GEMINIA INSURANCE COMPANY | C13: 0 | D13: 0 | E13: 0 | F13: 0 | G13: 0 | H13: 0 | I13: 0 | J13: 0 | K13: 0 | L13: 0 | M13: 0 | N13: 0 | O13: 0 | P13: 0 | Q13: 0
B14: ICEA LION LIFE ASSURANCE | C14: 22413297 | D14: 5115221 | E14: 5115221 | F14: 0 | G14: 2754454 | H14: 0 | I14: 2754454 | J14: 0 | K14: 0 | L14: 57089 | M14: 152660 | N14: 3037627 | O14: 0 | P14: 0 | Q14: 27601942
B15: JUBILEE INSURANCE COMPANY LIMITED-LIFE | C15: 6051882 | D15: 1123621 | E15: 1123621 | F15: 0 | G15: 923419 | H15: 0 | I15: 0 | J15: 0 | K15: 0 | L15: 14746 | M15: 42285 | N15: 246580 | O15: 2102 | P15: 0 | Q15: 7362948
B16: KENINDIA ASSURANCE COMPANY | C16: 0 | D16: 0 | E16: 0 | F16: 0 | G16: 0 | H16: 0 | I16: 0 | J16: 0 | K16: 0 | L16: 0 | M16: 0 | N16: 0 | O16: 0 | P16: 0 | Q16: 0
B17: KENYA ORIENT LIFE ASSURANCE | C17: 0 | D17: 0 | E17: 0 | F17: 0 | G17: 0 | H17: 0 | I17: 0 | J17: 0 | K17: 0 | L17: 0 | M17: 0 | N17: 0 | O17: 0 | P17: 0 | Q17: 0
B18: KUSCCO MUTUAL ASSURANCE LIMITED | C18: 0 | D18: 0 | E18: 0 | F18: 0 | G18: 0 | H18: 0 | I18: 0 | J18: 0 | K18: 0 | L18: 0 | M18: 0 | N18: 0 | O18: 0 | P18: 0 | Q18: 0
B19: LIBERTY LIFE ASSURANCE COMPANY | C19: 0 | D19: 0 | E19: 0 | F19: 0 | G19: 0 | H19: 0 | I19: 0 | J19: 0 | K19: 0 | L19: 7097 | M19: 0 | N19: 0 | O19: 0 | P19: 0 | Q19: -7097
B20: MADISON INSURANCE COMPANY | C20: 960728 | D20: 97889 | E20: 97889 | F20: 0 | G20: 125330 | H20: 125331 | I20: 0 | J20: 0 | K20: 0 | L20: 791 | M20: 6277 | N20: 63026 | O20: 0 | P20: 0 | Q20: 989244
B21: METROPOLITAN CANNON INSURANCE | C21: 0 | D21: 0 | E21: 0 | F21: 0 | G21: 0 | H21: 0 | I21: 0 | J21: 0 | K21: 0 | L21: 0 | M21: 0 | N21: 0 | O21: 0 | P21: 0 | Q21: 0
B22: OLD MUTUAL LIFE ASSURANCE | C22: 0 | D22: 0 | E22: 0 | F22: 0 | G22: 0 | H22: 0 | I22: 0 | J22: 0 | K22: 0 | L22: 0 | M22: 0 | N22: 0 | O22: 0 | P22: 0 | Q22: 0
B23: PIONEER ASSURANCE COMPANY | C23: 0 | D23: 0 | E23: 0 | F23: 0 | G23: 0 | H23: 0 | I23: 0 | J23: 0 | K23: 0 | L23: 0 | M23: 0 | N23: 0 | O23: 0 | P23: 0 | Q23: 0
B24: PRUDENTIAL LIFE ASSURANCE | C24: 0 | D24: 0 | E24: 0 | F24: 0 | G24: 0 | H24: 0 | I24: 0 | J24: 0 | K24: 0 | L24: 0 | M24: 0 | N24: 0 | O24: 0 | P24: 0 | Q24: 0
B25: SANLAM LIFE INSURANCE | C25: 0 | D25: 0 | E25: 0 | F25: 0 | G25: 0 | H25: 0 | I25: 0 | J25: 0 | K25: 0 | L25: 0 | M25: 0 | N25: 0 | O25: 0 | P25: 0 | Q25: 0
B26: THE KENYAN ALLIANCE INSURANCE | C26: 615964 | D26: 387559 | E26: 387559 | F26: 0 | G26: 209419 | H26: 209419 | I26: 0 | J26: 0 | K26: 0 | L26: 7052 | M26: 53306 | N26: 61012 | O26: 0 | P26: 0 | Q26: 794759
B27: THE MONARCH INSURANCE | C27: 1144 | D27: 0 | E27: 0 | F27: 0 | G27: 0 | H27: 0 | I27: 0 | J27: 0 | K27: 0 | L27: 0 | M27: 29836 | N27: 12369 | O27: 0 | P27: -8974 | Q27: -7350
B28: UAP LIFE ASSURANCE COMPANY | C28: -697156 | D28: 0 | E28: 0 | F28: 0 | G28: 0 | H28: 199349 | I28: 0 | J28: 0 | K28: 0 | L28: 0 | M28: 0 | N28: 0 | O28: 0 | P28: 0 | Q28: -896505
B29: TOTAL | C29: =SUM(C6:C28) -> 29522754 | D29: 6804397 | E29: 6804397 | F29: 0 | G29: 4036352 | H29: 557829 | I29: 2754454 | J29: 0 | K29: 0 | L29: 86775 | M29: 284364 | N29: 3420614 | O29: 2102 | P29: -8974 | Q29: 36071213
B30: REINSURERS
B31: CONTINENTAL REINSURANCE | C31: 0 | D31: 0 | E31: 0 | F31: 0 | G31: 0 | H31: 0 | I31: 0 | J31: 0 | K31: 0 | L31: 0 | M31: 0 | N31: 0 | O31: 0 | P31: 0 | Q31: 0
B32: EAST AFRICA REINSURANCE | C32: 0 | D32: 0 | E32: 0 | F32: 0 | G32: 0 | H32: 0 | I32: 0 | J32: 0 | K32: 0 | L32: 0 | M32: 0 | N32: 0 | O32: 0 | P32: 0 | Q32: 0
B33: KENYA REINSURANCE CORPORATION | C33: 0 | D33: 0 | E33: 0 | F33: 0 | G33: 0 | H33: 0 | I33: 0 | J33: 0 | K33: 0 | L33: 0 | M33: 0 | N33: 0 | O33: 0 | P33: 0 | Q33: 0
B34: TOTAL | C34: =SUM(C31:C33) -> 0 | D34: =SUM(D31:D33) -> 0 | E34: 0 | F34: 0 | G34: 0 | H34: 0 | I34: 0 | J34: 0 | K34: 0 | L34: 0 | M34: 0 | N34: 0 | O34: 0 | P34: 0 | Q34: 0
B35: Amounts in Thousand Shillings

Sheet APPENDIX 13
B3: APPENDIX 13: SUMMARY OF DEPOSIT ADMINISTRATION BUSINESS REVENUE ACCOUNTS FOR THE YEAR ENDED 31.12.2021
B4: Company | C4: Life Fund BF | D4: Gross Premium | E4: Net Premium | F4: Other (Fee) Income | G4: Total Benefits | H4: Claims | I4: Surrenders | J4: Bonuses Paid | K4: Annuities Paid | L4: Net Commisions | M4: Expense of Management | N4: Investment Income | O4: Investment Expenses | P4: Transfer To (From) P & L | Q4: Life Fund CF
B5: INSURERS
B6: ABSA LIFE ASSURANCE KENYA | C6: 0 | D6: 0 | E6: 0 | F6: 0 | G6: 0 | H6: 0 | I6: 0 | J6: 0 | K6: 0 | L6: 0 | M6: 0 | N6: 0 | O6: 0 | P6: 0 | Q6: 0
B7: APA LIFE ASSURANCE COMPANY | C7: 4395173 | D7: 993679 | E7: 993679 | F7: 0 | G7: 702821 | H7: 702821 | I7: 0 | J7: 0 | K7: 0 | L7: 17295 | M7: 40805 | N7: 533348 | O7: 18480 | P7: 10528 | Q7: 5132269
B8: BRITAM LIFE INSURANCE COMPANY | C8: 48754708 | D8: 10344921 | E8: 10344921 | F8: 0 | G8: 11027147 | H8: 11027147 | I8: 0 | J8: 0 | K8: 0 | L8: 75956 | M8: 700599 | N8: 5783335 | O8: 26493 | P8: -376464 | Q8: 53429233
B9: CAPEX LIFE ASSURANCE COMPANY | C9: 0 | D9: 0 | E9: 0 | F9: 0 | G9: 0 | H9: 0 | I9: 0 | J9: 0 | K9: 0 | L9: 0 | M9: 0 | N9: 0 | O9: 0 | P9: 0 | Q9: 0
B10: CIC LIFE ASSURANCE COMPANY | C10: 3657556 | D10: 879807 | E10: 879807 | F10: 0 | G10: 490028 | H10: 0 | I10: 0 | J10: 0 | K10: 0 | L10: -3387 | M10: 27918 | N10: 45649 | O10: 0 | P10: 0 | Q10: 4558482
B11: CORPORATE INSURANCE COMPANY | C11: 5968 | D11: 0 | E11: 0 | F11: 0 | G11: 0 | H11: 0 | I11: 0 | J11: 0 | K11: 0 | L11: 0 | M11: 0 | N11: 0 | O11: 0 | P11: 0 | Q11: 5968
B12: GA LIFE ASSURANCE COMPANY | C12: 13848674 | D12: 3876177 | E12: 3876177 | F12: 0 | G12: 1320183 | H12: 1320183 | I12: 0 | J12: 0 | K12: 0 | L12: 20838 | M12: 84701 | N12: 1959191 | O12: 0 | P12: 119429 | Q12: 18138892
B13: GEMINIA INSURANCE COMPANY | C13: 0 | D13: 0 | E13: 0 | F13: 0 | G13: 0 | H13: 0 | I13: 0 | J13: 0 | K13: 0 | L13: 285 | M13: 795 | N13: 33699 | O13: 39526 | P13: 0 | Q13: -6907
B14: ICEA LION LIFE ASSURANCE | C14: 46988189 | D14: 7815041 | E14: 7815041 | F14: 0 | G14: 5661689 | H14: 0 | I14: 5661689 | J14: 0 | K14: 0 | L14: 110411 | M14: 240141 | N14: 5679448 | O14: 0 | P14: 400000 | Q14: 54070437
B15: JUBILEE INSURANCE COMPANY LIMITED-LIFE | C15: 53104564 | D15: 6677336 | E15: 6677336 | F15: 0 | G15: 7429937 | H15: 8353356 | I15: 0 | J15: 0 | K15: 0 | L15: 69174 | M15: 290759 | N15: 6826709 | O15: 57807 | P15: 640094 | Q15: 57197419
B16: KENINDIA ASSURANCE COMPANY | C16: 29383511 | D16: 7174252 | E16: 7174252 | F16: 0 | G16: 3630633 | H16: 3627021 | I16: 0 | J16: 0 | K16: 0 | L16: 108496 | M16: 188221 | N16: 3969746 | O16: 0 | P16: 0 | Q16: 36603770
B17: KENYA ORIENT LIFE ASSURANCE | C17: 604306 | D17: 431225 | E17: 431225 | F17: 0 | G17: 108340 | H17: 108340 | I17: 0 | J17: 0 | K17: 0 | L17: 0 | M17: 1655 | N17: 93004 | O17: 0 | P17: 0 | Q17: 1018540
B18: KUSCCO MUTUAL ASSURANCE LIMITED | C18: 0 | D18: 0 | E18: 0 | F18: 0 | G18: 0 | H18: 0 | I18: 0 | J18: 0 | K18: 0 | L18: 0 | M18: 0 | N18: 0 | O18: 0 | P18: 0 | Q18: 0
B19: LIBERTY LIFE ASSURANCE COMPANY | C19: 8659298 | D19: 1489407 | E19: 1489407 | F19: 0 | G19: 1653473 | H19: 0 | I19: 1653473 | J19: 0 | K19: 0 | L19: 9988 | M19: 328628 | N19: 900143 | O19: 51210 | P19: 0 | Q19: 9005551
B20: MADISON INSURANCE COMPANY | C20: 2461193 | D20: 243857 | E20: 243857 | F20: 0 | G20: 337574 | H20: 337574 | I20: 0 | J20: 0 | K20: 0 | L20: 376 | M20: 11375 | N20: 163890 | O20: 0 | P20: 0 | Q20: 2519615
B21: METROPOLITAN CANNON INSURANCE | C21: 0 | D21: 0 | E21: 0 | F21: 0 | G21: 0 | H21: 0 | I21: 0 | J21: 0 | K21: 0 | L21: 0 | M21: 0 | N21: 0 | O21: 0 | P21: 0 | Q21: 0
B22: OLD MUTUAL LIFE ASSURANCE | C22: 0 | D22: 0 | E22: 0 | F22: 0 | G22: 0 | H22: 0 | I22: 0 | J22: 0 | K22: 0 | L22: 0 | M22: 0 | N22: 0 | O22: 0 | P22: 0 | Q22: 0
B23: PIONEER ASSURANCE COMPANY | C23: 1137513 | D23: 295272 | E23: 295272 | F23: 0 | G23: 226284 | H23: 226284 | I23: 0 | J23: 0 | K23: 0 | L23: 0 | M23: 0 | N23: 96528 | O23: 0 | P23: 0 | Q23: 1303029
B24: PRUDENTIAL LIFE ASSURANCE | C24: 129257 | D24: 110354 | E24: 110354 | F24: 0 | G24: 0 | H24: 9446 | I24: 0 | J24: 0 | K24: 0 | L24: 0 | M24: 1526 | N24: 12081 | O24: 0 | P24: 0 | Q24: 240719
B25: SANLAM LIFE INSURANCE | C25: 1563142 | D25: 1154679 | E25: 1154679 | F25: 0 | G25: 259862 | H25: 259862 | I25: 0 | J25: 0 | K25: 0 | L25: 31062 | M25: 19535 | N25: 184913 | O25: 0 | P25: 0 | Q25: 2592276
B26: THE KENYAN ALLIANCE INSURANCE | C26: 1414460 | D26: 201014 | E26: 201014 | F26: 0 | G26: 109168 | H26: 109168 | I26: 0 | J26: 0 | K26: 0 | L26: 2351 | M26: 27648 | N26: 31645 | O26: 0 | P26: -468666 | Q26: 1976619
B27: THE MONARCH INSURANCE | C27: 0 | D27: 0 | E27: 0 | F27: 0 | G27: 0 | H27: 0 | I27: 0 | J27: 0 | K27: 0 | L27: 0 | M27: 0 | N27: 0 | O27: 0 | P27: 0 | Q27: 0
B28: UAP LIFE ASSURANCE COMPANY | C28: 5926127 | D28: 668578 | E28: 668578 | F28: 0 | G28: 568813 | H28: 369010 | I28: 0 | J28: 0 | K28: 0 | L28: 2621 | M28: 0 | N28: 414994 | O28: 0 | P28: 0 | Q28: 6638068
B29: TOTAL | C29: =SUM(C6:C28) -> 222033639 | D29: 42355599 | E29: 42355599 | F29: 0 | G29: 33525952 | H29: 26450212 | I29: 7315162 | J29: 0 | K29: 0 | L29: 445466 | M29: 1964306 | N29: 26728323 | O29: 193516 | P29: 324921 | Q29: 254423980
B30: REINSURERS
B31: CONTINENTAL REINSURANCE | C31: 0 | D31: 0 | E31: 0 | F31: 0 | G31: 0 | H31: 0 | I31: 0 | J31: 0 | K31: 0 | L31: 0 | M31: 0 | N31: 0 | O31: 0 | P31: 0 | Q31: 0
B32: EAST AFRICA REINSURANCE | C32: 0 | D32: 0 | E32: 0 | F32: 0 | G32: 0 | H32: 0 | I32: 0 | J32: 0 | K32: 0 | L32: 0 | M32: 0 | N32: 0 | O32: 0 | P32: 0 | Q32: 0
B33: KENYA REINSURANCE CORPORATION | C33: 0 | D33: 0 | E33: 0 | F33: 0 | G33: 0 | H33: 0 | I33: 0 | J33: 0 | K33: 0 | L33: 0 | M33: 0 | N33: 0 | O33: 0 | P33: 0 | Q33: 0
B34: TOTAL | C34: =SUM(C31:C33) -> 0 | D34: =SUM(D31:D33) -> 0 | E34: 0 | F34: 0 | G34: 0 | H34: 0 | I34: 0 | J34: 0 | K34: 0 | L34: 0 | M34: 0 | N34: 0 | O34: 0 | P34: 0 | Q34: 0
B35: Amounts in Thousand Shillings

Sheet PENSIONS (hidden)
B3: APPENDIX 12: SUMMARY OF PENSIONS BUSINESS REVENUE ACCOUNTS FOR THE YEAR ENDED 31.12.2021
B4: Company | C4: Life Fund BF | D4: Gross Premium | E4: Net Premium | F4: Other (Fee) Income | G4: Total Benefits | H4: Claims | I4: Surrenders | J4: Bonuses Paid | K4: Annuities Paid | L4: Net Commisions | M4: Expense of Management | N4: Investment Income | O4: Investment Expenses | P4: Transfer To (From) P & L | Q4: Life Fund CF
B5: INSURERS
B6: ABSA LIFE ASSURANCE KENYA | C6: =+'APPENDIX 12'!C6+'APPENDIX 13'!C6 -> 0 | D6: =+'APPENDIX 12'!D6+'APPENDIX 13'!D6 -> 0 | E6: =+'APPENDIX 12'!E6+'APPENDIX 13'!E6 -> 0 | F6: =+'APPENDIX 12'!F6+'APPENDIX 13'!F6 -> 0 | G6: =+'APPENDIX 12'!G6+'APPENDIX 13'!G6 -> 0 | H6: =+'APPENDIX 12'!H6+'APPENDIX 13'!H6 -> 0 | I6: =+'APPENDIX 12'!I6+'APPENDIX 13'!I6 -> 0 | J6: =+'APPENDIX 12'!J6+'APPENDIX 13'!J6 -> 0 | K6: =+'APPENDIX 12'!K6+'APPENDIX 13'!K6 -> 0 | L6: =+'APPENDIX 12'!L6+'APPENDIX 13'!L6 -> 0 | M6: =+'APPENDIX 12'!M6+'APPENDIX 13'!M6 -> 0 | N6: =+'APPENDIX 12'!N6+'APPENDIX 13'!N6 -> 0 | O6: =+'APPENDIX 12'!O6+'APPENDIX 13'!O6 -> 0 | P6: =+'APPENDIX 12'!P6+'APPENDIX 13'!P6 -> 0 | Q6: =+'APPENDIX 12'!Q6+'APPENDIX 13'!Q6 -> 0
B7: APA LIFE ASSURANCE COMPANY | C7: =+'APPENDIX 12'!C7+'APPENDIX 13'!C7 -> 4572068 | D7: =+'APPENDIX 12'!D7+'APPENDIX 13'!D7 -> 1073786 | E7: =+'APPENDIX 12'!E7+'APPENDIX 13'!E7 -> 1073786 | F7: =+'APPENDIX 12'!F7+'APPENDIX 13'!F7 -> 0 | G7: =+'APPENDIX 12'!G7+'APPENDIX 13'!G7 -> 726551 | H7: =+'APPENDIX 12'!H7+'APPENDIX 13'!H7 -> 726551 | I7: =+'APPENDIX 12'!I7+'APPENDIX 13'!I7 -> 0 | J7: =+'APPENDIX 12'!J7+'APPENDIX 13'!J7 -> 0 | K7: =+'APPENDIX 12'!K7+'APPENDIX 13'!K7 -> 0 | L7: =+'APPENDIX 12'!L7+'APPENDIX 13'!L7 -> 17295 | M7: =+'APPENDIX 12'!M7+'APPENDIX 13'!M7 -> 40805 | N7: =+'APPENDIX 12'!N7+'APPENDIX 13'!N7 -> 533348 | O7: =+'APPENDIX 12'!O7+'APPENDIX 13'!O7 -> 18480 | P7: =+'APPENDIX 12'!P7+'APPENDIX 13'!P7 -> 10528 | Q7: =+'APPENDIX 12'!Q7+'APPENDIX 13'!Q7 -> 5365541
B8: BRITAM LIFE INSURANCE COMPANY | C8: =+'APPENDIX 12'!C8+'APPENDIX 13'!C8 -> 48754708 | D8: =+'APPENDIX 12'!D8+'APPENDIX 13'!D8 -> 10344921 | E8: =+'APPENDIX 12'!E8+'APPENDIX 13'!E8 -> 10344921 | F8: =+'APPENDIX 12'!F8+'APPENDIX 13'!F8 -> 0 | G8: =+'APPENDIX 12'!G8+'APPENDIX 13'!G8 -> 11027147 | H8: =+'APPENDIX 12'!H8+'APPENDIX 13'!H8 -> 11027147 | I8: =+'APPENDIX 12'!I8+'APPENDIX 13'!I8 -> 0 | J8: =+'APPENDIX 12'!J8+'APPENDIX 13'!J8 -> 0 | K8: =+'APPENDIX 12'!K8+'APPENDIX 13'!K8 -> 0 | L8: =+'APPENDIX 12'!L8+'APPENDIX 13'!L8 -> 75956 | M8: =+'APPENDIX 12'!M8+'APPENDIX 13'!M8 -> 700599 | N8: =+'APPENDIX 12'!N8+'APPENDIX 13'!N8 -> 5783335 | O8: =+'APPENDIX 12'!O8+'APPENDIX 13'!O8 -> 26493 | P8: =+'APPENDIX 12'!P8+'APPENDIX 13'!P8 -> -376464 | Q8: =+'APPENDIX 12'!Q8+'APPENDIX 13'!Q8 -> 53429233
B9: CAPEX LIFE ASSURANCE COMPANY | C9: =+'APPENDIX 12'!C9+'APPENDIX 13'!C9 -> 0 | D9: =+'APPENDIX 12'!D9+'APPENDIX 13'!D9 -> 0 | E9: =+'APPENDIX 12'!E9+'APPENDIX 13'!E9 -> 0 | F9: =+'APPENDIX 12'!F9+'APPENDIX 13'!F9 -> 0 | G9: =+'APPENDIX 12'!G9+'APPENDIX 13'!G9 -> 0 | H9: =+'APPENDIX 12'!H9+'APPENDIX 13'!H9 -> 0 | I9: =+'APPENDIX 12'!I9+'APPENDIX 13'!I9 -> 0 | J9: =+'APPENDIX 12'!J9+'APPENDIX 13'!J9 -> 0 | K9: =+'APPENDIX 12'!K9+'APPENDIX 13'!K9 -> 0 | L9: =+'APPENDIX 12'!L9+'APPENDIX 13'!L9 -> 0 | M9: =+'APPENDIX 12'!M9+'APPENDIX 13'!M9 -> 0 | N9: =+'APPENDIX 12'!N9+'APPENDIX 13'!N9 -> 0 | O9: =+'APPENDIX 12'!O9+'APPENDIX 13'!O9 -> 0 | P9: =+'APPENDIX 12'!P9+'APPENDIX 13'!P9 -> 0 | Q9: =+'APPENDIX 12'!Q9+'APPENDIX 13'!Q9 -> 0
B10: CIC LIFE ASSURANCE COMPANY | C10: =+'APPENDIX 12'!C10+'APPENDIX 13'!C10 -> 3657556 | D10: =+'APPENDIX 12'!D10+'APPENDIX 13'!D10 -> 879807 | E10: =+'APPENDIX 12'!E10+'APPENDIX 13'!E10 -> 879807 | F10: =+'APPENDIX 12'!F10+'APPENDIX 13'!F10 -> 0 | G10: =+'APPENDIX 12'!G10+'APPENDIX 13'!G10 -> 490028 | H10: =+'APPENDIX 12'!H10+'APPENDIX 13'!H10 -> 0 | I10: =+'APPENDIX 12'!I10+'APPENDIX 13'!I10 -> 0 | J10: =+'APPENDIX 12'!J10+'APPENDIX 13'!J10 -> 0 | K10: =+'APPENDIX 12'!K10+'APPENDIX 13'!K10 -> 0 | L10: =+'APPENDIX 12'!L10+'APPENDIX 13'!L10 -> -3387 | M10: =+'APPENDIX 12'!M10+'APPENDIX 13'!M10 -> 27918 | N10: =+'APPENDIX 12'!N10+'APPENDIX 13'!N10 -> 45649 | O10: =+'APPENDIX 12'!O10+'APPENDIX 13'!O10 -> 0 | P10: =+'APPENDIX 12'!P10+'APPENDIX 13'!P10 -> 0 | Q10: =+'APPENDIX 12'!Q10+'APPENDIX 13'!Q10 -> 4558482
B11: CORPORATE INSURANCE COMPANY | C11: =+'APPENDIX 12'!C11+'APPENDIX 13'!C11 -> 5968 | D11: =+'APPENDIX 12'!D11+'APPENDIX 13'!D11 -> 0 | E11: =+'APPENDIX 12'!E11+'APPENDIX 13'!E11 -> 0 | F11: =+'APPENDIX 12'!F11+'APPENDIX 13'!F11 -> 0 | G11: =+'APPENDIX 12'!G11+'APPENDIX 13'!G11 -> 0 | H11: =+'APPENDIX 12'!H11+'APPENDIX 13'!H11 -> 0 | I11: =+'APPENDIX 12'!I11+'APPENDIX 13'!I11 -> 0 | J11: =+'APPENDIX 12'!J11+'APPENDIX 13'!J11 -> 0 | K11: =+'APPENDIX 12'!K11+'APPENDIX 13'!K11 -> 0 | L11: =+'APPENDIX 12'!L11+'APPENDIX 13'!L11 -> 0 | M11: =+'APPENDIX 12'!M11+'APPENDIX 13'!M11 -> 0 | N11: =+'APPENDIX 12'!N11+'APPENDIX 13'!N11 -> 0 | O11: =+'APPENDIX 12'!O11+'APPENDIX 13'!O11 -> 0 | P11: =+'APPENDIX 12'!P11+'APPENDIX 13'!P11 -> 0 | Q11: =+'APPENDIX 12'!Q11+'APPENDIX 13'!Q11 -> 5968
B12: GA LIFE ASSURANCE COMPANY | C12: =+'APPENDIX 12'!C12+'APPENDIX 13'!C12 -> 13848674 | D12: =+'APPENDIX 12'!D12+'APPENDIX 13'!D12 -> 3876177 | E12: =+'APPENDIX 12'!E12+'APPENDIX 13'!E12 -> 3876177 | F12: =+'APPENDIX 12'!F12+'APPENDIX 13'!F12 -> 0 | G12: =+'APPENDIX 12'!G12+'APPENDIX 13'!G12 -> 1320183 | H12: =+'APPENDIX 12'!H12+'APPENDIX 13'!H12 -> 1320183 | I12: =+'APPENDIX 12'!I12+'APPENDIX 13'!I12 -> 0 | J12: =+'APPENDIX 12'!J12+'APPENDIX 13'!J12 -> 0 | K12: =+'APPENDIX 12'!K12+'APPENDIX 13'!K12 -> 0 | L12: =+'APPENDIX 12'!L12+'APPENDIX 13'!L12 -> 20838 | M12: =+'APPENDIX 12'!M12+'APPENDIX 13'!M12 -> 84701 | N12: =+'APPENDIX 12'!N12+'APPENDIX 13'!N12 -> 1959191 | O12: =+'APPENDIX 12'!O12+'APPENDIX 13'!O12 -> 0 | P12: =+'APPENDIX 12'!P12+'APPENDIX 13'!P12 -> 119429 | Q12: =+'APPENDIX 12'!Q12+'APPENDIX 13'!Q12 -> 18138892
B13: GEMINIA INSURANCE COMPANY | C13: =+'APPENDIX 12'!C13+'APPENDIX 13'!C13 -> 0 | D13: =+'APPENDIX 12'!D13+'APPENDIX 13'!D13 -> 0 | E13: =+'APPENDIX 12'!E13+'APPENDIX 13'!E13 -> 0 | F13: =+'APPENDIX 12'!F13+'APPENDIX 13'!F13 -> 0 | G13: =+'APPENDIX 12'!G13+'APPENDIX 13'!G13 -> 0 | H13: =+'APPENDIX 12'!H13+'APPENDIX 13'!H13 -> 0 | I13: =+'APPENDIX 12'!I13+'APPENDIX 13'!I13 -> 0 | J13: =+'APPENDIX 12'!J13+'APPENDIX 13'!J13 -> 0 | K13: =+'APPENDIX 12'!K13+'APPENDIX 13'!K13 -> 0 | L13: =+'APPENDIX 12'!L13+'APPENDIX 13'!L13 -> 285 | M13: =+'APPENDIX 12'!M13+'APPENDIX 13'!M13 -> 795 | N13: =+'APPENDIX 12'!N13+'APPENDIX 13'!N13 -> 33699 | O13: =+'APPENDIX 12'!O13+'APPENDIX 13'!O13 -> 39526 | P13: =+'APPENDIX 12'!P13+'APPENDIX 13'!P13 -> 0 | Q13: =+'APPENDIX 12'!Q13+'APPENDIX 13'!Q13 -> -6907
B14: ICEA LION LIFE ASSURANCE | C14: =+'APPENDIX 12'!C14+'APPENDIX 13'!C14 -> 69401486 | D14: =+'APPENDIX 12'!D14+'APPENDIX 13'!D14 -> 12930262 | E14: =+'APPENDIX 12'!E14+'APPENDIX 13'!E14 -> 12930262 | F14: =+'APPENDIX 12'!F14+'APPENDIX 13'!F14 -> 0 | G14: =+'APPENDIX 12'!G14+'APPENDIX 13'!G14 -> 8416143 | H14: =+'APPENDIX 12'!H14+'APPENDIX 13'!H14 -> 0 | I14: =+'APPENDIX 12'!I14+'APPENDIX 13'!I14 -> 8416143 | J14: =+'APPENDIX 12'!J14+'APPENDIX 13'!J14 -> 0 | K14: =+'APPENDIX 12'!K14+'APPENDIX 13'!K14 -> 0 | L14: =+'APPENDIX 12'!L14+'APPENDIX 13'!L14 -> 167500 | M14: =+'APPENDIX 12'!M14+'APPENDIX 13'!M14 -> 392801 | N14: =+'APPENDIX 12'!N14+'APPENDIX 13'!N14 -> 8717075 | O14: =+'APPENDIX 12'!O14+'APPENDIX 13'!O14 -> 0 | P14: =+'APPENDIX 12'!P14+'APPENDIX 13'!P14 -> 400000 | Q14: =+'APPENDIX 12'!Q14+'APPENDIX 13'!Q14 -> 81672379
B15: JUBILEE INSURANCE COMPANY LIMITED-LIFE | C15: =+'APPENDIX 12'!C15+'APPENDIX 13'!C15 -> 59156446 | D15: =+'APPENDIX 12'!D15+'APPENDIX 13'!D15 -> 7800957 | E15: =+'APPENDIX 12'!E15+'APPENDIX 13'!E15 -> 7800957 | F15: =+'APPENDIX 12'!F15+'APPENDIX 13'!F15 -> 0 | G15: =+'APPENDIX 12'!G15+'APPENDIX 13'!G15 -> 8353356 | H15: =+'APPENDIX 12'!H15+'APPENDIX 13'!H15 -> 8353356 | I15: =+'APPENDIX 12'!I15+'APPENDIX 13'!I15 -> 0 | J15: =+'APPENDIX 12'!J15+'APPENDIX 13'!J15 -> 0 | K15: =+'APPENDIX 12'!K15+'APPENDIX 13'!K15 -> 0 | L15: =+'APPENDIX 12'!L15+'APPENDIX 13'!L15 -> 83920 | M15: =+'APPENDIX 12'!M15+'APPENDIX 13'!M15 -> 333044 | N15: =+'APPENDIX 12'!N15+'APPENDIX 13'!N15 -> 7073289 | O15: =+'APPENDIX 12'!O15+'APPENDIX 13'!O15 -> 59909 | P15: =+'APPENDIX 12'!P15+'APPENDIX 13'!P15 -> 640094 | Q15: =+'APPENDIX 12'!Q15+'APPENDIX 13'!Q15 -> 64560367
B16: KENINDIA ASSURANCE COMPANY | C16: =+'APPENDIX 12'!C16+'APPENDIX 13'!C16 -> 29383511 | D16: =+'APPENDIX 12'!D16+'APPENDIX 13'!D16 -> 7174252 | E16: =+'APPENDIX 12'!E16+'APPENDIX 13'!E16 -> 7174252 | F16: =+'APPENDIX 12'!F16+'APPENDIX 13'!F16 -> 0 | G16: =+'APPENDIX 12'!G16+'APPENDIX 13'!G16 -> 3630633 | H16: =+'APPENDIX 12'!H16+'APPENDIX 13'!H16 -> 3627021 | I16: =+'APPENDIX 12'!I16+'APPENDIX 13'!I16 -> 0 | J16: =+'APPENDIX 12'!J16+'APPENDIX 13'!J16 -> 0 | K16: =+'APPENDIX 12'!K16+'APPENDIX 13'!K16 -> 0 | L16: =+'APPENDIX 12'!L16+'APPENDIX 13'!L16 -> 108496 | M16: =+'APPENDIX 12'!M16+'APPENDIX 13'!M16 -> 188221 | N16: =+'APPENDIX 12'!N16+'APPENDIX 13'!N16 -> 3969746 | O16: =+'APPENDIX 12'!O16+'APPENDIX 13'!O16 -> 0 | P16: =+'APPENDIX 12'!P16+'APPENDIX 13'!P16 -> 0 | Q16: =+'APPENDIX 12'!Q16+'APPENDIX 13'!Q16 -> 36603770
B17: KENYA ORIENT LIFE ASSURANCE | C17: =+'APPENDIX 12'!C17+'APPENDIX 13'!C17 -> 604306 | D17: =+'APPENDIX 12'!D17+'APPENDIX 13'!D17 -> 431225 | E17: =+'APPENDIX 12'!E17+'APPENDIX 13'!E17 -> 431225 | F17: =+'APPENDIX 12'!F17+'APPENDIX 13'!F17 -> 0 | G17: =+'APPENDIX 12'!G17+'APPENDIX 13'!G17 -> 108340 | H17: =+'APPENDIX 12'!H17+'APPENDIX 13'!H17 -> 108340 | I17: =+'APPENDIX 12'!I17+'APPENDIX 13'!I17 -> 0 | J17: =+'APPENDIX 12'!J17+'APPENDIX 13'!J17 -> 0 | K17: =+'APPENDIX 12'!K17+'APPENDIX 13'!K17 -> 0 | L17: =+'APPENDIX 12'!L17+'APPENDIX 13'!L17 -> 0 | M17: =+'APPENDIX 12'!M17+'APPENDIX 13'!M17 -> 1655 | N17: =+'APPENDIX 12'!N17+'APPENDIX 13'!N17 -> 93004 | O17: =+'APPENDIX 12'!O17+'APPENDIX 13'!O17 -> 0 | P17: =+'APPENDIX 12'!P17+'APPENDIX 13'!P17 -> 0 | Q17: =+'APPENDIX 12'!Q17+'APPENDIX 13'!Q17 -> 1018540
B18: KUSCCO MUTUAL ASSURANCE LIMITED | C18: =+'APPENDIX 12'!C18+'APPENDIX 13'!C18 -> 0 | D18: =+'APPENDIX 12'!D18+'APPENDIX 13'!D18 -> 0 | E18: =+'APPENDIX 12'!E18+'APPENDIX 13'!E18 -> 0 | F18: =+'APPENDIX 12'!F18+'APPENDIX 13'!F18 -> 0 | G18: =+'APPENDIX 12'!G18+'APPENDIX 13'!G18 -> 0 | H18: =+'APPENDIX 12'!H18+'APPENDIX 13'!H18 -> 0 | I18: =+'APPENDIX 12'!I18+'APPENDIX 13'!I18 -> 0 | J18: =+'APPENDIX 12'!J18+'APPENDIX 13'!J18 -> 0 | K18: =+'APPENDIX 12'!K18+'APPENDIX 13'!K18 -> 0 | L18: =+'APPENDIX 12'!L18+'APPENDIX 13'!L18 -> 0 | M18: =+'APPENDIX 12'!M18+'APPENDIX 13'!M18 -> 0 | N18: =+'APPENDIX 12'!N18+'APPENDIX 13'!N18 -> 0 | O18: =+'APPENDIX 12'!O18+'APPENDIX 13'!O18 -> 0 | P18: =+'APPENDIX 12'!P18+'APPENDIX 13'!P18 -> 0 | Q18: =+'APPENDIX 12'!Q18+'APPENDIX 13'!Q18 -> 0
B19: LIBERTY LIFE ASSURANCE COMPANY | C19: =+'APPENDIX 12'!C19+'APPENDIX 13'!C19 -> 8659298 | D19: =+'APPENDIX 12'!D19+'APPENDIX 13'!D19 -> 1489407 | E19: =+'APPENDIX 12'!E19+'APPENDIX 13'!E19 -> 1489407 | F19: =+'APPENDIX 12'!F19+'APPENDIX 13'!F19 -> 0 | G19: =+'APPENDIX 12'!G19+'APPENDIX 13'!G19 -> 1653473 | H19: =+'APPENDIX 12'!H19+'APPENDIX 13'!H19 -> 0 | I19: =+'APPENDIX 12'!I19+'APPENDIX 13'!I19 -> 1653473 | J19: =+'APPENDIX 12'!J19+'APPENDIX 13'!J19 -> 0 | K19: =+'APPENDIX 12'!K19+'APPENDIX 13'!K19 -> 0 | L19: =+'APPENDIX 12'!L19+'APPENDIX 13'!L19 -> 17085 | M19: =+'APPENDIX 12'!M19+'APPENDIX 13'!M19 -> 328628 | N19: =+'APPENDIX 12'!N19+'APPENDIX 13'!N19 -> 900143 | O19: =+'APPENDIX 12'!O19+'APPENDIX 13'!O19 -> 51210 | P19: =+'APPENDIX 12'!P19+'APPENDIX 13'!P19 -> 0 | Q19: =+'APPENDIX 12'!Q19+'APPENDIX 13'!Q19 -> 8998454
B20: MADISON INSURANCE COMPANY | C20: =+'APPENDIX 12'!C20+'APPENDIX 13'!C20 -> 3421921 | D20: =+'APPENDIX 12'!D20+'APPENDIX 13'!D20 -> 341746 | E20: =+'APPENDIX 12'!E20+'APPENDIX 13'!E20 -> 341746 | F20: =+'APPENDIX 12'!F20+'APPENDIX 13'!F20 -> 0 | G20: =+'APPENDIX 12'!G20+'APPENDIX 13'!G20 -> 462904 | H20: =+'APPENDIX 12'!H20+'APPENDIX 13'!H20 -> 462905 | I20: =+'APPENDIX 12'!I20+'APPENDIX 13'!I20 -> 0 | J20: =+'APPENDIX 12'!J20+'APPENDIX 13'!J20 -> 0 | K20: =+'APPENDIX 12'!K20+'APPENDIX 13'!K20 -> 0 | L20: =+'APPENDIX 12'!L20+'APPENDIX 13'!L20 -> 1167 | M20: =+'APPENDIX 12'!M20+'APPENDIX 13'!M20 -> 17652 | N20: =+'APPENDIX 12'!N20+'APPENDIX 13'!N20 -> 226916 | O20: =+'APPENDIX 12'!O20+'APPENDIX 13'!O20 -> 0 | P20: =+'APPENDIX 12'!P20+'APPENDIX 13'!P20 -> 0 | Q20: =+'APPENDIX 12'!Q20+'APPENDIX 13'!Q20 -> 3508859
B21: METROPOLITAN CANNON INSURANCE | C21: =+'APPENDIX 12'!C21+'APPENDIX 13'!C21 -> 0 | D21: =+'APPENDIX 12'!D21+'APPENDIX 13'!D21 -> 0 | E21: =+'APPENDIX 12'!E21+'APPENDIX 13'!E21 -> 0 | F21: =+'APPENDIX 12'!F21+'APPENDIX 13'!F21 -> 0 | G21: =+'APPENDIX 12'!G21+'APPENDIX 13'!G21 -> 0 | H21: =+'APPENDIX 12'!H21+'APPENDIX 13'!H21 -> 0 | I21: =+'APPENDIX 12'!I21+'APPENDIX 13'!I21 -> 0 | J21: =+'APPENDIX 12'!J21+'APPENDIX 13'!J21 -> 0 | K21: =+'APPENDIX 12'!K21+'APPENDIX 13'!K21 -> 0 | L21: =+'APPENDIX 12'!L21+'APPENDIX 13'!L21 -> 0 | M21: =+'APPENDIX 12'!M21+'APPENDIX 13'!M21 -> 0 | N21: =+'APPENDIX 12'!N21+'APPENDIX 13'!N21 -> 0 | O21: =+'APPENDIX 12'!O21+'APPENDIX 13'!O21 -> 0 | P21: =+'APPENDIX 12'!P21+'APPENDIX 13'!P21 -> 0 | Q21: =+'APPENDIX 12'!Q21+'APPENDIX 13'!Q21 -> 0
B22: OLD MUTUAL LIFE ASSURANCE | C22: =+'APPENDIX 12'!C22+'APPENDIX 13'!C22 -> 0 | D22: =+'APPENDIX 12'!D22+'APPENDIX 13'!D22 -> 0 | E22: =+'APPENDIX 12'!E22+'APPENDIX 13'!E22 -> 0 | F22: =+'APPENDIX 12'!F22+'APPENDIX 13'!F22 -> 0 | G22: =+'APPENDIX 12'!G22+'APPENDIX 13'!G22 -> 0 | H22: =+'APPENDIX 12'!H22+'APPENDIX 13'!H22 -> 0 | I22: =+'APPENDIX 12'!I22+'APPENDIX 13'!I22 -> 0 | J22: =+'APPENDIX 12'!J22+'APPENDIX 13'!J22 -> 0 | K22: =+'APPENDIX 12'!K22+'APPENDIX 13'!K22 -> 0 | L22: =+'APPENDIX 12'!L22+'APPENDIX 13'!L22 -> 0 | M22: =+'APPENDIX 12'!M22+'APPENDIX 13'!M22 -> 0 | N22: =+'APPENDIX 12'!N22+'APPENDIX 13'!N22 -> 0 | O22: =+'APPENDIX 12'!O22+'APPENDIX 13'!O22 -> 0 | P22: =+'APPENDIX 12'!P22+'APPENDIX 13'!P22 -> 0 | Q22: =+'APPENDIX 12'!Q22+'APPENDIX 13'!Q22 -> 0
B23: PIONEER ASSURANCE COMPANY | C23: =+'APPENDIX 12'!C23+'APPENDIX 13'!C23 -> 1137513 | D23: =+'APPENDIX 12'!D23+'APPENDIX 13'!D23 -> 295272 | E23: =+'APPENDIX 12'!E23+'APPENDIX 13'!E23 -> 295272 | F23: =+'APPENDIX 12'!F23+'APPENDIX 13'!F23 -> 0 | G23: =+'APPENDIX 12'!G23+'APPENDIX 13'!G23 -> 226284 | H23: =+'APPENDIX 12'!H23+'APPENDIX 13'!H23 -> 226284 | I23: =+'APPENDIX 12'!I23+'APPENDIX 13'!I23 -> 0 | J23: =+'APPENDIX 12'!J23+'APPENDIX 13'!J23 -> 0 | K23: =+'APPENDIX 12'!K23+'APPENDIX 13'!K23 -> 0 | L23: =+'APPENDIX 12'!L23+'APPENDIX 13'!L23 -> 0 | M23: =+'APPENDIX 12'!M23+'APPENDIX 13'!M23 -> 0 | N23: =+'APPENDIX 12'!N23+'APPENDIX 13'!N23 -> 96528 | O23: =+'APPENDIX 12'!O23+'APPENDIX 13'!O23 -> 0 | P23: =+'APPENDIX 12'!P23+'APPENDIX 13'!P23 -> 0 | Q23: =+'APPENDIX 12'!Q23+'APPENDIX 13'!Q23 -> 1303029
B24: PRUDENTIAL LIFE ASSURANCE | C24: =+'APPENDIX 12'!C24+'APPENDIX 13'!C24 -> 129257 | D24: =+'APPENDIX 12'!D24+'APPENDIX 13'!D24 -> 110354 | E24: =+'APPENDIX 12'!E24+'APPENDIX 13'!E24 -> 110354 | F24: =+'APPENDIX 12'!F24+'APPENDIX 13'!F24 -> 0 | G24: =+'APPENDIX 12'!G24+'APPENDIX 13'!G24 -> 0 | H24: =+'APPENDIX 12'!H24+'APPENDIX 13'!H24 -> 9446 | I24: =+'APPENDIX 12'!I24+'APPENDIX 13'!I24 -> 0 | J24: =+'APPENDIX 12'!J24+'APPENDIX 13'!J24 -> 0 | K24: =+'APPENDIX 12'!K24+'APPENDIX 13'!K24 -> 0 | L24: =+'APPENDIX 12'!L24+'APPENDIX 13'!L24 -> 0 | M24: =+'APPENDIX 12'!M24+'APPENDIX 13'!M24 -> 1526 | N24: =+'APPENDIX 12'!N24+'APPENDIX 13'!N24 -> 12081 | O24: =+'APPENDIX 12'!O24+'APPENDIX 13'!O24 -> 0 | P24: =+'APPENDIX 12'!P24+'APPENDIX 13'!P24 -> 0 | Q24: =+'APPENDIX 12'!Q24+'APPENDIX 13'!Q24 -> 240719
B25: SAHAM ASSURANCE | C25: =+'APPENDIX 12'!#REF!+'APPENDIX 13'!#REF! ->  | D25: =+'APPENDIX 12'!#REF!+'APPENDIX 13'!#REF! ->  | E25: =+'APPENDIX 12'!#REF!+'APPENDIX 13'!#REF! ->  | F25: =+'APPENDIX 12'!#REF!+'APPENDIX 13'!#REF! ->  | G25: =+'APPENDIX 12'!#REF!+'APPENDIX 13'!#REF! ->  | H25: =+'APPENDIX 12'!#REF!+'APPENDIX 13'!#REF! ->  | I25: =+'APPENDIX 12'!#REF!+'APPENDIX 13'!#REF! ->  | J25: =+'APPENDIX 12'!#REF!+'APPENDIX 13'!#REF! ->  | K25: =+'APPENDIX 12'!#REF!+'APPENDIX 13'!#REF! ->  | L25: =+'APPENDIX 12'!#REF!+'APPENDIX 13'!#REF! ->  | M25: =+'APPENDIX 12'!#REF!+'APPENDIX 13'!#REF! ->  | N25: =+'APPENDIX 12'!#REF!+'APPENDIX 13'!#REF! ->  | O25: =+'APPENDIX 12'!#REF!+'APPENDIX 13'!#REF! ->  | P25: =+'APPENDIX 12'!#REF!+'APPENDIX 13'!#REF! ->  | Q25: =+'APPENDIX 12'!#REF!+'APPENDIX 13'!#REF! -> 
B26: SANLAM LIFE INSURANCE | C26: =+'APPENDIX 12'!C25+'APPENDIX 13'!C25 -> 1563142 | D26: =+'APPENDIX 12'!D25+'APPENDIX 13'!D25 -> 1154679 | E26: =+'APPENDIX 12'!E25+'APPENDIX 13'!E25 -> 1154679 | F26: =+'APPENDIX 12'!F25+'APPENDIX 13'!F25 -> 0 | G26: =+'APPENDIX 12'!G25+'APPENDIX 13'!G25 -> 259862 | H26: =+'APPENDIX 12'!H25+'APPENDIX 13'!H25 -> 259862 | I26: =+'APPENDIX 12'!I25+'APPENDIX 13'!I25 -> 0 | J26: =+'APPENDIX 12'!J25+'APPENDIX 13'!J25 -> 0 | K26: =+'APPENDIX 12'!K25+'APPENDIX 13'!K25 -> 0 | L26: =+'APPENDIX 12'!L25+'APPENDIX 13'!L25 -> 31062 | M26: =+'APPENDIX 12'!M25+'APPENDIX 13'!M25 -> 19535 | N26: =+'APPENDIX 12'!N25+'APPENDIX 13'!N25 -> 184913 | O26: =+'APPENDIX 12'!O25+'APPENDIX 13'!O25 -> 0 | P26: =+'APPENDIX 12'!P25+'APPENDIX 13'!P25 -> 0 | Q26: =+'APPENDIX 12'!Q25+'APPENDIX 13'!Q25 -> 2592276
B27: THE KENYAN ALLIANCE INSURANCE | C27: =+'APPENDIX 12'!C26+'APPENDIX 13'!C26 -> 2030424 | D27: =+'APPENDIX 12'!D26+'APPENDIX 13'!D26 -> 588573 | E27: =+'APPENDIX 12'!E26+'APPENDIX 13'!E26 -> 588573 | F27: =+'APPENDIX 12'!F26+'APPENDIX 13'!F26 -> 0 | G27: =+'APPENDIX 12'!G26+'APPENDIX 13'!G26 -> 318587 | H27: =+'APPENDIX 12'!H26+'APPENDIX 13'!H26 -> 318587 | I27: =+'APPENDIX 12'!I26+'APPENDIX 13'!I26 -> 0 | J27: =+'APPENDIX 12'!J26+'APPENDIX 13'!J26 -> 0 | K27: =+'APPENDIX 12'!K26+'APPENDIX 13'!K26 -> 0 | L27: =+'APPENDIX 12'!L26+'APPENDIX 13'!L26 -> 9403 | M27: =+'APPENDIX 12'!M26+'APPENDIX 13'!M26 -> 80954 | N27: =+'APPENDIX 12'!N26+'APPENDIX 13'!N26 -> 92657 | O27: =+'APPENDIX 12'!O26+'APPENDIX 13'!O26 -> 0 | P27: =+'APPENDIX 12'!P26+'APPENDIX 13'!P26 -> -468666 | Q27: =+'APPENDIX 12'!Q26+'APPENDIX 13'!Q26 -> 2771378
B28: THE MONARCH INSURANCE | C28: =+'APPENDIX 12'!C27+'APPENDIX 13'!C27 -> 1144 | D28: =+'APPENDIX 12'!D27+'APPENDIX 13'!D27 -> 0 | E28: =+'APPENDIX 12'!E27+'APPENDIX 13'!E27 -> 0 | F28: =+'APPENDIX 12'!F27+'APPENDIX 13'!F27 -> 0 | G28: =+'APPENDIX 12'!G27+'APPENDIX 13'!G27 -> 0 | H28: =+'APPENDIX 12'!H27+'APPENDIX 13'!H27 -> 0 | I28: =+'APPENDIX 12'!I27+'APPENDIX 13'!I27 -> 0 | J28: =+'APPENDIX 12'!J27+'APPENDIX 13'!J27 -> 0 | K28: =+'APPENDIX 12'!K27+'APPENDIX 13'!K27 -> 0 | L28: =+'APPENDIX 12'!L27+'APPENDIX 13'!L27 -> 0 | M28: =+'APPENDIX 12'!M27+'APPENDIX 13'!M27 -> 29836 | N28: =+'APPENDIX 12'!N27+'APPENDIX 13'!N27 -> 12369 | O28: =+'APPENDIX 12'!O27+'APPENDIX 13'!O27 -> 0 | P28: =+'APPENDIX 12'!P27+'APPENDIX 13'!P27 -> -8974 | Q28: =+'APPENDIX 12'!Q27+'APPENDIX 13'!Q27 -> -7350
B29: UAP LIFE ASSURANCE COMPANY | C29: =+'APPENDIX 12'!C28+'APPENDIX 13'!C28 -> 5228971 | D29: =+'APPENDIX 12'!D28+'APPENDIX 13'!D28 -> 668578 | E29: =+'APPENDIX 12'!E28+'APPENDIX 13'!E28 -> 668578 | F29: =+'APPENDIX 12'!F28+'APPENDIX 13'!F28 -> 0 | G29: =+'APPENDIX 12'!G28+'APPENDIX 13'!G28 -> 568813 | H29: =+'APPENDIX 12'!H28+'APPENDIX 13'!H28 -> 568359 | I29: =+'APPENDIX 12'!I28+'APPENDIX 13'!I28 -> 0 | J29: =+'APPENDIX 12'!J28+'APPENDIX 13'!J28 -> 0 | K29: =+'APPENDIX 12'!K28+'APPENDIX 13'!K28 -> 0 | L29: =+'APPENDIX 12'!L28+'APPENDIX 13'!L28 -> 2621 | M29: =+'APPENDIX 12'!M28+'APPENDIX 13'!M28 -> 0 | N29: =+'APPENDIX 12'!N28+'APPENDIX 13'!N28 -> 414994 | O29: =+'APPENDIX 12'!O28+'APPENDIX 13'!O28 -> 0 | P29: =+'APPENDIX 12'!P28+'APPENDIX 13'!P28 -> 0 | Q29: =+'APPENDIX 12'!Q28+'APPENDIX 13'!Q28 -> 5741563
B30: TOTAL | C30: =SUM(C6:C29) -> 
B31: REINSURERS
B32: CONTINENTAL REINSURANCE | C32: 0 | D32: 0 | E32: 0 | F32: 0 | G32: 0 | H32: 0 | I32: 0 | J32: 0 | K32: 0 | L32: 0 | M32: 0 | N32: 0 | O32: 0 | P32: 0 | Q32: 0
B33: EAST AFRICA REINSURANCE | C33: 0 | D33: 0 | E33: 0 | F33: 0 | G33: 0 | H33: 0 | I33: 0 | J33: 0 | K33: 0 | L33: 0 | M33: 0 | N33: 0 | O33: 0 | P33: 0 | Q33: 0
B34: KENYA REINSURANCE CORPORATION | C34: 0 | D34: 0 | E34: 0 | F34: 0 | G34: 0 | H34: 0 | I34: 0 | J34: 0 | K34: 0 | L34: 0 | M34: 0 | N34: 0 | O34: 0 | P34: 0 | Q34: 0
B35: TOTAL | C35: =SUM(C32:C34) -> 0 | D35: =SUM(D32:D34) -> 0 | E35: 0 | F35: 0 | G35: 0 | H35: 0 | I35: 0 | J35: 0 | K35: 0 | L35: 0 | M35: 0 | N35: 0 | O35: 0 | P35: 0 | Q35: 0
B36: Amounts in Thousand Shillings

Sheet APPENDIX 14
B3: APPENDIX 14: SUMMARY OF GROUP CREDIT BUSINESS REVENUE ACCOUNTS FOR THE YEAR ENDED 31.12.2021
B4: Company | C4: Life Fund BF | D4: Gross Premium | E4: Net Premium | F4: Other (Fee) Income | G4: Total Benefits | H4: Claims | I4: Surrenders | J4: Bonuses Paid | K4: Annuities Paid | L4: Net Commisions | M4: Expense of Management | N4: Investment Income | O4: Investment Expenses | P4: Transfer To (From) P & L | Q4: Life Fund CF
B5: INSURERS
B6: ABSA LIFE ASSURANCE KENYA | C6: -125810 | D6: 1198006 | E6: 1124036 | F6: 0 | G6: 657443 | H6: 133722 | I6: 0 | J6: 0 | K6: 0 | L6: 368849 | M6: 136055 | N6: 77215 | O6: 0 | P6: 72807 | Q6: 364007
B7: APA LIFE ASSURANCE COMPANY | C7: 360736 | D7: 607578 | E7: 548028 | F7: 0 | G7: 241349 | H7: 241349 | I7: 0 | J7: 0 | K7: 0 | L7: 42080 | M7: 5950 | N7: 7177 | O7: 688 | P7: 0 | Q7: 625873
B8: BRITAM LIFE INSURANCE COMPANY | C8: 1244024 | D8: 2288431 | E8: 2189468 | F8: 0 | G8: 928117 | H8: 998256 | I8: 0 | J8: 0 | K8: 0 | L8: 97274 | M8: 424554 | N8: 436782 | O8: 6021 | P8: 11637 | Q8: 2332531
B9: CAPEX LIFE ASSURANCE COMPANY | C9: 0 | D9: 19229 | E9: 19229 | F9: 0 | G9: 0 | H9: 4488 | I9: 0 | J9: 0 | K9: 0 | L9: 1578 | M9: 6681 | N9: 5611 | O9: 0 | P9: 0 | Q9: 12093
B10: CIC LIFE ASSURANCE COMPANY | C10: 977473 | D10: 4132854 | E10: 2748218 | F10: 0 | G10: 1610919 | H10: 2218614 | I10: 0 | J10: 0 | K10: 0 | L10: 26154 | M10: 978492 | N10: 325881 | O10: 0 | P10: 0 | Q10: 828312
B11: CORPORATE INSURANCE COMPANY | C11: 0 | D11: 0 | E11: 0 | F11: 0 | G11: 0 | H11: 0 | I11: 0 | J11: 0 | K11: 0 | L11: 0 | M11: 0 | N11: 0 | O11: 0 | P11: 0 | Q11: 0
B12: GA LIFE ASSURANCE COMPANY | C12: 728 | D12: 3911 | E12: 490 | F12: 0 | G12: 327 | H12: 327 | I12: 0 | J12: 0 | K12: 0 | L12: -728 | M12: 921 | N12: 80 | O12: 0 | P12: 250 | Q12: 527
B13: GEMINIA INSURANCE COMPANY | C13: 0 | D13: 93507 | E13: 93507 | F13: 0 | G13: 38092 | H13: 37456 | I13: 0 | J13: 0 | K13: 0 | L13: 7083 | M13: 19921 | N13: 11821 | O13: 0 | P13: 0 | Q13: 40867
B14: ICEA LION LIFE ASSURANCE | C14: 114910 | D14: 201935 | E14: 112137 | F14: 0 | G14: 138085 | H14: 140148 | I14: 0 | J14: 0 | K14: 0 | L14: -3850 | M14: 66169 | N14: 14605 | O14: 0 | P14: 18000 | Q14: 21184
B15: JUBILEE INSURANCE COMPANY LIMITED-LIFE | C15: 101672 | D15: 132430 | E15: 132430 | F15: 0 | G15: 98936 | H15: 0 | I15: 0 | J15: 0 | K15: 0 | L15: 10231 | M15: 19577 | N15: 18135 | O15: 133 | P15: 0 | Q15: 222296
B16: KENINDIA ASSURANCE COMPANY | C16: 0 | D16: 0 | E16: 0 | F16: 0 | G16: 0 | H16: 0 | I16: 0 | J16: 0 | K16: 0 | L16: 0 | M16: 0 | N16: 0 | O16: 0 | P16: 0 | Q16: 0
B17: KENYA ORIENT LIFE ASSURANCE | C17: 627413 | D17: 491274 | E17: 450709 | F17: 0 | G17: 52213 | H17: 80155 | I17: 0 | J17: 0 | K17: 0 | L17: 29776 | M17: 274027 | N17: 685 | O17: 0 | P17: 0 | Q17: 694848
B18: KUSCCO MUTUAL ASSURANCE LIMITED | C18: 139275 | D18: 1375942 | E18: 955859 | F18: 0 | G18: 1011559 | H18: 703189 | I18: 0 | J18: 0 | K18: 0 | L18: -34507 | M18: 271711 | N18: 42380 | O18: 0 | P18: 0 | Q18: 197121
B19: LIBERTY LIFE ASSURANCE COMPANY | C19: 841422 | D19: 532758 | E19: 429047 | F19: 0 | G19: 301058 | H19: 404611 | I19: 0 | J19: 0 | K19: 0 | L19: 43238 | M19: 127317 | N19: 0 | O19: 0 | P19: 0 | Q19: 695303
B20: MADISON INSURANCE COMPANY | C20: 159241 | D20: 283721 | E20: 283721 | F20: 0 | G20: 496870 | H20: 225937 | I20: 0 | J20: 0 | K20: 0 | L20: 30801 | M20: 89111 | N20: 1073 | O20: 0 | P20: 0 | Q20: 98186
B21: METROPOLITAN CANNON INSURANCE | C21: 37906 | D21: 60701 | E21: 49010 | F21: 0 | G21: 67007 | H21: 67007 | I21: 0 | J21: 0 | K21: 0 | L21: 0 | M21: 14730 | N21: 0 | O21: 0 | P21: 0 | Q21: 5179
B22: OLD MUTUAL LIFE ASSURANCE | C22: 0 | D22: 0 | E22: 0 | F22: 0 | G22: 0 | H22: 0 | I22: 0 | J22: 0 | K22: 0 | L22: 0 | M22: 0 | N22: 0 | O22: 0 | P22: 0 | Q22: 0
B23: PIONEER ASSURANCE COMPANY | C23: 132914 | D23: 369349 | E23: 222095 | F23: 0 | G23: 98017 | H23: 98017 | I23: 0 | J23: 0 | K23: 0 | L23: 22146 | M23: 78837 | N23: 1107 | O23: 0 | P23: 0 | Q23: 157117
B24: PRUDENTIAL LIFE ASSURANCE | C24: 130411 | D24: 236533 | E24: 219600 | F24: 4291 | G24: 141655 | H24: 141655 | I24: 0 | J24: 0 | K24: 0 | L24: 23441 | M24: 65192 | N24: 29457 | O24: 1080 | P24: 0 | Q24: 152391
B25: SANLAM LIFE INSURANCE | C25: 747302 | D25: 580729 | E25: 392505 | F25: 0 | G25: 268226 | H25: 261939 | I25: 0 | J25: 0 | K25: 0 | L25: 70364 | M25: 53242 | N25: 47441 | O25: 0 | P25: 0 | Q25: 801703
B26: THE KENYAN ALLIANCE INSURANCE | C26: 21016 | D26: 23357 | E26: 23357 | F26: 0 | G26: 0 | H26: 0 | I26: 0 | J26: 0 | K26: 0 | L26: 1869 | M26: 2795 | N26: 3677 | O26: 0 | P26: 0 | Q26: 43386
B27: THE MONARCH INSURANCE | C27: 0 | D27: 0 | E27: 0 | F27: 0 | G27: 0 | H27: 0 | I27: 0 | J27: 0 | K27: 0 | L27: 0 | M27: 0 | N27: 0 | O27: 0 | P27: 0 | Q27: 0
B28: UAP LIFE ASSURANCE COMPANY | C28: 901819 | D28: 345793 | E28: 345793 | F28: 0 | G28: 275920 | H28: 226576 | I28: 0 | J28: 0 | K28: 0 | L28: 0 | M28: 0 | N28: 11866 | O28: 0 | P28: 0 | Q28: 1032903
B29: TOTAL | C29: =SUM(C6:C28) -> 6412452 | D29: 12978038 | E29: 10339239 | F29: 4291 | G29: 6425793 | H29: 5983446 | I29: 0 | J29: 0 | K29: 0 | L29: 735799 | M29: 2635282 | N29: 1034993 | O29: 7922 | P29: 102694 | Q29: 8325827
B30: REINSURERS
B31: CONTINENTAL REINSURANCE | C31: 0 | D31: 0 | E31: 0 | F31: 0 | G31: 0 | H31: 0 | I31: 0 | J31: 0 | K31: 0 | L31: 0 | M31: 0 | N31: 0 | O31: 0 | P31: 0 | Q31: 0
B32: EAST AFRICA REINSURANCE | C32: 0 | D32: 0 | E32: 0 | F32: 0 | G32: 0 | H32: 0 | I32: 0 | J32: 0 | K32: 0 | L32: 0 | M32: 0 | N32: 0 | O32: 0 | P32: 0 | Q32: 0
B33: KENYA REINSURANCE CORPORATION | C33: 0 | D33: 0 | E33: 0 | F33: 0 | G33: 0 | H33: 0 | I33: 0 | J33: 0 | K33: 0 | L33: 0 | M33: 0 | N33: 0 | O33: 0 | P33: 0 | Q33: 0
B34: TOTAL | C34: =SUM(C31:C33) -> 0 | D34: =SUM(D31:D33) -> 0 | E34: 0 | F34: 0 | G34: 0 | H34: 0 | I34: 0 | J34: 0 | K34: 0 | L34: 0 | M34: 0 | N34: 0 | O34: 0 | P34: 0 | Q34: 0
B35: Amounts in Thousand Shillings

Sheet APPENDIX 15
B3: APPENDIX 15: SUMMARY OF PERMANENT HEALTH BUSINESS REVENUE ACCOUNTS FOR THE YEAR ENDED 31.12.2021
B4: Company | C4: Life Fund BF | D4: Gross Premium | E4: Net Premium | F4: Other (Fee) Income | G4: Total Benefits | H4: Claims | I4: Surrenders | J4: Bonuses Paid | K4: Annuities Paid | L4: Net Commisions | M4: Expense of Management | N4: Investment Income | O4: Investment Expenses | P4: Transfer To (From) P & L | Q4: Life Fund CF
B5: INSURERS
B6: ABSA LIFE ASSURANCE KENYA | C6: 0 | D6: 0 | E6: 0 | F6: 0 | G6: 0 | H6: 0 | I6: 0 | J6: 0 | K6: 0 | L6: 0 | M6: 0 | N6: 0 | O6: 0 | P6: 0 | Q6: 0
B7: APA LIFE ASSURANCE COMPANY | C7: 0 | D7: 0 | E7: 0 | F7: 0 | G7: 0 | H7: 0 | I7: 0 | J7: 0 | K7: 0 | L7: 0 | M7: 0 | N7: 0 | O7: 0 | P7: 0 | Q7: 0
B8: BRITAM LIFE INSURANCE COMPANY | C8: 0 | D8: 0 | E8: 0 | F8: 0 | G8: 0 | H8: 0 | I8: 0 | J8: 0 | K8: 0 | L8: 0 | M8: 0 | N8: 0 | O8: 0 | P8: 0 | Q8: 0
B9: CAPEX LIFE ASSURANCE COMPANY | C9: 0 | D9: 0 | E9: 0 | F9: 0 | G9: 0 | H9: 0 | I9: 0 | J9: 0 | K9: 0 | L9: 0 | M9: 0 | N9: 0 | O9: 0 | P9: 0 | Q9: 0
B10: CIC LIFE ASSURANCE COMPANY | C10: 0 | D10: 0 | E10: 0 | F10: 0 | G10: 0 | H10: 0 | I10: 0 | J10: 0 | K10: 0 | L10: 0 | M10: 0 | N10: 0 | O10: 0 | P10: 0 | Q10: 0
B11: CORPORATE INSURANCE COMPANY | C11: 0 | D11: 0 | E11: 0 | F11: 0 | G11: 0 | H11: 0 | I11: 0 | J11: 0 | K11: 0 | L11: 0 | M11: 0 | N11: 0 | O11: 0 | P11: 0 | Q11: 0
B12: GA LIFE ASSURANCE COMPANY | C12: 0 | D12: 0 | E12: 0 | F12: 0 | G12: 0 | H12: 0 | I12: 0 | J12: 0 | K12: 0 | L12: 0 | M12: 0 | N12: 0 | O12: 0 | P12: 0 | Q12: 0
B13: GEMINIA INSURANCE COMPANY | C13: 0 | D13: 0 | E13: 0 | F13: 0 | G13: 0 | H13: 0 | I13: 0 | J13: 0 | K13: 0 | L13: 0 | M13: 0 | N13: 0 | O13: 0 | P13: 0 | Q13: 0
B14: ICEA LION LIFE ASSURANCE | C14: 0 | D14: 0 | E14: 0 | F14: 0 | G14: 0 | H14: 0 | I14: 0 | J14: 0 | K14: 0 | L14: 0 | M14: 0 | N14: 0 | O14: 0 | P14: 0 | Q14: 0
B15: JUBILEE INSURANCE COMPANY LIMITED-LIFE | C15: 0 | D15: 0 | E15: 0 | F15: 0 | G15: 0 | H15: 0 | I15: 0 | J15: 0 | K15: 0 | L15: 0 | M15: 0 | N15: 0 | O15: 0 | P15: 0 | Q15: 0
B16: KENINDIA ASSURANCE COMPANY | C16: 0 | D16: 0 | E16: 0 | F16: 0 | G16: 0 | H16: 0 | I16: 0 | J16: 0 | K16: 0 | L16: 0 | M16: 0 | N16: 0 | O16: 0 | P16: 0 | Q16: 0
B17: KENYA ORIENT LIFE ASSURANCE | C17: 0 | D17: 0 | E17: 0 | F17: 0 | G17: 0 | H17: 0 | I17: 0 | J17: 0 | K17: 0 | L17: 0 | M17: 0 | N17: 0 | O17: 0 | P17: 0 | Q17: 0
B18: KUSCCO MUTUAL ASSURANCE LIMITED | C18: 0 | D18: 0 | E18: 0 | F18: 0 | G18: 0 | H18: 0 | I18: 0 | J18: 0 | K18: 0 | L18: 0 | M18: 0 | N18: 0 | O18: 0 | P18: 0 | Q18: 0
B19: LIBERTY LIFE ASSURANCE COMPANY | C19: 0 | D19: 0 | E19: 0 | F19: 0 | G19: 0 | H19: 0 | I19: 0 | J19: 0 | K19: 0 | L19: 0 | M19: 0 | N19: 0 | O19: 0 | P19: 0 | Q19: 0
B20: MADISON INSURANCE COMPANY | C20: 0 | D20: 0 | E20: 0 | F20: 0 | G20: 0 | H20: 0 | I20: 0 | J20: 0 | K20: 0 | L20: 0 | M20: 0 | N20: 0 | O20: 0 | P20: 0 | Q20: 0
B21: METROPOLITAN CANNON INSURANCE | C21: 0 | D21: 0 | E21: 0 | F21: 0 | G21: 0 | H21: 0 | I21: 0 | J21: 0 | K21: 0 | L21: 0 | M21: 0 | N21: 0 | O21: 0 | P21: 0 | Q21: 0
B22: OLD MUTUAL LIFE ASSURANCE | C22: 0 | D22: 0 | E22: 0 | F22: 0 | G22: 0 | H22: 0 | I22: 0 | J22: 0 | K22: 0 | L22: 0 | M22: 0 | N22: 0 | O22: 0 | P22: 0 | Q22: 0
B23: PIONEER ASSURANCE COMPANY | C23: 0 | D23: 0 | E23: 0 | F23: 0 | G23: 0 | H23: 0 | I23: 0 | J23: 0 | K23: 0 | L23: 0 | M23: 0 | N23: 0 | O23: 0 | P23: 0 | Q23: 0
B24: PRUDENTIAL LIFE ASSURANCE | C24: 0 | D24: 0 | E24: 0 | F24: 0 | G24: 0 | H24: 0 | I24: 0 | J24: 0 | K24: 0 | L24: 0 | M24: 0 | N24: 0 | O24: 0 | P24: 0 | Q24: 0
B25: SANLAM LIFE INSURANCE | C25: 0 | D25: 0 | E25: 0 | F25: 0 | G25: 0 | H25: 0 | I25: 0 | J25: 0 | K25: 0 | L25: 0 | M25: 0 | N25: 0 | O25: 0 | P25: 0 | Q25: 0
B26: THE KENYAN ALLIANCE INSURANCE | C26: 0 | D26: 0 | E26: 0 | F26: 0 | G26: 0 | H26: 0 | I26: 0 | J26: 0 | K26: 0 | L26: 0 | M26: 0 | N26: 0 | O26: 0 | P26: 0 | Q26: 0
B27: THE MONARCH INSURANCE | C27: 0 | D27: 0 | E27: 0 | F27: 0 | G27: 0 | H27: 0 | I27: 0 | J27: 0 | K27: 0 | L27: 0 | M27: 0 | N27: 0 | O27: 0 | P27: 0 | Q27: 0
B28: UAP LIFE ASSURANCE COMPANY | C28: 0 | D28: 0 | E28: 0 | F28: 0 | G28: 0 | H28: 0 | I28: 0 | J28: 0 | K28: 0 | L28: 0 | M28: 0 | N28: 0 | O28: 0 | P28: 0 | Q28: 0
B29: TOTAL | C29: =SUM(C6:C28) -> 0 | D29: 0 | E29: 0 | F29: 0 | G29: 0 | H29: 0 | I29: 0 | J29: 0 | K29: 0 | L29: 0 | M29: 0 | N29: 0 | O29: 0 | P29: 0 | Q29: 0
B30: REINSURERS
B31: CONTINENTAL REINSURANCE | C31: 0 | D31: 0 | E31: 0 | F31: 0 | G31: 0 | H31: 0 | I31: 0 | J31: 0 | K31: 0 | L31: 0 | M31: 0 | N31: 0 | O31: 0 | P31: 0 | Q31: 0
B32: EAST AFRICA REINSURANCE | C32: 0 | D32: 0 | E32: 0 | F32: 0 | G32: 0 | H32: 0 | I32: 0 | J32: 0 | K32: 0 | L32: 0 | M32: 0 | N32: 0 | O32: 0 | P32: 0 | Q32: 0
B33: KENYA REINSURANCE CORPORATION | C33: 0 | D33: 0 | E33: 0 | F33: 0 | G33: 0 | H33: 0 | I33: 0 | J33: 0 | K33: 0 | L33: 0 | M33: 0 | N33: 0 | O33: 0 | P33: 0 | Q33: 0
B34: TOTAL | C34: =SUM(C31:C33) -> 0 | D34: =SUM(D31:D33) -> 0 | E34: 0 | F34: 0 | G34: 0 | H34: 0 | I34: 0 | J34: 0 | K34: 0 | L34: 0 | M34: 0 | N34: 0 | O34: 0 | P34: 0 | Q34: 0
B35: Amounts in Thousand Shillings

Sheet Linked (hidden)
B3: APPENDIX 16: SUMMARY OF INVESTMENTS BUSINESS REVENUE ACCOUNTS FOR THE YEAR ENDED 31.12.2019
B4: Company | C4: Life Fund BF | D4: Gross Premium | E4: Net Premium | F4: Other (Fee) Income | G4: Total Benefits | H4: Claims | I4: Surrenders | J4: Bonuses Paid | K4: Annuities Paid | L4: Net Commisions | M4: Expense of Management | N4: Investment Income | O4: Investment Expenses | P4: Transfer To (From) P & L | Q4: Life Fund CF
B5: INSURERS
B6: ABSA LIFE ASSURANCE KENYA | C6: 0 | D6: 0 | E6: 0 | F6: 0 | G6: 0 | H6: 0 | I6: 0 | J6: 0 | K6: 0 | L6: 0 | M6: 0 | N6: 0 | O6: 0 | P6: 0 | Q6: 0
B7: APA LIFE ASSURANCE COMPANY | C7: 1225 | D7: 55 | E7: 55 | F7: 0 | G7: 0 | H7: 0 | I7: 0 | J7: 0 | K7: 0 | L7: 0 | M7: 0 | N7: 0 | O7: 0 | P7: 0 | Q7: 1280
B8: BRITAM LIFE INSURANCE COMPANY | C8: 2143228 | D8: 1354031 | E8: 1354031 | F8: 0 | G8: 818263 | H8: 406052 | I8: 115638 | J8: 302204 | K8: 0 | L8: 35585 | M8: 101899 | N8: 309332 | O8: 8584 | P8: 220777 | Q8: 2615851
B9: CAPEX LIFE ASSURANCE COMPANY | C9: 0 | D9: 0 | E9: 0 | F9: 0 | G9: 0 | H9: 0 | I9: 0 | J9: 0 | K9: 0 | L9: 0 | M9: 0 | N9: 0 | O9: 0 | P9: 0 | Q9: 0
B10: CIC LIFE ASSURANCE COMPANY | C10: 0 | D10: 0 | E10: 0 | F10: 0 | G10: 0 | H10: 0 | I10: 0 | J10: 0 | K10: 0 | L10: 0 | M10: 0 | N10: 0 | O10: 0 | P10: 0 | Q10: 0
B11: CORPORATE INSURANCE COMPANY | C11: 0 | D11: 0 | E11: 0 | F11: 0 | G11: 0 | H11: 0 | I11: 0 | J11: 0 | K11: 0 | L11: 0 | M11: 0 | N11: 0 | O11: 0 | P11: 0 | Q11: 0
B12: GA LIFE ASSURANCE COMPANY | C12: 0 | D12: 0 | E12: 0 | F12: 0 | G12: 0 | H12: 0 | I12: 0 | J12: 0 | K12: 0 | L12: 0 | M12: 0 | N12: 0 | O12: 0 | P12: 0 | Q12: 0
B13: GEMINIA INSURANCE COMPANY | C13: 0 | D13: 0 | E13: 0 | F13: 0 | G13: 0 | H13: 0 | I13: 0 | J13: 0 | K13: 0 | L13: 0 | M13: 0 | N13: 0 | O13: 0 | P13: 0 | Q13: 0
B14: ICEA LION LIFE ASSURANCE | C14: 309081 | D14: 14505 | E14: 14505 | F14: 0 | G14: 39248 | H14: 22931 | I14: 17166 | J14: 0 | K14: 0 | L14: 0 | M14: 145 | N14: 97984 | O14: 0 | P14: 1783 | Q14: 379545
B15: JUBILEE INSURANCE COMPANY LIMITED-LIFE | C15: 0 | D15: 0 | E15: 0 | F15: 0 | G15: 0 | H15: 0 | I15: 0 | J15: 0 | K15: 0 | L15: 0 | M15: 0 | N15: 0 | O15: 0 | P15: 0 | Q15: 0
B16: KENINDIA ASSURANCE COMPANY | C16: 0 | D16: 0 | E16: 0 | F16: 0 | G16: 0 | H16: 0 | I16: 0 | J16: 0 | K16: 0 | L16: 0 | M16: 0 | N16: 0 | O16: 0 | P16: 0 | Q16: 0
B17: KENYA ORIENT LIFE ASSURANCE | C17: 0 | D17: 0 | E17: 0 | F17: 0 | G17: 0 | H17: 0 | I17: 0 | J17: 0 | K17: 0 | L17: 0 | M17: 0 | N17: 0 | O17: 0 | P17: 0 | Q17: 0
B18: KUSCCO MUTUAL ASSURANCE LIMITED | C18: 0 | D18: 0 | E18: 0 | F18: 0 | G18: 0 | H18: 0 | I18: 0 | J18: 0 | K18: 0 | L18: 0 | M18: 0 | N18: 0 | O18: 0 | P18: 0 | Q18: 0
B19: LIBERTY LIFE ASSURANCE COMPANY | C19: 2650244 | D19: 1031556 | E19: 1031556 | F19: 0 | G19: 974582 | H19: 199737 | I19: 804715 | J19: 0 | K19: 0 | L19: 66188 | M19: 218959 | N19: 395751 | O19: 21206 | P19: 0 | Q19: 2766746
B20: MADISON INSURANCE COMPANY | C20: 35390 | D20: 2063 | E20: 2063 | F20: 0 | G20: 20975 | H20: 20975 | I20: 0 | J20: 0 | K20: 0 | L20: 0 | M20: 706 | N20: 1061 | O20: 0 | P20: 0 | Q20: 16833
B21: METROPOLITAN CANNON INSURANCE | C21: 299504 | D21: 10453 | E21: 10453 | F21: 58526 | G21: 53563 | H21: 53563 | I21: 0 | J21: 0 | K21: 0 | L21: 0 | M21: 32895 | N21: 0 | O21: 0 | P21: 0 | Q21: 282023
B22: OLD MUTUAL LIFE ASSURANCE | C22: 5965580 | D22: 676778 | E22: 676778 | F22: 0 | G22: 1797807 | H22: 229699 | I22: 1447767 | J22: 0 | K22: 0 | L22: 0 | M22: 0 | N22: 411505 | O22: 18963 | P22: 0 | Q22: 5357434
B23: PIONEER ASSURANCE COMPANY | C23: 191112 | D23: 55750 | E23: 55750 | F23: 0 | G23: 29366 | H23: 29366 | I23: 0 | J23: 0 | K23: 0 | L23: 0 | M23: 0 | N23: 0 | O23: 0 | P23: 0 | Q23: 217496
B24: PRUDENTIAL LIFE ASSURANCE | C24: 0 | D24: 0 | E24: 0 | F24: 0 | G24: 0 | H24: 0 | I24: 0 | J24: 0 | K24: 0 | L24: 0 | M24: 0 | N24: 0 | O24: 0 | P24: 0 | Q24: 0
B25: SAHAM ASSURANCE | C25: 0 | D25: 0 | E25: 0 | F25: 0 | G25: 0 | H25: 0 | I25: 0 | J25: 0 | K25: 0 | L25: 0 | M25: 0 | N25: 0 | O25: 0 | P25: 0 | Q25: 0
B26: SANLAM LIFE INSURANCE | C26: 3776327 | D26: 479380 | E26: 478485 | F26: 0 | G26: 1721546 | H26: 1725716 | I26: 0 | J26: 0 | K26: 0 | L26: -25 | M26: 230048 | N26: 372537 | O26: 0 | P26: 0 | Q26: 2671610
B27: THE KENYAN ALLIANCE INSURANCE | C27: 0 | D27: 0 | E27: 0 | F27: 0 | G27: 0 | H27: 0 | I27: 0 | J27: 0 | K27: 0 | L27: 0 | M27: 0 | N27: 0 | O27: 0 | P27: 0 | Q27: 0
B28: THE MONARCH INSURANCE | C28: 0 | D28: 0 | E28: 0 | F28: 0 | G28: 0 | H28: 0 | I28: 0 | J28: 0 | K28: 0 | L28: 0 | M28: 0 | N28: 0 | O28: 0 | P28: 0 | Q28: 0
B29: UAP LIFE ASSURANCE COMPANY | C29: 764432 | D29: 23444 | E29: 23444 | F29: 0 | G29: 193829 | H29: 121700 | I29: 60844 | J29: 0 | K29: 0 | L29: 0 | M29: 0 | N29: 52258 | O29: 0 | P29: 0 | Q29: 657589
B30: TOTAL | C30: =SUM(C6:C29) -> 16136123 | D30: 3648015 | E30: 3647120 | F30: 58526 | G30: 5649179 | H30: 2809739 | I30: 2446130 | J30: 302204 | K30: 0 | L30: 101748 | M30: 584652 | N30: 1640428 | O30: 48753 | P30: 222560 | Q30: 14966407
B31: REINSURERS
B32: CONTINENTAL REINSURANCE | C32: 0 | D32: 0 | E32: 0 | F32: 0 | G32: 0 | H32: 0 | I32: 0 | J32: 0 | K32: 0 | L32: 0 | M32: 0 | N32: 0 | O32: 0 | P32: 0 | Q32: 0
B33: EAST AFRICA REINSURANCE | C33: 0 | D33: 0 | E33: 0 | F33: 0 | G33: 0 | H33: 0 | I33: 0 | J33: 0 | K33: 0 | L33: 0 | M33: 0 | N33: 0 | O33: 0 | P33: 0 | Q33: 0
B34: KENYA REINSURANCE CORPORATION | C34: 0 | D34: 0 | E34: 0 | F34: 0 | G34: 0 | H34: 0 | I34: 0 | J34: 0 | K34: 0 | L34: 0 | M34: 0 | N34: 0 | O34: 0 | P34: 0 | Q34: 0
B35: TOTAL | C35: =SUM(C32:C34) -> 0 | D35: =SUM(D32:D34) -> 0 | E35: 0 | F35: 0 | G35: 0 | H35: 0 | I35: 0 | J35: 0 | K35: 0 | L35: 0 | M35: 0 | N35: 0 | O35: 0 | P35: 0 | Q35: 0
B36: Amounts in Thousand Shillings
C37: 16136122 | D37: 3648014 | E37: 3647120 | F37: 58526 | G37: 5649179 | H37: 2809739 | I37: 2446130 | J37: 302204 | K37: 0 | L37: 101749 | M37: 584652 | N37: 1640427 | O37: 48753 | P37: 222560 | Q37: 14966408
C38: =C37-C30 -> -1 | D38: =D37-D30 -> -1 | E38: 0 | F38: 0 | G38: 0 | H38: 0 | I38: 0 | J38: 0 | K38: 0 | L38: 1 | M38: 0 | N38: -1 | O38: 0 | P38: 0 | Q38: 1

Sheet Non Linked (hidden)
B3: APPENDIX 16: SUMMARY OF INVESTMENTS BUSINESS REVENUE ACCOUNTS FOR THE YEAR ENDED 31.12.2019
B4: Company | C4: Life Fund BF | D4: Gross Premium | E4: Net Premium | F4: Other (Fee) Income | G4: Total Benefits | H4: Claims | I4: Surrenders | J4: Bonuses Paid | K4: Annuities Paid | L4: Net Commisions | M4: Expense of Management | N4: Investment Income | O4: Investment Expenses | P4: Transfer To (From) P & L | Q4: Life Fund CF
B5: INSURERS
B6: ABSA LIFE ASSURANCE KENYA | C6: 0 | D6: 0 | E6: 0 | F6: 0 | G6: 0 | H6: 0 | I6: 0 | J6: 0 | K6: 0 | L6: 0 | M6: 0 | N6: 0 | O6: 0 | P6: 0 | Q6: 0
B7: APA LIFE ASSURANCE COMPANY | C7: 0 | D7: 0 | E7: 0 | F7: 0 | G7: 0 | H7: 0 | I7: 0 | J7: 0 | K7: 0 | L7: 0 | M7: 0 | N7: 0 | O7: 0 | P7: 0 | Q7: 0
B8: BRITAM LIFE INSURANCE COMPANY | C8: 0 | D8: 0 | E8: 0 | F8: 0 | G8: 0 | H8: 0 | I8: 0 | J8: 0 | K8: 0 | L8: 0 | M8: 0 | N8: 0 | O8: 0 | P8: 0 | Q8: 0
B9: CAPEX LIFE ASSURANCE COMPANY | C9: 0 | D9: 0 | E9: 0 | F9: 0 | G9: 0 | H9: 0 | I9: 0 | J9: 0 | K9: 0 | L9: 0 | M9: 0 | N9: 0 | O9: 0 | P9: 0 | Q9: 0
B10: CIC LIFE ASSURANCE COMPANY | C10: 0 | D10: 0 | E10: 0 | F10: 0 | G10: 0 | H10: 0 | I10: 0 | J10: 0 | K10: 0 | L10: 0 | M10: 0 | N10: 0 | O10: 0 | P10: 0 | Q10: 0
B11: CORPORATE INSURANCE COMPANY | C11: 0 | D11: 0 | E11: 0 | F11: 0 | G11: 0 | H11: 0 | I11: 0 | J11: 0 | K11: 0 | L11: 0 | M11: 0 | N11: 0 | O11: 0 | P11: 0 | Q11: 0
B12: GA LIFE ASSURANCE COMPANY | C12: 0 | D12: 0 | E12: 0 | F12: 0 | G12: 0 | H12: 0 | I12: 0 | J12: 0 | K12: 0 | L12: 0 | M12: 0 | N12: 0 | O12: 0 | P12: 0 | Q12: 0
B13: GEMINIA INSURANCE COMPANY | C13: 0 | D13: 0 | E13: 0 | F13: 0 | G13: 0 | H13: 0 | I13: 0 | J13: 0 | K13: 0 | L13: 170 | M13: 2204 | N13: 10399 | O13: 0 | P13: 0 | Q13: 8025
B14: ICEA LION LIFE ASSURANCE | C14: 0 | D14: 0 | E14: 0 | F14: 0 | G14: 849 | H14: 0 | I14: 0 | J14: 0 | K14: 0 | L14: 0 | M14: 0 | N14: 0 | O14: 0 | P14: 0 | Q14: 0
B15: JUBILEE INSURANCE COMPANY LIMITED-LIFE | C15: 0 | D15: 0 | E15: 0 | F15: 0 | G15: 0 | H15: 0 | I15: 0 | J15: 0 | K15: 0 | L15: 0 | M15: 0 | N15: 0 | O15: 0 | P15: 0 | Q15: 0
B16: KENINDIA ASSURANCE COMPANY | C16: 0 | D16: 0 | E16: 0 | F16: 0 | G16: 0 | H16: 0 | I16: 0 | J16: 0 | K16: 0 | L16: 0 | M16: 0 | N16: 0 | O16: 0 | P16: 0 | Q16: 0
B17: KENYA ORIENT LIFE ASSURANCE | C17: 0 | D17: 0 | E17: 0 | F17: 0 | G17: 0 | H17: 0 | I17: 0 | J17: 0 | K17: 0 | L17: 0 | M17: 0 | N17: 0 | O17: 0 | P17: 0 | Q17: 0
B18: KUSCCO MUTUAL ASSURANCE LIMITED | C18: 0 | D18: 0 | E18: 0 | F18: 0 | G18: 0 | H18: 0 | I18: 0 | J18: 0 | K18: 0 | L18: 0 | M18: 0 | N18: 0 | O18: 0 | P18: 0 | Q18: 0
B19: LIBERTY LIFE ASSURANCE COMPANY | C19: -390574 | D19: 0 | E19: 0 | F19: 0 | G19: 1627 | H19: 0 | I19: 1627 | J19: 0 | K19: 0 | L19: 0 | M19: 0 | N19: 252408 | O19: 19556 | P19: 0 | Q19: -159348
B20: MADISON INSURANCE COMPANY | C20: 0 | D20: 0 | E20: 0 | F20: 0 | G20: 0 | H20: 0 | I20: 0 | J20: 0 | K20: 0 | L20: 0 | M20: 0 | N20: 0 | O20: 0 | P20: 0 | Q20: 0
B21: METROPOLITAN CANNON INSURANCE | C21: 0 | D21: 0 | E21: 0 | F21: 0 | G21: 0 | H21: 0 | I21: 0 | J21: 0 | K21: 0 | L21: 0 | M21: 0 | N21: 0 | O21: 0 | P21: 0 | Q21: 0
B22: OLD MUTUAL LIFE ASSURANCE | C22: 0 | D22: 0 | E22: 0 | F22: 0 | G22: 0 | H22: 0 | I22: 0 | J22: 0 | K22: 0 | L22: 0 | M22: 0 | N22: 0 | O22: 0 | P22: 0 | Q22: 0
B23: PIONEER ASSURANCE COMPANY | C23: 0 | D23: 0 | E23: 0 | F23: 0 | G23: 0 | H23: 0 | I23: 0 | J23: 0 | K23: 0 | L23: 0 | M23: 0 | N23: 0 | O23: 0 | P23: 0 | Q23: 0
B24: PRUDENTIAL LIFE ASSURANCE | C24: 0 | D24: 0 | E24: 0 | F24: 0 | G24: 0 | H24: 0 | I24: 0 | J24: 0 | K24: 0 | L24: 0 | M24: 0 | N24: 0 | O24: 0 | P24: 0 | Q24: 0
B25: SAHAM ASSURANCE | C25: 0 | D25: 0 | E25: 0 | F25: 0 | G25: 0 | H25: 0 | I25: 0 | J25: 0 | K25: 0 | L25: 0 | M25: 0 | N25: 0 | O25: 0 | P25: 0 | Q25: 0
B26: SANLAM LIFE INSURANCE | C26: 0 | D26: 0 | E26: 0 | F26: 0 | G26: 0 | H26: 0 | I26: 0 | J26: 0 | K26: 0 | L26: 0 | M26: 0 | N26: 0 | O26: 0 | P26: 0 | Q26: 0
B27: THE KENYAN ALLIANCE INSURANCE | C27: 343448 | D27: 169109 | E27: 169109 | F27: 0 | G27: 134983 | H27: 134983 | I27: 0 | J27: 0 | K27: 0 | L27: 6025 | M27: 27704 | N27: 26622 | O27: 0 | P27: 0 | Q27: 370467
B28: THE MONARCH INSURANCE | C28: 0 | D28: 0 | E28: 0 | F28: 0 | G28: 0 | H28: 0 | I28: 0 | J28: 0 | K28: 0 | L28: 0 | M28: 0 | N28: 0 | O28: 0 | P28: 0 | Q28: 0
B29: UAP LIFE ASSURANCE COMPANY | C29: 175966 | D29: 0 | E29: 0 | F29: 0 | G29: 0 | H29: 0 | I29: 0 | J29: 0 | K29: 0 | L29: 0 | M29: 0 | N29: 123207 | O29: 0 | P29: 0 | Q29: 299172
B30: TOTAL | C30: =SUM(C6:C29) -> 128840 | D30: 169109 | E30: 169109 | F30: 0 | G30: 137459 | H30: 134983 | I30: 1627 | J30: 0 | K30: 0 | L30: 6195 | M30: 29908 | N30: 412636 | O30: 19556 | P30: 0 | Q30: 518316
B31: REINSURERS
B32: CONTINENTAL REINSURANCE | C32: 0 | D32: 0 | E32: 0 | F32: 0 | G32: 0 | H32: 0 | I32: 0 | J32: 0 | K32: 0 | L32: 0 | M32: 0 | N32: 0 | O32: 0 | P32: 0 | Q32: 0
B33: EAST AFRICA REINSURANCE | C33: 0 | D33: 0 | E33: 0 | F33: 0 | G33: 0 | H33: 0 | I33: 0 | J33: 0 | K33: 0 | L33: 0 | M33: 0 | N33: 0 | O33: 0 | P33: 0 | Q33: 0
B34: KENYA REINSURANCE CORPORATION | C34: 0 | D34: 0 | E34: 0 | F34: 0 | G34: 0 | H34: 0 | I34: 0 | J34: 0 | K34: 0 | L34: 0 | M34: 0 | N34: 0 | O34: 0 | P34: 0 | Q34: 0
B35: TOTAL | C35: =SUM(C32:C34) -> 0 | D35: =SUM(D32:D34) -> 0 | E35: 0 | F35: 0 | G35: 0 | H35: 0 | I35: 0 | J35: 0 | K35: 0 | L35: 0 | M35: 0 | N35: 0 | O35: 0 | P35: 0 | Q35: 0
B36: Amounts in Thousand Shillings
C37: -214608 | D37: 0 | E37: 0 | F37: 0 | G37: 2475 | H37: 0 | I37: 1627 | J37: 0 | K37: 0 | L37: 170 | M37: 2204 | N37: 386014 | O37: 19556 | P37: 0 | Q37: 147850

Sheet APPENDIX 16
B3: APPENDIX 16: SUMMARY OF INVESTMENTS BUSINESS REVENUE ACCOUNTS FOR THE YEAR ENDED 31.12.2021
B4: Company | C4: Life Fund BF | D4: Gross Premium | E4: Net Premium | F4: Other (Fee) Income | G4: Total Benefits | H4: Claims | I4: Surrenders | J4: Bonuses Paid | K4: Annuities Paid | L4: Net Commisions | M4: Expense of Management | N4: Investment Income | O4: Investment Expenses | P4: Transfer To (From) P & L | Q4: Life Fund CF
B5: INSURERS
B6: ABSA LIFE ASSURANCE KENYA | C6: =+Linked!C6+'Non Linked'!C6 -> 0 | D6: =+Linked!D6+'Non Linked'!D6 -> 0 | E6: =+Linked!E6+'Non Linked'!E6 -> 0 | F6: =+Linked!F6+'Non Linked'!F6 -> 0 | G6: =+Linked!G6+'Non Linked'!G6 -> 0 | H6: =+Linked!H6+'Non Linked'!H6 -> 0 | I6: =+Linked!I6+'Non Linked'!I6 -> 0 | J6: =+Linked!J6+'Non Linked'!J6 -> 0 | K6: =+Linked!K6+'Non Linked'!K6 -> 0 | L6: =+Linked!L6+'Non Linked'!L6 -> 0 | M6: =+Linked!M6+'Non Linked'!M6 -> 0 | N6: =+Linked!N6+'Non Linked'!N6 -> 0 | O6: =+Linked!O6+'Non Linked'!O6 -> 0 | P6: =+Linked!P6+'Non Linked'!P6 -> 0 | Q6: =+Linked!Q6+'Non Linked'!Q6 -> 0
B7: APA LIFE ASSURANCE COMPANY | C7: =+Linked!C7+'Non Linked'!C7 -> 1225 | D7: =+Linked!D7+'Non Linked'!D7 -> 55 | E7: =+Linked!E7+'Non Linked'!E7 -> 55 | F7: =+Linked!F7+'Non Linked'!F7 -> 0 | G7: =+Linked!G7+'Non Linked'!G7 -> 0 | H7: =+Linked!H7+'Non Linked'!H7 -> 0 | I7: =+Linked!I7+'Non Linked'!I7 -> 0 | J7: =+Linked!J7+'Non Linked'!J7 -> 0 | K7: =+Linked!K7+'Non Linked'!K7 -> 0 | L7: =+Linked!L7+'Non Linked'!L7 -> 0 | M7: =+Linked!M7+'Non Linked'!M7 -> 0 | N7: =+Linked!N7+'Non Linked'!N7 -> 0 | O7: =+Linked!O7+'Non Linked'!O7 -> 0 | P7: =+Linked!P7+'Non Linked'!P7 -> 0 | Q7: =+Linked!Q7+'Non Linked'!Q7 -> 1280
B8: BRITAM LIFE INSURANCE COMPANY | C8: =+Linked!C8+'Non Linked'!C8 -> 2143228 | D8: =+Linked!D8+'Non Linked'!D8 -> 1354031 | E8: =+Linked!E8+'Non Linked'!E8 -> 1354031 | F8: =+Linked!F8+'Non Linked'!F8 -> 0 | G8: =+Linked!G8+'Non Linked'!G8 -> 818263 | H8: =+Linked!H8+'Non Linked'!H8 -> 406052 | I8: =+Linked!I8+'Non Linked'!I8 -> 115638 | J8: =+Linked!J8+'Non Linked'!J8 -> 302204 | K8: =+Linked!K8+'Non Linked'!K8 -> 0 | L8: =+Linked!L8+'Non Linked'!L8 -> 35585 | M8: =+Linked!M8+'Non Linked'!M8 -> 101899 | N8: =+Linked!N8+'Non Linked'!N8 -> 309332 | O8: =+Linked!O8+'Non Linked'!O8 -> 8584 | P8: =+Linked!P8+'Non Linked'!P8 -> 220777 | Q8: =+Linked!Q8+'Non Linked'!Q8 -> 2615851
B9: CAPEX LIFE ASSURANCE COMPANY | C9: =+Linked!C9+'Non Linked'!C9 -> 0 | D9: =+Linked!D9+'Non Linked'!D9 -> 0 | E9: =+Linked!E9+'Non Linked'!E9 -> 0 | F9: =+Linked!F9+'Non Linked'!F9 -> 0 | G9: =+Linked!G9+'Non Linked'!G9 -> 0 | H9: =+Linked!H9+'Non Linked'!H9 -> 0 | I9: =+Linked!I9+'Non Linked'!I9 -> 0 | J9: =+Linked!J9+'Non Linked'!J9 -> 0 | K9: =+Linked!K9+'Non Linked'!K9 -> 0 | L9: =+Linked!L9+'Non Linked'!L9 -> 0 | M9: =+Linked!M9+'Non Linked'!M9 -> 0 | N9: =+Linked!N9+'Non Linked'!N9 -> 0 | O9: =+Linked!O9+'Non Linked'!O9 -> 0 | P9: =+Linked!P9+'Non Linked'!P9 -> 0 | Q9: =+Linked!Q9+'Non Linked'!Q9 -> 0
B10: CIC LIFE ASSURANCE COMPANY | C10: =+Linked!C10+'Non Linked'!C10 -> 0 | D10: =+Linked!D10+'Non Linked'!D10 -> 0 | E10: =+Linked!E10+'Non Linked'!E10 -> 0 | F10: =+Linked!F10+'Non Linked'!F10 -> 0 | G10: =+Linked!G10+'Non Linked'!G10 -> 0 | H10: =+Linked!H10+'Non Linked'!H10 -> 0 | I10: =+Linked!I10+'Non Linked'!I10 -> 0 | J10: =+Linked!J10+'Non Linked'!J10 -> 0 | K10: =+Linked!K10+'Non Linked'!K10 -> 0 | L10: =+Linked!L10+'Non Linked'!L10 -> 0 | M10: =+Linked!M10+'Non Linked'!M10 -> 0 | N10: =+Linked!N10+'Non Linked'!N10 -> 0 | O10: =+Linked!O10+'Non Linked'!O10 -> 0 | P10: =+Linked!P10+'Non Linked'!P10 -> 0 | Q10: =+Linked!Q10+'Non Linked'!Q10 -> 0
B11: CORPORATE INSURANCE COMPANY | C11: =+Linked!C11+'Non Linked'!C11 -> 0 | D11: =+Linked!D11+'Non Linked'!D11 -> 0 | E11: =+Linked!E11+'Non Linked'!E11 -> 0 | F11: =+Linked!F11+'Non Linked'!F11 -> 0 | G11: =+Linked!G11+'Non Linked'!G11 -> 0 | H11: =+Linked!H11+'Non Linked'!H11 -> 0 | I11: =+Linked!I11+'Non Linked'!I11 -> 0 | J11: =+Linked!J11+'Non Linked'!J11 -> 0 | K11: =+Linked!K11+'Non Linked'!K11 -> 0 | L11: =+Linked!L11+'Non Linked'!L11 -> 0 | M11: =+Linked!M11+'Non Linked'!M11 -> 0 | N11: =+Linked!N11+'Non Linked'!N11 -> 0 | O11: =+Linked!O11+'Non Linked'!O11 -> 0 | P11: =+Linked!P11+'Non Linked'!P11 -> 0 | Q11: =+Linked!Q11+'Non Linked'!Q11 -> 0
B12: GA LIFE ASSURANCE COMPANY | C12: =+Linked!C12+'Non Linked'!C12 -> 0 | D12: =+Linked!D12+'Non Linked'!D12 -> 0 | E12: =+Linked!E12+'Non Linked'!E12 -> 0 | F12: =+Linked!F12+'Non Linked'!F12 -> 0 | G12: =+Linked!G12+'Non Linked'!G12 -> 0 | H12: =+Linked!H12+'Non Linked'!H12 -> 0 | I12: =+Linked!I12+'Non Linked'!I12 -> 0 | J12: =+Linked!J12+'Non Linked'!J12 -> 0 | K12: =+Linked!K12+'Non Linked'!K12 -> 0 | L12: =+Linked!L12+'Non Linked'!L12 -> 0 | M12: =+Linked!M12+'Non Linked'!M12 -> 0 | N12: =+Linked!N12+'Non Linked'!N12 -> 0 | O12: =+Linked!O12+'Non Linked'!O12 -> 0 | P12: =+Linked!P12+'Non Linked'!P12 -> 0 | Q12: =+Linked!Q12+'Non Linked'!Q12 -> 0
B13: GEMINIA INSURANCE COMPANY | C13: =+Linked!C13+'Non Linked'!C13 -> 0 | D13: =+Linked!D13+'Non Linked'!D13 -> 0 | E13: =+Linked!E13+'Non Linked'!E13 -> 0 | F13: =+Linked!F13+'Non Linked'!F13 -> 0 | G13: =+Linked!G13+'Non Linked'!G13 -> 0 | H13: =+Linked!H13+'Non Linked'!H13 -> 0 | I13: =+Linked!I13+'Non Linked'!I13 -> 0 | J13: =+Linked!J13+'Non Linked'!J13 -> 0 | K13: =+Linked!K13+'Non Linked'!K13 -> 0 | L13: =+Linked!L13+'Non Linked'!L13 -> 170 | M13: =+Linked!M13+'Non Linked'!M13 -> 2204 | N13: =+Linked!N13+'Non Linked'!N13 -> 10399 | O13: =+Linked!O13+'Non Linked'!O13 -> 0 | P13: =+Linked!P13+'Non Linked'!P13 -> 0 | Q13: =+Linked!Q13+'Non Linked'!Q13 -> 8025
B14: ICEA LION LIFE ASSURANCE | C14: =+Linked!C14+'Non Linked'!C14 -> 309081 | D14: =+Linked!D14+'Non Linked'!D14 -> 14505 | E14: =+Linked!E14+'Non Linked'!E14 -> 14505 | F14: =+Linked!F14+'Non Linked'!F14 -> 0 | G14: =+Linked!G14+'Non Linked'!G14 -> 40097 | H14: =+Linked!H14+'Non Linked'!H14 -> 22931 | I14: =+Linked!I14+'Non Linked'!I14 -> 17166 | J14: =+Linked!J14+'Non Linked'!J14 -> 0 | K14: =+Linked!K14+'Non Linked'!K14 -> 0 | L14: =+Linked!L14+'Non Linked'!L14 -> 0 | M14: =+Linked!M14+'Non Linked'!M14 -> 145 | N14: =+Linked!N14+'Non Linked'!N14 -> 97984 | O14: =+Linked!O14+'Non Linked'!O14 -> 0 | P14: =+Linked!P14+'Non Linked'!P14 -> 1783 | Q14: =+Linked!Q14+'Non Linked'!Q14 -> 379545
B15: JUBILEE INSURANCE COMPANY LIMITED-LIFE | C15: =+Linked!C15+'Non Linked'!C15 -> 0 | D15: =+Linked!D15+'Non Linked'!D15 -> 0 | E15: =+Linked!E15+'Non Linked'!E15 -> 0 | F15: =+Linked!F15+'Non Linked'!F15 -> 0 | G15: =+Linked!G15+'Non Linked'!G15 -> 0 | H15: =+Linked!H15+'Non Linked'!H15 -> 0 | I15: =+Linked!I15+'Non Linked'!I15 -> 0 | J15: =+Linked!J15+'Non Linked'!J15 -> 0 | K15: =+Linked!K15+'Non Linked'!K15 -> 0 | L15: =+Linked!L15+'Non Linked'!L15 -> 0 | M15: =+Linked!M15+'Non Linked'!M15 -> 0 | N15: =+Linked!N15+'Non Linked'!N15 -> 0 | O15: =+Linked!O15+'Non Linked'!O15 -> 0 | P15: =+Linked!P15+'Non Linked'!P15 -> 0 | Q15: =+Linked!Q15+'Non Linked'!Q15 -> 0
B16: KENINDIA ASSURANCE COMPANY | C16: =+Linked!C16+'Non Linked'!C16 -> 0 | D16: =+Linked!D16+'Non Linked'!D16 -> 0 | E16: =+Linked!E16+'Non Linked'!E16 -> 0 | F16: =+Linked!F16+'Non Linked'!F16 -> 0 | G16: =+Linked!G16+'Non Linked'!G16 -> 0 | H16: =+Linked!H16+'Non Linked'!H16 -> 0 | I16: =+Linked!I16+'Non Linked'!I16 -> 0 | J16: =+Linked!J16+'Non Linked'!J16 -> 0 | K16: =+Linked!K16+'Non Linked'!K16 -> 0 | L16: =+Linked!L16+'Non Linked'!L16 -> 0 | M16: =+Linked!M16+'Non Linked'!M16 -> 0 | N16: =+Linked!N16+'Non Linked'!N16 -> 0 | O16: =+Linked!O16+'Non Linked'!O16 -> 0 | P16: =+Linked!P16+'Non Linked'!P16 -> 0 | Q16: =+Linked!Q16+'Non Linked'!Q16 -> 0
B17: KENYA ORIENT LIFE ASSURANCE | C17: =+Linked!C17+'Non Linked'!C17 -> 0 | D17: =+Linked!D17+'Non Linked'!D17 -> 0 | E17: =+Linked!E17+'Non Linked'!E17 -> 0 | F17: =+Linked!F17+'Non Linked'!F17 -> 0 | G17: =+Linked!G17+'Non Linked'!G17 -> 0 | H17: =+Linked!H17+'Non Linked'!H17 -> 0 | I17: =+Linked!I17+'Non Linked'!I17 -> 0 | J17: =+Linked!J17+'Non Linked'!J17 -> 0 | K17: =+Linked!K17+'Non Linked'!K17 -> 0 | L17: =+Linked!L17+'Non Linked'!L17 -> 0 | M17: =+Linked!M17+'Non Linked'!M17 -> 0 | N17: =+Linked!N17+'Non Linked'!N17 -> 0 | O17: =+Linked!O17+'Non Linked'!O17 -> 0 | P17: =+Linked!P17+'Non Linked'!P17 -> 0 | Q17: =+Linked!Q17+'Non Linked'!Q17 -> 0
B18: KUSCCO MUTUAL ASSURANCE LIMITED | C18: =+Linked!C18+'Non Linked'!C18 -> 0 | D18: =+Linked!D18+'Non Linked'!D18 -> 0 | E18: =+Linked!E18+'Non Linked'!E18 -> 0 | F18: =+Linked!F18+'Non Linked'!F18 -> 0 | G18: =+Linked!G18+'Non Linked'!G18 -> 0 | H18: =+Linked!H18+'Non Linked'!H18 -> 0 | I18: =+Linked!I18+'Non Linked'!I18 -> 0 | J18: =+Linked!J18+'Non Linked'!J18 -> 0 | K18: =+Linked!K18+'Non Linked'!K18 -> 0 | L18: =+Linked!L18+'Non Linked'!L18 -> 0 | M18: =+Linked!M18+'Non Linked'!M18 -> 0 | N18: =+Linked!N18+'Non Linked'!N18 -> 0 | O18: =+Linked!O18+'Non Linked'!O18 -> 0 | P18: =+Linked!P18+'Non Linked'!P18 -> 0 | Q18: =+Linked!Q18+'Non Linked'!Q18 -> 0
B19: LIBERTY LIFE ASSURANCE COMPANY | C19: =+Linked!C19+'Non Linked'!C19 -> 2259670 | D19: =+Linked!D19+'Non Linked'!D19 -> 1031556 | E19: =+Linked!E19+'Non Linked'!E19 -> 1031556 | F19: =+Linked!F19+'Non Linked'!F19 -> 0 | G19: =+Linked!G19+'Non Linked'!G19 -> 976209 | H19: =+Linked!H19+'Non Linked'!H19 -> 199737 | I19: =+Linked!I19+'Non Linked'!I19 -> 806342 | J19: =+Linked!J19+'Non Linked'!J19 -> 0 | K19: =+Linked!K19+'Non Linked'!K19 -> 0 | L19: =+Linked!L19+'Non Linked'!L19 -> 66188 | M19: =+Linked!M19+'Non Linked'!M19 -> 218959 | N19: =+Linked!N19+'Non Linked'!N19 -> 648159 | O19: =+Linked!O19+'Non Linked'!O19 -> 40762 | P19: =+Linked!P19+'Non Linked'!P19 -> 0 | Q19: =+Linked!Q19+'Non Linked'!Q19 -> 2607398
B20: MADISON INSURANCE COMPANY | C20: =+Linked!C20+'Non Linked'!C20 -> 35390 | D20: =+Linked!D20+'Non Linked'!D20 -> 2063 | E20: =+Linked!E20+'Non Linked'!E20 -> 2063 | F20: =+Linked!F20+'Non Linked'!F20 -> 0 | G20: =+Linked!G20+'Non Linked'!G20 -> 20975 | H20: =+Linked!H20+'Non Linked'!H20 -> 20975 | I20: =+Linked!I20+'Non Linked'!I20 -> 0 | J20: =+Linked!J20+'Non Linked'!J20 -> 0 | K20: =+Linked!K20+'Non Linked'!K20 -> 0 | L20: =+Linked!L20+'Non Linked'!L20 -> 0 | M20: =+Linked!M20+'Non Linked'!M20 -> 706 | N20: =+Linked!N20+'Non Linked'!N20 -> 1061 | O20: =+Linked!O20+'Non Linked'!O20 -> 0 | P20: =+Linked!P20+'Non Linked'!P20 -> 0 | Q20: =+Linked!Q20+'Non Linked'!Q20 -> 16833
B21: METROPOLITAN CANNON INSURANCE | C21: =+Linked!C21+'Non Linked'!C21 -> 299504 | D21: =+Linked!D21+'Non Linked'!D21 -> 10453 | E21: =+Linked!E21+'Non Linked'!E21 -> 10453 | F21: =+Linked!F21+'Non Linked'!F21 -> 58526 | G21: =+Linked!G21+'Non Linked'!G21 -> 53563 | H21: =+Linked!H21+'Non Linked'!H21 -> 53563 | I21: =+Linked!I21+'Non Linked'!I21 -> 0 | J21: =+Linked!J21+'Non Linked'!J21 -> 0 | K21: =+Linked!K21+'Non Linked'!K21 -> 0 | L21: =+Linked!L21+'Non Linked'!L21 -> 0 | M21: =+Linked!M21+'Non Linked'!M21 -> 32895 | N21: =+Linked!N21+'Non Linked'!N21 -> 0 | O21: =+Linked!O21+'Non Linked'!O21 -> 0 | P21: =+Linked!P21+'Non Linked'!P21 -> 0 | Q21: =+Linked!Q21+'Non Linked'!Q21 -> 282023
B22: OLD MUTUAL LIFE ASSURANCE | C22: =+Linked!C22+'Non Linked'!C22 -> 5965580 | D22: =+Linked!D22+'Non Linked'!D22 -> 676778 | E22: =+Linked!E22+'Non Linked'!E22 -> 676778 | F22: =+Linked!F22+'Non Linked'!F22 -> 0 | G22: =+Linked!G22+'Non Linked'!G22 -> 1797807 | H22: =+Linked!H22+'Non Linked'!H22 -> 229699 | I22: =+Linked!I22+'Non Linked'!I22 -> 1447767 | J22: =+Linked!J22+'Non Linked'!J22 -> 0 | K22: =+Linked!K22+'Non Linked'!K22 -> 0 | L22: =+Linked!L22+'Non Linked'!L22 -> 0 | M22: =+Linked!M22+'Non Linked'!M22 -> 0 | N22: =+Linked!N22+'Non Linked'!N22 -> 411505 | O22: =+Linked!O22+'Non Linked'!O22 -> 18963 | P22: =+Linked!P22+'Non Linked'!P22 -> 0 | Q22: =+Linked!Q22+'Non Linked'!Q22 -> 5357434
B23: PIONEER ASSURANCE COMPANY | C23: =+Linked!C23+'Non Linked'!C23 -> 191112 | D23: =+Linked!D23+'Non Linked'!D23 -> 55750 | E23: =+Linked!E23+'Non Linked'!E23 -> 55750 | F23: =+Linked!F23+'Non Linked'!F23 -> 0 | G23: =+Linked!G23+'Non Linked'!G23 -> 29366 | H23: =+Linked!H23+'Non Linked'!H23 -> 29366 | I23: =+Linked!I23+'Non Linked'!I23 -> 0 | J23: =+Linked!J23+'Non Linked'!J23 -> 0 | K23: =+Linked!K23+'Non Linked'!K23 -> 0 | L23: =+Linked!L23+'Non Linked'!L23 -> 0 | M23: =+Linked!M23+'Non Linked'!M23 -> 0 | N23: =+Linked!N23+'Non Linked'!N23 -> 0 | O23: =+Linked!O23+'Non Linked'!O23 -> 0 | P23: =+Linked!P23+'Non Linked'!P23 -> 0 | Q23: =+Linked!Q23+'Non Linked'!Q23 -> 217496
B24: PRUDENTIAL LIFE ASSURANCE | C24: =+Linked!C24+'Non Linked'!C24 -> 0 | D24: =+Linked!D24+'Non Linked'!D24 -> 0 | E24: =+Linked!E24+'Non Linked'!E24 -> 0 | F24: =+Linked!F24+'Non Linked'!F24 -> 0 | G24: =+Linked!G24+'Non Linked'!G24 -> 0 | H24: =+Linked!H24+'Non Linked'!H24 -> 0 | I24: =+Linked!I24+'Non Linked'!I24 -> 0 | J24: =+Linked!J24+'Non Linked'!J24 -> 0 | K24: =+Linked!K24+'Non Linked'!K24 -> 0 | L24: =+Linked!L24+'Non Linked'!L24 -> 0 | M24: =+Linked!M24+'Non Linked'!M24 -> 0 | N24: =+Linked!N24+'Non Linked'!N24 -> 0 | O24: =+Linked!O24+'Non Linked'!O24 -> 0 | P24: =+Linked!P24+'Non Linked'!P24 -> 0 | Q24: =+Linked!Q24+'Non Linked'!Q24 -> 0
B25: SANLAM LIFE INSURANCE | C25: =+Linked!C26+'Non Linked'!C26 -> 3776327 | D25: =+Linked!D26+'Non Linked'!D26 -> 479380 | E25: =+Linked!E26+'Non Linked'!E26 -> 478485 | F25: =+Linked!F26+'Non Linked'!F26 -> 0 | G25: =+Linked!G26+'Non Linked'!G26 -> 1721546 | H25: =+Linked!H26+'Non Linked'!H26 -> 1725716 | I25: =+Linked!I26+'Non Linked'!I26 -> 0 | J25: =+Linked!J26+'Non Linked'!J26 -> 0 | K25: =+Linked!K26+'Non Linked'!K26 -> 0 | L25: =+Linked!L26+'Non Linked'!L26 -> -25 | M25: =+Linked!M26+'Non Linked'!M26 -> 230048 | N25: =+Linked!N26+'Non Linked'!N26 -> 372537 | O25: =+Linked!O26+'Non Linked'!O26 -> 0 | P25: =+Linked!P26+'Non Linked'!P26 -> 0 | Q25: =+Linked!Q26+'Non Linked'!Q26 -> 2671610
B26: THE KENYAN ALLIANCE INSURANCE | C26: =+Linked!C27+'Non Linked'!C27 -> 343448 | D26: =+Linked!D27+'Non Linked'!D27 -> 169109 | E26: =+Linked!E27+'Non Linked'!E27 -> 169109 | F26: =+Linked!F27+'Non Linked'!F27 -> 0 | G26: =+Linked!G27+'Non Linked'!G27 -> 134983 | H26: =+Linked!H27+'Non Linked'!H27 -> 134983 | I26: =+Linked!I27+'Non Linked'!I27 -> 0 | J26: =+Linked!J27+'Non Linked'!J27 -> 0 | K26: =+Linked!K27+'Non Linked'!K27 -> 0 | L26: =+Linked!L27+'Non Linked'!L27 -> 6025 | M26: =+Linked!M27+'Non Linked'!M27 -> 27704 | N26: =+Linked!N27+'Non Linked'!N27 -> 26622 | O26: =+Linked!O27+'Non Linked'!O27 -> 0 | P26: =+Linked!P27+'Non Linked'!P27 -> 0 | Q26: =+Linked!Q27+'Non Linked'!Q27 -> 370467
B27: THE MONARCH INSURANCE | C27: =+Linked!C28+'Non Linked'!C28 -> 0 | D27: =+Linked!D28+'Non Linked'!D28 -> 0 | E27: =+Linked!E28+'Non Linked'!E28 -> 0 | F27: =+Linked!F28+'Non Linked'!F28 -> 0 | G27: =+Linked!G28+'Non Linked'!G28 -> 0 | H27: =+Linked!H28+'Non Linked'!H28 -> 0 | I27: =+Linked!I28+'Non Linked'!I28 -> 0 | J27: =+Linked!J28+'Non Linked'!J28 -> 0 | K27: =+Linked!K28+'Non Linked'!K28 -> 0 | L27: =+Linked!L28+'Non Linked'!L28 -> 0 | M27: =+Linked!M28+'Non Linked'!M28 -> 0 | N27: =+Linked!N28+'Non Linked'!N28 -> 0 | O27: =+Linked!O28+'Non Linked'!O28 -> 0 | P27: =+Linked!P28+'Non Linked'!P28 -> 0 | Q27: =+Linked!Q28+'Non Linked'!Q28 -> 0
B28: UAP LIFE ASSURANCE COMPANY | C28: =+Linked!C29+'Non Linked'!C29 -> 940398 | D28: =+Linked!D29+'Non Linked'!D29 -> 23444 | E28: =+Linked!E29+'Non Linked'!E29 -> 23444 | F28: =+Linked!F29+'Non Linked'!F29 -> 0 | G28: =+Linked!G29+'Non Linked'!G29 -> 193829 | H28: =+Linked!H29+'Non Linked'!H29 -> 121700 | I28: =+Linked!I29+'Non Linked'!I29 -> 60844 | J28: =+Linked!J29+'Non Linked'!J29 -> 0 | K28: =+Linked!K29+'Non Linked'!K29 -> 0 | L28: =+Linked!L29+'Non Linked'!L29 -> 0 | M28: =+Linked!M29+'Non Linked'!M29 -> 0 | N28: =+Linked!N29+'Non Linked'!N29 -> 175465 | O28: =+Linked!O29+'Non Linked'!O29 -> 0 | P28: =+Linked!P29+'Non Linked'!P29 -> 0 | Q28: =+Linked!Q29+'Non Linked'!Q29 -> 956761
B29: TOTAL | C29: =SUM(C6:C28) -> 16264963 | D29: 3817124 | E29: 3816229 | F29: 58526 | G29: 5786638 | H29: 2944722 | I29: 2447757 | J29: 302204 | K29: 0 | L29: 107943 | M29: 614560 | N29: 2053064 | O29: 68309 | P29: 222560 | Q29: 15484723
B30: REINSURERS
B31: CONTINENTAL REINSURANCE | C31: 0 | D31: 0 | E31: 0 | F31: 0 | G31: 0 | H31: 0 | I31: 0 | J31: 0 | K31: 0 | L31: 0 | M31: 0 | N31: 0 | O31: 0 | P31: 0 | Q31: 0
B32: EAST AFRICA REINSURANCE | C32: 0 | D32: 0 | E32: 0 | F32: 0 | G32: 0 | H32: 0 | I32: 0 | J32: 0 | K32: 0 | L32: 0 | M32: 0 | N32: 0 | O32: 0 | P32: 0 | Q32: 0
B33: KENYA REINSURANCE CORPORATION | C33: 0 | D33: 0 | E33: 0 | F33: 0 | G33: 0 | H33: 0 | I33: 0 | J33: 0 | K33: 0 | L33: 0 | M33: 0 | N33: 0 | O33: 0 | P33: 0 | Q33: 0
B34: TOTAL | C34: =SUM(C31:C33) -> 0 | D34: =SUM(D31:D33) -> 0 | E34: 0 | F34: 0 | G34: 0 | H34: 0 | I34: 0 | J34: 0 | K34: 0 | L34: 0 | M34: 0 | N34: 0 | O34: 0 | P34: 0 | Q34: 0
B35: Amounts in Thousand Shillings

Sheet APPENDIX 17
B3: APPENDIX 17: SUMMARY OF COMBINED LONG TERM BUSINESS REVENUE ACCOUNTS FOR THE YEAR ENDED 31.12.2021
B4: Company | C4: Life Fund BF | D4: Gross Premium | E4: Net Premium | F4: Other (Fee) Income | G4: Total Benefits | H4: Claims | I4: Surrenders | J4: Bonuses Paid | K4: Annuities Paid | L4: Net Commisions | M4: Expense of Management | N4: Investment Income | O4: Investment Expenses | P4: Transfer To (From) P & L | Q4: Life Fund CF
B5: INSURERS
B6: ABSA LIFE ASSURANCE KENYA | C6: ='APPENDIX 9'!C6+'APPENDIX 10'!C6+'APPENDIX 11'!C6+PENSIONS!C6+'APPENDIX 14'!C6+'APPENDIX 15'!C6+'APPENDIX 16'!C6 -> 314169 | D6: ='APPENDIX 9'!D6+'APPENDIX 10'!D6+'APPENDIX 11'!D6+PENSIONS!D6+'APPENDIX 14'!D6+'APPENDIX 15'!D6+'APPENDIX 16'!D6 -> 4933861 | E6: ='APPENDIX 9'!E6+'APPENDIX 10'!E6+'APPENDIX 11'!E6+PENSIONS!E6+'APPENDIX 14'!E6+'APPENDIX 15'!E6+'APPENDIX 16'!E6 -> 3761981 | F6: ='APPENDIX 9'!F6+'APPENDIX 10'!F6+'APPENDIX 11'!F6+PENSIONS!F6+'APPENDIX 14'!F6+'APPENDIX 15'!F6+'APPENDIX 16'!F6 -> 0 | G6: ='APPENDIX 9'!G6+'APPENDIX 10'!G6+'APPENDIX 11'!G6+PENSIONS!G6+'APPENDIX 14'!G6+'APPENDIX 15'!G6+'APPENDIX 16'!G6 -> 3109285 | H6: ='APPENDIX 9'!H6+'APPENDIX 10'!H6+'APPENDIX 11'!H6+PENSIONS!H6+'APPENDIX 14'!H6+'APPENDIX 15'!H6+'APPENDIX 16'!H6 -> 2843239 | I6: ='APPENDIX 9'!I6+'APPENDIX 10'!I6+'APPENDIX 11'!I6+PENSIONS!I6+'APPENDIX 14'!I6+'APPENDIX 15'!I6+'APPENDIX 16'!I6 -> 0 | J6: ='APPENDIX 9'!J6+'APPENDIX 10'!J6+'APPENDIX 11'!J6+PENSIONS!J6+'APPENDIX 14'!J6+'APPENDIX 15'!J6+'APPENDIX 16'!J6 -> 0 | K6: ='APPENDIX 9'!K6+'APPENDIX 10'!K6+'APPENDIX 11'!K6+PENSIONS!K6+'APPENDIX 14'!K6+'APPENDIX 15'!K6+'APPENDIX 16'!K6 -> 0 | L6: ='APPENDIX 9'!L6+'APPENDIX 10'!L6+'APPENDIX 11'!L6+PENSIONS!L6+'APPENDIX 14'!L6+'APPENDIX 15'!L6+'APPENDIX 16'!L6 -> 645580 | M6: ='APPENDIX 9'!M6+'APPENDIX 10'!M6+'APPENDIX 11'!M6+PENSIONS!M6+'APPENDIX 14'!M6+'APPENDIX 15'!M6+'APPENDIX 16'!M6 -> 560360 | N6: ='APPENDIX 9'!N6+'APPENDIX 10'!N6+'APPENDIX 11'!N6+PENSIONS!N6+'APPENDIX 14'!N6+'APPENDIX 15'!N6+'APPENDIX 16'!N6 -> 593962 | O6: ='APPENDIX 9'!O6+'APPENDIX 10'!O6+'APPENDIX 11'!O6+PENSIONS!O6+'APPENDIX 14'!O6+'APPENDIX 15'!O6+'APPENDIX 16'!O6 -> 61917 | P6: ='APPENDIX 9'!P6+'APPENDIX 10'!P6+'APPENDIX 11'!P6+PENSIONS!P6+'APPENDIX 14'!P6+'APPENDIX 15'!P6+'APPENDIX 16'!P6 -> 72807 | Q6: ='APPENDIX 9'!Q6+'APPENDIX 10'!Q6+'APPENDIX 11'!Q6+PENSIONS!Q6+'APPENDIX 14'!Q6+'APPENDIX 15'!Q6+'APPENDIX 16'!Q6 -> 486208
B7: APA LIFE ASSURANCE COMPANY | C7: ='APPENDIX 9'!C7+'APPENDIX 10'!C7+'APPENDIX 11'!C7+PENSIONS!C7+'APPENDIX 14'!C7+'APPENDIX 15'!C7+'APPENDIX 16'!C7 -> 5697847 | D7: ='APPENDIX 9'!D7+'APPENDIX 10'!D7+'APPENDIX 11'!D7+PENSIONS!D7+'APPENDIX 14'!D7+'APPENDIX 15'!D7+'APPENDIX 16'!D7 -> 3174374 | E7: ='APPENDIX 9'!E7+'APPENDIX 10'!E7+'APPENDIX 11'!E7+PENSIONS!E7+'APPENDIX 14'!E7+'APPENDIX 15'!E7+'APPENDIX 16'!E7 -> 2647098 | F7: ='APPENDIX 9'!F7+'APPENDIX 10'!F7+'APPENDIX 11'!F7+PENSIONS!F7+'APPENDIX 14'!F7+'APPENDIX 15'!F7+'APPENDIX 16'!F7 -> 0 | G7: ='APPENDIX 9'!G7+'APPENDIX 10'!G7+'APPENDIX 11'!G7+PENSIONS!G7+'APPENDIX 14'!G7+'APPENDIX 15'!G7+'APPENDIX 16'!G7 -> 1528395 | H7: ='APPENDIX 9'!H7+'APPENDIX 10'!H7+'APPENDIX 11'!H7+PENSIONS!H7+'APPENDIX 14'!H7+'APPENDIX 15'!H7+'APPENDIX 16'!H7 -> 1443969 | I7: ='APPENDIX 9'!I7+'APPENDIX 10'!I7+'APPENDIX 11'!I7+PENSIONS!I7+'APPENDIX 14'!I7+'APPENDIX 15'!I7+'APPENDIX 16'!I7 -> 0 | J7: ='APPENDIX 9'!J7+'APPENDIX 10'!J7+'APPENDIX 11'!J7+PENSIONS!J7+'APPENDIX 14'!J7+'APPENDIX 15'!J7+'APPENDIX 16'!J7 -> 0 | K7: ='APPENDIX 9'!K7+'APPENDIX 10'!K7+'APPENDIX 11'!K7+PENSIONS!K7+'APPENDIX 14'!K7+'APPENDIX 15'!K7+'APPENDIX 16'!K7 -> 84426 | L7: ='APPENDIX 9'!L7+'APPENDIX 10'!L7+'APPENDIX 11'!L7+PENSIONS!L7+'APPENDIX 14'!L7+'APPENDIX 15'!L7+'APPENDIX 16'!L7 -> 234435 | M7: ='APPENDIX 9'!M7+'APPENDIX 10'!M7+'APPENDIX 11'!M7+PENSIONS!M7+'APPENDIX 14'!M7+'APPENDIX 15'!M7+'APPENDIX 16'!M7 -> 308538 | N7: ='APPENDIX 9'!N7+'APPENDIX 10'!N7+'APPENDIX 11'!N7+PENSIONS!N7+'APPENDIX 14'!N7+'APPENDIX 15'!N7+'APPENDIX 16'!N7 -> 665244 | O7: ='APPENDIX 9'!O7+'APPENDIX 10'!O7+'APPENDIX 11'!O7+PENSIONS!O7+'APPENDIX 14'!O7+'APPENDIX 15'!O7+'APPENDIX 16'!O7 -> 30500 | P7: ='APPENDIX 9'!P7+'APPENDIX 10'!P7+'APPENDIX 11'!P7+PENSIONS!P7+'APPENDIX 14'!P7+'APPENDIX 15'!P7+'APPENDIX 16'!P7 -> -249472 | Q7: ='APPENDIX 9'!Q7+'APPENDIX 10'!Q7+'APPENDIX 11'!Q7+PENSIONS!Q7+'APPENDIX 14'!Q7+'APPENDIX 15'!Q7+'APPENDIX 16'!Q7 -> 7157788
B8: BRITAM LIFE INSURANCE COMPANY | C8: ='APPENDIX 9'!C8+'APPENDIX 10'!C8+'APPENDIX 11'!C8+PENSIONS!C8+'APPENDIX 14'!C8+'APPENDIX 15'!C8+'APPENDIX 16'!C8 -> 92510455 | D8: ='APPENDIX 9'!D8+'APPENDIX 10'!D8+'APPENDIX 11'!D8+PENSIONS!D8+'APPENDIX 14'!D8+'APPENDIX 15'!D8+'APPENDIX 16'!D8 -> 25894130 | E8: ='APPENDIX 9'!E8+'APPENDIX 10'!E8+'APPENDIX 11'!E8+PENSIONS!E8+'APPENDIX 14'!E8+'APPENDIX 15'!E8+'APPENDIX 16'!E8 -> 24934918 | F8: ='APPENDIX 9'!F8+'APPENDIX 10'!F8+'APPENDIX 11'!F8+PENSIONS!F8+'APPENDIX 14'!F8+'APPENDIX 15'!F8+'APPENDIX 16'!F8 -> 40993 | G8: ='APPENDIX 9'!G8+'APPENDIX 10'!G8+'APPENDIX 11'!G8+PENSIONS!G8+'APPENDIX 14'!G8+'APPENDIX 15'!G8+'APPENDIX 16'!G8 -> 18497051 | H8: ='APPENDIX 9'!H8+'APPENDIX 10'!H8+'APPENDIX 11'!H8+PENSIONS!H8+'APPENDIX 14'!H8+'APPENDIX 15'!H8+'APPENDIX 16'!H8 -> 13413620 | I8: ='APPENDIX 9'!I8+'APPENDIX 10'!I8+'APPENDIX 11'!I8+PENSIONS!I8+'APPENDIX 14'!I8+'APPENDIX 15'!I8+'APPENDIX 16'!I8 -> 2311861 | J8: ='APPENDIX 9'!J8+'APPENDIX 10'!J8+'APPENDIX 11'!J8+PENSIONS!J8+'APPENDIX 14'!J8+'APPENDIX 15'!J8+'APPENDIX 16'!J8 -> 1809438 | K8: ='APPENDIX 9'!K8+'APPENDIX 10'!K8+'APPENDIX 11'!K8+PENSIONS!K8+'APPENDIX 14'!K8+'APPENDIX 15'!K8+'APPENDIX 16'!K8 -> 1191560 | L8: ='APPENDIX 9'!L8+'APPENDIX 10'!L8+'APPENDIX 11'!L8+PENSIONS!L8+'APPENDIX 14'!L8+'APPENDIX 15'!L8+'APPENDIX 16'!L8 -> 1310532 | M8: ='APPENDIX 9'!M8+'APPENDIX 10'!M8+'APPENDIX 11'!M8+PENSIONS!M8+'APPENDIX 14'!M8+'APPENDIX 15'!M8+'APPENDIX 16'!M8 -> 3460197 | N8: ='APPENDIX 9'!N8+'APPENDIX 10'!N8+'APPENDIX 11'!N8+PENSIONS!N8+'APPENDIX 14'!N8+'APPENDIX 15'!N8+'APPENDIX 16'!N8 -> 10198527 | O8: ='APPENDIX 9'!O8+'APPENDIX 10'!O8+'APPENDIX 11'!O8+PENSIONS!O8+'APPENDIX 14'!O8+'APPENDIX 15'!O8+'APPENDIX 16'!O8 -> 177571 | P8: ='APPENDIX 9'!P8+'APPENDIX 10'!P8+'APPENDIX 11'!P8+PENSIONS!P8+'APPENDIX 14'!P8+'APPENDIX 15'!P8+'APPENDIX 16'!P8 -> 2370778 | Q8: ='APPENDIX 9'!Q8+'APPENDIX 10'!Q8+'APPENDIX 11'!Q8+PENSIONS!Q8+'APPENDIX 14'!Q8+'APPENDIX 15'!Q8+'APPENDIX 16'!Q8 -> 101639331
B9: CAPEX LIFE ASSURANCE COMPANY | C9: ='APPENDIX 9'!C9+'APPENDIX 10'!C9+'APPENDIX 11'!C9+PENSIONS!C9+'APPENDIX 14'!C9+'APPENDIX 15'!C9+'APPENDIX 16'!C9 -> 536741 | D9: ='APPENDIX 9'!D9+'APPENDIX 10'!D9+'APPENDIX 11'!D9+PENSIONS!D9+'APPENDIX 14'!D9+'APPENDIX 15'!D9+'APPENDIX 16'!D9 -> 458647 | E9: ='APPENDIX 9'!E9+'APPENDIX 10'!E9+'APPENDIX 11'!E9+PENSIONS!E9+'APPENDIX 14'!E9+'APPENDIX 15'!E9+'APPENDIX 16'!E9 -> 402487 | F9: ='APPENDIX 9'!F9+'APPENDIX 10'!F9+'APPENDIX 11'!F9+PENSIONS!F9+'APPENDIX 14'!F9+'APPENDIX 15'!F9+'APPENDIX 16'!F9 -> 0 | G9: ='APPENDIX 9'!G9+'APPENDIX 10'!G9+'APPENDIX 11'!G9+PENSIONS!G9+'APPENDIX 14'!G9+'APPENDIX 15'!G9+'APPENDIX 16'!G9 -> 240452 | H9: ='APPENDIX 9'!H9+'APPENDIX 10'!H9+'APPENDIX 11'!H9+PENSIONS!H9+'APPENDIX 14'!H9+'APPENDIX 15'!H9+'APPENDIX 16'!H9 -> 120462 | I9: ='APPENDIX 9'!I9+'APPENDIX 10'!I9+'APPENDIX 11'!I9+PENSIONS!I9+'APPENDIX 14'!I9+'APPENDIX 15'!I9+'APPENDIX 16'!I9 -> 11 | J9: ='APPENDIX 9'!J9+'APPENDIX 10'!J9+'APPENDIX 11'!J9+PENSIONS!J9+'APPENDIX 14'!J9+'APPENDIX 15'!J9+'APPENDIX 16'!J9 -> 0 | K9: ='APPENDIX 9'!K9+'APPENDIX 10'!K9+'APPENDIX 11'!K9+PENSIONS!K9+'APPENDIX 14'!K9+'APPENDIX 15'!K9+'APPENDIX 16'!K9 -> 119811 | L9: ='APPENDIX 9'!L9+'APPENDIX 10'!L9+'APPENDIX 11'!L9+PENSIONS!L9+'APPENDIX 14'!L9+'APPENDIX 15'!L9+'APPENDIX 16'!L9 -> 11483 | M9: ='APPENDIX 9'!M9+'APPENDIX 10'!M9+'APPENDIX 11'!M9+PENSIONS!M9+'APPENDIX 14'!M9+'APPENDIX 15'!M9+'APPENDIX 16'!M9 -> 159354 | N9: ='APPENDIX 9'!N9+'APPENDIX 10'!N9+'APPENDIX 11'!N9+PENSIONS!N9+'APPENDIX 14'!N9+'APPENDIX 15'!N9+'APPENDIX 16'!N9 -> 112213 | O9: ='APPENDIX 9'!O9+'APPENDIX 10'!O9+'APPENDIX 11'!O9+PENSIONS!O9+'APPENDIX 14'!O9+'APPENDIX 15'!O9+'APPENDIX 16'!O9 -> 0 | P9: ='APPENDIX 9'!P9+'APPENDIX 10'!P9+'APPENDIX 11'!P9+PENSIONS!P9+'APPENDIX 14'!P9+'APPENDIX 15'!P9+'APPENDIX 16'!P9 -> 0 | Q9: ='APPENDIX 9'!Q9+'APPENDIX 10'!Q9+'APPENDIX 11'!Q9+PENSIONS!Q9+'APPENDIX 14'!Q9+'APPENDIX 15'!Q9+'APPENDIX 16'!Q9 -> 640317
B10: CIC LIFE ASSURANCE COMPANY | C10: ='APPENDIX 9'!C10+'APPENDIX 10'!C10+'APPENDIX 11'!C10+PENSIONS!C10+'APPENDIX 14'!C10+'APPENDIX 15'!C10+'APPENDIX 16'!C10 -> 4965556 | D10: ='APPENDIX 9'!D10+'APPENDIX 10'!D10+'APPENDIX 11'!D10+PENSIONS!D10+'APPENDIX 14'!D10+'APPENDIX 15'!D10+'APPENDIX 16'!D10 -> 6996919 | E10: ='APPENDIX 9'!E10+'APPENDIX 10'!E10+'APPENDIX 11'!E10+PENSIONS!E10+'APPENDIX 14'!E10+'APPENDIX 15'!E10+'APPENDIX 16'!E10 -> 5321224 | F10: ='APPENDIX 9'!F10+'APPENDIX 10'!F10+'APPENDIX 11'!F10+PENSIONS!F10+'APPENDIX 14'!F10+'APPENDIX 15'!F10+'APPENDIX 16'!F10 -> 0 | G10: ='APPENDIX 9'!G10+'APPENDIX 10'!G10+'APPENDIX 11'!G10+PENSIONS!G10+'APPENDIX 14'!G10+'APPENDIX 15'!G10+'APPENDIX 16'!G10 -> 3310914 | H10: ='APPENDIX 9'!H10+'APPENDIX 10'!H10+'APPENDIX 11'!H10+PENSIONS!H10+'APPENDIX 14'!H10+'APPENDIX 15'!H10+'APPENDIX 16'!H10 -> 3806266 | I10: ='APPENDIX 9'!I10+'APPENDIX 10'!I10+'APPENDIX 11'!I10+PENSIONS!I10+'APPENDIX 14'!I10+'APPENDIX 15'!I10+'APPENDIX 16'!I10 -> 0 | J10: ='APPENDIX 9'!J10+'APPENDIX 10'!J10+'APPENDIX 11'!J10+PENSIONS!J10+'APPENDIX 14'!J10+'APPENDIX 15'!J10+'APPENDIX 16'!J10 -> 0 | K10: ='APPENDIX 9'!K10+'APPENDIX 10'!K10+'APPENDIX 11'!K10+PENSIONS!K10+'APPENDIX 14'!K10+'APPENDIX 15'!K10+'APPENDIX 16'!K10 -> 0 | L10: ='APPENDIX 9'!L10+'APPENDIX 10'!L10+'APPENDIX 11'!L10+PENSIONS!L10+'APPENDIX 14'!L10+'APPENDIX 15'!L10+'APPENDIX 16'!L10 -> 136929 | M10: ='APPENDIX 9'!M10+'APPENDIX 10'!M10+'APPENDIX 11'!M10+PENSIONS!M10+'APPENDIX 14'!M10+'APPENDIX 15'!M10+'APPENDIX 16'!M10 -> 1423826 | N10: ='APPENDIX 9'!N10+'APPENDIX 10'!N10+'APPENDIX 11'!N10+PENSIONS!N10+'APPENDIX 14'!N10+'APPENDIX 15'!N10+'APPENDIX 16'!N10 -> 847022 | O10: ='APPENDIX 9'!O10+'APPENDIX 10'!O10+'APPENDIX 11'!O10+PENSIONS!O10+'APPENDIX 14'!O10+'APPENDIX 15'!O10+'APPENDIX 16'!O10 -> 0 | P10: ='APPENDIX 9'!P10+'APPENDIX 10'!P10+'APPENDIX 11'!P10+PENSIONS!P10+'APPENDIX 14'!P10+'APPENDIX 15'!P10+'APPENDIX 16'!P10 -> 0 | Q10: ='APPENDIX 9'!Q10+'APPENDIX 10'!Q10+'APPENDIX 11'!Q10+PENSIONS!Q10+'APPENDIX 14'!Q10+'APPENDIX 15'!Q10+'APPENDIX 16'!Q10 -> 5766783
B11: CORPORATE INSURANCE COMPANY | C11: ='APPENDIX 9'!C11+'APPENDIX 10'!C11+'APPENDIX 11'!C11+PENSIONS!C11+'APPENDIX 14'!C11+'APPENDIX 15'!C11+'APPENDIX 16'!C11 -> 421490 | D11: ='APPENDIX 9'!D11+'APPENDIX 10'!D11+'APPENDIX 11'!D11+PENSIONS!D11+'APPENDIX 14'!D11+'APPENDIX 15'!D11+'APPENDIX 16'!D11 -> 187970 | E11: ='APPENDIX 9'!E11+'APPENDIX 10'!E11+'APPENDIX 11'!E11+PENSIONS!E11+'APPENDIX 14'!E11+'APPENDIX 15'!E11+'APPENDIX 16'!E11 -> 175897 | F11: ='APPENDIX 9'!F11+'APPENDIX 10'!F11+'APPENDIX 11'!F11+PENSIONS!F11+'APPENDIX 14'!F11+'APPENDIX 15'!F11+'APPENDIX 16'!F11 -> 0 | G11: ='APPENDIX 9'!G11+'APPENDIX 10'!G11+'APPENDIX 11'!G11+PENSIONS!G11+'APPENDIX 14'!G11+'APPENDIX 15'!G11+'APPENDIX 16'!G11 -> 289830 | H11: ='APPENDIX 9'!H11+'APPENDIX 10'!H11+'APPENDIX 11'!H11+PENSIONS!H11+'APPENDIX 14'!H11+'APPENDIX 15'!H11+'APPENDIX 16'!H11 -> 289830 | I11: ='APPENDIX 9'!I11+'APPENDIX 10'!I11+'APPENDIX 11'!I11+PENSIONS!I11+'APPENDIX 14'!I11+'APPENDIX 15'!I11+'APPENDIX 16'!I11 -> 0 | J11: ='APPENDIX 9'!J11+'APPENDIX 10'!J11+'APPENDIX 11'!J11+PENSIONS!J11+'APPENDIX 14'!J11+'APPENDIX 15'!J11+'APPENDIX 16'!J11 -> 0 | K11: ='APPENDIX 9'!K11+'APPENDIX 10'!K11+'APPENDIX 11'!K11+PENSIONS!K11+'APPENDIX 14'!K11+'APPENDIX 15'!K11+'APPENDIX 16'!K11 -> 0 | L11: ='APPENDIX 9'!L11+'APPENDIX 10'!L11+'APPENDIX 11'!L11+PENSIONS!L11+'APPENDIX 14'!L11+'APPENDIX 15'!L11+'APPENDIX 16'!L11 -> 16518 | M11: ='APPENDIX 9'!M11+'APPENDIX 10'!M11+'APPENDIX 11'!M11+PENSIONS!M11+'APPENDIX 14'!M11+'APPENDIX 15'!M11+'APPENDIX 16'!M11 -> 28717 | N11: ='APPENDIX 9'!N11+'APPENDIX 10'!N11+'APPENDIX 11'!N11+PENSIONS!N11+'APPENDIX 14'!N11+'APPENDIX 15'!N11+'APPENDIX 16'!N11 -> 32332 | O11: ='APPENDIX 9'!O11+'APPENDIX 10'!O11+'APPENDIX 11'!O11+PENSIONS!O11+'APPENDIX 14'!O11+'APPENDIX 15'!O11+'APPENDIX 16'!O11 -> 0 | P11: ='APPENDIX 9'!P11+'APPENDIX 10'!P11+'APPENDIX 11'!P11+PENSIONS!P11+'APPENDIX 14'!P11+'APPENDIX 15'!P11+'APPENDIX 16'!P11 -> 0 | Q11: ='APPENDIX 9'!Q11+'APPENDIX 10'!Q11+'APPENDIX 11'!Q11+PENSIONS!Q11+'APPENDIX 14'!Q11+'APPENDIX 15'!Q11+'APPENDIX 16'!Q11 -> 294654
B12: GA LIFE ASSURANCE COMPANY | C12: ='APPENDIX 9'!C12+'APPENDIX 10'!C12+'APPENDIX 11'!C12+PENSIONS!C12+'APPENDIX 14'!C12+'APPENDIX 15'!C12+'APPENDIX 16'!C12 -> 14657718 | D12: ='APPENDIX 9'!D12+'APPENDIX 10'!D12+'APPENDIX 11'!D12+PENSIONS!D12+'APPENDIX 14'!D12+'APPENDIX 15'!D12+'APPENDIX 16'!D12 -> 5127574 | E12: ='APPENDIX 9'!E12+'APPENDIX 10'!E12+'APPENDIX 11'!E12+PENSIONS!E12+'APPENDIX 14'!E12+'APPENDIX 15'!E12+'APPENDIX 16'!E12 -> 5080267 | F12: ='APPENDIX 9'!F12+'APPENDIX 10'!F12+'APPENDIX 11'!F12+PENSIONS!F12+'APPENDIX 14'!F12+'APPENDIX 15'!F12+'APPENDIX 16'!F12 -> 0 | G12: ='APPENDIX 9'!G12+'APPENDIX 10'!G12+'APPENDIX 11'!G12+PENSIONS!G12+'APPENDIX 14'!G12+'APPENDIX 15'!G12+'APPENDIX 16'!G12 -> 1390396 | H12: ='APPENDIX 9'!H12+'APPENDIX 10'!H12+'APPENDIX 11'!H12+PENSIONS!H12+'APPENDIX 14'!H12+'APPENDIX 15'!H12+'APPENDIX 16'!H12 -> 1390596 | I12: ='APPENDIX 9'!I12+'APPENDIX 10'!I12+'APPENDIX 11'!I12+PENSIONS!I12+'APPENDIX 14'!I12+'APPENDIX 15'!I12+'APPENDIX 16'!I12 -> 0 | J12: ='APPENDIX 9'!J12+'APPENDIX 10'!J12+'APPENDIX 11'!J12+PENSIONS!J12+'APPENDIX 14'!J12+'APPENDIX 15'!J12+'APPENDIX 16'!J12 -> 0 | K12: ='APPENDIX 9'!K12+'APPENDIX 10'!K12+'APPENDIX 11'!K12+PENSIONS!K12+'APPENDIX 14'!K12+'APPENDIX 15'!K12+'APPENDIX 16'!K12 -> 0 | L12: ='APPENDIX 9'!L12+'APPENDIX 10'!L12+'APPENDIX 11'!L12+PENSIONS!L12+'APPENDIX 14'!L12+'APPENDIX 15'!L12+'APPENDIX 16'!L12 -> 33378 | M12: ='APPENDIX 9'!M12+'APPENDIX 10'!M12+'APPENDIX 11'!M12+PENSIONS!M12+'APPENDIX 14'!M12+'APPENDIX 15'!M12+'APPENDIX 16'!M12 -> 97970 | N12: ='APPENDIX 9'!N12+'APPENDIX 10'!N12+'APPENDIX 11'!N12+PENSIONS!N12+'APPENDIX 14'!N12+'APPENDIX 15'!N12+'APPENDIX 16'!N12 -> 2207991 | O12: ='APPENDIX 9'!O12+'APPENDIX 10'!O12+'APPENDIX 11'!O12+PENSIONS!O12+'APPENDIX 14'!O12+'APPENDIX 15'!O12+'APPENDIX 16'!O12 -> 0 | P12: ='APPENDIX 9'!P12+'APPENDIX 10'!P12+'APPENDIX 11'!P12+PENSIONS!P12+'APPENDIX 14'!P12+'APPENDIX 15'!P12+'APPENDIX 16'!P12 -> 141994 | Q12: ='APPENDIX 9'!Q12+'APPENDIX 10'!Q12+'APPENDIX 11'!Q12+PENSIONS!Q12+'APPENDIX 14'!Q12+'APPENDIX 15'!Q12+'APPENDIX 16'!Q12 -> 20282037
B13: GEMINIA INSURANCE COMPANY | C13: ='APPENDIX 9'!C13+'APPENDIX 10'!C13+'APPENDIX 11'!C13+PENSIONS!C13+'APPENDIX 14'!C13+'APPENDIX 15'!C13+'APPENDIX 16'!C13 -> 1309009 | D13: ='APPENDIX 9'!D13+'APPENDIX 10'!D13+'APPENDIX 11'!D13+PENSIONS!D13+'APPENDIX 14'!D13+'APPENDIX 15'!D13+'APPENDIX 16'!D13 -> 815181 | E13: ='APPENDIX 9'!E13+'APPENDIX 10'!E13+'APPENDIX 11'!E13+PENSIONS!E13+'APPENDIX 14'!E13+'APPENDIX 15'!E13+'APPENDIX 16'!E13 -> 569123 | F13: ='APPENDIX 9'!F13+'APPENDIX 10'!F13+'APPENDIX 11'!F13+PENSIONS!F13+'APPENDIX 14'!F13+'APPENDIX 15'!F13+'APPENDIX 16'!F13 -> 0 | G13: ='APPENDIX 9'!G13+'APPENDIX 10'!G13+'APPENDIX 11'!G13+PENSIONS!G13+'APPENDIX 14'!G13+'APPENDIX 15'!G13+'APPENDIX 16'!G13 -> 363321 | H13: ='APPENDIX 9'!H13+'APPENDIX 10'!H13+'APPENDIX 11'!H13+PENSIONS!H13+'APPENDIX 14'!H13+'APPENDIX 15'!H13+'APPENDIX 16'!H13 -> 495233 | I13: ='APPENDIX 9'!I13+'APPENDIX 10'!I13+'APPENDIX 11'!I13+PENSIONS!I13+'APPENDIX 14'!I13+'APPENDIX 15'!I13+'APPENDIX 16'!I13 -> 0 | J13: ='APPENDIX 9'!J13+'APPENDIX 10'!J13+'APPENDIX 11'!J13+PENSIONS!J13+'APPENDIX 14'!J13+'APPENDIX 15'!J13+'APPENDIX 16'!J13 -> 0 | K13: ='APPENDIX 9'!K13+'APPENDIX 10'!K13+'APPENDIX 11'!K13+PENSIONS!K13+'APPENDIX 14'!K13+'APPENDIX 15'!K13+'APPENDIX 16'!K13 -> 0 | L13: ='APPENDIX 9'!L13+'APPENDIX 10'!L13+'APPENDIX 11'!L13+PENSIONS!L13+'APPENDIX 14'!L13+'APPENDIX 15'!L13+'APPENDIX 16'!L13 -> -7319 | M13: ='APPENDIX 9'!M13+'APPENDIX 10'!M13+'APPENDIX 11'!M13+PENSIONS!M13+'APPENDIX 14'!M13+'APPENDIX 15'!M13+'APPENDIX 16'!M13 -> 255698 | N13: ='APPENDIX 9'!N13+'APPENDIX 10'!N13+'APPENDIX 11'!N13+PENSIONS!N13+'APPENDIX 14'!N13+'APPENDIX 15'!N13+'APPENDIX 16'!N13 -> 157467 | O13: ='APPENDIX 9'!O13+'APPENDIX 10'!O13+'APPENDIX 11'!O13+PENSIONS!O13+'APPENDIX 14'!O13+'APPENDIX 15'!O13+'APPENDIX 16'!O13 -> 45597 | P13: ='APPENDIX 9'!P13+'APPENDIX 10'!P13+'APPENDIX 11'!P13+PENSIONS!P13+'APPENDIX 14'!P13+'APPENDIX 15'!P13+'APPENDIX 16'!P13 -> 0 | Q13: ='APPENDIX 9'!Q13+'APPENDIX 10'!Q13+'APPENDIX 11'!Q13+PENSIONS!Q13+'APPENDIX 14'!Q13+'APPENDIX 15'!Q13+'APPENDIX 16'!Q13 -> 1246388
B14: ICEA LION LIFE ASSURANCE | C14: ='APPENDIX 9'!C14+'APPENDIX 10'!C14+'APPENDIX 11'!C14+PENSIONS!C14+'APPENDIX 14'!C14+'APPENDIX 15'!C14+'APPENDIX 16'!C14 -> 96545501 | D14: ='APPENDIX 9'!D14+'APPENDIX 10'!D14+'APPENDIX 11'!D14+PENSIONS!D14+'APPENDIX 14'!D14+'APPENDIX 15'!D14+'APPENDIX 16'!D14 -> 20000486 | E14: ='APPENDIX 9'!E14+'APPENDIX 10'!E14+'APPENDIX 11'!E14+PENSIONS!E14+'APPENDIX 14'!E14+'APPENDIX 15'!E14+'APPENDIX 16'!E14 -> 19694038 | F14: ='APPENDIX 9'!F14+'APPENDIX 10'!F14+'APPENDIX 11'!F14+PENSIONS!F14+'APPENDIX 14'!F14+'APPENDIX 15'!F14+'APPENDIX 16'!F14 -> 0 | G14: ='APPENDIX 9'!G14+'APPENDIX 10'!G14+'APPENDIX 11'!G14+PENSIONS!G14+'APPENDIX 14'!G14+'APPENDIX 15'!G14+'APPENDIX 16'!G14 -> 12162543 | H14: ='APPENDIX 9'!H14+'APPENDIX 10'!H14+'APPENDIX 11'!H14+PENSIONS!H14+'APPENDIX 14'!H14+'APPENDIX 15'!H14+'APPENDIX 16'!H14 -> 1865978 | I14: ='APPENDIX 9'!I14+'APPENDIX 10'!I14+'APPENDIX 11'!I14+PENSIONS!I14+'APPENDIX 14'!I14+'APPENDIX 15'!I14+'APPENDIX 16'!I14 -> 8729811 | J14: ='APPENDIX 9'!J14+'APPENDIX 10'!J14+'APPENDIX 11'!J14+PENSIONS!J14+'APPENDIX 14'!J14+'APPENDIX 15'!J14+'APPENDIX 16'!J14 -> 0 | K14: ='APPENDIX 9'!K14+'APPENDIX 10'!K14+'APPENDIX 11'!K14+PENSIONS!K14+'APPENDIX 14'!K14+'APPENDIX 15'!K14+'APPENDIX 16'!K14 -> 1535989 | L14: ='APPENDIX 9'!L14+'APPENDIX 10'!L14+'APPENDIX 11'!L14+PENSIONS!L14+'APPENDIX 14'!L14+'APPENDIX 15'!L14+'APPENDIX 16'!L14 -> 847041 | M14: ='APPENDIX 9'!M14+'APPENDIX 10'!M14+'APPENDIX 11'!M14+PENSIONS!M14+'APPENDIX 14'!M14+'APPENDIX 15'!M14+'APPENDIX 16'!M14 -> 1280159 | N14: ='APPENDIX 9'!N14+'APPENDIX 10'!N14+'APPENDIX 11'!N14+PENSIONS!N14+'APPENDIX 14'!N14+'APPENDIX 15'!N14+'APPENDIX 16'!N14 -> 12016413 | O14: ='APPENDIX 9'!O14+'APPENDIX 10'!O14+'APPENDIX 11'!O14+PENSIONS!O14+'APPENDIX 14'!O14+'APPENDIX 15'!O14+'APPENDIX 16'!O14 -> 0 | P14: ='APPENDIX 9'!P14+'APPENDIX 10'!P14+'APPENDIX 11'!P14+PENSIONS!P14+'APPENDIX 14'!P14+'APPENDIX 15'!P14+'APPENDIX 16'!P14 -> 1000000 | Q14: ='APPENDIX 9'!Q14+'APPENDIX 10'!Q14+'APPENDIX 11'!Q14+PENSIONS!Q14+'APPENDIX 14'!Q14+'APPENDIX 15'!Q14+'APPENDIX 16'!Q14 -> 112996974
B15: JUBILEE INSURANCE COMPANY LIMITED-LIFE | C15: ='APPENDIX 9'!C15+'APPENDIX 10'!C15+'APPENDIX 11'!C15+PENSIONS!C15+'APPENDIX 14'!C15+'APPENDIX 15'!C15+'APPENDIX 16'!C15 -> 80793465 | D15: ='APPENDIX 9'!D15+'APPENDIX 10'!D15+'APPENDIX 11'!D15+PENSIONS!D15+'APPENDIX 14'!D15+'APPENDIX 15'!D15+'APPENDIX 16'!D15 -> 13937081 | E15: ='APPENDIX 9'!E15+'APPENDIX 10'!E15+'APPENDIX 11'!E15+PENSIONS!E15+'APPENDIX 14'!E15+'APPENDIX 15'!E15+'APPENDIX 16'!E15 -> 13484871 | F15: ='APPENDIX 9'!F15+'APPENDIX 10'!F15+'APPENDIX 11'!F15+PENSIONS!F15+'APPENDIX 14'!F15+'APPENDIX 15'!F15+'APPENDIX 16'!F15 -> 0 | G15: ='APPENDIX 9'!G15+'APPENDIX 10'!G15+'APPENDIX 11'!G15+PENSIONS!G15+'APPENDIX 14'!G15+'APPENDIX 15'!G15+'APPENDIX 16'!G15 -> 12875207 | H15: ='APPENDIX 9'!H15+'APPENDIX 10'!H15+'APPENDIX 11'!H15+PENSIONS!H15+'APPENDIX 14'!H15+'APPENDIX 15'!H15+'APPENDIX 16'!H15 -> 12407728 | I15: ='APPENDIX 9'!I15+'APPENDIX 10'!I15+'APPENDIX 11'!I15+PENSIONS!I15+'APPENDIX 14'!I15+'APPENDIX 15'!I15+'APPENDIX 16'!I15 -> 635434 | J15: ='APPENDIX 9'!J15+'APPENDIX 10'!J15+'APPENDIX 11'!J15+PENSIONS!J15+'APPENDIX 14'!J15+'APPENDIX 15'!J15+'APPENDIX 16'!J15 -> 0 | K15: ='APPENDIX 9'!K15+'APPENDIX 10'!K15+'APPENDIX 11'!K15+PENSIONS!K15+'APPENDIX 14'!K15+'APPENDIX 15'!K15+'APPENDIX 16'!K15 -> 0 | L15: ='APPENDIX 9'!L15+'APPENDIX 10'!L15+'APPENDIX 11'!L15+PENSIONS!L15+'APPENDIX 14'!L15+'APPENDIX 15'!L15+'APPENDIX 16'!L15 -> 812271 | M15: ='APPENDIX 9'!M15+'APPENDIX 10'!M15+'APPENDIX 11'!M15+PENSIONS!M15+'APPENDIX 14'!M15+'APPENDIX 15'!M15+'APPENDIX 16'!M15 -> 977760 | N15: ='APPENDIX 9'!N15+'APPENDIX 10'!N15+'APPENDIX 11'!N15+PENSIONS!N15+'APPENDIX 14'!N15+'APPENDIX 15'!N15+'APPENDIX 16'!N15 -> 9668931 | O15: ='APPENDIX 9'!O15+'APPENDIX 10'!O15+'APPENDIX 11'!O15+PENSIONS!O15+'APPENDIX 14'!O15+'APPENDIX 15'!O15+'APPENDIX 16'!O15 -> 76998 | P15: ='APPENDIX 9'!P15+'APPENDIX 10'!P15+'APPENDIX 11'!P15+PENSIONS!P15+'APPENDIX 14'!P15+'APPENDIX 15'!P15+'APPENDIX 16'!P15 -> 982198 | Q15: ='APPENDIX 9'!Q15+'APPENDIX 10'!Q15+'APPENDIX 11'!Q15+PENSIONS!Q15+'APPENDIX 14'!Q15+'APPENDIX 15'!Q15+'APPENDIX 16'!Q15 -> 88054877
B16: KENINDIA ASSURANCE COMPANY | C16: ='APPENDIX 9'!C16+'APPENDIX 10'!C16+'APPENDIX 11'!C16+PENSIONS!C16+'APPENDIX 14'!C16+'APPENDIX 15'!C16+'APPENDIX 16'!C16 -> 43963183 | D16: ='APPENDIX 9'!D16+'APPENDIX 10'!D16+'APPENDIX 11'!D16+PENSIONS!D16+'APPENDIX 14'!D16+'APPENDIX 15'!D16+'APPENDIX 16'!D16 -> 11120549 | E16: ='APPENDIX 9'!E16+'APPENDIX 10'!E16+'APPENDIX 11'!E16+PENSIONS!E16+'APPENDIX 14'!E16+'APPENDIX 15'!E16+'APPENDIX 16'!E16 -> 11084089 | F16: ='APPENDIX 9'!F16+'APPENDIX 10'!F16+'APPENDIX 11'!F16+PENSIONS!F16+'APPENDIX 14'!F16+'APPENDIX 15'!F16+'APPENDIX 16'!F16 -> 0 | G16: ='APPENDIX 9'!G16+'APPENDIX 10'!G16+'APPENDIX 11'!G16+PENSIONS!G16+'APPENDIX 14'!G16+'APPENDIX 15'!G16+'APPENDIX 16'!G16 -> 4786282 | H16: ='APPENDIX 9'!H16+'APPENDIX 10'!H16+'APPENDIX 11'!H16+PENSIONS!H16+'APPENDIX 14'!H16+'APPENDIX 15'!H16+'APPENDIX 16'!H16 -> 4787659 | I16: ='APPENDIX 9'!I16+'APPENDIX 10'!I16+'APPENDIX 11'!I16+PENSIONS!I16+'APPENDIX 14'!I16+'APPENDIX 15'!I16+'APPENDIX 16'!I16 -> 0 | J16: ='APPENDIX 9'!J16+'APPENDIX 10'!J16+'APPENDIX 11'!J16+PENSIONS!J16+'APPENDIX 14'!J16+'APPENDIX 15'!J16+'APPENDIX 16'!J16 -> 0 | K16: ='APPENDIX 9'!K16+'APPENDIX 10'!K16+'APPENDIX 11'!K16+PENSIONS!K16+'APPENDIX 14'!K16+'APPENDIX 15'!K16+'APPENDIX 16'!K16 -> 0 | L16: ='APPENDIX 9'!L16+'APPENDIX 10'!L16+'APPENDIX 11'!L16+PENSIONS!L16+'APPENDIX 14'!L16+'APPENDIX 15'!L16+'APPENDIX 16'!L16 -> 277886 | M16: ='APPENDIX 9'!M16+'APPENDIX 10'!M16+'APPENDIX 11'!M16+PENSIONS!M16+'APPENDIX 14'!M16+'APPENDIX 15'!M16+'APPENDIX 16'!M16 -> 574716 | N16: ='APPENDIX 9'!N16+'APPENDIX 10'!N16+'APPENDIX 11'!N16+PENSIONS!N16+'APPENDIX 14'!N16+'APPENDIX 15'!N16+'APPENDIX 16'!N16 -> 6128930 | O16: ='APPENDIX 9'!O16+'APPENDIX 10'!O16+'APPENDIX 11'!O16+PENSIONS!O16+'APPENDIX 14'!O16+'APPENDIX 15'!O16+'APPENDIX 16'!O16 -> 0 | P16: ='APPENDIX 9'!P16+'APPENDIX 10'!P16+'APPENDIX 11'!P16+PENSIONS!P16+'APPENDIX 14'!P16+'APPENDIX 15'!P16+'APPENDIX 16'!P16 -> 375000 | Q16: ='APPENDIX 9'!Q16+'APPENDIX 10'!Q16+'APPENDIX 11'!Q16+PENSIONS!Q16+'APPENDIX 14'!Q16+'APPENDIX 15'!Q16+'APPENDIX 16'!Q16 -> 55160937
B17: KENYA ORIENT LIFE ASSURANCE | C17: ='APPENDIX 9'!C17+'APPENDIX 10'!C17+'APPENDIX 11'!C17+PENSIONS!C17+'APPENDIX 14'!C17+'APPENDIX 15'!C17+'APPENDIX 16'!C17 -> 1764746 | D17: ='APPENDIX 9'!D17+'APPENDIX 10'!D17+'APPENDIX 11'!D17+PENSIONS!D17+'APPENDIX 14'!D17+'APPENDIX 15'!D17+'APPENDIX 16'!D17 -> 1341479 | E17: ='APPENDIX 9'!E17+'APPENDIX 10'!E17+'APPENDIX 11'!E17+PENSIONS!E17+'APPENDIX 14'!E17+'APPENDIX 15'!E17+'APPENDIX 16'!E17 -> 1278780 | F17: ='APPENDIX 9'!F17+'APPENDIX 10'!F17+'APPENDIX 11'!F17+PENSIONS!F17+'APPENDIX 14'!F17+'APPENDIX 15'!F17+'APPENDIX 16'!F17 -> 0 | G17: ='APPENDIX 9'!G17+'APPENDIX 10'!G17+'APPENDIX 11'!G17+PENSIONS!G17+'APPENDIX 14'!G17+'APPENDIX 15'!G17+'APPENDIX 16'!G17 -> 294727 | H17: ='APPENDIX 9'!H17+'APPENDIX 10'!H17+'APPENDIX 11'!H17+PENSIONS!H17+'APPENDIX 14'!H17+'APPENDIX 15'!H17+'APPENDIX 16'!H17 -> 223343 | I17: ='APPENDIX 9'!I17+'APPENDIX 10'!I17+'APPENDIX 11'!I17+PENSIONS!I17+'APPENDIX 14'!I17+'APPENDIX 15'!I17+'APPENDIX 16'!I17 -> 1597 | J17: ='APPENDIX 9'!J17+'APPENDIX 10'!J17+'APPENDIX 11'!J17+PENSIONS!J17+'APPENDIX 14'!J17+'APPENDIX 15'!J17+'APPENDIX 16'!J17 -> 0 | K17: ='APPENDIX 9'!K17+'APPENDIX 10'!K17+'APPENDIX 11'!K17+PENSIONS!K17+'APPENDIX 14'!K17+'APPENDIX 15'!K17+'APPENDIX 16'!K17 -> 97729 | L17: ='APPENDIX 9'!L17+'APPENDIX 10'!L17+'APPENDIX 11'!L17+PENSIONS!L17+'APPENDIX 14'!L17+'APPENDIX 15'!L17+'APPENDIX 16'!L17 -> 50055 | M17: ='APPENDIX 9'!M17+'APPENDIX 10'!M17+'APPENDIX 11'!M17+PENSIONS!M17+'APPENDIX 14'!M17+'APPENDIX 15'!M17+'APPENDIX 16'!M17 -> 315838 | N17: ='APPENDIX 9'!N17+'APPENDIX 10'!N17+'APPENDIX 11'!N17+PENSIONS!N17+'APPENDIX 14'!N17+'APPENDIX 15'!N17+'APPENDIX 16'!N17 -> 210929 | O17: ='APPENDIX 9'!O17+'APPENDIX 10'!O17+'APPENDIX 11'!O17+PENSIONS!O17+'APPENDIX 14'!O17+'APPENDIX 15'!O17+'APPENDIX 16'!O17 -> 0 | P17: ='APPENDIX 9'!P17+'APPENDIX 10'!P17+'APPENDIX 11'!P17+PENSIONS!P17+'APPENDIX 14'!P17+'APPENDIX 15'!P17+'APPENDIX 16'!P17 -> 0 | Q17: ='APPENDIX 9'!Q17+'APPENDIX 10'!Q17+'APPENDIX 11'!Q17+PENSIONS!Q17+'APPENDIX 14'!Q17+'APPENDIX 15'!Q17+'APPENDIX 16'!Q17 -> 2565893
B18: KUSCCO MUTUAL ASSURANCE LIMITED | C18: ='APPENDIX 9'!C18+'APPENDIX 10'!C18+'APPENDIX 11'!C18+PENSIONS!C18+'APPENDIX 14'!C18+'APPENDIX 15'!C18+'APPENDIX 16'!C18 -> 149745 | D18: ='APPENDIX 9'!D18+'APPENDIX 10'!D18+'APPENDIX 11'!D18+PENSIONS!D18+'APPENDIX 14'!D18+'APPENDIX 15'!D18+'APPENDIX 16'!D18 -> 1418375 | E18: ='APPENDIX 9'!E18+'APPENDIX 10'!E18+'APPENDIX 11'!E18+PENSIONS!E18+'APPENDIX 14'!E18+'APPENDIX 15'!E18+'APPENDIX 16'!E18 -> 992050 | F18: ='APPENDIX 9'!F18+'APPENDIX 10'!F18+'APPENDIX 11'!F18+PENSIONS!F18+'APPENDIX 14'!F18+'APPENDIX 15'!F18+'APPENDIX 16'!F18 -> 0 | G18: ='APPENDIX 9'!G18+'APPENDIX 10'!G18+'APPENDIX 11'!G18+PENSIONS!G18+'APPENDIX 14'!G18+'APPENDIX 15'!G18+'APPENDIX 16'!G18 -> 1111559 | H18: ='APPENDIX 9'!H18+'APPENDIX 10'!H18+'APPENDIX 11'!H18+PENSIONS!H18+'APPENDIX 14'!H18+'APPENDIX 15'!H18+'APPENDIX 16'!H18 -> 703189 | I18: ='APPENDIX 9'!I18+'APPENDIX 10'!I18+'APPENDIX 11'!I18+PENSIONS!I18+'APPENDIX 14'!I18+'APPENDIX 15'!I18+'APPENDIX 16'!I18 -> 0 | J18: ='APPENDIX 9'!J18+'APPENDIX 10'!J18+'APPENDIX 11'!J18+PENSIONS!J18+'APPENDIX 14'!J18+'APPENDIX 15'!J18+'APPENDIX 16'!J18 -> 0 | K18: ='APPENDIX 9'!K18+'APPENDIX 10'!K18+'APPENDIX 11'!K18+PENSIONS!K18+'APPENDIX 14'!K18+'APPENDIX 15'!K18+'APPENDIX 16'!K18 -> 0 | L18: ='APPENDIX 9'!L18+'APPENDIX 10'!L18+'APPENDIX 11'!L18+PENSIONS!L18+'APPENDIX 14'!L18+'APPENDIX 15'!L18+'APPENDIX 16'!L18 -> -33350 | M18: ='APPENDIX 9'!M18+'APPENDIX 10'!M18+'APPENDIX 11'!M18+PENSIONS!M18+'APPENDIX 14'!M18+'APPENDIX 15'!M18+'APPENDIX 16'!M18 -> 280027 | N18: ='APPENDIX 9'!N18+'APPENDIX 10'!N18+'APPENDIX 11'!N18+PENSIONS!N18+'APPENDIX 14'!N18+'APPENDIX 15'!N18+'APPENDIX 16'!N18 -> 43336 | O18: ='APPENDIX 9'!O18+'APPENDIX 10'!O18+'APPENDIX 11'!O18+PENSIONS!O18+'APPENDIX 14'!O18+'APPENDIX 15'!O18+'APPENDIX 16'!O18 -> 0 | P18: ='APPENDIX 9'!P18+'APPENDIX 10'!P18+'APPENDIX 11'!P18+PENSIONS!P18+'APPENDIX 14'!P18+'APPENDIX 15'!P18+'APPENDIX 16'!P18 -> 0 | Q18: ='APPENDIX 9'!Q18+'APPENDIX 10'!Q18+'APPENDIX 11'!Q18+PENSIONS!Q18+'APPENDIX 14'!Q18+'APPENDIX 15'!Q18+'APPENDIX 16'!Q18 -> 235264
B19: LIBERTY LIFE ASSURANCE COMPANY | C19: ='APPENDIX 9'!C19+'APPENDIX 10'!C19+'APPENDIX 11'!C19+PENSIONS!C19+'APPENDIX 14'!C19+'APPENDIX 15'!C19+'APPENDIX 16'!C19 -> 22165672 | D19: ='APPENDIX 9'!D19+'APPENDIX 10'!D19+'APPENDIX 11'!D19+PENSIONS!D19+'APPENDIX 14'!D19+'APPENDIX 15'!D19+'APPENDIX 16'!D19 -> 5064630 | E19: ='APPENDIX 9'!E19+'APPENDIX 10'!E19+'APPENDIX 11'!E19+PENSIONS!E19+'APPENDIX 14'!E19+'APPENDIX 15'!E19+'APPENDIX 16'!E19 -> 4779276 | F19: ='APPENDIX 9'!F19+'APPENDIX 10'!F19+'APPENDIX 11'!F19+PENSIONS!F19+'APPENDIX 14'!F19+'APPENDIX 15'!F19+'APPENDIX 16'!F19 -> 0 | G19: ='APPENDIX 9'!G19+'APPENDIX 10'!G19+'APPENDIX 11'!G19+PENSIONS!G19+'APPENDIX 14'!G19+'APPENDIX 15'!G19+'APPENDIX 16'!G19 -> 4733561 | H19: ='APPENDIX 9'!H19+'APPENDIX 10'!H19+'APPENDIX 11'!H19+PENSIONS!H19+'APPENDIX 14'!H19+'APPENDIX 15'!H19+'APPENDIX 16'!H19 -> 1840741 | I19: ='APPENDIX 9'!I19+'APPENDIX 10'!I19+'APPENDIX 11'!I19+PENSIONS!I19+'APPENDIX 14'!I19+'APPENDIX 15'!I19+'APPENDIX 16'!I19 -> 3056340 | J19: ='APPENDIX 9'!J19+'APPENDIX 10'!J19+'APPENDIX 11'!J19+PENSIONS!J19+'APPENDIX 14'!J19+'APPENDIX 15'!J19+'APPENDIX 16'!J19 -> 0 | K19: ='APPENDIX 9'!K19+'APPENDIX 10'!K19+'APPENDIX 11'!K19+PENSIONS!K19+'APPENDIX 14'!K19+'APPENDIX 15'!K19+'APPENDIX 16'!K19 -> 0 | L19: ='APPENDIX 9'!L19+'APPENDIX 10'!L19+'APPENDIX 11'!L19+PENSIONS!L19+'APPENDIX 14'!L19+'APPENDIX 15'!L19+'APPENDIX 16'!L19 -> 274741 | M19: ='APPENDIX 9'!M19+'APPENDIX 10'!M19+'APPENDIX 11'!M19+PENSIONS!M19+'APPENDIX 14'!M19+'APPENDIX 15'!M19+'APPENDIX 16'!M19 -> 1232829 | N19: ='APPENDIX 9'!N19+'APPENDIX 10'!N19+'APPENDIX 11'!N19+PENSIONS!N19+'APPENDIX 14'!N19+'APPENDIX 15'!N19+'APPENDIX 16'!N19 -> 2379352 | O19: ='APPENDIX 9'!O19+'APPENDIX 10'!O19+'APPENDIX 11'!O19+PENSIONS!O19+'APPENDIX 14'!O19+'APPENDIX 15'!O19+'APPENDIX 16'!O19 -> 135482 | P19: ='APPENDIX 9'!P19+'APPENDIX 10'!P19+'APPENDIX 11'!P19+PENSIONS!P19+'APPENDIX 14'!P19+'APPENDIX 15'!P19+'APPENDIX 16'!P19 -> 0 | Q19: ='APPENDIX 9'!Q19+'APPENDIX 10'!Q19+'APPENDIX 11'!Q19+PENSIONS!Q19+'APPENDIX 14'!Q19+'APPENDIX 15'!Q19+'APPENDIX 16'!Q19 -> 22784171
B20: MADISON INSURANCE COMPANY | C20: ='APPENDIX 9'!C20+'APPENDIX 10'!C20+'APPENDIX 11'!C20+PENSIONS!C20+'APPENDIX 14'!C20+'APPENDIX 15'!C20+'APPENDIX 16'!C20 -> 15070883 | D20: ='APPENDIX 9'!D20+'APPENDIX 10'!D20+'APPENDIX 11'!D20+PENSIONS!D20+'APPENDIX 14'!D20+'APPENDIX 15'!D20+'APPENDIX 16'!D20 -> 3420951 | E20: ='APPENDIX 9'!E20+'APPENDIX 10'!E20+'APPENDIX 11'!E20+PENSIONS!E20+'APPENDIX 14'!E20+'APPENDIX 15'!E20+'APPENDIX 16'!E20 -> 3292665 | F20: ='APPENDIX 9'!F20+'APPENDIX 10'!F20+'APPENDIX 11'!F20+PENSIONS!F20+'APPENDIX 14'!F20+'APPENDIX 15'!F20+'APPENDIX 16'!F20 -> 0 | G20: ='APPENDIX 9'!G20+'APPENDIX 10'!G20+'APPENDIX 11'!G20+PENSIONS!G20+'APPENDIX 14'!G20+'APPENDIX 15'!G20+'APPENDIX 16'!G20 -> 2800779 | H20: ='APPENDIX 9'!H20+'APPENDIX 10'!H20+'APPENDIX 11'!H20+PENSIONS!H20+'APPENDIX 14'!H20+'APPENDIX 15'!H20+'APPENDIX 16'!H20 -> 1616167 | I20: ='APPENDIX 9'!I20+'APPENDIX 10'!I20+'APPENDIX 11'!I20+PENSIONS!I20+'APPENDIX 14'!I20+'APPENDIX 15'!I20+'APPENDIX 16'!I20 -> 94612 | J20: ='APPENDIX 9'!J20+'APPENDIX 10'!J20+'APPENDIX 11'!J20+PENSIONS!J20+'APPENDIX 14'!J20+'APPENDIX 15'!J20+'APPENDIX 16'!J20 -> 0 | K20: ='APPENDIX 9'!K20+'APPENDIX 10'!K20+'APPENDIX 11'!K20+PENSIONS!K20+'APPENDIX 14'!K20+'APPENDIX 15'!K20+'APPENDIX 16'!K20 -> 1090000 | L20: ='APPENDIX 9'!L20+'APPENDIX 10'!L20+'APPENDIX 11'!L20+PENSIONS!L20+'APPENDIX 14'!L20+'APPENDIX 15'!L20+'APPENDIX 16'!L20 -> 283369 | M20: ='APPENDIX 9'!M20+'APPENDIX 10'!M20+'APPENDIX 11'!M20+PENSIONS!M20+'APPENDIX 14'!M20+'APPENDIX 15'!M20+'APPENDIX 16'!M20 -> 861176 | N20: ='APPENDIX 9'!N20+'APPENDIX 10'!N20+'APPENDIX 11'!N20+PENSIONS!N20+'APPENDIX 14'!N20+'APPENDIX 15'!N20+'APPENDIX 16'!N20 -> 993918 | O20: ='APPENDIX 9'!O20+'APPENDIX 10'!O20+'APPENDIX 11'!O20+PENSIONS!O20+'APPENDIX 14'!O20+'APPENDIX 15'!O20+'APPENDIX 16'!O20 -> 0 | P20: ='APPENDIX 9'!P20+'APPENDIX 10'!P20+'APPENDIX 11'!P20+PENSIONS!P20+'APPENDIX 14'!P20+'APPENDIX 15'!P20+'APPENDIX 16'!P20 -> 0 | Q20: ='APPENDIX 9'!Q20+'APPENDIX 10'!Q20+'APPENDIX 11'!Q20+PENSIONS!Q20+'APPENDIX 14'!Q20+'APPENDIX 15'!Q20+'APPENDIX 16'!Q20 -> 15412141
B21: METROPOLITAN CANNON INSURANCE | C21: ='APPENDIX 9'!C21+'APPENDIX 10'!C21+'APPENDIX 11'!C21+PENSIONS!C21+'APPENDIX 14'!C21+'APPENDIX 15'!C21+'APPENDIX 16'!C21 -> 1302915 | D21: ='APPENDIX 9'!D21+'APPENDIX 10'!D21+'APPENDIX 11'!D21+PENSIONS!D21+'APPENDIX 14'!D21+'APPENDIX 15'!D21+'APPENDIX 16'!D21 -> 392308 | E21: ='APPENDIX 9'!E21+'APPENDIX 10'!E21+'APPENDIX 11'!E21+PENSIONS!E21+'APPENDIX 14'!E21+'APPENDIX 15'!E21+'APPENDIX 16'!E21 -> 212861 | F21: ='APPENDIX 9'!F21+'APPENDIX 10'!F21+'APPENDIX 11'!F21+PENSIONS!F21+'APPENDIX 14'!F21+'APPENDIX 15'!F21+'APPENDIX 16'!F21 -> 58526 | G21: ='APPENDIX 9'!G21+'APPENDIX 10'!G21+'APPENDIX 11'!G21+PENSIONS!G21+'APPENDIX 14'!G21+'APPENDIX 15'!G21+'APPENDIX 16'!G21 -> 292825 | H21: ='APPENDIX 9'!H21+'APPENDIX 10'!H21+'APPENDIX 11'!H21+PENSIONS!H21+'APPENDIX 14'!H21+'APPENDIX 15'!H21+'APPENDIX 16'!H21 -> 292825 | I21: ='APPENDIX 9'!I21+'APPENDIX 10'!I21+'APPENDIX 11'!I21+PENSIONS!I21+'APPENDIX 14'!I21+'APPENDIX 15'!I21+'APPENDIX 16'!I21 -> 58682 | J21: ='APPENDIX 9'!J21+'APPENDIX 10'!J21+'APPENDIX 11'!J21+PENSIONS!J21+'APPENDIX 14'!J21+'APPENDIX 15'!J21+'APPENDIX 16'!J21 -> 0 | K21: ='APPENDIX 9'!K21+'APPENDIX 10'!K21+'APPENDIX 11'!K21+PENSIONS!K21+'APPENDIX 14'!K21+'APPENDIX 15'!K21+'APPENDIX 16'!K21 -> 0 | L21: ='APPENDIX 9'!L21+'APPENDIX 10'!L21+'APPENDIX 11'!L21+PENSIONS!L21+'APPENDIX 14'!L21+'APPENDIX 15'!L21+'APPENDIX 16'!L21 -> -8949 | M21: ='APPENDIX 9'!M21+'APPENDIX 10'!M21+'APPENDIX 11'!M21+PENSIONS!M21+'APPENDIX 14'!M21+'APPENDIX 15'!M21+'APPENDIX 16'!M21 -> 198523 | N21: ='APPENDIX 9'!N21+'APPENDIX 10'!N21+'APPENDIX 11'!N21+PENSIONS!N21+'APPENDIX 14'!N21+'APPENDIX 15'!N21+'APPENDIX 16'!N21 -> 84113 | O21: ='APPENDIX 9'!O21+'APPENDIX 10'!O21+'APPENDIX 11'!O21+PENSIONS!O21+'APPENDIX 14'!O21+'APPENDIX 15'!O21+'APPENDIX 16'!O21 -> 0 | P21: ='APPENDIX 9'!P21+'APPENDIX 10'!P21+'APPENDIX 11'!P21+PENSIONS!P21+'APPENDIX 14'!P21+'APPENDIX 15'!P21+'APPENDIX 16'!P21 -> -119980 | Q21: ='APPENDIX 9'!Q21+'APPENDIX 10'!Q21+'APPENDIX 11'!Q21+PENSIONS!Q21+'APPENDIX 14'!Q21+'APPENDIX 15'!Q21+'APPENDIX 16'!Q21 -> 1237314
B22: OLD MUTUAL LIFE ASSURANCE | C22: ='APPENDIX 9'!C22+'APPENDIX 10'!C22+'APPENDIX 11'!C22+PENSIONS!C22+'APPENDIX 14'!C22+'APPENDIX 15'!C22+'APPENDIX 16'!C22 -> 11087982 | D22: ='APPENDIX 9'!D22+'APPENDIX 10'!D22+'APPENDIX 11'!D22+PENSIONS!D22+'APPENDIX 14'!D22+'APPENDIX 15'!D22+'APPENDIX 16'!D22 -> 2259493 | E22: ='APPENDIX 9'!E22+'APPENDIX 10'!E22+'APPENDIX 11'!E22+PENSIONS!E22+'APPENDIX 14'!E22+'APPENDIX 15'!E22+'APPENDIX 16'!E22 -> 2064177 | F22: ='APPENDIX 9'!F22+'APPENDIX 10'!F22+'APPENDIX 11'!F22+PENSIONS!F22+'APPENDIX 14'!F22+'APPENDIX 15'!F22+'APPENDIX 16'!F22 -> 389336 | G22: ='APPENDIX 9'!G22+'APPENDIX 10'!G22+'APPENDIX 11'!G22+PENSIONS!G22+'APPENDIX 14'!G22+'APPENDIX 15'!G22+'APPENDIX 16'!G22 -> 2961991 | H22: ='APPENDIX 9'!H22+'APPENDIX 10'!H22+'APPENDIX 11'!H22+PENSIONS!H22+'APPENDIX 14'!H22+'APPENDIX 15'!H22+'APPENDIX 16'!H22 -> 1097897 | I22: ='APPENDIX 9'!I22+'APPENDIX 10'!I22+'APPENDIX 11'!I22+PENSIONS!I22+'APPENDIX 14'!I22+'APPENDIX 15'!I22+'APPENDIX 16'!I22 -> 1921650 | J22: ='APPENDIX 9'!J22+'APPENDIX 10'!J22+'APPENDIX 11'!J22+PENSIONS!J22+'APPENDIX 14'!J22+'APPENDIX 15'!J22+'APPENDIX 16'!J22 -> 0 | K22: ='APPENDIX 9'!K22+'APPENDIX 10'!K22+'APPENDIX 11'!K22+PENSIONS!K22+'APPENDIX 14'!K22+'APPENDIX 15'!K22+'APPENDIX 16'!K22 -> 852 | L22: ='APPENDIX 9'!L22+'APPENDIX 10'!L22+'APPENDIX 11'!L22+PENSIONS!L22+'APPENDIX 14'!L22+'APPENDIX 15'!L22+'APPENDIX 16'!L22 -> 282976 | M22: ='APPENDIX 9'!M22+'APPENDIX 10'!M22+'APPENDIX 11'!M22+PENSIONS!M22+'APPENDIX 14'!M22+'APPENDIX 15'!M22+'APPENDIX 16'!M22 -> 619837 | N22: ='APPENDIX 9'!N22+'APPENDIX 10'!N22+'APPENDIX 11'!N22+PENSIONS!N22+'APPENDIX 14'!N22+'APPENDIX 15'!N22+'APPENDIX 16'!N22 -> 980700 | O22: ='APPENDIX 9'!O22+'APPENDIX 10'!O22+'APPENDIX 11'!O22+PENSIONS!O22+'APPENDIX 14'!O22+'APPENDIX 15'!O22+'APPENDIX 16'!O22 -> 40138 | P22: ='APPENDIX 9'!P22+'APPENDIX 10'!P22+'APPENDIX 11'!P22+PENSIONS!P22+'APPENDIX 14'!P22+'APPENDIX 15'!P22+'APPENDIX 16'!P22 -> -312734 | Q22: ='APPENDIX 9'!Q22+'APPENDIX 10'!Q22+'APPENDIX 11'!Q22+PENSIONS!Q22+'APPENDIX 14'!Q22+'APPENDIX 15'!Q22+'APPENDIX 16'!Q22 -> 10871579
B23: PIONEER ASSURANCE COMPANY | C23: ='APPENDIX 9'!C23+'APPENDIX 10'!C23+'APPENDIX 11'!C23+PENSIONS!C23+'APPENDIX 14'!C23+'APPENDIX 15'!C23+'APPENDIX 16'!C23 -> 3883289 | D23: ='APPENDIX 9'!D23+'APPENDIX 10'!D23+'APPENDIX 11'!D23+PENSIONS!D23+'APPENDIX 14'!D23+'APPENDIX 15'!D23+'APPENDIX 16'!D23 -> 3944604 | E23: ='APPENDIX 9'!E23+'APPENDIX 10'!E23+'APPENDIX 11'!E23+PENSIONS!E23+'APPENDIX 14'!E23+'APPENDIX 15'!E23+'APPENDIX 16'!E23 -> 3451604 | F23: ='APPENDIX 9'!F23+'APPENDIX 10'!F23+'APPENDIX 11'!F23+PENSIONS!F23+'APPENDIX 14'!F23+'APPENDIX 15'!F23+'APPENDIX 16'!F23 -> 0 | G23: ='APPENDIX 9'!G23+'APPENDIX 10'!G23+'APPENDIX 11'!G23+PENSIONS!G23+'APPENDIX 14'!G23+'APPENDIX 15'!G23+'APPENDIX 16'!G23 -> 2032389 | H23: ='APPENDIX 9'!H23+'APPENDIX 10'!H23+'APPENDIX 11'!H23+PENSIONS!H23+'APPENDIX 14'!H23+'APPENDIX 15'!H23+'APPENDIX 16'!H23 -> 2055728 | I23: ='APPENDIX 9'!I23+'APPENDIX 10'!I23+'APPENDIX 11'!I23+PENSIONS!I23+'APPENDIX 14'!I23+'APPENDIX 15'!I23+'APPENDIX 16'!I23 -> 0 | J23: ='APPENDIX 9'!J23+'APPENDIX 10'!J23+'APPENDIX 11'!J23+PENSIONS!J23+'APPENDIX 14'!J23+'APPENDIX 15'!J23+'APPENDIX 16'!J23 -> 0 | K23: ='APPENDIX 9'!K23+'APPENDIX 10'!K23+'APPENDIX 11'!K23+PENSIONS!K23+'APPENDIX 14'!K23+'APPENDIX 15'!K23+'APPENDIX 16'!K23 -> 0 | L23: ='APPENDIX 9'!L23+'APPENDIX 10'!L23+'APPENDIX 11'!L23+PENSIONS!L23+'APPENDIX 14'!L23+'APPENDIX 15'!L23+'APPENDIX 16'!L23 -> 420182 | M23: ='APPENDIX 9'!M23+'APPENDIX 10'!M23+'APPENDIX 11'!M23+PENSIONS!M23+'APPENDIX 14'!M23+'APPENDIX 15'!M23+'APPENDIX 16'!M23 -> 536099 | N23: ='APPENDIX 9'!N23+'APPENDIX 10'!N23+'APPENDIX 11'!N23+PENSIONS!N23+'APPENDIX 14'!N23+'APPENDIX 15'!N23+'APPENDIX 16'!N23 -> 240650 | O23: ='APPENDIX 9'!O23+'APPENDIX 10'!O23+'APPENDIX 11'!O23+PENSIONS!O23+'APPENDIX 14'!O23+'APPENDIX 15'!O23+'APPENDIX 16'!O23 -> 0 | P23: ='APPENDIX 9'!P23+'APPENDIX 10'!P23+'APPENDIX 11'!P23+PENSIONS!P23+'APPENDIX 14'!P23+'APPENDIX 15'!P23+'APPENDIX 16'!P23 -> -29527 | Q23: ='APPENDIX 9'!Q23+'APPENDIX 10'!Q23+'APPENDIX 11'!Q23+PENSIONS!Q23+'APPENDIX 14'!Q23+'APPENDIX 15'!Q23+'APPENDIX 16'!Q23 -> 4593062
B24: PRUDENTIAL LIFE ASSURANCE | C24: ='APPENDIX 9'!C24+'APPENDIX 10'!C24+'APPENDIX 11'!C24+PENSIONS!C24+'APPENDIX 14'!C24+'APPENDIX 15'!C24+'APPENDIX 16'!C24 -> 729302 | D24: ='APPENDIX 9'!D24+'APPENDIX 10'!D24+'APPENDIX 11'!D24+PENSIONS!D24+'APPENDIX 14'!D24+'APPENDIX 15'!D24+'APPENDIX 16'!D24 -> 1197833 | E24: ='APPENDIX 9'!E24+'APPENDIX 10'!E24+'APPENDIX 11'!E24+PENSIONS!E24+'APPENDIX 14'!E24+'APPENDIX 15'!E24+'APPENDIX 16'!E24 -> 1054899 | F24: ='APPENDIX 9'!F24+'APPENDIX 10'!F24+'APPENDIX 11'!F24+PENSIONS!F24+'APPENDIX 14'!F24+'APPENDIX 15'!F24+'APPENDIX 16'!F24 -> 41577 | G24: ='APPENDIX 9'!G24+'APPENDIX 10'!G24+'APPENDIX 11'!G24+PENSIONS!G24+'APPENDIX 14'!G24+'APPENDIX 15'!G24+'APPENDIX 16'!G24 -> 385088 | H24: ='APPENDIX 9'!H24+'APPENDIX 10'!H24+'APPENDIX 11'!H24+PENSIONS!H24+'APPENDIX 14'!H24+'APPENDIX 15'!H24+'APPENDIX 16'!H24 -> 394743 | I24: ='APPENDIX 9'!I24+'APPENDIX 10'!I24+'APPENDIX 11'!I24+PENSIONS!I24+'APPENDIX 14'!I24+'APPENDIX 15'!I24+'APPENDIX 16'!I24 -> 0 | J24: ='APPENDIX 9'!J24+'APPENDIX 10'!J24+'APPENDIX 11'!J24+PENSIONS!J24+'APPENDIX 14'!J24+'APPENDIX 15'!J24+'APPENDIX 16'!J24 -> 0 | K24: ='APPENDIX 9'!K24+'APPENDIX 10'!K24+'APPENDIX 11'!K24+PENSIONS!K24+'APPENDIX 14'!K24+'APPENDIX 15'!K24+'APPENDIX 16'!K24 -> 0 | L24: ='APPENDIX 9'!L24+'APPENDIX 10'!L24+'APPENDIX 11'!L24+PENSIONS!L24+'APPENDIX 14'!L24+'APPENDIX 15'!L24+'APPENDIX 16'!L24 -> 150323 | M24: ='APPENDIX 9'!M24+'APPENDIX 10'!M24+'APPENDIX 11'!M24+PENSIONS!M24+'APPENDIX 14'!M24+'APPENDIX 15'!M24+'APPENDIX 16'!M24 -> 495234 | N24: ='APPENDIX 9'!N24+'APPENDIX 10'!N24+'APPENDIX 11'!N24+PENSIONS!N24+'APPENDIX 14'!N24+'APPENDIX 15'!N24+'APPENDIX 16'!N24 -> 125378 | O24: ='APPENDIX 9'!O24+'APPENDIX 10'!O24+'APPENDIX 11'!O24+PENSIONS!O24+'APPENDIX 14'!O24+'APPENDIX 15'!O24+'APPENDIX 16'!O24 -> 4154 | P24: ='APPENDIX 9'!P24+'APPENDIX 10'!P24+'APPENDIX 11'!P24+PENSIONS!P24+'APPENDIX 14'!P24+'APPENDIX 15'!P24+'APPENDIX 16'!P24 -> 0 | Q24: ='APPENDIX 9'!Q24+'APPENDIX 10'!Q24+'APPENDIX 11'!Q24+PENSIONS!Q24+'APPENDIX 14'!Q24+'APPENDIX 15'!Q24+'APPENDIX 16'!Q24 -> 906702
B25: SANLAM LIFE INSURANCE | C25: ='APPENDIX 9'!C25+'APPENDIX 10'!C25+'APPENDIX 11'!C25+PENSIONS!C26+'APPENDIX 14'!C25+'APPENDIX 15'!C25+'APPENDIX 16'!C25 -> 22893742 | D25: ='APPENDIX 9'!D25+'APPENDIX 10'!D25+'APPENDIX 11'!D25+PENSIONS!D26+'APPENDIX 14'!D25+'APPENDIX 15'!D25+'APPENDIX 16'!D25 -> 8523941 | E25: ='APPENDIX 9'!E25+'APPENDIX 10'!E25+'APPENDIX 11'!E25+PENSIONS!E26+'APPENDIX 14'!E25+'APPENDIX 15'!E25+'APPENDIX 16'!E25 -> 7438695 | F25: ='APPENDIX 9'!F25+'APPENDIX 10'!F25+'APPENDIX 11'!F25+PENSIONS!F26+'APPENDIX 14'!F25+'APPENDIX 15'!F25+'APPENDIX 16'!F25 -> 0 | G25: ='APPENDIX 9'!G25+'APPENDIX 10'!G25+'APPENDIX 11'!G25+PENSIONS!G26+'APPENDIX 14'!G25+'APPENDIX 15'!G25+'APPENDIX 16'!G25 -> 4668525 | H25: ='APPENDIX 9'!H25+'APPENDIX 10'!H25+'APPENDIX 11'!H25+PENSIONS!H26+'APPENDIX 14'!H25+'APPENDIX 15'!H25+'APPENDIX 16'!H25 -> 3229027 | I25: ='APPENDIX 9'!I25+'APPENDIX 10'!I25+'APPENDIX 11'!I25+PENSIONS!I26+'APPENDIX 14'!I25+'APPENDIX 15'!I25+'APPENDIX 16'!I25 -> 0 | J25: ='APPENDIX 9'!J25+'APPENDIX 10'!J25+'APPENDIX 11'!J25+PENSIONS!J26+'APPENDIX 14'!J25+'APPENDIX 15'!J25+'APPENDIX 16'!J25 -> 0 | K25: ='APPENDIX 9'!K25+'APPENDIX 10'!K25+'APPENDIX 11'!K25+PENSIONS!K26+'APPENDIX 14'!K25+'APPENDIX 15'!K25+'APPENDIX 16'!K25 -> 1386257 | L25: ='APPENDIX 9'!L25+'APPENDIX 10'!L25+'APPENDIX 11'!L25+PENSIONS!L26+'APPENDIX 14'!L25+'APPENDIX 15'!L25+'APPENDIX 16'!L25 -> 570413 | M25: ='APPENDIX 9'!M25+'APPENDIX 10'!M25+'APPENDIX 11'!M25+PENSIONS!M26+'APPENDIX 14'!M25+'APPENDIX 15'!M25+'APPENDIX 16'!M25 -> 1148178 | N25: ='APPENDIX 9'!N25+'APPENDIX 10'!N25+'APPENDIX 11'!N25+PENSIONS!N26+'APPENDIX 14'!N25+'APPENDIX 15'!N25+'APPENDIX 16'!N25 -> 2582444 | O25: ='APPENDIX 9'!O25+'APPENDIX 10'!O25+'APPENDIX 11'!O25+PENSIONS!O26+'APPENDIX 14'!O25+'APPENDIX 15'!O25+'APPENDIX 16'!O25 -> 0 | P25: ='APPENDIX 9'!P25+'APPENDIX 10'!P25+'APPENDIX 11'!P25+PENSIONS!P26+'APPENDIX 14'!P25+'APPENDIX 15'!P25+'APPENDIX 16'!P25 -> 567249 | Q25: ='APPENDIX 9'!Q25+'APPENDIX 10'!Q25+'APPENDIX 11'!Q25+PENSIONS!Q26+'APPENDIX 14'!Q25+'APPENDIX 15'!Q25+'APPENDIX 16'!Q25 -> 26013756
B26: THE KENYAN ALLIANCE INSURANCE | C26: ='APPENDIX 9'!C26+'APPENDIX 10'!C26+'APPENDIX 11'!C26+PENSIONS!C27+'APPENDIX 14'!C26+'APPENDIX 15'!C26+'APPENDIX 16'!C26 -> 3457385 | D26: ='APPENDIX 9'!D26+'APPENDIX 10'!D26+'APPENDIX 11'!D26+PENSIONS!D27+'APPENDIX 14'!D26+'APPENDIX 15'!D26+'APPENDIX 16'!D26 -> 1012736 | E26: ='APPENDIX 9'!E26+'APPENDIX 10'!E26+'APPENDIX 11'!E26+PENSIONS!E27+'APPENDIX 14'!E26+'APPENDIX 15'!E26+'APPENDIX 16'!E26 -> 909074 | F26: ='APPENDIX 9'!F26+'APPENDIX 10'!F26+'APPENDIX 11'!F26+PENSIONS!F27+'APPENDIX 14'!F26+'APPENDIX 15'!F26+'APPENDIX 16'!F26 -> 0 | G26: ='APPENDIX 9'!G26+'APPENDIX 10'!G26+'APPENDIX 11'!G26+PENSIONS!G27+'APPENDIX 14'!G26+'APPENDIX 15'!G26+'APPENDIX 16'!G26 -> 597178 | H26: ='APPENDIX 9'!H26+'APPENDIX 10'!H26+'APPENDIX 11'!H26+PENSIONS!H27+'APPENDIX 14'!H26+'APPENDIX 15'!H26+'APPENDIX 16'!H26 -> 707135 | I26: ='APPENDIX 9'!I26+'APPENDIX 10'!I26+'APPENDIX 11'!I26+PENSIONS!I27+'APPENDIX 14'!I26+'APPENDIX 15'!I26+'APPENDIX 16'!I26 -> 0 | J26: ='APPENDIX 9'!J26+'APPENDIX 10'!J26+'APPENDIX 11'!J26+PENSIONS!J27+'APPENDIX 14'!J26+'APPENDIX 15'!J26+'APPENDIX 16'!J26 -> 0 | K26: ='APPENDIX 9'!K26+'APPENDIX 10'!K26+'APPENDIX 11'!K26+PENSIONS!K27+'APPENDIX 14'!K26+'APPENDIX 15'!K26+'APPENDIX 16'!K26 -> 5870 | L26: ='APPENDIX 9'!L26+'APPENDIX 10'!L26+'APPENDIX 11'!L26+PENSIONS!L27+'APPENDIX 14'!L26+'APPENDIX 15'!L26+'APPENDIX 16'!L26 -> 4241 | M26: ='APPENDIX 9'!M26+'APPENDIX 10'!M26+'APPENDIX 11'!M26+PENSIONS!M27+'APPENDIX 14'!M26+'APPENDIX 15'!M26+'APPENDIX 16'!M26 -> 141766 | N26: ='APPENDIX 9'!N26+'APPENDIX 10'!N26+'APPENDIX 11'!N26+PENSIONS!N27+'APPENDIX 14'!N26+'APPENDIX 15'!N26+'APPENDIX 16'!N26 -> 159431 | O26: ='APPENDIX 9'!O26+'APPENDIX 10'!O26+'APPENDIX 11'!O26+PENSIONS!O27+'APPENDIX 14'!O26+'APPENDIX 15'!O26+'APPENDIX 16'!O26 -> 0 | P26: ='APPENDIX 9'!P26+'APPENDIX 10'!P26+'APPENDIX 11'!P26+PENSIONS!P27+'APPENDIX 14'!P26+'APPENDIX 15'!P26+'APPENDIX 16'!P26 -> -468666 | Q26: ='APPENDIX 9'!Q26+'APPENDIX 10'!Q26+'APPENDIX 11'!Q26+PENSIONS!Q27+'APPENDIX 14'!Q26+'APPENDIX 15'!Q26+'APPENDIX 16'!Q26 -> 4135545
B27: THE MONARCH INSURANCE | C27: ='APPENDIX 9'!C27+'APPENDIX 10'!C27+'APPENDIX 11'!C27+PENSIONS!C28+'APPENDIX 14'!C27+'APPENDIX 15'!C27+'APPENDIX 16'!C27 -> 49785 | D27: ='APPENDIX 9'!D27+'APPENDIX 10'!D27+'APPENDIX 11'!D27+PENSIONS!D28+'APPENDIX 14'!D27+'APPENDIX 15'!D27+'APPENDIX 16'!D27 -> 108443 | E27: ='APPENDIX 9'!E27+'APPENDIX 10'!E27+'APPENDIX 11'!E27+PENSIONS!E28+'APPENDIX 14'!E27+'APPENDIX 15'!E27+'APPENDIX 16'!E27 -> 73050 | F27: ='APPENDIX 9'!F27+'APPENDIX 10'!F27+'APPENDIX 11'!F27+PENSIONS!F28+'APPENDIX 14'!F27+'APPENDIX 15'!F27+'APPENDIX 16'!F27 -> 0 | G27: ='APPENDIX 9'!G27+'APPENDIX 10'!G27+'APPENDIX 11'!G27+PENSIONS!G28+'APPENDIX 14'!G27+'APPENDIX 15'!G27+'APPENDIX 16'!G27 -> 82376 | H27: ='APPENDIX 9'!H27+'APPENDIX 10'!H27+'APPENDIX 11'!H27+PENSIONS!H28+'APPENDIX 14'!H27+'APPENDIX 15'!H27+'APPENDIX 16'!H27 -> 37848 | I27: ='APPENDIX 9'!I27+'APPENDIX 10'!I27+'APPENDIX 11'!I27+PENSIONS!I28+'APPENDIX 14'!I27+'APPENDIX 15'!I27+'APPENDIX 16'!I27 -> 0 | J27: ='APPENDIX 9'!J27+'APPENDIX 10'!J27+'APPENDIX 11'!J27+PENSIONS!J28+'APPENDIX 14'!J27+'APPENDIX 15'!J27+'APPENDIX 16'!J27 -> 0 | K27: ='APPENDIX 9'!K27+'APPENDIX 10'!K27+'APPENDIX 11'!K27+PENSIONS!K28+'APPENDIX 14'!K27+'APPENDIX 15'!K27+'APPENDIX 16'!K27 -> 0 | L27: ='APPENDIX 9'!L27+'APPENDIX 10'!L27+'APPENDIX 11'!L27+PENSIONS!L28+'APPENDIX 14'!L27+'APPENDIX 15'!L27+'APPENDIX 16'!L27 -> -107 | M27: ='APPENDIX 9'!M27+'APPENDIX 10'!M27+'APPENDIX 11'!M27+PENSIONS!M28+'APPENDIX 14'!M27+'APPENDIX 15'!M27+'APPENDIX 16'!M27 -> 72063 | N27: ='APPENDIX 9'!N27+'APPENDIX 10'!N27+'APPENDIX 11'!N27+PENSIONS!N28+'APPENDIX 14'!N27+'APPENDIX 15'!N27+'APPENDIX 16'!N27 -> 29874 | O27: ='APPENDIX 9'!O27+'APPENDIX 10'!O27+'APPENDIX 11'!O27+PENSIONS!O28+'APPENDIX 14'!O27+'APPENDIX 15'!O27+'APPENDIX 16'!O27 -> 0 | P27: ='APPENDIX 9'!P27+'APPENDIX 10'!P27+'APPENDIX 11'!P27+PENSIONS!P28+'APPENDIX 14'!P27+'APPENDIX 15'!P27+'APPENDIX 16'!P27 -> -6881 | Q27: ='APPENDIX 9'!Q27+'APPENDIX 10'!Q27+'APPENDIX 11'!Q27+PENSIONS!Q28+'APPENDIX 14'!Q27+'APPENDIX 15'!Q27+'APPENDIX 16'!Q27 -> 49786
B28: UAP LIFE ASSURANCE COMPANY | C28: ='APPENDIX 9'!C28+'APPENDIX 10'!C28+'APPENDIX 11'!C28+PENSIONS!C29+'APPENDIX 14'!C28+'APPENDIX 15'!C28+'APPENDIX 16'!C28 -> 11393198 | D28: ='APPENDIX 9'!D28+'APPENDIX 10'!D28+'APPENDIX 11'!D28+PENSIONS!D29+'APPENDIX 14'!D28+'APPENDIX 15'!D28+'APPENDIX 16'!D28 -> 2355583 | E28: ='APPENDIX 9'!E28+'APPENDIX 10'!E28+'APPENDIX 11'!E28+PENSIONS!E29+'APPENDIX 14'!E28+'APPENDIX 15'!E28+'APPENDIX 16'!E28 -> 1902434 | F28: ='APPENDIX 9'!F28+'APPENDIX 10'!F28+'APPENDIX 11'!F28+PENSIONS!F29+'APPENDIX 14'!F28+'APPENDIX 15'!F28+'APPENDIX 16'!F28 -> 0 | G28: ='APPENDIX 9'!G28+'APPENDIX 10'!G28+'APPENDIX 11'!G28+PENSIONS!G29+'APPENDIX 14'!G28+'APPENDIX 15'!G28+'APPENDIX 16'!G28 -> 2053934 | H28: ='APPENDIX 9'!H28+'APPENDIX 10'!H28+'APPENDIX 11'!H28+PENSIONS!H29+'APPENDIX 14'!H28+'APPENDIX 15'!H28+'APPENDIX 16'!H28 -> 1384583 | I28: ='APPENDIX 9'!I28+'APPENDIX 10'!I28+'APPENDIX 11'!I28+PENSIONS!I29+'APPENDIX 14'!I28+'APPENDIX 15'!I28+'APPENDIX 16'!I28 -> 275815 | J28: ='APPENDIX 9'!J28+'APPENDIX 10'!J28+'APPENDIX 11'!J28+PENSIONS!J29+'APPENDIX 14'!J28+'APPENDIX 15'!J28+'APPENDIX 16'!J28 -> 0 | K28: ='APPENDIX 9'!K28+'APPENDIX 10'!K28+'APPENDIX 11'!K28+PENSIONS!K29+'APPENDIX 14'!K28+'APPENDIX 15'!K28+'APPENDIX 16'!K28 -> 142021 | L28: ='APPENDIX 9'!L28+'APPENDIX 10'!L28+'APPENDIX 11'!L28+PENSIONS!L29+'APPENDIX 14'!L28+'APPENDIX 15'!L28+'APPENDIX 16'!L28 -> 180512 | M28: ='APPENDIX 9'!M28+'APPENDIX 10'!M28+'APPENDIX 11'!M28+PENSIONS!M29+'APPENDIX 14'!M28+'APPENDIX 15'!M28+'APPENDIX 16'!M28 -> 660685 | N28: ='APPENDIX 9'!N28+'APPENDIX 10'!N28+'APPENDIX 11'!N28+PENSIONS!N29+'APPENDIX 14'!N28+'APPENDIX 15'!N28+'APPENDIX 16'!N28 -> 1118073 | O28: ='APPENDIX 9'!O28+'APPENDIX 10'!O28+'APPENDIX 11'!O28+PENSIONS!O29+'APPENDIX 14'!O28+'APPENDIX 15'!O28+'APPENDIX 16'!O28 -> 0 | P28: ='APPENDIX 9'!P28+'APPENDIX 10'!P28+'APPENDIX 11'!P28+PENSIONS!P29+'APPENDIX 14'!P28+'APPENDIX 15'!P28+'APPENDIX 16'!P28 -> 0 | Q28: ='APPENDIX 9'!Q28+'APPENDIX 10'!Q28+'APPENDIX 11'!Q28+PENSIONS!Q29+'APPENDIX 14'!Q28+'APPENDIX 15'!Q28+'APPENDIX 16'!Q28 -> 11770088
B29: TOTAL | C29: =SUM(C6:C28) -> 435663778 | D29: 123687148 | E29: 114605558 | F29: 530432 | G29: 80568608 | H29: 56447806 | I29: 17085813 | J29: 1809438 | K29: 5654515 | L29: 6493140 | M29: 15689550 | N29: 51577230 | O29: 572357 | P29: 4322766 | Q29: 494301595
B30: REINSURERS
B31: CONTINENTAL REINSURANCE | C31: ='APPENDIX 9'!C31+'APPENDIX 10'!C31+'APPENDIX 11'!C31+PENSIONS!C32+'APPENDIX 14'!C31+'APPENDIX 15'!C30+'APPENDIX 16'!C31 -> 0 | D31: ='APPENDIX 9'!D31+'APPENDIX 10'!D31+'APPENDIX 11'!D31+PENSIONS!D32+'APPENDIX 14'!D31+'APPENDIX 15'!D30+'APPENDIX 16'!D31 -> 136454 | E31: ='APPENDIX 9'!E31+'APPENDIX 10'!E31+'APPENDIX 11'!E31+PENSIONS!E32+'APPENDIX 14'!E31+'APPENDIX 15'!E30+'APPENDIX 16'!E31 -> 121123 | F31: ='APPENDIX 9'!F31+'APPENDIX 10'!F31+'APPENDIX 11'!F31+PENSIONS!F32+'APPENDIX 14'!F31+'APPENDIX 15'!F30+'APPENDIX 16'!F31 -> 0 | G31: ='APPENDIX 9'!G31+'APPENDIX 10'!G31+'APPENDIX 11'!G31+PENSIONS!G32+'APPENDIX 14'!G31+'APPENDIX 15'!G30+'APPENDIX 16'!G31 -> 180334 | H31: ='APPENDIX 9'!H31+'APPENDIX 10'!H31+'APPENDIX 11'!H31+PENSIONS!H32+'APPENDIX 14'!H31+'APPENDIX 15'!H30+'APPENDIX 16'!H31 -> 273195 | I31: ='APPENDIX 9'!I31+'APPENDIX 10'!I31+'APPENDIX 11'!I31+PENSIONS!I32+'APPENDIX 14'!I31+'APPENDIX 15'!I30+'APPENDIX 16'!I31 -> 0 | J31: ='APPENDIX 9'!J31+'APPENDIX 10'!J31+'APPENDIX 11'!J31+PENSIONS!J32+'APPENDIX 14'!J31+'APPENDIX 15'!J30+'APPENDIX 16'!J31 -> 0 | K31: ='APPENDIX 9'!K31+'APPENDIX 10'!K31+'APPENDIX 11'!K31+PENSIONS!K32+'APPENDIX 14'!K31+'APPENDIX 15'!K30+'APPENDIX 16'!K31 -> 0 | L31: ='APPENDIX 9'!L31+'APPENDIX 10'!L31+'APPENDIX 11'!L31+PENSIONS!L32+'APPENDIX 14'!L31+'APPENDIX 15'!L30+'APPENDIX 16'!L31 -> 20037 | M31: ='APPENDIX 9'!M31+'APPENDIX 10'!M31+'APPENDIX 11'!M31+PENSIONS!M32+'APPENDIX 14'!M31+'APPENDIX 15'!M30+'APPENDIX 16'!M31 -> 4344 | N31: ='APPENDIX 9'!N31+'APPENDIX 10'!N31+'APPENDIX 11'!N31+PENSIONS!N32+'APPENDIX 14'!N31+'APPENDIX 15'!N30+'APPENDIX 16'!N31 -> 139349 | O31: ='APPENDIX 9'!O31+'APPENDIX 10'!O31+'APPENDIX 11'!O31+PENSIONS!O32+'APPENDIX 14'!O31+'APPENDIX 15'!O30+'APPENDIX 16'!O31 -> 0 | P31: ='APPENDIX 9'!P31+'APPENDIX 10'!P31+'APPENDIX 11'!P31+PENSIONS!P32+'APPENDIX 14'!P31+'APPENDIX 15'!P30+'APPENDIX 16'!P31 -> 0 | Q31: ='APPENDIX 9'!Q31+'APPENDIX 10'!Q31+'APPENDIX 11'!Q31+PENSIONS!Q32+'APPENDIX 14'!Q31+'APPENDIX 15'!Q30+'APPENDIX 16'!Q31 -> -37103
